Workbook

Sheet Exhibits
C9: Exhibit 1: Backtest: Log wealth 1887.01-2018.12 (initial wealth is set to one). | R9: Exhibit 4: Excess annual return (in percentage points) of original strategies after market impact.
U11: no transaction costs
U12: impact strategy
S13: ε (in bp) | U13: RDY | V13: MOM
R14: ="a = "&'Exhibit4_Impact-Test'!Y25 -> a = 2 | S14: ='Exhibit4_Impact-Test'!Y27 -> 100 | T14: RDY | U14: =(AVERAGE(g_RDYRDY_1st)*12-(AVERAGE(g_RDY)*12))*100 -> -0.0032 | V14: =(AVERAGE(g_RDYRS_1st)*12-(AVERAGE(g_RDY)*12))*100 -> 0.0986
T15: MOM | U15: =(AVERAGE(g_RSRDY_1st)*12-AVERAGE(g_RS)*12)*100 -> -0.0147 | V15: =(AVERAGE(g_RSRS_1st)*12-AVERAGE(g_RS)*12)*100 -> 1.8979
R16: The impact is caused by the column strategy with capital amount determined by the value of in the respective row. Performance is reported for the investment strategy in the corresponding row. We measure performance as the excess annualized return over the performance of that strategy in the original market (Exhibit 2, log returns for the same value of a). Reversal (relative dividend yield, RDY) and time-series momentum (relative strength, MOM). Di erent degrees of aggressiveness a.
C29: Time-series momentum relative strength (solid line, red), reversal relative dividend yield (bold solid line, blue) and equal weigh benchmark (broken line, black). a = 5. Wealth dynamics is net of transaction costs.

Sheet raw_Data
A1: Stock Market Data Used in "Irrational Exuberance" Princeton University Press, 2000, 2005, 2015, updated
A2: Robert J. Shiller
E4: Consumer
B5: S&P | E5: Price | G5: Long
B6: Comp. | C6: Dividend | D6: Earnings | E6: Index | F6: Date | G6: Interest
A7: Date | B7: P | C7: D | D7: E | E7: CPI | F7: Fraction | G7: Rate GS10 | H7: Shiller-raw Data | I7: Aufgabe 1 | J7: Dividends [$] | K7: div_yield | L7: Interests [% p.m.]
A8: 1871.01 | B8: 4.44 | C8: 0.26 | D8: 0.40 | E8: 12.46 | F8: =1871+1/24 -> 1871.04 | G8: 5.32 | J8: =D_year/12 -> 0.0217 | K8: 0.0000 | L8: =(1+G8/100)^(1/12)-1 -> 0.0043
A9: 1871.02 | B9: 4.50 | C9: 0.26 | D9: 0.40 | E9: 12.84 | F9: =F8+1/12 -> 1871.13 | G9: =G8*11/12+G20*1/12 -> 5.32 | J9: =D_year/12 -> 0.0217 | K9: =J9/B8 -> 0.0049 | L9: =(1+G9/100)^(1/12)-1 -> 0.0043
A10: 1871.03 | B10: 4.61 | C10: 0.26 | D10: 0.40 | E10: 13.03 | F10: 1871.21 | G10: =G8*10/12+G20*2/12 -> 5.33 | J10: 0.0217 | K10: 0.0048 | L10: =(1+G10/100)^(1/12)-1 -> 0.0043
A11: 1871.04 | B11: 4.74 | C11: 0.26 | D11: 0.40 | E11: 12.56 | F11: 1871.29 | G11: =G8*9/12+G20*3/12 -> 5.33 | J11: 0.0217 | K11: 0.0047 | L11: 0.0043
A12: 1871.05 | B12: 4.86 | C12: 0.26 | D12: 0.40 | E12: 12.27 | F12: 1871.38 | G12: =G8*8/12+G20*4/12 -> 5.33 | J12: 0.0217 | K12: 0.0046 | L12: 0.0043
A13: 1871.06 | B13: 4.82 | C13: 0.26 | D13: 0.40 | E13: 12.08 | F13: 1871.46 | G13: =G8*7/12+G20*5/12 -> 5.34 | J13: 0.0217 | K13: 0.0045 | L13: 0.0043
A14: 1871.07 | B14: 4.73 | C14: 0.26 | D14: 0.40 | E14: 12.08 | F14: 1871.54 | G14: =G8*6/12+G20*6/12 -> 5.34 | J14: 0.0217 | K14: 0.0045 | L14: 0.0043
A15: 1871.08 | B15: 4.79 | C15: 0.26 | D15: 0.40 | E15: 11.89 | F15: 1871.63 | G15: =G8*5/12+G20*7/12 -> 5.34 | J15: 0.0217 | K15: 0.0046 | L15: 0.0043
A16: 1871.09 | B16: 4.84 | C16: 0.26 | D16: 0.40 | E16: 12.18 | F16: 1871.71 | G16: =G8*4/12+G20*8/12 -> 5.35 | J16: 0.0217 | K16: 0.0045 | L16: 0.0043
A17: 1871.10 | B17: 4.59 | C17: 0.26 | D17: 0.40 | E17: 12.37 | F17: 1871.79 | G17: =G8*3/12+G20*9/12 -> 5.35 | J17: 0.0217 | K17: 0.0045 | L17: 0.0044
A18: 1871.11 | B18: 4.64 | C18: 0.26 | D18: 0.40 | E18: 12.37 | F18: 1871.88 | G18: =G8*2/12+G20*10/12 -> 5.35 | J18: 0.0217 | K18: 0.0047 | L18: 0.0044
A19: 1871.12 | B19: 4.74 | C19: 0.26 | D19: 0.40 | E19: 12.65 | F19: 1871.96 | G19: =G8*1/12+G20*11/12 -> 5.36 | J19: 0.0217 | K19: 0.0047 | L19: 0.0044
A20: 1872.01 | B20: 4.86 | C20: 0.26 | D20: 0.40 | E20: 12.65 | F20: 1872.04 | G20: 5.36 | J20: 0.0219 | K20: 0.0046 | L20: 0.0044
A21: 1872.02 | B21: 4.88 | C21: 0.27 | D21: 0.41 | E21: 12.65 | F21: 1872.13 | G21: =G20*11/12+G32*1/12 -> 5.38 | J21: 0.0222 | K21: 0.0046 | L21: 0.0044
A22: 1872.03 | B22: 5.04 | C22: 0.27 | D22: 0.41 | E22: 12.84 | F22: 1872.21 | G22: =G20*10/12+G32*2/12 -> 5.40 | J22: 0.0225 | K22: 0.0046 | L22: 0.0044
A23: 1872.04 | B23: 5.18 | C23: 0.27 | D23: 0.41 | E23: 13.13 | F23: 1872.29 | G23: =G20*9/12+G32*3/12 -> 5.42 | J23: 0.0228 | K23: 0.0045 | L23: 0.0044
A24: 1872.05 | B24: 5.18 | C24: 0.28 | D24: 0.41 | E24: 13.13 | F24: 1872.38 | G24: =G20*8/12+G32*4/12 -> 5.43 | J24: 0.0231 | K24: 0.0045 | L24: 0.0044
A25: 1872.06 | B25: 5.13 | C25: 0.28 | D25: 0.42 | E25: 13.03 | F25: 1872.46 | G25: =G20*7/12+G32*5/12 -> 5.45 | J25: 0.0233 | K25: 0.0045 | L25: 0.0044
A26: 1872.07 | B26: 5.10 | C26: 0.28 | D26: 0.42 | E26: 12.84 | F26: 1872.54 | G26: =G20*6/12+G32*6/12 -> 5.47 | J26: 0.0236 | K26: 0.0046 | L26: 0.0044
A27: 1872.08 | B27: 5.04 | C27: 0.29 | D27: 0.42 | E27: 12.94 | F27: 1872.63 | G27: =G20*5/12+G32*7/12 -> 5.49 | J27: 0.0239 | K27: 0.0047 | L27: 0.0045
A28: 1872.09 | B28: 4.95 | C28: 0.29 | D28: 0.42 | E28: 13.03 | F28: 1872.71 | G28: =G20*4/12+G32*8/12 -> 5.51 | J28: 0.0242 | K28: 0.0048 | L28: 0.0045
A29: 1872.10 | B29: 4.97 | C29: 0.29 | D29: 0.43 | E29: 12.75 | F29: 1872.79 | G29: =G20*3/12+G32*9/12 -> 5.53 | J29: 0.0244 | K29: 0.0049 | L29: 0.0045
A30: 1872.11 | B30: 4.95 | C30: 0.30 | D30: 0.43 | E30: 13.13 | F30: 1872.88 | G30: =G20*2/12+G32*10/12 -> 5.54 | J30: 0.0247 | K30: 0.0050 | L30: 0.0045
A31: 1872.12 | B31: 5.07 | C31: 0.30 | D31: 0.43 | E31: 12.94 | F31: 1872.96 | G31: =G20*1/12+G32*11/12 -> 5.56 | J31: 0.0250 | K31: 0.0051 | L31: 0.0045
A32: 1873.01 | B32: 5.11 | C32: 0.30 | D32: 0.43 | E32: 12.94 | F32: 1873.04 | G32: 5.58 | J32: 0.0252 | K32: 0.0050 | L32: 0.0045
A33: 1873.02 | B33: 5.15 | C33: 0.31 | D33: 0.44 | E33: 13.23 | F33: 1873.13 | G33: =G32*11/12+G44*1/12 -> 5.57 | J33: 0.0254 | K33: 0.0050 | L33: 0.0045
A34: 1873.03 | B34: 5.11 | C34: 0.31 | D34: 0.44 | E34: 13.23 | F34: 1873.21 | G34: =G32*10/12+G44*2/12 -> 5.56 | J34: 0.0256 | K34: 0.0050 | L34: 0.0045
A35: 1873.04 | B35: 5.04 | C35: 0.31 | D35: 0.44 | E35: 13.23 | F35: 1873.29 | G35: =G32*9/12+G44*3/12 -> 5.55 | J35: 0.0258 | K35: 0.0051 | L35: 0.0045
A36: 1873.05 | B36: 5.05 | C36: 0.31 | D36: 0.44 | E36: 12.94 | F36: 1873.38 | G36: =G32*8/12+G44*4/12 -> 5.54 | J36: 0.0260 | K36: 0.0052 | L36: 0.0045
A37: 1873.06 | B37: 4.98 | C37: 0.32 | D37: 0.45 | E37: 12.56 | F37: 1873.46 | G37: =G32*7/12+G44*5/12 -> 5.53 | J37: 0.0263 | K37: 0.0052 | L37: 0.0045
A38: 1873.07 | B38: 4.97 | C38: 0.32 | D38: 0.45 | E38: 12.56 | F38: 1873.54 | G38: =G32*6/12+G44*6/12 -> 5.53 | J38: 0.0265 | K38: 0.0053 | L38: 0.0045
A39: 1873.08 | B39: 4.97 | C39: 0.32 | D39: 0.45 | E39: 12.56 | F39: 1873.63 | G39: =G32*5/12+G44*7/12 -> 5.52 | J39: 0.0267 | K39: 0.0054 | L39: 0.0045
A40: 1873.09 | B40: 4.59 | C40: 0.32 | D40: 0.45 | E40: 12.56 | F40: 1873.71 | G40: =G32*4/12+G44*8/12 -> 5.51 | J40: 0.0269 | K40: 0.0054 | L40: 0.0045
A41: 1873.10 | B41: 4.19 | C41: 0.33 | D41: 0.46 | E41: 12.27 | F41: 1873.79 | G41: =G32*3/12+G44*9/12 -> 5.50 | J41: 0.0271 | K41: 0.0059 | L41: 0.0045
A42: 1873.11 | B42: 4.04 | C42: 0.33 | D42: 0.46 | E42: 11.89 | F42: 1873.88 | G42: =G32*2/12+G44*10/12 -> 5.49 | J42: 0.0273 | K42: 0.0065 | L42: 0.0045
A43: 1873.12 | B43: 4.42 | C43: 0.33 | D43: 0.46 | E43: 12.18 | F43: 1873.96 | G43: =G32*1/12+G44*11/12 -> 5.48 | J43: 0.0275 | K43: 0.0068 | L43: 0.0045
A44: 1874.01 | B44: 4.66 | C44: 0.33 | D44: 0.46 | E44: 12.37 | F44: 1874.04 | G44: 5.47 | J44: 0.0275 | K44: 0.0062 | L44: 0.0044
A45: 1874.02 | B45: 4.80 | C45: 0.33 | D45: 0.46 | E45: 12.37 | F45: 1874.13 | G45: =G44*11/12+G56*1/12 -> 5.44 | J45: 0.0275 | K45: 0.0059 | L45: 0.0044
A46: 1874.03 | B46: 4.73 | C46: 0.33 | D46: 0.46 | E46: 12.37 | F46: 1874.21 | G46: =G44*10/12+G56*2/12 -> 5.40 | J46: 0.0275 | K46: 0.0057 | L46: 0.0044
A47: 1874.04 | B47: 4.60 | C47: 0.33 | D47: 0.46 | E47: 12.18 | F47: 1874.29 | G47: =G44*9/12+G56*3/12 -> 5.37 | J47: 0.0275 | K47: 0.0058 | L47: 0.0044
A48: 1874.05 | B48: 4.48 | C48: 0.33 | D48: 0.46 | E48: 12.08 | F48: 1874.38 | G48: =G44*8/12+G56*4/12 -> 5.34 | J48: 0.0275 | K48: 0.0060 | L48: 0.0043
A49: 1874.06 | B49: 4.46 | C49: 0.33 | D49: 0.46 | E49: 11.80 | F49: 1874.46 | G49: =G44*7/12+G56*5/12 -> 5.30 | J49: 0.0275 | K49: 0.0061 | L49: 0.0043
A50: 1874.07 | B50: 4.46 | C50: 0.33 | D50: 0.46 | E50: 11.89 | F50: 1874.54 | G50: =G44*6/12+G56*6/12 -> 5.27 | J50: 0.0275 | K50: 0.0062 | L50: 0.0043
A51: 1874.08 | B51: 4.47 | C51: 0.33 | D51: 0.46 | E51: 11.80 | F51: 1874.63 | G51: =G44*5/12+G56*7/12 -> 5.24 | J51: 0.0275 | K51: 0.0062 | L51: 0.0043
A52: 1874.09 | B52: 4.54 | C52: 0.33 | D52: 0.46 | E52: 11.80 | F52: 1874.71 | G52: =G44*4/12+G56*8/12 -> 5.20 | J52: 0.0275 | K52: 0.0062 | L52: 0.0042
A53: 1874.10 | B53: 4.53 | C53: 0.33 | D53: 0.46 | E53: 11.61 | F53: 1874.79 | G53: =G44*3/12+G56*9/12 -> 5.17 | J53: 0.0275 | K53: 0.0061 | L53: 0.0042
A54: 1874.11 | B54: 4.57 | C54: 0.33 | D54: 0.46 | E54: 11.51 | F54: 1874.88 | G54: =G44*2/12+G56*10/12 -> 5.14 | J54: 0.0275 | K54: 0.0061 | L54: 0.0042
A55: 1874.12 | B55: 4.54 | C55: 0.33 | D55: 0.46 | E55: 11.51 | F55: 1874.96 | G55: =G44*1/12+G56*11/12 -> 5.10 | J55: 0.0275 | K55: 0.0060 | L55: 0.0042
A56: 1875.01 | B56: 4.54 | C56: 0.33 | D56: 0.45 | E56: 11.51 | F56: 1875.04 | G56: 5.07 | J56: 0.0273 | K56: 0.0060 | L56: 0.0041
A57: 1875.02 | B57: 4.53 | C57: 0.33 | D57: 0.44 | E57: 11.51 | F57: 1875.13 | G57: =G56*11/12+G68*1/12 -> 5.03 | J57: 0.0271 | K57: 0.0060 | L57: 0.0041
A58: 1875.03 | B58: 4.59 | C58: 0.32 | D58: 0.44 | E58: 11.51 | F58: 1875.21 | G58: =G56*10/12+G68*2/12 -> 4.99 | J58: 0.0269 | K58: 0.0059 | L58: 0.0041
A59: 1875.04 | B59: 4.65 | C59: 0.32 | D59: 0.43 | E59: 11.61 | F59: 1875.29 | G59: =G56*9/12+G68*3/12 -> 4.95 | J59: 0.0267 | K59: 0.0058 | L59: 0.0040
A60: 1875.05 | B60: 4.47 | C60: 0.32 | D60: 0.42 | E60: 11.32 | F60: 1875.38 | G60: =G56*8/12+G68*4/12 -> 4.91 | J60: 0.0265 | K60: 0.0057 | L60: 0.0040
A61: 1875.06 | B61: 4.38 | C61: 0.32 | D61: 0.41 | E61: 11.13 | F61: 1875.46 | G61: =G56*7/12+G68*5/12 -> 4.87 | J61: 0.0263 | K61: 0.0059 | L61: 0.0040
A62: 1875.07 | B62: 4.39 | C62: 0.31 | D62: 0.40 | E62: 11.13 | F62: 1875.54 | G62: =G56*6/12+G68*6/12 -> 4.83 | J62: 0.0260 | K62: 0.0059 | L62: 0.0039
A63: 1875.08 | B63: 4.41 | C63: 0.31 | D63: 0.39 | E63: 11.23 | F63: 1875.63 | G63: =G56*5/12+G68*7/12 -> 4.79 | J63: 0.0258 | K63: 0.0059 | L63: 0.0039
A64: 1875.09 | B64: 4.37 | C64: 0.31 | D64: 0.39 | E64: 11.13 | F64: 1875.71 | G64: =G56*4/12+G68*8/12 -> 4.75 | J64: 0.0256 | K64: 0.0058 | L64: 0.0039
A65: 1875.10 | B65: 4.30 | C65: 0.31 | D65: 0.38 | E65: 11.13 | F65: 1875.79 | G65: =G56*3/12+G68*9/12 -> 4.71 | J65: 0.0254 | K65: 0.0058 | L65: 0.0038
A66: 1875.11 | B66: 4.37 | C66: 0.30 | D66: 0.37 | E66: 11.04 | F66: 1875.88 | G66: =G56*2/12+G68*10/12 -> 4.67 | J66: 0.0252 | K66: 0.0059 | L66: 0.0038
A67: 1875.12 | B67: 4.37 | C67: 0.30 | D67: 0.36 | E67: 10.94 | F67: 1875.96 | G67: =G56*1/12+G68*11/12 -> 4.63 | J67: 0.0250 | K67: 0.0057 | L67: 0.0038
A68: 1876.01 | B68: 4.46 | C68: 0.30 | D68: 0.35 | E68: 10.85 | F68: 1876.04 | G68: 4.59 | J68: 0.0250 | K68: 0.0057 | L68: 0.0037
A69: 1876.02 | B69: 4.52 | C69: 0.30 | D69: 0.35 | E69: 10.85 | F69: 1876.13 | G69: =G68*11/12+G80*1/12 -> 4.58 | J69: 0.0250 | K69: 0.0056 | L69: 0.0037
A70: 1876.03 | B70: 4.51 | C70: 0.30 | D70: 0.34 | E70: 10.85 | F70: 1876.21 | G70: =G68*10/12+G80*2/12 -> 4.57 | J70: 0.0250 | K70: 0.0055 | L70: 0.0037
A71: 1876.04 | B71: 4.34 | C71: 0.30 | D71: 0.33 | E71: 10.75 | F71: 1876.29 | G71: =G68*9/12+G80*3/12 -> 4.56 | J71: 0.0250 | K71: 0.0055 | L71: 0.0037
A72: 1876.05 | B72: 4.18 | C72: 0.30 | D72: 0.33 | E72: 10.37 | F72: 1876.38 | G72: =G68*8/12+G80*4/12 -> 4.54 | J72: =D_year/12 -> 0.0250 | K72: 0.0058 | L72: =(1+G72/100)^(1/12)-1 -> 0.0037
A73: 1876.06 | B73: 4.15 | C73: 0.30 | D73: 0.32 | E73: 10.09 | F73: =F72+1/12 -> 1876.46 | G73: =G68*7/12+G80*5/12 -> 4.53 | J73: 0.0250 | K73: =J73/B72 -> 0.0060 | L73: 0.0037
A74: 1876.07 | B74: 4.10 | C74: 0.30 | D74: 0.31 | E74: 10.09 | F74: 1876.54 | G74: =G68*6/12+G80*6/12 -> 4.52 | J74: 0.0250 | K74: 0.0060 | L74: 0.0037
A75: 1876.08 | B75: 3.93 | C75: 0.30 | D75: 0.31 | E75: 10.18 | F75: 1876.62 | G75: =G68*5/12+G80*7/12 -> 4.51 | J75: 0.0250 | K75: 0.0061 | L75: 0.0037
A76: 1876.09 | B76: 3.69 | C76: 0.30 | D76: 0.30 | E76: 10.28 | F76: 1876.71 | G76: =G68*4/12+G80*8/12 -> 4.50 | J76: 0.0250 | K76: 0.0064 | L76: 0.0037
A77: 1876.10 | B77: 3.67 | C77: 0.30 | D77: 0.29 | E77: 10.47 | F77: 1876.79 | G77: =G68*3/12+G80*9/12 -> 4.49 | J77: 0.0250 | K77: 0.0068 | L77: 0.0037
A78: 1876.11 | B78: 3.60 | C78: 0.30 | D78: 0.29 | E78: 10.56 | F78: 1876.87 | G78: =G68*2/12+G80*10/12 -> 4.47 | J78: 0.0250 | K78: 0.0068 | L78: 0.0037
A79: 1876.12 | B79: 3.58 | C79: 0.30 | D79: 0.28 | E79: 10.75 | F79: 1876.96 | G79: =G68*1/12+G80*11/12 -> 4.46 | J79: 0.0250 | K79: 0.0069 | L79: 0.0036
A80: 1877.01 | B80: 3.55 | C80: 0.29 | D80: 0.28 | E80: 10.94 | F80: 1877.04 | G80: 4.45 | J80: 0.0242 | K80: 0.0068 | L80: 0.0036
A81: 1877.02 | B81: 3.34 | C81: 0.28 | D81: 0.28 | E81: 10.66 | F81: 1877.12 | G81: =G80*11/12+G92*1/12 -> 4.44 | J81: 0.0235 | K81: 0.0066 | L81: 0.0036
A82: 1877.03 | B82: 3.17 | C82: 0.27 | D82: 0.29 | E82: 10.18 | F82: 1877.21 | G82: =G80*10/12+G92*2/12 -> 4.43 | J82: 0.0227 | K82: 0.0068 | L82: 0.0036
A83: 1877.04 | B83: 2.94 | C83: 0.26 | D83: 0.29 | E83: 10.47 | F83: 1877.29 | G83: =G80*9/12+G92*3/12 -> 4.42 | J83: 0.0219 | K83: 0.0069 | L83: 0.0036
A84: 1877.05 | B84: 2.94 | C84: 0.25 | D84: 0.29 | E84: 10.66 | F84: 1877.37 | G84: =G80*8/12+G92*4/12 -> 4.41 | J84: 0.0212 | K84: 0.0072 | L84: 0.0036
A85: 1877.06 | B85: 2.73 | C85: 0.25 | D85: 0.29 | E85: 10.09 | F85: 1877.46 | G85: =G80*7/12+G92*5/12 -> 4.40 | J85: 0.0204 | K85: 0.0069 | L85: 0.0036
A86: 1877.07 | B86: 2.85 | C86: 0.24 | D86: 0.29 | E86: 10.18 | F86: 1877.54 | G86: =G80*6/12+G92*6/12 -> 4.40 | J86: 0.0197 | K86: 0.0072 | L86: 0.0036
A87: 1877.08 | B87: 3.05 | C87: 0.23 | D87: 0.29 | E87: 9.80 | F87: 1877.62 | G87: =G80*5/12+G92*7/12 -> 4.39 | J87: 0.0189 | K87: 0.0066 | L87: 0.0036
A88: 1877.09 | B88: 3.24 | C88: 0.22 | D88: 0.30 | E88: 9.70 | F88: 1877.71 | G88: =G80*4/12+G92*8/12 -> 4.38 | J88: 0.0181 | K88: 0.0059 | L88: 0.0036
A89: 1877.10 | B89: 3.31 | C89: 0.21 | D89: 0.30 | E89: 9.70 | F89: 1877.79 | G89: =G80*3/12+G92*9/12 -> 4.37 | J89: 0.0174 | K89: 0.0054 | L89: 0.0036
A90: 1877.11 | B90: 3.26 | C90: 0.20 | D90: 0.30 | E90: 9.51 | F90: 1877.87 | G90: =G80*2/12+G92*10/12 -> 4.36 | J90: 0.0166 | K90: 0.0050 | L90: 0.0036
A91: 1877.12 | B91: 3.25 | C91: 0.19 | D91: 0.30 | E91: 9.51 | F91: 1877.96 | G91: =G80*1/12+G92*11/12 -> 4.35 | J91: 0.0158 | K91: 0.0049 | L91: 0.0036
A92: 1878.01 | B92: 3.25 | C92: 0.19 | D92: 0.30 | E92: 9.23 | F92: 1878.04 | G92: 4.34 | J92: 0.0158 | K92: 0.0049 | L92: 0.0035
A93: 1878.02 | B93: 3.18 | C93: 0.19 | D93: 0.30 | E93: 9.13 | F93: 1878.12 | G93: =G92*11/12+G104*1/12 -> 4.33 | J93: 0.0157 | K93: 0.0048 | L93: 0.0035
A94: 1878.03 | B94: 3.24 | C94: 0.19 | D94: 0.30 | E94: 8.94 | F94: 1878.21 | G94: =G92*10/12+G104*2/12 -> 4.32 | J94: 0.0156 | K94: 0.0049 | L94: 0.0035
A95: 1878.04 | B95: 3.33 | C95: 0.19 | D95: 0.30 | E95: 8.85 | F95: 1878.29 | G95: =G92*9/12+G104*3/12 -> 4.31 | J95: 0.0156 | K95: 0.0048 | L95: 0.0035
A96: 1878.05 | B96: 3.34 | C96: 0.19 | D96: 0.30 | E96: 8.56 | F96: 1878.37 | G96: =G92*8/12+G104*4/12 -> 4.30 | J96: 0.0155 | K96: 0.0046 | L96: 0.0035
A97: 1878.06 | B97: 3.41 | C97: 0.19 | D97: 0.31 | E97: 8.37 | F97: 1878.46 | G97: =G92*7/12+G104*5/12 -> 4.29 | J97: 0.0154 | K97: 0.0046 | L97: 0.0035
A98: 1878.07 | B98: 3.48 | C98: 0.18 | D98: 0.31 | E98: 8.47 | F98: 1878.54 | G98: =G92*6/12+G104*6/12 -> 4.28 | J98: 0.0154 | K98: 0.0045 | L98: 0.0035
A99: 1878.08 | B99: 3.45 | C99: 0.18 | D99: 0.31 | E99: 8.56 | F99: 1878.62 | G99: =G92*5/12+G104*7/12 -> 4.27 | J99: 0.0153 | K99: 0.0044 | L99: 0.0035
A100: 1878.09 | B100: 3.52 | C100: 0.18 | D100: 0.31 | E100: 8.56 | F100: 1878.71 | G100: =G92*4/12+G104*8/12 -> 4.26 | J100: 0.0152 | K100: 0.0044 | L100: 0.0035
A101: 1878.10 | B101: 3.48 | C101: 0.18 | D101: 0.31 | E101: 8.47 | F101: 1878.79 | G101: =G92*3/12+G104*9/12 -> 4.25 | J101: 0.0151 | K101: 0.0043 | L101: 0.0035
A102: 1878.11 | B102: 3.47 | C102: 0.18 | D102: 0.31 | E102: 8.37 | F102: 1878.87 | G102: =G92*2/12+G104*10/12 -> 4.24 | J102: 0.0151 | K102: 0.0043 | L102: 0.0035
A103: 1878.12 | B103: 3.45 | C103: 0.18 | D103: 0.31 | E103: 8.18 | F103: 1878.96 | G103: =G92*1/12+G104*11/12 -> 4.23 | J103: 0.0150 | K103: 0.0043 | L103: 0.0035
A104: 1879.01 | B104: 3.58 | C104: 0.18 | D104: 0.32 | E104: 8.28 | F104: 1879.04 | G104: 4.22 | J104: 0.0151 | K104: 0.0044 | L104: 0.0035
A105: 1879.02 | B105: 3.71 | C105: 0.18 | D105: 0.32 | E105: 8.37 | F105: 1879.12 | G105: =G104*11/12+G116*1/12 -> 4.20 | J105: 0.0153 | K105: 0.0043 | L105: 0.0034
A106: 1879.03 | B106: 3.65 | C106: 0.19 | D106: 0.33 | E106: 8.28 | F106: 1879.21 | G106: =G104*10/12+G116*2/12 -> 4.19 | J106: 0.0154 | K106: 0.0042 | L106: 0.0034
A107: 1879.04 | B107: 3.77 | C107: 0.19 | D107: 0.33 | E107: 8.18 | F107: 1879.29 | G107: =G104*9/12+G116*3/12 -> 4.17 | J107: 0.0156 | K107: 0.0043 | L107: 0.0034
A108: 1879.05 | B108: 3.94 | C108: 0.19 | D108: 0.34 | E108: 8.18 | F108: 1879.37 | G108: =G104*8/12+G116*4/12 -> 4.15 | J108: 0.0157 | K108: 0.0042 | L108: 0.0034
A109: 1879.06 | B109: 3.96 | C109: 0.19 | D109: 0.35 | E109: 8.09 | F109: 1879.46 | G109: =G104*7/12+G116*5/12 -> 4.14 | J109: 0.0158 | K109: 0.0040 | L109: 0.0034
A110: 1879.07 | B110: 4.04 | C110: 0.19 | D110: 0.35 | E110: 8.18 | F110: 1879.54 | G110: =G104*6/12+G116*6/12 -> 4.12 | J110: 0.0160 | K110: 0.0040 | L110: 0.0034
A111: 1879.08 | B111: 4.07 | C111: 0.19 | D111: 0.36 | E111: 8.18 | F111: 1879.62 | G111: =G104*5/12+G116*7/12 -> 4.10 | J111: 0.0161 | K111: 0.0040 | L111: 0.0034
A112: 1879.09 | B112: 4.22 | C112: 0.20 | D112: 0.36 | E112: 8.47 | F112: 1879.71 | G112: =G104*4/12+G116*8/12 -> 4.09 | J112: 0.0163 | K112: 0.0040 | L112: 0.0033
A113: 1879.10 | B113: 4.68 | C113: 0.20 | D113: 0.37 | E113: 8.94 | F113: 1879.79 | G113: =G104*3/12+G116*9/12 -> 4.07 | J113: 0.0164 | K113: 0.0039 | L113: 0.0033
A114: 1879.11 | B114: 4.93 | C114: 0.20 | D114: 0.37 | E114: 9.42 | F114: 1879.87 | G114: =G104*2/12+G116*10/12 -> 4.05 | J114: 0.0165 | K114: 0.0035 | L114: 0.0033
A115: 1879.12 | B115: 4.92 | C115: 0.20 | D115: 0.38 | E115: 9.70 | F115: 1879.96 | G115: =G104*1/12+G116*11/12 -> 4.04 | J115: 0.0167 | K115: 0.0034 | L115: 0.0033
A116: 1880.01 | B116: 5.11 | C116: 0.21 | D116: 0.39 | E116: 9.99 | F116: 1880.04 | G116: 4.02 | J116: 0.0171 | K116: 0.0035 | L116: 0.0033
A117: 1880.02 | B117: 5.20 | C117: 0.21 | D117: 0.40 | E117: 9.99 | F117: 1880.12 | G117: =G116*11/12+G128*1/12 -> 3.99 | J117: 0.0175 | K117: 0.0034 | L117: 0.0033
A118: 1880.03 | B118: 5.30 | C118: 0.22 | D118: 0.41 | E118: 10.09 | F118: 1880.21 | G118: =G116*10/12+G128*2/12 -> 3.97 | J118: 0.0179 | K118: 0.0034 | L118: 0.0032
A119: 1880.04 | B119: 5.18 | C119: 0.22 | D119: 0.42 | E119: 9.70 | F119: 1880.29 | G119: =G116*9/12+G128*3/12 -> 3.94 | J119: 0.0183 | K119: 0.0035 | L119: 0.0032
A120: 1880.05 | B120: 4.77 | C120: 0.23 | D120: 0.43 | E120: 9.42 | F120: 1880.37 | G120: =G116*8/12+G128*4/12 -> 3.91 | J120: 0.0188 | K120: 0.0036 | L120: 0.0032
A121: 1880.06 | B121: 4.79 | C121: 0.23 | D121: 0.44 | E121: 9.23 | F121: 1880.46 | G121: =G116*7/12+G128*5/12 -> 3.89 | J121: 0.0192 | K121: 0.0040 | L121: 0.0032
A122: 1880.07 | B122: 5.01 | C122: 0.24 | D122: 0.44 | E122: 9.23 | F122: 1880.54 | G122: =G116*6/12+G128*6/12 -> 3.86 | J122: 0.0196 | K122: 0.0041 | L122: 0.0032
A123: 1880.08 | B123: 5.19 | C123: 0.24 | D123: 0.45 | E123: 9.23 | F123: 1880.62 | G123: =G116*5/12+G128*7/12 -> 3.83 | J123: 0.0200 | K123: 0.0040 | L123: 0.0031
A124: 1880.09 | B124: 5.18 | C124: 0.25 | D124: 0.46 | E124: 9.32 | F124: 1880.71 | G124: =G116*4/12+G128*8/12 -> 3.81 | J124: 0.0204 | K124: 0.0039 | L124: 0.0031
A125: 1880.10 | B125: 5.33 | C125: 0.25 | D125: 0.47 | E125: 9.32 | F125: 1880.79 | G125: =G116*3/12+G128*9/12 -> 3.78 | J125: 0.0208 | K125: 0.0040 | L125: 0.0031
A126: 1880.11 | B126: 5.61 | C126: 0.26 | D126: 0.48 | E126: 9.42 | F126: 1880.87 | G126: =G116*2/12+G128*10/12 -> 3.75 | J126: 0.0213 | K126: 0.0040 | L126: 0.0031
A127: 1880.12 | B127: 5.84 | C127: 0.26 | D127: 0.49 | E127: 9.51 | F127: 1880.96 | G127: =G116*1/12+G128*11/12 -> 3.73 | J127: 0.0217 | K127: 0.0039 | L127: 0.0031
A128: 1881.01 | B128: 6.19 | C128: 0.27 | D128: 0.49 | E128: 9.42 | F128: 1881.04 | G128: 3.70 | J128: 0.0221 | K128: 0.0038 | L128: 0.0030
A129: 1881.02 | B129: 6.17 | C129: 0.27 | D129: 0.48 | E129: 9.51 | F129: 1881.12 | G129: =G128*11/12+G140*1/12 -> 3.69 | J129: 0.0225 | K129: 0.0036 | L129: 0.0030
A130: 1881.03 | B130: 6.24 | C130: 0.28 | D130: 0.48 | E130: 9.51 | F130: 1881.21 | G130: =G128*10/12+G140*2/12 -> 3.69 | J130: 0.0229 | K130: 0.0037 | L130: 0.0030
A131: 1881.04 | B131: 6.22 | C131: 0.28 | D131: 0.47 | E131: 9.61 | F131: 1881.29 | G131: =G128*9/12+G140*3/12 -> 3.68 | J131: 0.0233 | K131: 0.0037 | L131: 0.0030
A132: 1881.05 | B132: 6.50 | C132: 0.29 | D132: 0.47 | E132: 9.51 | F132: 1881.37 | G132: =G128*8/12+G140*4/12 -> 3.67 | J132: 0.0238 | K132: 0.0038 | L132: 0.0030
A133: 1881.06 | B133: 6.58 | C133: 0.29 | D133: 0.47 | E133: 9.51 | F133: 1881.46 | G133: =G128*7/12+G140*5/12 -> 3.67 | J133: 0.0242 | K133: 0.0037 | L133: 0.0030
A134: 1881.07 | B134: 6.35 | C134: 0.30 | D134: 0.46 | E134: 9.61 | F134: 1881.54 | G134: =G128*6/12+G140*6/12 -> 3.66 | J134: 0.0246 | K134: 0.0037 | L134: 0.0030
A135: 1881.08 | B135: 6.20 | C135: 0.30 | D135: 0.46 | E135: 9.80 | F135: 1881.62 | G135: =G128*5/12+G140*7/12 -> 3.65 | J135: 0.0250 | K135: 0.0039 | L135: 0.0030
A136: 1881.09 | B136: 6.25 | C136: 0.31 | D136: 0.45 | E136: 10.18 | F136: 1881.71 | G136: =G128*4/12+G140*8/12 -> 3.65 | J136: =D_year/12 -> 0.0254 | K136: 0.0041 | L136: =(1+G136/100)^(1/12)-1 -> 0.0030
A137: 1881.10 | B137: 6.15 | C137: 0.31 | D137: 0.45 | E137: 10.28 | F137: =F136+1/12 -> 1881.79 | G137: =G128*3/12+G140*9/12 -> 3.64 | J137: 0.0258 | K137: =J137/B136 -> 0.0041 | L137: 0.0030
A138: 1881.11 | B138: 6.19 | C138: 0.32 | D138: 0.44 | E138: 10.18 | F138: 1881.87 | G138: =G128*2/12+G140*10/12 -> 3.63 | J138: 0.0263 | K138: 0.0043 | L138: 0.0030
A139: 1881.12 | B139: 6.01 | C139: 0.32 | D139: 0.44 | E139: 10.18 | F139: 1881.96 | G139: =G128*1/12+G140*11/12 -> 3.63 | J139: 0.0267 | K139: 0.0043 | L139: 0.0030
A140: 1882.01 | B140: 5.92 | C140: 0.32 | D140: 0.44 | E140: 10.18 | F140: 1882.04 | G140: 3.62 | J140: 0.0267 | K140: 0.0044 | L140: 0.0030
A141: 1882.02 | B141: 5.79 | C141: 0.32 | D141: 0.44 | E141: 10.28 | F141: 1882.12 | G141: =G140*11/12+G152*1/12 -> 3.62 | J141: 0.0267 | K141: 0.0045 | L141: 0.0030
A142: 1882.03 | B142: 5.78 | C142: 0.32 | D142: 0.44 | E142: 10.28 | F142: 1882.21 | G142: =G140*10/12+G152*2/12 -> 3.62 | J142: 0.0267 | K142: 0.0046 | L142: 0.0030
A143: 1882.04 | B143: 5.78 | C143: 0.32 | D143: 0.44 | E143: 10.37 | F143: 1882.29 | G143: =G140*9/12+G152*3/12 -> 3.62 | J143: 0.0267 | K143: 0.0046 | L143: 0.0030
A144: 1882.05 | B144: 5.71 | C144: 0.32 | D144: 0.44 | E144: 10.47 | F144: 1882.37 | G144: =G140*8/12+G152*4/12 -> 3.62 | J144: 0.0267 | K144: 0.0046 | L144: 0.0030
A145: 1882.06 | B145: 5.68 | C145: 0.32 | D145: 0.44 | E145: 10.56 | F145: 1882.46 | G145: =G140*7/12+G152*5/12 -> 3.62 | J145: 0.0267 | K145: 0.0047 | L145: 0.0030
A146: 1882.07 | B146: 6.00 | C146: 0.32 | D146: 0.43 | E146: 10.47 | F146: 1882.54 | G146: =G140*6/12+G152*6/12 -> 3.63 | J146: 0.0267 | K146: 0.0047 | L146: 0.0030
A147: 1882.08 | B147: 6.18 | C147: 0.32 | D147: 0.43 | E147: 10.56 | F147: 1882.62 | G147: =G140*5/12+G152*7/12 -> 3.63 | J147: 0.0267 | K147: 0.0044 | L147: 0.0030
A148: 1882.09 | B148: 6.24 | C148: 0.32 | D148: 0.43 | E148: 10.28 | F148: 1882.71 | G148: =G140*4/12+G152*8/12 -> 3.63 | J148: 0.0267 | K148: 0.0043 | L148: 0.0030
A149: 1882.10 | B149: 6.07 | C149: 0.32 | D149: 0.43 | E149: 10.18 | F149: 1882.79 | G149: =G140*3/12+G152*9/12 -> 3.63 | J149: 0.0267 | K149: 0.0043 | L149: 0.0030
A150: 1882.11 | B150: 5.81 | C150: 0.32 | D150: 0.43 | E150: 10.09 | F150: 1882.87 | G150: =G140*2/12+G152*10/12 -> 3.63 | J150: 0.0267 | K150: 0.0044 | L150: 0.0030
A151: 1882.12 | B151: 5.84 | C151: 0.32 | D151: 0.43 | E151: 9.99 | F151: 1882.96 | G151: =G140*1/12+G152*11/12 -> 3.63 | J151: 0.0267 | K151: 0.0046 | L151: 0.0030
A152: 1883.01 | B152: 5.81 | C152: 0.32 | D152: 0.43 | E152: 9.99 | F152: 1883.04 | G152: 3.63 | J152: 0.0267 | K152: 0.0046 | L152: 0.0030
A153: 1883.02 | B153: 5.68 | C153: 0.32 | D153: 0.43 | E153: 10.09 | F153: 1883.12 | G153: =G152*11/12+G164*1/12 -> 3.63 | J153: 0.0268 | K153: 0.0046 | L153: 0.0030
A154: 1883.03 | B154: 5.75 | C154: 0.32 | D154: 0.42 | E154: 9.99 | F154: 1883.21 | G154: =G152*10/12+G164*2/12 -> 3.63 | J154: 0.0269 | K154: 0.0047 | L154: 0.0030
A155: 1883.04 | B155: 5.87 | C155: 0.32 | D155: 0.42 | E155: 9.90 | F155: 1883.29 | G155: =G152*9/12+G164*3/12 -> 3.63 | J155: 0.0269 | K155: 0.0047 | L155: 0.0030
A156: 1883.05 | B156: 5.77 | C156: 0.32 | D156: 0.42 | E156: 9.80 | F156: 1883.37 | G156: =G152*8/12+G164*4/12 -> 3.63 | J156: 0.0270 | K156: 0.0046 | L156: 0.0030
A157: 1883.06 | B157: 5.82 | C157: 0.33 | D157: 0.42 | E157: 9.51 | F157: 1883.46 | G157: =G152*7/12+G164*5/12 -> 3.63 | J157: 0.0271 | K157: 0.0047 | L157: 0.0030
A158: 1883.07 | B158: 5.73 | C158: 0.33 | D158: 0.41 | E158: 9.32 | F158: 1883.54 | G158: =G152*6/12+G164*6/12 -> 3.63 | J158: 0.0272 | K158: 0.0047 | L158: 0.0030
A159: 1883.08 | B159: 5.47 | C159: 0.33 | D159: 0.41 | E159: 9.32 | F159: 1883.62 | G159: =G152*5/12+G164*7/12 -> 3.62 | J159: 0.0272 | K159: 0.0048 | L159: 0.0030
A160: 1883.09 | B160: 5.53 | C160: 0.33 | D160: 0.41 | E160: 9.23 | F160: 1883.71 | G160: =G152*4/12+G164*8/12 -> 3.62 | J160: 0.0273 | K160: 0.0050 | L160: 0.0030
A161: 1883.10 | B161: 5.38 | C161: 0.33 | D161: 0.41 | E161: 9.23 | F161: 1883.79 | G161: =G152*3/12+G164*9/12 -> 3.62 | J161: 0.0274 | K161: 0.0049 | L161: 0.0030
A162: 1883.11 | B162: 5.46 | C162: 0.33 | D162: 0.40 | E162: 9.13 | F162: 1883.87 | G162: =G152*2/12+G164*10/12 -> 3.62 | J162: 0.0274 | K162: 0.0051 | L162: 0.0030
A163: 1883.12 | B163: 5.34 | C163: 0.33 | D163: 0.40 | E163: 9.23 | F163: 1883.96 | G163: =G152*1/12+G164*11/12 -> 3.62 | J163: 0.0275 | K163: 0.0050 | L163: 0.0030
A164: 1884.01 | B164: 5.18 | C164: 0.33 | D164: 0.39 | E164: 9.23 | F164: 1884.04 | G164: 3.62 | J164: 0.0274 | K164: 0.0051 | L164: 0.0030
A165: 1884.02 | B165: 5.32 | C165: 0.33 | D165: 0.39 | E165: 9.23 | F165: 1884.12 | G165: =G164*11/12+G176*1/12 -> 3.61 | J165: 0.0272 | K165: 0.0053 | L165: 0.0030
A166: 1884.03 | B166: 5.30 | C166: 0.33 | D166: 0.38 | E166: 9.23 | F166: 1884.21 | G166: =G164*10/12+G176*2/12 -> 3.60 | J166: 0.0271 | K166: 0.0051 | L166: 0.0030
A167: 1884.04 | B167: 5.06 | C167: 0.32 | D167: 0.37 | E167: 9.04 | F167: 1884.29 | G167: =G164*9/12+G176*3/12 -> 3.60 | J167: 0.0269 | K167: 0.0051 | L167: 0.0029
A168: 1884.05 | B168: 4.65 | C168: 0.32 | D168: 0.36 | E168: 8.85 | F168: 1884.37 | G168: =G164*8/12+G176*4/12 -> 3.59 | J168: 0.0268 | K168: 0.0053 | L168: 0.0029
A169: 1884.06 | B169: 4.46 | C169: 0.32 | D169: 0.36 | E169: 8.85 | F169: 1884.46 | G169: =G164*7/12+G176*5/12 -> 3.58 | J169: 0.0267 | K169: 0.0057 | L169: 0.0029
A170: 1884.07 | B170: 4.46 | C170: 0.32 | D170: 0.35 | E170: 8.75 | F170: 1884.54 | G170: =G164*6/12+G176*6/12 -> 3.57 | J170: 0.0265 | K170: 0.0059 | L170: 0.0029
A171: 1884.08 | B171: 4.74 | C171: 0.32 | D171: 0.34 | E171: 8.75 | F171: 1884.62 | G171: =G164*5/12+G176*7/12 -> 3.56 | J171: 0.0264 | K171: 0.0059 | L171: 0.0029
A172: 1884.09 | B172: 4.59 | C172: 0.32 | D172: 0.33 | E172: 8.66 | F172: 1884.71 | G172: =G164*4/12+G176*8/12 -> 3.55 | J172: 0.0263 | K172: 0.0055 | L172: 0.0029
A173: 1884.10 | B173: 4.44 | C173: 0.31 | D173: 0.33 | E173: 8.56 | F173: 1884.79 | G173: =G164*3/12+G176*9/12 -> 3.55 | J173: 0.0261 | K173: 0.0057 | L173: 0.0029
A174: 1884.11 | B174: 4.35 | C174: 0.31 | D174: 0.32 | E174: 8.37 | F174: 1884.87 | G174: =G164*2/12+G176*10/12 -> 3.54 | J174: 0.0260 | K174: 0.0059 | L174: 0.0029
A175: 1884.12 | B175: 4.34 | C175: 0.31 | D175: 0.31 | E175: 8.28 | F175: 1884.96 | G175: =G164*1/12+G176*11/12 -> 3.53 | J175: 0.0258 | K175: 0.0059 | L175: 0.0029
A176: 1885.01 | B176: 4.24 | C176: 0.30 | D176: 0.31 | E176: 8.28 | F176: 1885.04 | G176: 3.52 | J176: 0.0254 | K176: 0.0058 | L176: 0.0029
A177: 1885.02 | B177: 4.37 | C177: 0.30 | D177: 0.30 | E177: 8.37 | F177: 1885.12 | G177: =G176*11/12+G188*1/12 -> 3.51 | J177: 0.0249 | K177: 0.0059 | L177: 0.0029
A178: 1885.03 | B178: 4.38 | C178: 0.29 | D178: 0.30 | E178: 8.18 | F178: 1885.21 | G178: =G176*10/12+G188*2/12 -> 3.50 | J178: 0.0244 | K178: 0.0056 | L178: 0.0029
A179: 1885.04 | B179: 4.37 | C179: 0.29 | D179: 0.30 | E179: 8.28 | F179: 1885.29 | G179: =G176*9/12+G188*3/12 -> 3.48 | J179: 0.0239 | K179: 0.0055 | L179: 0.0029
A180: 1885.05 | B180: 4.32 | C180: 0.28 | D180: 0.29 | E180: 8.09 | F180: 1885.37 | G180: =G176*8/12+G188*4/12 -> 3.47 | J180: 0.0234 | K180: 0.0054 | L180: 0.0028
A181: 1885.06 | B181: 4.30 | C181: 0.28 | D181: 0.29 | E181: 7.90 | F181: 1885.46 | G181: =G176*7/12+G188*5/12 -> 3.46 | J181: 0.0229 | K181: 0.0053 | L181: 0.0028
A182: 1885.07 | B182: 4.46 | C182: 0.27 | D182: 0.29 | E182: 7.99 | F182: 1885.54 | G182: =G176*6/12+G188*6/12 -> 3.45 | J182: 0.0224 | K182: 0.0052 | L182: 0.0028
A183: 1885.08 | B183: 4.71 | C183: 0.26 | D183: 0.28 | E183: 7.99 | F183: 1885.62 | G183: =G176*5/12+G188*7/12 -> 3.43 | J183: 0.0219 | K183: 0.0049 | L183: 0.0028
A184: 1885.09 | B184: 4.65 | C184: 0.26 | D184: 0.28 | E184: 7.90 | F184: 1885.71 | G184: =G176*4/12+G188*8/12 -> 3.42 | J184: 0.0215 | K184: 0.0046 | L184: 0.0028
A185: 1885.10 | B185: 4.92 | C185: 0.25 | D185: 0.28 | E185: 7.90 | F185: 1885.79 | G185: =G176*3/12+G188*9/12 -> 3.41 | J185: 0.0210 | K185: 0.0045 | L185: 0.0028
A186: 1885.11 | B186: 5.24 | C186: 0.25 | D186: 0.27 | E186: 7.99 | F186: 1885.87 | G186: =G176*2/12+G188*10/12 -> 3.40 | J186: 0.0205 | K186: 0.0042 | L186: 0.0028
A187: 1885.12 | B187: 5.20 | C187: 0.24 | D187: 0.27 | E187: 8.18 | F187: 1885.96 | G187: =G176*1/12+G188*11/12 -> 3.38 | J187: 0.0200 | K187: 0.0038 | L187: 0.0028
A188: 1886.01 | B188: 5.20 | C188: 0.24 | D188: 0.28 | E188: 7.99 | F188: 1886.04 | G188: 3.37 | J188: 0.0199 | K188: 0.0038 | L188: 0.0028
A189: 1886.02 | B189: 5.30 | C189: 0.24 | D189: 0.28 | E189: 7.99 | F189: 1886.12 | G189: =G188*11/12+G200*1/12 -> 3.38 | J189: 0.0197 | K189: 0.0038 | L189: 0.0028
A190: 1886.03 | B190: 5.19 | C190: 0.24 | D190: 0.29 | E190: 7.90 | F190: 1886.21 | G190: =G188*10/12+G200*2/12 -> 3.40 | J190: 0.0196 | K190: 0.0037 | L190: 0.0028
A191: 1886.04 | B191: 5.12 | C191: 0.23 | D191: 0.29 | E191: 7.80 | F191: 1886.29 | G191: =G188*9/12+G200*3/12 -> 3.41 | J191: 0.0194 | K191: 0.0037 | L191: 0.0028
A192: 1886.05 | B192: 5.02 | C192: 0.23 | D192: 0.30 | E192: 7.61 | F192: 1886.37 | G192: =G188*8/12+G200*4/12 -> 3.42 | J192: 0.0193 | K192: 0.0038 | L192: 0.0028
A193: 1886.06 | B193: 5.25 | C193: 0.23 | D193: 0.30 | E193: 7.52 | F193: 1886.46 | G193: =G188*7/12+G200*5/12 -> 3.43 | J193: 0.0192 | K193: 0.0038 | L193: 0.0028
A194: 1886.07 | B194: 5.33 | C194: 0.23 | D194: 0.31 | E194: 7.61 | F194: 1886.54 | G194: =G188*6/12+G200*6/12 -> 3.45 | J194: 0.0190 | K194: 0.0036 | L194: 0.0028
A195: 1886.08 | B195: 5.37 | C195: 0.23 | D195: 0.31 | E195: 7.71 | F195: 1886.62 | G195: =G188*5/12+G200*7/12 -> 3.46 | J195: 0.0189 | K195: 0.0035 | L195: 0.0028
A196: 1886.09 | B196: 5.51 | C196: 0.23 | D196: 0.32 | E196: 7.71 | F196: 1886.71 | G196: =G188*4/12+G200*8/12 -> 3.47 | J196: 0.0188 | K196: 0.0035 | L196: 0.0028
A197: 1886.10 | B197: 5.65 | C197: 0.22 | D197: 0.32 | E197: 7.71 | F197: 1886.79 | G197: =G188*3/12+G200*9/12 -> 3.48 | J197: 0.0186 | K197: 0.0034 | L197: 0.0029
A198: 1886.11 | B198: 5.79 | C198: 0.22 | D198: 0.33 | E198: 7.71 | F198: 1886.87 | G198: =G188*2/12+G200*10/12 -> 3.50 | J198: 0.0185 | K198: 0.0033 | L198: 0.0029
A199: 1886.12 | B199: 5.64 | C199: 0.22 | D199: 0.33 | E199: 7.80 | F199: 1886.96 | G199: =G188*1/12+G200*11/12 -> 3.51 | J199: 0.0183 | K199: 0.0032 | L199: 0.0029
A200: 1887.01 | B200: 5.58 | C200: 0.22 | D200: 0.33 | E200: 7.99 | F200: 1887.04 | G200: 3.52 | J200: =D_year/12 -> 0.0185 | K200: 0.0033 | L200: =(1+G200/100)^(1/12)-1 -> 0.0029
A201: 1887.02 | B201: 5.54 | C201: 0.23 | D201: 0.34 | E201: 8.09 | F201: =F200+1/12 -> 1887.12 | G201: =G200*11/12+G212*1/12 -> 3.53 | J201: 0.0188 | K201: =J201/B200 -> 0.0034 | L201: 0.0029
... 1583 more rows

Sheet Transactioncosts
A1: Avg in BP 1925-2000 | B1: =AVERAGE(G56:G131) -> 84.88 | C1: Year | D1: Estimated TC in BP per anchorpoint | E1: Slope btw. Anchorpoints | F1: Interpolated TC in BP per year | G1: Transactioncosts per year | I1: Year | J1: Estimated TC in BP | K1: Slope btw. Anchorpoints | L1: Interpolated TC in BP per year
A2: Anchorpoint: | B2: 1 | C2: 1871 | D2: 70 | E2: 0 | G2: =IF(F2="",D2,F2) -> 70 | I2: 1871 | J2: 70 | L2: =IF(J2<>"-",J2,L1+K2) -> 70
C3: 1872 | D3: - | E3: =(D31-D2)/(C31-C2) -> 0 | F3: =IF(D3<>"-",D3,G2+E3) -> 70 | G3: 70 | I3: 1872-1899 | J3: - | K3: 0 | L3: =TEXT(L2+K3,0)&"-"&TEXT(L4-K3,0) -> 70-70
C4: 1873 | D4: - | E4: =E3 -> 0 | F4: =IF(D4<>"-",D4,G3+E4) -> 70 | G4: =IF(F4="",D4,F4) -> 70 | I4: 1900 | J4: 70 | L4: =IF(J4<>"-",J4,L3+K4) -> 70
C5: 1874 | D5: - | E5: =E4 -> 0 | F5: 70 | G5: 70 | I5: 1901 | K5: =(J6-J4)/(I6-I4) -> 15 | L5: =TEXT(L4+K5,0)&"-"&TEXT(L6-K5,0) -> 85-85
C6: 1875 | D6: - | E6: 0 | F6: 70 | G6: 70 | I6: 1902 | J6: 100 | L6: =IF(J6<>"-",J6,L5+K6) -> 100
C7: 1876 | D7: - | E7: 0 | F7: 70 | G7: 70 | I7: 1903-1904 | K7: =(J8-J6)/(I8-I6) -> -23 | L7: =TEXT(L6+K7,0)&"-"&TEXT(L8-K7,0) -> 77-53
C8: 1877 | D8: - | E8: 0 | F8: 70 | G8: 70 | I8: 1905 | J8: 30 | L8: =IF(J8<>"-",J8,L7+K8) -> 30
C9: 1878 | D9: - | E9: 0 | F9: 70 | G9: 70 | I9: 1906 | K9: =(J10-J8)/(I10-I8) -> 23 | L9: =TEXT(L8+K9,0)&"-"&TEXT(L10-K9,0) -> 53-53
C10: 1879 | D10: - | E10: 0 | F10: 70 | G10: 70 | I10: 1907 | J10: 75 | L10: =IF(J10<>"-",J10,L9+K10) -> 75
C11: 1880 | D11: - | E11: 0 | F11: 70 | G11: 70 | I11: 1908-1909 | K11: =(J12-J10)/(I12-I10) -> -8 | L11: =TEXT(L10+K11,0)&"-"&TEXT(L12-K11,0) -> 67-58
C12: 1881 | D12: - | E12: 0 | F12: 70 | G12: 70 | I12: 1910 | J12: 50 | L12: =IF(J12<>"-",J12,L11+K12) -> 50
C13: 1882 | D13: - | E13: 0 | F13: 70 | G13: 70 | I13: 1911-1914 | K13: =(J14-J12)/(I14-I12) -> 10 | L13: =TEXT(L12+K13,0)&"-"&TEXT(L14-K13,0) -> 60-90
C14: 1883 | D14: - | E14: 0 | F14: 70 | G14: 70 | I14: 1915 | J14: 100 | L14: =IF(J14<>"-",J14,L13+K14) -> 100
C15: 1884 | D15: - | E15: 0 | F15: 70 | G15: 70 | I15: 1916-1924 | K15: =(J16-J14)/(I16-I14) -> -5 | L15: =TEXT(L14+K15,0)&"-"&TEXT(L16-K15,0) -> 95-55
C16: 1885 | D16: - | E16: 0 | F16: 70 | G16: 70 | I16: 1925 | J16: 50 | L16: =IF(J16<>"-",J16,L3+K16) -> 50
C17: 1886 | D17: - | E17: 0 | F17: 70 | G17: 70 | I17: 1926-1929 | J17: - | K17: =(J18-J16)/(I18-I16) -> 2 | L17: =TEXT(L16+K17,0)&"-"&TEXT(L18-K17,0) -> 52-60
C18: 1887 | D18: - | E18: 0 | F18: 70 | G18: 70 | I18: 1930 | J18: 62 | L18: =IF(J18<>"-",J18,L17+K18) -> 62
C19: 1888 | D19: - | E19: 0 | F19: 70 | G19: 70 | I19: =TEXT(I18,0)&"-"&TEXT(I20,0) -> 1930-1933 | J19: - | K19: =(J20-J18)/(I20-I18) -> 26 | L19: =TEXT(L18+K19,0)&"-"&TEXT(L20-K19,0) -> 88-113
C20: 1889 | D20: - | E20: 0 | F20: 70 | G20: 70 | I20: 1933 | J20: 139 | L20: =IF(J20<>"-",J20,L19+K20) -> 139
C21: 1890 | D21: - | E21: 0 | F21: 70 | G21: 70 | I21: =TEXT(I20,0)&"-"&TEXT(I22,0) -> 1933-1935 | J21: - | K21: =(J22-J20)/(I22-I20) -> -25 | L21: =TEXT(L20+K21,0)&"-"&TEXT(L22-K21,0) -> 115-115
C22: 1891 | D22: - | E22: 0 | F22: 70 | G22: 70 | I22: 1935 | J22: 90 | L22: =IF(J22<>"-",J22,L21+K22) -> 90
C23: 1892 | D23: - | E23: 0 | F23: 70 | G23: 70 | I23: =TEXT(I22,0)&"-"&TEXT(I24,0) -> 1935-1940 | J23: - | K23: =(J24-J22)/(I24-I22) -> 0 | L23: =TEXT(L22+K23,0)&"-"&TEXT(L24-K23,0) -> 90-91
C24: 1893 | D24: - | E24: 0 | F24: 70 | G24: 70 | I24: 1940 | J24: 91 | L24: =IF(J24<>"-",J24,L23+K24) -> 91
C25: 1894 | D25: - | E25: 0 | F25: 70 | G25: 70 | I25: =TEXT(I24,0)&"-"&TEXT(I26,0) -> 1940-1945 | J25: - | K25: =(J26-J24)/(I26-I24) -> -0 | L25: =TEXT(L24+K25,0)&"-"&TEXT(L26-K25,0) -> 91-89
C26: 1895 | D26: - | E26: 0 | F26: 70 | G26: 70 | I26: 1945 | J26: 89 | L26: =IF(J26<>"-",J26,L25+K26) -> 89
C27: 1896 | D27: - | E27: 0 | F27: 70 | G27: 70 | I27: =TEXT(I26,0)&"-"&TEXT(I28,0) -> 1945-1950 | J27: - | K27: =(J28-J26)/(I28-I26) -> 1 | L27: =TEXT(L26+K27,0)&"-"&TEXT(L28-K27,0) -> 90-95
C28: 1897 | D28: - | E28: 0 | F28: 70 | G28: 70 | I28: 1950 | J28: 96 | L28: =IF(J28<>"-",J28,#REF!+K28) -> 96
C29: 1898 | D29: - | E29: 0 | F29: 70 | G29: 70 | I29: =TEXT(I28,0)&"-"&TEXT(I30,0) -> 1950-1955 | J29: - | K29: =(J30-J28)/(I30-I28) -> 1 | L29: =TEXT(L28+K29,0)&"-"&TEXT(L30-K29,0) -> 97-99
C30: 1899 | D30: - | E30: 0 | F30: 70 | G30: 70 | I30: 1955 | J30: 100 | L30: =IF(J30<>"-",J30,#REF!+K30) -> 100
A31: Anchorpoint: | B31: 2 | C31: 1900 | D31: 70 | E31: 0 | G31: 70 | I31: =TEXT(I30,0)&"-"&TEXT(I32,0) -> 1955-1960 | J31: - | K31: =(J32-J30)/(I32-I30) -> 1 | L31: =TEXT(L30+K31,0)&"-"&TEXT(L32-K31,0) -> 101-106
C32: 1901 | D32: - | E32: =(D33-D31)/(C33-C31) -> 15 | F32: =IF(D32<>"-",D32,G31+E32) -> 85 | G32: 85 | I32: 1960 | J32: 107 | L32: =IF(J32<>"-",J32,#REF!+K32) -> 107
A33: Anchorpoint: | B33: 3 | C33: 1902 | D33: 100 | G33: =IF(F33="",D33,F33) -> 100 | I33: =TEXT(I32,0)&"-"&TEXT(I34,0) -> 1960-1965 | J33: - | K33: =(J34-J32)/(I34-I32) -> 1 | L33: =TEXT(L32+K33,0)&"-"&TEXT(L34-K33,0) -> 108-109
C34: 1903 | D34: - | E34: =(D33-D36)/(C33-C36) -> -23 | F34: =IF(D34<>"-",D34,G33+E34) -> 77 | G34: 77 | I34: 1965 | J34: 110 | L34: =IF(J34<>"-",J34,#REF!+K34) -> 110
C35: 1904 | D35: - | E35: -23 | F35: =IF(D35<>"-",D35,G34+E35) -> 53 | G35: 53 | I35: =TEXT(I34,0)&"-"&TEXT(I36,0) -> 1965-1970 | J35: - | K35: =(J36-J34)/(I36-I34) -> 0 | L35: =TEXT(L34+K35,0)&"-"&TEXT(L36-K35,0) -> 110-112
A36: Anchorpoint: | B36: 4 | C36: 1905 | D36: 30 | G36: =IF(F36="",D36,F36) -> 30 | I36: 1970 | J36: 112 | L36: =IF(J36<>"-",J36,#REF!+K36) -> 112
C37: 1906 | D37: - | E37: =(D36-D38)/(C36-C38) -> 23 | F37: =IF(D37<>"-",D37,G36+E37) -> 53 | G37: 53 | I37: =TEXT(I36,0)&"-"&TEXT(I38,0) -> 1970-1975 | J37: - | K37: =(J38-J36)/(I38-I36) -> 2 | L37: =TEXT(L36+K37,0)&"-"&TEXT(L38-K37,0) -> 114-118
A38: Anchorpoint: | B38: 5 | C38: 1907 | D38: 75 | G38: =IF(F38="",D38,F38) -> 75 | I38: 1975 | J38: 120 | L38: =IF(J38<>"-",J38,#REF!+K38) -> 120
C39: 1908 | D39: - | E39: =(D38-D41)/(C38-C41) -> -8 | F39: =IF(D39<>"-",D39,G38+E39) -> 67 | G39: 67 | I39: =TEXT(I38,0)&"-"&TEXT(I40,0) -> 1975-1980 | J39: - | K39: =(J40-J38)/(I40-I38) -> -7 | L39: =TEXT(L38+K39,0)&"-"&TEXT(L40-K39,0) -> 113-92
C40: 1909 | D40: - | E40: -8 | F40: =IF(D40<>"-",D40,G39+E40) -> 58 | G40: 58 | I40: 1980 | J40: 85 | L40: =IF(J40<>"-",J40,#REF!+K40) -> 85
A41: Anchorpoint: | B41: 6 | C41: 1910 | D41: 50 | G41: =IF(F41="",D41,F41) -> 50 | I41: =TEXT(I40,0)&"-"&TEXT(I42,0) -> 1980-1985 | J41: - | K41: =(J42-J40)/(I42-I40) -> -5 | L41: =TEXT(L40+K41,0)&"-"&TEXT(L42-K41,0) -> 80-65
C42: 1911 | D42: - | E42: =(D41-D46)/(C41-C46) -> 10 | F42: =IF(D42<>"-",D42,G41+E42) -> 60 | G42: 60 | I42: 1985 | J42: 60 | L42: =IF(J42<>"-",J42,#REF!+K42) -> 60
C43: 1912 | D43: - | E43: 10 | F43: =IF(D43<>"-",D43,G42+E43) -> 70 | G43: 70 | I43: =TEXT(I42,0)&"-"&TEXT(I44,0) -> 1985-1990 | J43: - | K43: =(J44-J42)/(I44-I42) -> -1 | L43: =TEXT(L42+K43,0)&"-"&TEXT(L44-K43,0) -> 59-54
C44: 1913 | D44: - | E44: 10 | F44: =IF(D44<>"-",D44,G43+E44) -> 80 | G44: 80 | I44: 1990 | J44: 53 | L44: =IF(J44<>"-",J44,#REF!+K44) -> 53
C45: 1914 | D45: - | E45: 10 | F45: =IF(D45<>"-",D45,G44+E45) -> 90 | G45: 90 | I45: =TEXT(I44,0)&"-"&TEXT(I46,0) -> 1990-1995 | J45: - | K45: =(J46-J44)/(I46-I44) -> -3 | L45: =TEXT(L44+K45,0)&"-"&TEXT(L46-K45,0) -> 50-40
A46: Anchorpoint: | B46: 7 | C46: 1915 | D46: 100 | E46: 10 | G46: 100 | I46: 1995 | J46: 37 | L46: =IF(J46<>"-",J46,L51+K46) -> 37
C47: 1916 | D47: - | E47: =(D46-D56)/(C46-C56) -> -5 | F47: =IF(D47<>"-",D47,G46+E47) -> 95 | G47: 95 | I47: =TEXT(I46,0)&"-"&TEXT(I48,0) -> 1995-2000 | J47: - | K47: =(J48-J46)/(I48-I46) -> -3 | L47: =TEXT(L46+K47,0)&"-"&TEXT(L48-K47,0) -> 34-23
C48: 1917 | D48: - | E48: -5 | F48: 90 | G48: 90 | I48: 2000 | J48: 20 | L48: =IF(J48<>"-",J48,#REF!+K48) -> 20
C49: 1918 | D49: - | E49: -5 | F49: 85 | G49: 85 | I49: =TEXT(I48,0)&"-"&TEXT(I50,0) -> 2000-2018 | J49: - | K49: 0 | L49: =TEXT(L48+K49,0)&"-"&TEXT(L50-K49,0) -> 20-20
C50: 1919 | D50: - | E50: -5 | F50: 80 | G50: 80 | I50: 2018 | J50: - | L50: 20
C51: 1920 | D51: - | E51: -5 | F51: 75 | G51: 75
C52: 1921 | D52: - | E52: -5 | F52: 70 | G52: 70
C53: 1922 | D53: - | E53: -5 | F53: 65 | G53: 65
C54: 1923 | D54: - | E54: -5 | F54: 60 | G54: 60
C55: 1924 | D55: - | E55: -5 | F55: 55 | G55: 55
A56: Anchorpoint: | B56: 8 | C56: 1925 | D56: 50 | G56: 50
C57: 1926 | D57: - | E57: =(D56-D61)/(C56-C61) -> 2 | F57: =IF(D57<>"-",D57,G56+E57) -> 52 | G57: 52
C58: 1927 | D58: - | E58: =E57 -> 2 | F58: =IF(D58<>"-",D58,G57+E58) -> 55 | G58: 55
C59: 1928 | D59: - | E59: =E58 -> 2 | F59: =IF(D59<>"-",D59,G58+E59) -> 57 | G59: 57
C60: 1929 | D60: - | E60: =E59 -> 2 | F60: =IF(D60<>"-",D60,G59+E60) -> 60 | G60: 60
A61: Anchorpoint: | B61: 9 | C61: 1930 | D61: 62 | G61: 62
C62: 1931 | D62: - | E62: =(D63-D61)/(C63-C61) -> 39 | F62: =IF(D62<>"-",D62,G61+E62) -> 101 | G62: 101
A63: Anchorpoint: | B63: 10 | C63: 1932 | D63: 139 | G63: 139
C64: 1933 | D64: - | E64: =(D66-D63)/(C66-C63) -> -16 | F64: =IF(D64<>"-",D64,G63+E64) -> 123 | G64: 123
C65: 1934 | D65: - | E65: 0 | F65: =IF(D65<>"-",D65,G64+E65) -> 123 | G65: 123
A66: Anchorpoint: | B66: 11 | C66: 1935 | D66: 90 | G66: 90
C67: 1936 | D67: - | E67: =(D71-D66)/(C71-C66) -> 0 | F67: =IF(D67<>"-",D67,G66+E67) -> 90 | G67: =IF(F67="",D67,F67) -> 90
C68: 1937 | D68: - | E68: =E67 -> 0 | F68: =IF(D68<>"-",D68,G67+E68) -> 90 | G68: 90
C69: 1938 | D69: - | E69: =E68 -> 0 | F69: =IF(D69<>"-",D69,G68+E69) -> 91 | G69: 91
C70: 1939 | D70: - | E70: =E69 -> 0 | F70: =IF(D70<>"-",D70,G69+E70) -> 91 | G70: 91
A71: Anchorpoint: | B71: 12 | C71: 1940 | D71: 91 | G71: 91
C72: 1941 | D72: - | E72: =(D76-D71)/(C76-C71) -> -0 | F72: =IF(D72<>"-",D72,G71+E72) -> 91 | G72: 91
C73: 1942 | D73: - | E73: =E72 -> -0 | F73: =IF(D73<>"-",D73,G72+E73) -> 90 | G73: 90
C74: 1943 | D74: - | E74: =E73 -> -0 | F74: =IF(D74<>"-",D74,G73+E74) -> 90 | G74: 90
C75: 1944 | D75: - | E75: =E74 -> -0 | F75: =IF(D75<>"-",D75,G74+E75) -> 89 | G75: 89
A76: Anchorpoint: | B76: 13 | C76: 1945 | D76: 89 | G76: 89
C77: 1946 | D77: - | E77: =(D81-D76)/(C81-C76) -> 1 | F77: =IF(D77<>"-",D77,G76+E77) -> 90 | G77: 90
C78: 1947 | D78: - | E78: =E77 -> 1 | F78: =IF(D78<>"-",D78,G77+E78) -> 92 | G78: 92
C79: 1948 | D79: - | E79: =E78 -> 1 | F79: =IF(D79<>"-",D79,G78+E79) -> 93 | G79: 93
C80: 1949 | D80: - | E80: =E79 -> 1 | F80: =IF(D80<>"-",D80,G79+E80) -> 95 | G80: 95
A81: Anchorpoint: | B81: 14 | C81: 1950 | D81: 96 | G81: 96
C82: 1951 | D82: - | E82: =(D86-D81)/(C86-C81) -> 1 | F82: =IF(D82<>"-",D82,G81+E82) -> 97 | G82: 97
C83: 1952 | D83: - | E83: =E82 -> 1 | F83: =IF(D83<>"-",D83,G82+E83) -> 98 | G83: 98
C84: 1953 | D84: - | E84: =E83 -> 1 | F84: =IF(D84<>"-",D84,G83+E84) -> 98 | G84: 98
C85: 1954 | D85: - | E85: =E84 -> 1 | F85: =IF(D85<>"-",D85,G84+E85) -> 99 | G85: 99
A86: Anchorpoint: | B86: 15 | C86: 1955 | D86: 100 | G86: 100
C87: 1956 | D87: - | E87: =(D91-D86)/(C91-C86) -> 1 | F87: =IF(D87<>"-",D87,G86+E87) -> 101 | G87: 101
C88: 1957 | D88: - | E88: =E87 -> 1 | F88: =IF(D88<>"-",D88,G87+E88) -> 103 | G88: 103
C89: 1958 | D89: - | E89: =E88 -> 1 | F89: =IF(D89<>"-",D89,G88+E89) -> 104 | G89: 104
C90: 1959 | D90: - | E90: =E89 -> 1 | F90: =IF(D90<>"-",D90,G89+E90) -> 106 | G90: 106
A91: Anchorpoint: | B91: 16 | C91: 1960 | D91: 107 | G91: 107
C92: 1961 | D92: - | E92: =(D96-D91)/(C96-C91) -> 1 | F92: =IF(D92<>"-",D92,G91+E92) -> 108 | G92: 108
C93: 1962 | D93: - | E93: =E92 -> 1 | F93: =IF(D93<>"-",D93,G92+E93) -> 108 | G93: 108
C94: 1963 | D94: - | E94: =E93 -> 1 | F94: =IF(D94<>"-",D94,G93+E94) -> 109 | G94: 109
C95: 1964 | D95: - | E95: =E94 -> 1 | F95: =IF(D95<>"-",D95,G94+E95) -> 109 | G95: 109
A96: Anchorpoint: | B96: 17 | C96: 1965 | D96: 110 | G96: 110
C97: 1966 | D97: - | E97: =(D101-D96)/(C101-C96) -> 0 | F97: =IF(D97<>"-",D97,G96+E97) -> 110 | G97: 110
C98: 1967 | D98: - | E98: =E97 -> 0 | F98: =IF(D98<>"-",D98,G97+E98) -> 111 | G98: 111
C99: 1968 | D99: - | E99: =E98 -> 0 | F99: =IF(D99<>"-",D99,G98+E99) -> 111 | G99: 111
C100: 1969 | D100: - | E100: =E99 -> 0 | F100: =IF(D100<>"-",D100,G99+E100) -> 112 | G100: 112
A101: Anchorpoint: | B101: 18 | C101: 1970 | D101: 112 | G101: 112
C102: 1971 | D102: - | E102: =(D106-D101)/(C106-C101) -> 2 | F102: =IF(D102<>"-",D102,G101+E102) -> 114 | G102: 114
C103: 1972 | D103: - | E103: =E102 -> 2 | F103: =IF(D103<>"-",D103,G102+E103) -> 115 | G103: 115
C104: 1973 | D104: - | E104: =E103 -> 2 | F104: =IF(D104<>"-",D104,G103+E104) -> 117 | G104: 117
C105: 1974 | D105: - | E105: =E104 -> 2 | F105: =IF(D105<>"-",D105,G104+E105) -> 118 | G105: 118
A106: Anchorpoint: | B106: 19 | C106: 1975 | D106: 120 | G106: 120
C107: 1976 | D107: - | E107: =(D111-D106)/(C111-C106) -> -7 | F107: =IF(D107<>"-",D107,G106+E107) -> 113 | G107: 113
C108: 1977 | D108: - | E108: =E107 -> -7 | F108: =IF(D108<>"-",D108,G107+E108) -> 106 | G108: 106
C109: 1978 | D109: - | E109: =E108 -> -7 | F109: =IF(D109<>"-",D109,G108+E109) -> 99 | G109: 99
C110: 1979 | D110: - | E110: =E109 -> -7 | F110: =IF(D110<>"-",D110,G109+E110) -> 92 | G110: 92
A111: Anchorpoint: | B111: 20 | C111: 1980 | D111: 85 | G111: 85
C112: 1981 | D112: - | E112: =(D116-D111)/(C116-C111) -> -5 | F112: =IF(D112<>"-",D112,G111+E112) -> 80 | G112: 80
C113: 1982 | D113: - | E113: =E112 -> -5 | F113: =IF(D113<>"-",D113,G112+E113) -> 75 | G113: 75
C114: 1983 | D114: - | E114: =E113 -> -5 | F114: =IF(D114<>"-",D114,G113+E114) -> 70 | G114: 70
C115: 1984 | D115: - | E115: =E114 -> -5 | F115: =IF(D115<>"-",D115,G114+E115) -> 65 | G115: 65
A116: Anchorpoint: | B116: 21 | C116: 1985 | D116: 60 | G116: 60
C117: 1986 | D117: - | E117: =(D121-D116)/(C121-C116) -> -1 | F117: =IF(D117<>"-",D117,G116+E117) -> 59 | G117: 59
C118: 1987 | D118: - | E118: =E117 -> -1 | F118: =IF(D118<>"-",D118,G117+E118) -> 57 | G118: 57
C119: 1988 | D119: - | E119: =E118 -> -1 | F119: =IF(D119<>"-",D119,G118+E119) -> 56 | G119: 56
C120: 1989 | D120: - | E120: =E119 -> -1 | F120: =IF(D120<>"-",D120,G119+E120) -> 54 | G120: 54
A121: Anchorpoint: | B121: 22 | C121: 1990 | D121: 53 | G121: 53
C122: 1991 | D122: - | E122: =(D126-D121)/(C126-C121) -> -3 | F122: =IF(D122<>"-",D122,G121+E122) -> 50 | G122: 50
C123: 1992 | D123: - | E123: =E122 -> -3 | F123: =IF(D123<>"-",D123,G122+E123) -> 47 | G123: 47
C124: 1993 | D124: - | E124: =E123 -> -3 | F124: =IF(D124<>"-",D124,G123+E124) -> 43 | G124: 43
C125: 1994 | D125: - | E125: =E124 -> -3 | F125: =IF(D125<>"-",D125,G124+E125) -> 40 | G125: 40
A126: Anchorpoint: | B126: 23 | C126: 1995 | D126: 37 | G126: 37
C127: 1996 | D127: - | E127: =(D131-D126)/(C131-C126) -> -3 | F127: =IF(D127<>"-",D127,G126+E127) -> 34 | G127: 34
C128: 1997 | D128: - | E128: =E127 -> -3 | F128: =IF(D128<>"-",D128,G127+E128) -> 30 | G128: 30
C129: 1998 | D129: - | E129: =E128 -> -3 | F129: =IF(D129<>"-",D129,G128+E129) -> 27 | G129: 27
C130: 1999 | D130: - | E130: =E129 -> -3 | F130: =IF(D130<>"-",D130,G129+E130) -> 23 | G130: 23
A131: Anchorpoint: | B131: 24 | C131: 2000 | D131: 20 | G131: =IF(F131="",D131,F131) -> 20
C132: 2001 | D132: - | E132: 0 | F132: =IF(D132<>"-",D132,G131+E132) -> 20 | G132: 20
C133: 2002 | D133: - | E133: 0 | F133: 20 | G133: 20
C134: 2003 | D134: - | E134: 0 | F134: 20 | G134: 20
C135: 2004 | D135: - | E135: 0 | F135: 20 | G135: 20
C136: 2005 | D136: - | E136: 0 | F136: 20 | G136: 20
C137: 2006 | D137: - | E137: 0 | F137: 20 | G137: 20
C138: 2007 | D138: - | E138: 0 | F138: 20 | G138: 20
C139: 2008 | D139: - | E139: 0 | F139: 20 | G139: 20
C140: 2009 | D140: - | E140: 0 | F140: 20 | G140: 20
C141: 2010 | D141: - | E141: 0 | F141: 20 | G141: 20
C142: 2011 | D142: - | E142: 0 | F142: 20 | G142: 20
C143: 2012 | D143: - | E143: 0 | F143: 20 | G143: 20
C144: 2013 | D144: - | E144: 0 | F144: 20 | G144: 20
C145: 2014 | D145: - | E145: 0 | F145: 20 | G145: 20
C146: 2015 | D146: - | E146: 0 | F146: 20 | G146: 20
C147: 2016 | D147: - | E147: 0 | F147: 20 | G147: 20
C148: 2017 | D148: - | E148: 0 | F148: 20 | G148: 20
A149: Anchorpoint: | B149: 25 | C149: 2018 | D149: 20 | G149: 20

Sheet Exhibit1_Backtest
A1: Time | B1: Aufgabe 1 | C1: S&P Prices [$] | D1: Dividends [$] | E1: Interests [% p.m.] | F1: S&P Prices [$] (t-1) | G1: div_yield | H1: price_yield | I1: Aufgabe 2 | J1: bond_approx_price | K1: eff_bond_yield [% p.m.] | L1: Aufgabe 3 | M1: Return bond - Y_Cash | N1: Return S&P 500 - Y_S&P | O1: Hilfzeile t-1 | P1: Hilfszeile t+1 | Q1: Aufgabe 4 | R1: Signal: Relative dividend - S(RDY, S&P) | S1: Signal: Relative strenght signal - S(RS, S&P) | T1: Signal: no signal - S(5050, S&P) | U1: Aufgabe 5 (und 8 - hellblau: mit Transaktionskosten) | V1: Lamda: relative dividend strategy - L(RDY, S&P) SET | W1: Lamda: relative dividend strategy (mit Transaktionskosten) - L(RDY, S&P) ACT | X1: Lamda: relative strength strategy - L(RS, S&P) SET | Y1: Lamda: relative strength strategy (mit Transaktionskosten) - L(RS, S&P) ACT | Z1: Lamda: 50-50 strategy - L(50:50, S&P) SET | AA1: Lamda: 50-50 strategy (mit Transaktionskosten) -L(50:50, S&P) ACT | AB1: Transaktionskosten | AC1: Aufgabe 6 (und 8) | AD1: Return: relative dividend strategy - R(RDY) | AE1: Return: relative strength strategy - R(RS) | AF1: Return: 50-50 strategy - R(50:50) | AG1: Return: relative dividend strategy (mit Transaktionskosten) - R(RDY, TC) | AH1: Return: relative strength strategy (mit Transaktionskosten) - R(RS, TC) | AI1: Return: 50-50 strategy (mit Transaktionskosten) - R(50:50, TC) | AJ1: Aufgabe 7 | AK1: Vermögenswachstum relative dividend strategy - g(RDY) | AL1: Vermögenswachstum relative strength strategy - g(RS) | AM1: Vermögenswachstum 50% bonds and 50% shares - g(50:50) | AN1: Kummuliertes Vermögenswachstum relative dividend strategy g(RDY, TC, kum) | AO1: Kummuliertes Vermögenswachstum relativ strength strategy - g(RS, TC, kum) | AP1: Kummuliertes Vermögenswachstum 50% bonds and 50% shares - g(5050, TC, kum) | AQ1: Aufgabe 8 - mit Transaktionskosten | AR1: Vermögenswachstum relative dividend strategy - g(RDY) | AS1: Vermögenswachstum relative strength strategy - g(RS) | AT1: Vermögenswachstum 50% bonds and 50% shares - g(50:50) | AU1: Kummuliertes Vermögenswachstum relative dividend strategy g(RDY, TC, kum) | AV1: Kummuliertes Vermögenswachstum relativ strength strategy - g(RS, TC, kum) | AW1: Kummuliertes Vermögenswachstum 50% bonds and 50% shares - g(5050, TC, kum)
A2: 1871.01 | C2: =raw_Data!B8 -> 4.44 | D2: =raw_Data!J8 -> 0.0217 | E2: =raw_Data!L8 -> 0.0043 | G2: =raw_Data!K8 -> 0.0000 | J2: 1.0000 | K2: =M2-1 -> 0.0043 | M2: =interest_mon+bond_approx_price -> 1.0043 | N2: 0.0000 | O2: =ROW(A2)-1 -> 1 | P2: =ROW(A2)+1 -> 3 | AB2: 0
A3: 1871.02 | C3: =raw_Data!B9 -> 4.50 | D3: =raw_Data!J9 -> 0.0217 | E3: =raw_Data!L9 -> 0.0043 | F3: =C2 -> 4.44 | G3: =raw_Data!K9 -> 0.0049 | H3: =q_SP/q_SP_tminus-1 -> 0.0135 | J3: =interest_mon*((1-(1+INDEX(interest_mon,tMinus))^(-119))/INDEX(interest_mon,tMinus))+(1+INDEX(interest_mon,tMinus))^(-119) -> 1.0002 | K3: =M3-1 -> 0.0046 | M3: =interest_mon+bond_approx_price -> 1.0046 | N3: =(D_mon+q_SP)/INDEX(q_SP,tMinus) -> 1.0184 | O3: 2 | P3: 4 | R3: =(div_yield_mon-INDEX(interest_mon, tMinus))/(div_yield_mon+INDEX(interest_mon,tMinus)) -> 0.0598 | S3: =price_yield/(ABS(price_yield)+INDEX(interest_mon,tMinus)) -> 0.7574 | T3: 0.0000 | V3: =1/PI()*ATAN('Exhibit4_Impact-Test'!$Y$25*S_RDY_SP)+'Exhibit4_Impact-Test'!$Y$26 -> 0.5379 | W3: =L_RDY_SP_set*R_SP/R_RDY -> 0.5413 | X3: =1/PI()*ATAN('Exhibit4_Impact-Test'!$Y$25*S_RS_SP)+'Exhibit4_Impact-Test'!$Y$26 -> 0.8143 | Y3: =L_RS_SP_set*R_SP/R_RS -> 0.8163 | Z3: =1/PI()*ATAN('Exhibit4_Impact-Test'!$Y$25*S_5050_SP)+'Exhibit4_Impact-Test'!$Y$26 -> 0.5000 | AA3: =L_5050_SP_set*R_SP/R_5050 -> 0.5034 | AB3: =VLOOKUP(_xlfn.NUMBERVALUE(LEFT(A3,4)),Transactioncosts!$C:$G,5,FALSE) -> 70 | AD3: =R_Cash*(1-L_RDY_SP_set)+R_SP*L_RDY_SP_set -> 1.0120 | AE3: =R_Cash*(1-L_RS_SP_set)+R_SP*L_RS_SP_set -> 1.0158 | AF3: =R_Cash*(1-L_5050_SP_set)+R_SP*L_5050_SP_set -> 1.0115 | AG3: =R_RDY-ABS(L_RDY_SP_act-INDEX(L_RDY_SP_set,tPlus))*TC/10000 -> 1.01195 | AH3: =R_RS-ABS(L_RS_SP_act-INDEX(L_RS_SP_set,tPlus))*TC/10000 -> 1.0157 | AI3: =R_5050-ABS(L_5050_SP_act-INDEX(L_5050_SP_set,tPlus))*TC/10000 -> 1.0115 | AK3: =LN(R_RDY) -> 0.0119 | AL3: =LN(R_RS) -> 0.0157 | AM3: =LN(R_5050) -> 0.0114 | AN3: =AK3+AN2 -> 0.0119 | AO3: =AL3+AO2 -> 0.0157 | AP3: 0.0114 | AR3: =LN(R_RDY_TC) -> 0.0119 | AS3: =LN(R_RS_TC) -> 0.0156 | AT3: =LN(R_5050_TC) -> 0.0114 | AU3: =AR3+AU2 -> 0.0119 | AV3: =AS3+AV2 -> 0.0156 | AW3: =AT3+AW2 -> 0.0114
A4: 1871.03 | C4: =raw_Data!B10 -> 4.61 | D4: =raw_Data!J10 -> 0.0217 | E4: =raw_Data!L10 -> 0.0043 | F4: 4.5 | G4: =raw_Data!K10 -> 0.0048 | H4: =q_SP/q_SP_tminus-1 -> 0.0244 | J4: =interest_mon*((1-(1+INDEX(interest_mon,tMinus))^(-119))/INDEX(interest_mon,tMinus))+(1+INDEX(interest_mon,tMinus))^(-119) -> 1.0002 | K4: =M4-1 -> 0.0046 | M4: =interest_mon+bond_approx_price -> 1.0046 | N4: =(D_mon+q_SP)/INDEX(q_SP,tMinus) -> 1.0293 | O4: 3 | P4: 5 | R4: =(div_yield_mon-INDEX(interest_mon, tMinus))/(div_yield_mon+INDEX(interest_mon,tMinus)) -> 0.0529 | S4: =price_yield/(ABS(price_yield)+INDEX(interest_mon,tMinus)) -> 0.8495 | T4: 0.0000 | V4: =1/PI()*ATAN('Exhibit4_Impact-Test'!$Y$25*S_RDY_SP)+'Exhibit4_Impact-Test'!$Y$26 -> 0.5335 | W4: =L_RDY_SP_set*R_SP/R_RDY -> 0.5396 | X4: =1/PI()*ATAN('Exhibit4_Impact-Test'!$Y$25*S_RS_SP)+'Exhibit4_Impact-Test'!$Y$26 -> 0.8307 | Y4: =L_RS_SP_set*R_SP/R_RS -> 0.8340 | Z4: =1/PI()*ATAN('Exhibit4_Impact-Test'!$Y$25*S_5050_SP)+'Exhibit4_Impact-Test'!$Y$26 -> 0.5000 | AA4: =L_5050_SP_set*R_SP/R_5050 -> 0.5061 | AB4: =VLOOKUP(_xlfn.NUMBERVALUE(LEFT(A4,4)),Transactioncosts!$C:$G,5,FALSE) -> 70 | AD4: =R_Cash*(1-L_RDY_SP_set)+R_SP*L_RDY_SP_set -> 1.0177 | AE4: 1.0251 | AF4: =R_Cash*(1-L_5050_SP_set)+R_SP*L_5050_SP_set -> 1.0169 | AG4: =R_RDY-ABS(L_RDY_SP_act-INDEX(L_RDY_SP_set,tPlus))*TC/10000 -> 1.01765 | AH4: =R_RS-ABS(L_RS_SP_act-INDEX(L_RS_SP_set,tPlus))*TC/10000 -> 1.0251 | AI4: 1.0169 | AK4: =LN(R_RDY) -> 0.0176 | AL4: =LN(R_RS) -> 0.0248 | AM4: =LN(R_5050) -> 0.0168 | AN4: =AK4+AN3 -> 0.0295 | AO4: 0.0405 | AP4: 0.0282 | AR4: 0.0175 | AS4: 0.0248 | AT4: 0.0167 | AU4: =AR4+AU3 -> 0.0294 | AV4: =AS4+AV3 -> 0.0404 | AW4: =AT4+AW3 -> 0.0281
A5: 1871.04 | C5: =raw_Data!B11 -> 4.74 | D5: =raw_Data!J11 -> 0.0217 | E5: =raw_Data!L11 -> 0.0043 | F5: 4.61 | G5: =raw_Data!K11 -> 0.0047 | H5: =q_SP/q_SP_tminus-1 -> 0.0282 | J5: =interest_mon*((1-(1+INDEX(interest_mon,tMinus))^(-119))/INDEX(interest_mon,tMinus))+(1+INDEX(interest_mon,tMinus))^(-119) -> 1.0002 | K5: =M5-1 -> 0.0046 | M5: =interest_mon+bond_approx_price -> 1.0046 | N5: =(D_mon+q_SP)/INDEX(q_SP,tMinus) -> 1.0329 | O5: 4 | P5: 6 | R5: =(div_yield_mon-INDEX(interest_mon, tMinus))/(div_yield_mon+INDEX(interest_mon,tMinus)) -> 0.0405 | S5: 0.8668 | T5: 0.0000 | V5: =1/PI()*ATAN('Exhibit4_Impact-Test'!$Y$25*S_RDY_SP)+'Exhibit4_Impact-Test'!$Y$26 -> 0.5257 | W5: =L_RDY_SP_set*R_SP/R_RDY -> 0.5327 | X5: =1/PI()*ATAN('Exhibit4_Impact-Test'!$Y$25*S_RS_SP)+'Exhibit4_Impact-Test'!$Y$26 -> 0.8335 | Y5: 0.8373 | Z5: =1/PI()*ATAN('Exhibit4_Impact-Test'!$Y$25*S_5050_SP)+'Exhibit4_Impact-Test'!$Y$26 -> 0.5000 | AA5: 0.5069 | AB5: =VLOOKUP(_xlfn.NUMBERVALUE(LEFT(A5,4)),Transactioncosts!$C:$G,5,FALSE) -> 70 | AD5: =R_Cash*(1-L_RDY_SP_set)+R_SP*L_RDY_SP_set -> 1.0195 | AE5: =R_Cash*(1-L_RS_SP_set)+R_SP*L_RS_SP_set -> 1.0282 | AF5: 1.0187 | AG5: =R_RDY-ABS(L_RDY_SP_act-INDEX(L_RDY_SP_set,tPlus))*TC/10000 -> 1.01936 | AH5: 1.0281 | AI5: =R_5050-ABS(L_5050_SP_act-INDEX(L_5050_SP_set,tPlus))*TC/10000 -> 1.0187 | AK5: =LN(R_RDY) -> 0.0193 | AL5: 0.0278 | AM5: 0.0186 | AN5: 0.0488 | AO5: 0.0683 | AP5: 0.0468 | AR5: =LN(R_RDY_TC) -> 0.0192 | AS5: 0.0278 | AT5: 0.0185 | AU5: =AR5+AU4 -> 0.0486 | AV5: 0.0681 | AW5: 0.0467
A6: 1871.05 | C6: =raw_Data!B12 -> 4.86 | D6: =raw_Data!J12 -> 0.0217 | E6: =raw_Data!L12 -> 0.0043 | F6: 4.74 | G6: =raw_Data!K12 -> 0.0046 | H6: =q_SP/q_SP_tminus-1 -> 0.0253 | J6: =interest_mon*((1-(1+INDEX(interest_mon,tMinus))^(-119))/INDEX(interest_mon,tMinus))+(1+INDEX(interest_mon,tMinus))^(-119) -> 1.0002 | K6: 0.0046 | M6: 1.0046 | N6: =(D_mon+q_SP)/INDEX(q_SP,tMinus) -> 1.0299 | O6: 5 | P6: 7 | R6: =(div_yield_mon-INDEX(interest_mon, tMinus))/(div_yield_mon+INDEX(interest_mon,tMinus)) -> 0.0263 | S6: 0.8538 | T6: 0.0000 | V6: =1/PI()*ATAN('Exhibit4_Impact-Test'!$Y$25*S_RDY_SP)+'Exhibit4_Impact-Test'!$Y$26 -> 0.5167 | W6: =L_RDY_SP_set*R_SP/R_RDY -> 0.5229 | X6: =1/PI()*ATAN('Exhibit4_Impact-Test'!$Y$25*S_RS_SP)+'Exhibit4_Impact-Test'!$Y$26 -> 0.8314 | Y6: =L_RS_SP_set*R_SP/R_RS -> 0.8348 | Z6: =1/PI()*ATAN('Exhibit4_Impact-Test'!$Y$25*S_5050_SP)+'Exhibit4_Impact-Test'!$Y$26 -> 0.5000 | AA6: 0.5062 | AB6: =VLOOKUP(_xlfn.NUMBERVALUE(LEFT(A6,4)),Transactioncosts!$C:$G,5,FALSE) -> 70 | AD6: =R_Cash*(1-L_RDY_SP_set)+R_SP*L_RDY_SP_set -> 1.0177 | AE6: 1.0256 | AF6: 1.0172 | AG6: =R_RDY-ABS(L_RDY_SP_act-INDEX(L_RDY_SP_set,tPlus))*TC/10000 -> 1.01756 | AH6: 1.0212 | AI6: 1.0172 | AK6: 0.0175 | AL6: 0.0253 | AM6: 0.0171 | AN6: 0.0663 | AO6: 0.0936 | AP6: 0.0639 | AR6: =LN(R_RDY_TC) -> 0.0174 | AS6: 0.0210 | AT6: 0.0170 | AU6: 0.0660 | AV6: 0.0891 | AW6: 0.0637
A7: 1871.06 | C7: =raw_Data!B13 -> 4.82 | D7: =raw_Data!J13 -> 0.0217 | E7: =raw_Data!L13 -> 0.0043 | F7: 4.86 | G7: =raw_Data!K13 -> 0.0045 | H7: =q_SP/q_SP_tminus-1 -> -0.0082 | J7: 1.0002 | K7: 0.0046 | M7: 1.0046 | N7: =(D_mon+q_SP)/INDEX(q_SP,tMinus) -> 0.9962 | O7: 6 | P7: 8 | R7: 0.0135 | S7: =price_yield/(ABS(price_yield)+INDEX(interest_mon,tMinus)) -> -0.6548 | T7: 0.0000 | V7: =1/PI()*ATAN('Exhibit4_Impact-Test'!$Y$25*S_RDY_SP)+'Exhibit4_Impact-Test'!$Y$26 -> 0.5086 | W7: =L_RDY_SP_set*R_SP/R_RDY -> 0.5065 | X7: =1/PI()*ATAN('Exhibit4_Impact-Test'!$Y$25*S_RS_SP)+'Exhibit4_Impact-Test'!$Y$26 -> 0.2076 | Y7: 0.2062 | Z7: =1/PI()*ATAN('Exhibit4_Impact-Test'!$Y$25*S_5050_SP)+'Exhibit4_Impact-Test'!$Y$26 -> 0.5000 | AA7: 0.4979 | AB7: =VLOOKUP(_xlfn.NUMBERVALUE(LEFT(A7,4)),Transactioncosts!$C:$G,5,FALSE) -> 70 | AD7: =R_Cash*(1-L_RDY_SP_set)+R_SP*L_RDY_SP_set -> 1.0003 | AE7: 1.0029 | AF7: =R_Cash*(1-L_5050_SP_set)+R_SP*L_5050_SP_set -> 1.0004 | AG7: 1.00030 | AH7: 1.0026 | AI7: 1.0004 | AK7: 0.0003 | AL7: 0.0028 | AM7: 0.0004 | AN7: 0.0667 | AO7: 0.0964 | AP7: 0.0643 | AR7: =LN(R_RDY_TC) -> 0.0003 | AS7: 0.0026 | AT7: 0.0004 | AU7: 0.0663 | AV7: 0.0918 | AW7: 0.0641
A8: 1871.07 | C8: =raw_Data!B14 -> 4.73 | D8: =raw_Data!J14 -> 0.0217 | E8: =raw_Data!L14 -> 0.0043 | F8: 4.82 | G8: =raw_Data!K14 -> 0.0045 | H8: -0.0187 | J8: 1.0002 | K8: 0.0046 | M8: 1.0046 | N8: 0.9858 | O8: 7 | P8: 9 | R8: 0.0173 | S8: -0.8113 | T8: 0.0000 | V8: =1/PI()*ATAN('Exhibit4_Impact-Test'!$Y$25*S_RDY_SP)+'Exhibit4_Impact-Test'!$Y$26 -> 0.5110 | W8: =L_RDY_SP_set*R_SP/R_RDY -> 0.5063 | X8: =1/PI()*ATAN('Exhibit4_Impact-Test'!$Y$25*S_RS_SP)+'Exhibit4_Impact-Test'!$Y$26 -> 0.1758 | Y8: 0.1731 | Z8: =1/PI()*ATAN('Exhibit4_Impact-Test'!$Y$25*S_5050_SP)+'Exhibit4_Impact-Test'!$Y$26 -> 0.5000 | AA8: 0.4953 | AB8: =VLOOKUP(_xlfn.NUMBERVALUE(LEFT(A8,4)),Transactioncosts!$C:$G,5,FALSE) -> 70 | AD8: =R_Cash*(1-L_RDY_SP_set)+R_SP*L_RDY_SP_set -> 0.9950 | AE8: 1.0013 | AF8: 0.9952 | AG8: 0.99493 | AH8: 0.9968 | AI8: 0.9952 | AK8: =LN(R_RDY) -> -0.0050 | AL8: 0.0013 | AM8: =LN(R_5050) -> -0.0048 | AN8: 0.0616 | AO8: 0.0977 | AP8: 0.0595 | AR8: =LN(R_RDY_TC) -> -0.0051 | AS8: -0.0032 | AT8: =LN(R_5050_TC) -> -0.0048 | AU8: 0.0612 | AV8: 0.0886 | AW8: 0.0593
A9: 1871.08 | C9: =raw_Data!B15 -> 4.79 | D9: =raw_Data!J15 -> 0.0217 | E9: =raw_Data!L15 -> 0.0043 | F9: 4.73 | G9: =raw_Data!K15 -> 0.0046 | H9: 0.0127 | J9: 1.0002 | K9: 0.0046 | M9: 1.0046 | N9: 1.0173 | O9: 8 | P9: 10 | R9: 0.0264 | S9: =price_yield/(ABS(price_yield)+INDEX(interest_mon,tMinus)) -> 0.7449 | T9: 0.0000 | V9: =1/PI()*ATAN('Exhibit4_Impact-Test'!$Y$25*S_RDY_SP)+'Exhibit4_Impact-Test'!$Y$26 -> 0.5168 | W9: 0.5199 | X9: =1/PI()*ATAN('Exhibit4_Impact-Test'!$Y$25*S_RS_SP)+'Exhibit4_Impact-Test'!$Y$26 -> 0.8118 | Y9: 0.8137 | Z9: =1/PI()*ATAN('Exhibit4_Impact-Test'!$Y$25*S_5050_SP)+'Exhibit4_Impact-Test'!$Y$26 -> 0.5000 | AA9: 0.5031 | AB9: =VLOOKUP(_xlfn.NUMBERVALUE(LEFT(A9,4)),Transactioncosts!$C:$G,5,FALSE) -> 70 | AD9: 1.0111 | AE9: =R_Cash*(1-L_RS_SP_set)+R_SP*L_RS_SP_set -> 1.0149 | AF9: 1.0109 | AG9: 1.01109 | AH9: 1.0148 | AI9: 1.0109 | AK9: 0.0111 | AL9: 0.0148 | AM9: 0.0109 | AN9: 0.0727 | AO9: 0.1125 | AP9: 0.0703 | AR9: 0.0110 | AS9: 0.0147 | AT9: 0.0108 | AU9: 0.0722 | AV9: 0.1033 | AW9: 0.0701
A10: 1871.09 | C10: =raw_Data!B16 -> 4.84 | D10: =raw_Data!J16 -> 0.0217 | E10: =raw_Data!L16 -> 0.0043 | F10: 4.79 | G10: =raw_Data!K16 -> 0.0045 | H10: 0.0104 | J10: 1.0002 | K10: 0.0046 | M10: 1.0046 | N10: 1.0150 | O10: 9 | P10: 11 | R10: 0.0198 | S10: 0.7060 | T10: 0.0000 | V10: =1/PI()*ATAN('Exhibit4_Impact-Test'!$Y$25*S_RDY_SP)+'Exhibit4_Impact-Test'!$Y$26 -> 0.5126 | W10: 0.5152 | X10: =1/PI()*ATAN('Exhibit4_Impact-Test'!$Y$25*S_RS_SP)+'Exhibit4_Impact-Test'!$Y$26 -> 0.8038 | Y10: 0.8055 | Z10: =1/PI()*ATAN('Exhibit4_Impact-Test'!$Y$25*S_5050_SP)+'Exhibit4_Impact-Test'!$Y$26 -> 0.5000 | AA10: 0.5026 | AB10: =VLOOKUP(_xlfn.NUMBERVALUE(LEFT(A10,4)),Transactioncosts!$C:$G,5,FALSE) -> 70 | AD10: 1.0099 | AE10: 1.0129 | AF10: 1.0098 | AG10: =R_RDY-ABS(L_RDY_SP_act-INDEX(L_RDY_SP_set,tPlus))*TC/10000 -> 1.00987 | AH10: =R_RS-ABS(L_RS_SP_act-INDEX(L_RS_SP_set,tPlus))*TC/10000 -> 1.0084 | AI10: 1.0098 | AK10: =LN(R_RDY) -> 0.0099 | AL10: 0.0128 | AM10: 0.0097 | AN10: 0.0826 | AO10: 0.1253 | AP10: 0.0801 | AR10: 0.0098 | AS10: 0.0084 | AT10: 0.0097 | AU10: 0.0820 | AV10: 0.1116 | AW10: 0.0798
A11: 1871.10 | C11: =raw_Data!B17 -> 4.59 | D11: =raw_Data!J17 -> 0.0217 | E11: =raw_Data!L17 -> 0.0044 | F11: 4.84 | G11: =raw_Data!K17 -> 0.0045 | H11: -0.0517 | J11: 1.0002 | K11: 0.0046 | M11: 1.0046 | N11: 0.9528 | O11: 10 | P11: 12 | R11: 0.0143 | S11: -0.9223 | T11: 0.0000 | V11: =1/PI()*ATAN('Exhibit4_Impact-Test'!$Y$25*S_RDY_SP)+'Exhibit4_Impact-Test'!$Y$26 -> 0.5091 | W11: 0.4959 | X11: =1/PI()*ATAN('Exhibit4_Impact-Test'!$Y$25*S_RS_SP)+'Exhibit4_Impact-Test'!$Y$26 -> 0.1581 | Y11: =L_RS_SP_set*R_SP/R_RS -> 0.1512 | Z11: =1/PI()*ATAN('Exhibit4_Impact-Test'!$Y$25*S_5050_SP)+'Exhibit4_Impact-Test'!$Y$26 -> 0.5000 | AA11: 0.4868 | AB11: =VLOOKUP(_xlfn.NUMBERVALUE(LEFT(A11,4)),Transactioncosts!$C:$G,5,FALSE) -> 70 | AD11: 0.9782 | AE11: 0.9964 | AF11: 0.9787 | AG11: 0.97803 | AH11: 0.9918 | AI11: 0.9786 | AK11: -0.0220 | AL11: =LN(R_RS) -> -0.0036 | AM11: -0.0215 | AN11: 0.0606 | AO11: 0.1217 | AP11: 0.0585 | AR11: -0.0222 | AS11: =LN(R_RS_TC) -> -0.0082 | AT11: -0.0216 | AU11: 0.0598 | AV11: 0.1034 | AW11: 0.0582
A12: 1871.11 | C12: =raw_Data!B18 -> 4.64 | D12: =raw_Data!J18 -> 0.0217 | E12: =raw_Data!L18 -> 0.0044 | F12: 4.59 | G12: =raw_Data!K18 -> 0.0047 | H12: 0.0109 | J12: 1.0002 | K12: 0.0046 | M12: 1.0046 | N12: 1.0156 | O12: 11 | P12: 13 | R12: 0.0405 | S12: 0.7145 | T12: 0.0000 | V12: =1/PI()*ATAN('Exhibit4_Impact-Test'!$Y$25*S_RDY_SP)+'Exhibit4_Impact-Test'!$Y$26 -> 0.5258 | W12: 0.5285 | X12: =1/PI()*ATAN('Exhibit4_Impact-Test'!$Y$25*S_RS_SP)+'Exhibit4_Impact-Test'!$Y$26 -> 0.8056 | Y12: 0.8073 | Z12: =1/PI()*ATAN('Exhibit4_Impact-Test'!$Y$25*S_5050_SP)+'Exhibit4_Impact-Test'!$Y$26 -> 0.5000 | AA12: 0.5027 | AB12: =VLOOKUP(_xlfn.NUMBERVALUE(LEFT(A12,4)),Transactioncosts!$C:$G,5,FALSE) -> 70 | AD12: 1.0104 | AE12: 1.0135 | AF12: 1.0101 | AG12: 1.01035 | AH12: 1.0133 | AI12: 1.0101 | AK12: 0.0103 | AL12: 0.0134 | AM12: 0.0101 | AN12: 0.0709 | AO12: 0.1351 | AP12: 0.0686 | AR12: 0.0103 | AS12: 0.0132 | AT12: 0.0100 | AU12: 0.0701 | AV12: 0.1167 | AW12: 0.0682
A13: 1871.12 | C13: =raw_Data!B19 -> 4.74 | D13: =raw_Data!J19 -> 0.0217 | E13: =raw_Data!L19 -> 0.0044 | F13: 4.64 | G13: =raw_Data!K19 -> 0.0047 | H13: 0.0216 | J13: 1.0002 | K13: 0.0046 | M13: 1.0046 | N13: 1.0262 | O13: 12 | P13: 14 | R13: 0.0348 | S13: 0.8319 | T13: 0.0000 | V13: =1/PI()*ATAN('Exhibit4_Impact-Test'!$Y$25*S_RDY_SP)+'Exhibit4_Impact-Test'!$Y$26 -> 0.5221 | W13: 0.5274 | X13: =1/PI()*ATAN('Exhibit4_Impact-Test'!$Y$25*S_RS_SP)+'Exhibit4_Impact-Test'!$Y$26 -> 0.8277 | Y13: 0.8308 | Z13: =1/PI()*ATAN('Exhibit4_Impact-Test'!$Y$25*S_5050_SP)+'Exhibit4_Impact-Test'!$Y$26 -> 0.5000 | AA13: 0.5053 | AB13: =VLOOKUP(_xlfn.NUMBERVALUE(LEFT(A13,4)),Transactioncosts!$C:$G,5,FALSE) -> 70 | AD13: 1.0159 | AE13: 1.0225 | AF13: 1.0154 | AG13: 1.01583 | AH13: 1.0225 | AI13: 1.0154 | AK13: 0.0158 | AL13: =LN(R_RS) -> 0.0222 | AM13: 0.0153 | AN13: 0.0867 | AO13: 0.1574 | AP13: 0.0839 | AR13: 0.0157 | AS13: 0.0222 | AT13: 0.0153 | AU13: 0.0858 | AV13: 0.1389 | AW13: 0.0835
A14: 1872.01 | C14: =raw_Data!B20 -> 4.86 | D14: =raw_Data!J20 -> 0.0219 | E14: =raw_Data!L20 -> 0.0044 | F14: 4.74 | G14: =raw_Data!K20 -> 0.0046 | H14: 0.0253 | J14: 1.0002 | K14: 0.0046 | M14: 1.0046 | N14: 1.0299 | O14: 13 | P14: 15 | R14: 0.0302 | S14: 0.8531 | T14: 0.0000 | V14: =1/PI()*ATAN('Exhibit4_Impact-Test'!$Y$25*S_RDY_SP)+'Exhibit4_Impact-Test'!$Y$26 -> 0.5192 | W14: 0.5254 | X14: =1/PI()*ATAN('Exhibit4_Impact-Test'!$Y$25*S_RS_SP)+'Exhibit4_Impact-Test'!$Y$26 -> 0.8313 | Y14: 0.8347 | Z14: =1/PI()*ATAN('Exhibit4_Impact-Test'!$Y$25*S_5050_SP)+'Exhibit4_Impact-Test'!$Y$26 -> 0.5000 | AA14: 0.5062 | AB14: =VLOOKUP(_xlfn.NUMBERVALUE(LEFT(A14,4)),Transactioncosts!$C:$G,5,FALSE) -> 70 | AD14: 1.0178 | AE14: 1.0257 | AF14: 1.0173 | AG14: 1.01769 | AH14: 1.0250 | AI14: 1.0172 | AK14: 0.0176 | AL14: 0.0253 | AM14: 0.0171 | AN14: 0.1043 | AO14: 0.1827 | AP14: 0.1010 | AR14: 0.0175 | AS14: 0.0247 | AT14: 0.0171 | AU14: 0.1033 | AV14: 0.1637 | AW14: 0.1006
A15: 1872.02 | C15: =raw_Data!B21 -> 4.88 | D15: =raw_Data!J21 -> 0.0222 | E15: =raw_Data!L21 -> 0.0044 | F15: 4.86 | G15: =raw_Data!K21 -> 0.0046 | H15: 0.0041 | J15: 1.0013 | K15: 0.0057 | M15: 1.0057 | N15: 1.0087 | O15: 14 | P15: 16 | R15: 0.0238 | S15: 0.4855 | T15: 0.0000 | V15: =1/PI()*ATAN('Exhibit4_Impact-Test'!$Y$25*S_RDY_SP)+'Exhibit4_Impact-Test'!$Y$26 -> 0.5151 | W15: 0.5159 | X15: =1/PI()*ATAN('Exhibit4_Impact-Test'!$Y$25*S_RS_SP)+'Exhibit4_Impact-Test'!$Y$26 -> 0.7453 | Y15: 0.7459 | Z15: =1/PI()*ATAN('Exhibit4_Impact-Test'!$Y$25*S_5050_SP)+'Exhibit4_Impact-Test'!$Y$26 -> 0.5000 | AA15: 0.5007 | AB15: =VLOOKUP(_xlfn.NUMBERVALUE(LEFT(A15,4)),Transactioncosts!$C:$G,5,FALSE) -> 70 | AD15: 1.0073 | AE15: 1.0079 | AF15: 1.0072 | AG15: 1.00725 | AH15: 1.0073 | AI15: 1.0072 | AK15: 0.0072 | AL15: 0.0079 | AM15: 0.0072 | AN15: 0.1115 | AO15: 0.1906 | AP15: 0.1082 | AR15: 0.0072 | AS15: 0.0073 | AT15: 0.0072 | AU15: 0.1106 | AV15: 0.1709 | AW15: 0.1078
A16: 1872.03 | C16: =raw_Data!B22 -> 5.04 | D16: =raw_Data!J22 -> 0.0225 | E16: =raw_Data!L22 -> 0.0044 | F16: 4.88 | G16: =raw_Data!K22 -> 0.0046 | H16: 0.0328 | J16: 1.0013 | K16: 0.0057 | M16: 1.0057 | N16: 1.0374 | O16: 15 | P16: 17 | R16: 0.0262 | S16: 0.8823 | T16: 0.0000 | V16: =1/PI()*ATAN('Exhibit4_Impact-Test'!$Y$25*S_RDY_SP)+'Exhibit4_Impact-Test'!$Y$26 -> 0.5167 | W16: 0.5244 | X16: =1/PI()*ATAN('Exhibit4_Impact-Test'!$Y$25*S_RS_SP)+'Exhibit4_Impact-Test'!$Y$26 -> 0.8359 | Y16: 0.8401 | Z16: =1/PI()*ATAN('Exhibit4_Impact-Test'!$Y$25*S_5050_SP)+'Exhibit4_Impact-Test'!$Y$26 -> 0.5000 | AA16: 0.5077 | AB16: =VLOOKUP(_xlfn.NUMBERVALUE(LEFT(A16,4)),Transactioncosts!$C:$G,5,FALSE) -> 70 | AD16: 1.0221 | AE16: 1.0322 | AF16: 1.0216 | AG16: 1.02199 | AH16: 1.0322 | AI16: 1.0215 | AK16: 0.0219 | AL16: 0.0317 | AM16: 0.0213 | AN16: 0.1334 | AO16: 0.2223 | AP16: 0.1295 | AR16: 0.0218 | AS16: 0.0316 | AT16: 0.0213 | AU16: 0.1323 | AV16: 0.2026 | AW16: 0.1290
A17: 1872.04 | C17: =raw_Data!B23 -> 5.18 | D17: =raw_Data!J23 -> 0.0228 | E17: =raw_Data!L23 -> 0.0044 | F17: 5.04 | G17: =raw_Data!K23 -> 0.0045 | H17: 0.0278 | J17: 1.0013 | K17: 0.0058 | M17: 1.0058 | N17: 1.0323 | O17: 16 | P17: 18 | R17: 0.0145 | S17: 0.8635 | T17: 0.0000 | V17: =1/PI()*ATAN('Exhibit4_Impact-Test'!$Y$25*S_RDY_SP)+'Exhibit4_Impact-Test'!$Y$26 -> 0.5092 | W17: 0.5157 | X17: =1/PI()*ATAN('Exhibit4_Impact-Test'!$Y$25*S_RS_SP)+'Exhibit4_Impact-Test'!$Y$26 -> 0.8329 | Y17: 0.8365 | Z17: =1/PI()*ATAN('Exhibit4_Impact-Test'!$Y$25*S_5050_SP)+'Exhibit4_Impact-Test'!$Y$26 -> 0.5000 | AA17: 0.5065 | AB17: =VLOOKUP(_xlfn.NUMBERVALUE(LEFT(A17,4)),Transactioncosts!$C:$G,5,FALSE) -> 70 | AD17: 1.0193 | AE17: 1.0279 | AF17: 1.0190 | AG17: 1.01918 | AH17: 1.0255 | AI17: 1.0190 | AK17: 0.0191 | AL17: 0.0275 | AM17: 0.0188 | AN17: 0.1525 | AO17: 0.2498 | AP17: 0.1484 | AR17: 0.0190 | AS17: 0.0252 | AT17: 0.0188 | AU17: 0.1513 | AV17: 0.2278 | AW17: 0.1478
A18: 1872.05 | C18: =raw_Data!B24 -> 5.18 | D18: =raw_Data!J24 -> 0.0231 | E18: =raw_Data!L24 -> 0.0044 | F18: 5.18 | G18: =raw_Data!K24 -> 0.0045 | H18: 0.0000 | J18: 1.0013 | K18: 0.0058 | M18: 1.0058 | N18: 1.0045 | O18: 17 | P18: 19 | R18: 0.0053 | S18: 0.0000 | T18: 0.0000 | V18: =1/PI()*ATAN('Exhibit4_Impact-Test'!$Y$25*S_RDY_SP)+'Exhibit4_Impact-Test'!$Y$26 -> 0.5034 | W18: 0.5031 | X18: =1/PI()*ATAN('Exhibit4_Impact-Test'!$Y$25*S_RS_SP)+'Exhibit4_Impact-Test'!$Y$26 -> 0.5000 | Y18: 0.4997 | Z18: =1/PI()*ATAN('Exhibit4_Impact-Test'!$Y$25*S_5050_SP)+'Exhibit4_Impact-Test'!$Y$26 -> 0.5000 | AA18: 0.4997 | AB18: =VLOOKUP(_xlfn.NUMBERVALUE(LEFT(A18,4)),Transactioncosts!$C:$G,5,FALSE) -> 70 | AD18: 1.0051 | AE18: 1.0051 | AF18: 1.0051 | AG18: 1.00508 | AH18: 1.0030 | AI18: 1.0051 | AK18: 0.0051 | AL18: 0.0051 | AM18: 0.0051 | AN18: 0.1575 | AO18: 0.2549 | AP18: 0.1535 | AR18: 0.0051 | AS18: 0.0030 | AT18: 0.0051 | AU18: 0.1564 | AV18: 0.2308 | AW18: 0.1529
A19: 1872.06 | C19: =raw_Data!B25 -> 5.13 | D19: =raw_Data!J25 -> 0.0233 | E19: =raw_Data!L25 -> 0.0044 | F19: 5.18 | G19: =raw_Data!K25 -> 0.0045 | H19: -0.0097 | J19: 1.0013 | K19: 0.0058 | M19: 1.0058 | N19: 0.9949 | O19: 18 | P19: 20 | R19: 0.0096 | S19: -0.6860 | T19: 0.0000 | V19: =1/PI()*ATAN('Exhibit4_Impact-Test'!$Y$25*S_RDY_SP)+'Exhibit4_Impact-Test'!$Y$26 -> 0.5061 | W19: 0.5034 | X19: =1/PI()*ATAN('Exhibit4_Impact-Test'!$Y$25*S_RS_SP)+'Exhibit4_Impact-Test'!$Y$26 -> 0.2005 | Y19: 0.1987 | Z19: =1/PI()*ATAN('Exhibit4_Impact-Test'!$Y$25*S_5050_SP)+'Exhibit4_Impact-Test'!$Y$26 -> 0.5000 | AA19: 0.4973 | AB19: =VLOOKUP(_xlfn.NUMBERVALUE(LEFT(A19,4)),Transactioncosts!$C:$G,5,FALSE) -> 70 | AD19: 1.0002 | AE19: 1.0036 | AF19: 1.0003 | AG19: 1.00019 | AH19: 1.0034 | AI19: 1.0003 | AK19: 0.0002 | AL19: 0.0036 | AM19: 0.0003 | AN19: 0.1578 | AO19: 0.2585 | AP19: 0.1538 | AR19: 0.0002 | AS19: 0.0034 | AT19: 0.0003 | AU19: 0.1566 | AV19: 0.2342 | AW19: 0.1532
A20: 1872.07 | C20: =raw_Data!B26 -> 5.10 | D20: =raw_Data!J26 -> 0.0236 | E20: =raw_Data!L26 -> 0.0044 | F20: 5.13 | G20: =raw_Data!K26 -> 0.0046 | H20: -0.0058 | J20: 1.0013 | K20: 0.0058 | M20: 1.0058 | N20: 0.9988 | O20: 19 | P20: 21 | R20: 0.0187 | S20: -0.5688 | T20: 0.0000 | V20: =1/PI()*ATAN('Exhibit4_Impact-Test'!$Y$25*S_RDY_SP)+'Exhibit4_Impact-Test'!$Y$26 -> 0.5119 | W20: 0.5101 | X20: =1/PI()*ATAN('Exhibit4_Impact-Test'!$Y$25*S_RS_SP)+'Exhibit4_Impact-Test'!$Y$26 -> 0.2295 | Y20: 0.2283 | Z20: =1/PI()*ATAN('Exhibit4_Impact-Test'!$Y$25*S_5050_SP)+'Exhibit4_Impact-Test'!$Y$26 -> 0.5000 | AA20: 0.4982 | AB20: =VLOOKUP(_xlfn.NUMBERVALUE(LEFT(A20,4)),Transactioncosts!$C:$G,5,FALSE) -> 70 | AD20: 1.0022 | AE20: 1.0042 | AF20: 1.0023 | AG20: 1.00214 | AH20: 1.0039 | AI20: 1.0023 | AK20: 0.0022 | AL20: 0.0042 | AM20: 0.0023 | AN20: 0.1600 | AO20: 0.2626 | AP20: 0.1561 | AR20: 0.0021 | AS20: 0.0039 | AT20: 0.0023 | AU20: 0.1587 | AV20: 0.2381 | AW20: 0.1555
A21: 1872.08 | C21: =raw_Data!B27 -> 5.04 | D21: =raw_Data!J27 -> 0.0239 | E21: =raw_Data!L27 -> 0.0045 | F21: 5.1 | G21: =raw_Data!K27 -> 0.0047 | H21: -0.0118 | J21: 1.0013 | K21: 0.0058 | M21: 1.0058 | N21: 0.9929 | O21: 20 | P21: 22 | R21: 0.0259 | S21: -0.7257 | T21: 0.0000 | V21: =1/PI()*ATAN('Exhibit4_Impact-Test'!$Y$25*S_RDY_SP)+'Exhibit4_Impact-Test'!$Y$26 -> 0.5165 | W21: 0.5133 | X21: =1/PI()*ATAN('Exhibit4_Impact-Test'!$Y$25*S_RS_SP)+'Exhibit4_Impact-Test'!$Y$26 -> 0.1920 | Y21: 0.1901 | Z21: =1/PI()*ATAN('Exhibit4_Impact-Test'!$Y$25*S_5050_SP)+'Exhibit4_Impact-Test'!$Y$26 -> 0.5000 | AA21: 0.4968 | AB21: =VLOOKUP(_xlfn.NUMBERVALUE(LEFT(A21,4)),Transactioncosts!$C:$G,5,FALSE) -> 70 | AD21: 0.9991 | AE21: 1.0033 | AF21: 0.9994 | AG21: 0.99908 | AH21: 1.0032 | AI21: 0.9993 | AK21: -0.0009 | AL21: 0.0033 | AM21: -0.0006 | AN21: 0.1591 | AO21: 0.2659 | AP21: 0.1554 | AR21: -0.0009 | AS21: 0.0032 | AT21: -0.0007 | AU21: 0.1578 | AV21: 0.2413 | AW21: 0.1548
A22: 1872.09 | C22: =raw_Data!B28 -> 4.95 | D22: =raw_Data!J28 -> 0.0242 | E22: =raw_Data!L28 -> 0.0045 | F22: 5.04 | G22: =raw_Data!K28 -> 0.0048 | H22: -0.0179 | J22: 1.0013 | K22: 0.0058 | M22: 1.0058 | N22: 0.9869 | O22: 21 | P22: 23 | R22: 0.0359 | S22: -0.8001 | T22: 0.0000 | V22: =1/PI()*ATAN('Exhibit4_Impact-Test'!$Y$25*S_RDY_SP)+'Exhibit4_Impact-Test'!$Y$26 -> 0.5228 | W22: 0.5181 | X22: =1/PI()*ATAN('Exhibit4_Impact-Test'!$Y$25*S_RS_SP)+'Exhibit4_Impact-Test'!$Y$26 -> 0.1778 | Y22: 0.1750 | Z22: =1/PI()*ATAN('Exhibit4_Impact-Test'!$Y$25*S_5050_SP)+'Exhibit4_Impact-Test'!$Y$26 -> 0.5000 | AA22: 0.4953 | AB22: =VLOOKUP(_xlfn.NUMBERVALUE(LEFT(A22,4)),Transactioncosts!$C:$G,5,FALSE) -> 70 | AD22: 0.9959 | AE22: 1.0025 | AF22: 0.9964 | AG22: 0.99586 | AH22: 0.9985 | AI22: 0.9963 | AK22: -0.0041 | AL22: 0.0025 | AM22: -0.0036 | AN22: 0.1551 | AO22: 0.2684 | AP22: 0.1518 | AR22: -0.0042 | AS22: -0.0015 | AT22: -0.0037 | AU22: 0.1537 | AV22: 0.2398 | AW22: 0.1512
A23: 1872.10 | C23: =raw_Data!B29 -> 4.97 | D23: =raw_Data!J29 -> 0.0244 | E23: =raw_Data!L29 -> 0.0045 | F23: 4.95 | G23: =raw_Data!K29 -> 0.0049 | H23: 0.0040 | J23: 1.0013 | K23: 0.0058 | M23: 1.0058 | N23: 1.0090 | O23: 22 | P23: 24 | R23: 0.0489 | S23: 0.4744 | T23: 0.0000 | V23: =1/PI()*ATAN('Exhibit4_Impact-Test'!$Y$25*S_RDY_SP)+'Exhibit4_Impact-Test'!$Y$26 -> 0.5311 | W23: 0.5318 | X23: =1/PI()*ATAN('Exhibit4_Impact-Test'!$Y$25*S_RS_SP)+'Exhibit4_Impact-Test'!$Y$26 -> 0.7416 | Y23: 0.7422 | Z23: =1/PI()*ATAN('Exhibit4_Impact-Test'!$Y$25*S_5050_SP)+'Exhibit4_Impact-Test'!$Y$26 -> 0.5000 | AA23: 0.5008 | AB23: =VLOOKUP(_xlfn.NUMBERVALUE(LEFT(A23,4)),Transactioncosts!$C:$G,5,FALSE) -> 70 | AD23: 1.0075 | AE23: 1.0082 | AF23: 1.0074 | AG23: 1.00750 | AH23: 1.0048 | AI23: 1.0074 | AK23: 0.0075 | AL23: 0.0081 | AM23: 0.0074 | AN23: 0.1625 | AO23: 0.2765 | AP23: 0.1592 | AR23: 0.0075 | AS23: 0.0048 | AT23: 0.0074 | AU23: 0.1611 | AV23: 0.2446 | AW23: 0.1585
A24: 1872.11 | C24: =raw_Data!B30 -> 4.95 | D24: =raw_Data!J30 -> 0.0247 | E24: =raw_Data!L30 -> 0.0045 | F24: 4.97 | G24: =raw_Data!K30 -> 0.0050 | H24: -0.0040 | J24: 1.0013 | K24: 0.0058 | M24: 1.0058 | N24: 1.0010 | O24: 23 | P24: 25 | R24: 0.0511 | S24: -0.4726 | T24: 0.0000 | V24: =1/PI()*ATAN('Exhibit4_Impact-Test'!$Y$25*S_RDY_SP)+'Exhibit4_Impact-Test'!$Y$26 -> 0.5324 | W24: 0.5312 | X24: =1/PI()*ATAN('Exhibit4_Impact-Test'!$Y$25*S_RS_SP)+'Exhibit4_Impact-Test'!$Y$26 -> 0.2590 | Y24: 0.2580 | Z24: =1/PI()*ATAN('Exhibit4_Impact-Test'!$Y$25*S_5050_SP)+'Exhibit4_Impact-Test'!$Y$26 -> 0.5000 | AA24: 0.4988 | AB24: =VLOOKUP(_xlfn.NUMBERVALUE(LEFT(A24,4)),Transactioncosts!$C:$G,5,FALSE) -> 70 | AD24: 1.0032 | AE24: 1.0046 | AF24: 1.0034 | AG24: 1.00320 | AH24: 1.0006 | AI24: 1.0034 | AK24: 0.0032 | AL24: 0.0046 | AM24: 0.0034 | AN24: 0.1658 | AO24: 0.2811 | AP24: 0.1626 | AR24: 0.0032 | AS24: 0.0006 | AT24: 0.0034 | AU24: 0.1643 | AV24: 0.2451 | AW24: 0.1619
A25: 1872.12 | C25: =raw_Data!B31 -> 5.07 | D25: =raw_Data!J31 -> 0.0250 | E25: =raw_Data!L31 -> 0.0045 | F25: 4.95 | G25: =raw_Data!K31 -> 0.0051 | H25: 0.0242 | J25: 1.0013 | K25: 0.0059 | M25: 1.0059 | N25: 1.0293 | O25: 24 | P25: 26 | R25: 0.0570 | S25: 0.8433 | T25: 0.0000 | V25: =1/PI()*ATAN('Exhibit4_Impact-Test'!$Y$25*S_RDY_SP)+'Exhibit4_Impact-Test'!$Y$26 -> 0.5361 | W25: 0.5418 | X25: =1/PI()*ATAN('Exhibit4_Impact-Test'!$Y$25*S_RS_SP)+'Exhibit4_Impact-Test'!$Y$26 -> 0.8296 | Y25: 0.8329 | Z25: =1/PI()*ATAN('Exhibit4_Impact-Test'!$Y$25*S_5050_SP)+'Exhibit4_Impact-Test'!$Y$26 -> 0.5000 | AA25: 0.5058 | AB25: =VLOOKUP(_xlfn.NUMBERVALUE(LEFT(A25,4)),Transactioncosts!$C:$G,5,FALSE) -> 70 | AD25: 1.0184 | AE25: 1.0253 | AF25: 1.0176 | AG25: 1.01834 | AH25: 1.0250 | AI25: 1.0175 | AK25: 0.0183 | AL25: 0.0250 | AM25: 0.0174 | AN25: 0.1840 | AO25: 0.3061 | AP25: 0.1800 | AR25: 0.0182 | AS25: 0.0247 | AT25: 0.0174 | AU25: 0.1825 | AV25: 0.2698 | AW25: 0.1793
A26: 1873.01 | C26: =raw_Data!B32 -> 5.11 | D26: =raw_Data!J32 -> 0.0252 | E26: =raw_Data!L32 -> 0.0045 | F26: 5.07 | G26: =raw_Data!K32 -> 0.0050 | H26: 0.0079 | J26: 1.0013 | K26: 0.0059 | M26: 1.0059 | N26: 1.0129 | O26: 25 | P26: 27 | R26: 0.0476 | S26: 0.6357 | T26: 0.0000 | V26: =1/PI()*ATAN('Exhibit4_Impact-Test'!$Y$25*S_RDY_SP)+'Exhibit4_Impact-Test'!$Y$26 -> 0.5302 | W26: 0.5319 | X26: =1/PI()*ATAN('Exhibit4_Impact-Test'!$Y$25*S_RS_SP)+'Exhibit4_Impact-Test'!$Y$26 -> 0.7879 | Y26: 0.7890 | Z26: =1/PI()*ATAN('Exhibit4_Impact-Test'!$Y$25*S_5050_SP)+'Exhibit4_Impact-Test'!$Y$26 -> 0.5000 | AA26: 0.5017 | AB26: =VLOOKUP(_xlfn.NUMBERVALUE(LEFT(A26,4)),Transactioncosts!$C:$G,5,FALSE) -> 70 | AD26: 1.0096 | AE26: 1.0114 | AF26: 1.0094 | AG26: 1.00956 | AH26: 1.0114 | AI26: 1.0094 | AK26: 0.0095 | AL26: 0.0113 | AM26: 0.0093 | AN26: 0.1936 | AO26: 0.3174 | AP26: 0.1893 | AR26: 0.0095 | AS26: 0.0113 | AT26: 0.0093 | AU26: 0.1920 | AV26: 0.2811 | AW26: 0.1886
A27: 1873.02 | C27: =raw_Data!B33 -> 5.15 | D27: =raw_Data!J33 -> 0.0254 | E27: =raw_Data!L33 -> 0.0045 | F27: 5.11 | G27: =raw_Data!K33 -> 0.0050 | H27: 0.0078 | J27: 0.9993 | K27: 0.0039 | M27: 1.0039 | N27: 1.0128 | O27: 26 | P27: 28 | R27: 0.0461 | S27: 0.6332 | T27: 0.0000 | V27: =1/PI()*ATAN('Exhibit4_Impact-Test'!$Y$25*S_RDY_SP)+'Exhibit4_Impact-Test'!$Y$26 -> 0.5293 | W27: 0.5315 | X27: =1/PI()*ATAN('Exhibit4_Impact-Test'!$Y$25*S_RS_SP)+'Exhibit4_Impact-Test'!$Y$26 -> 0.7872 | Y27: 0.7887 | Z27: =1/PI()*ATAN('Exhibit4_Impact-Test'!$Y$25*S_5050_SP)+'Exhibit4_Impact-Test'!$Y$26 -> 0.5000 | AA27: 0.5022 | AB27: =VLOOKUP(_xlfn.NUMBERVALUE(LEFT(A27,4)),Transactioncosts!$C:$G,5,FALSE) -> 70 | AD27: 1.0086 | AE27: 1.0109 | AF27: 1.0083 | AG27: 1.00858 | AH27: 1.0069 | AI27: 1.0083 | AK27: 0.0086 | AL27: 0.0108 | AM27: 0.0083 | AN27: 0.2021 | AO27: 0.3282 | AP27: 0.1976 | AR27: 0.0085 | AS27: 0.0068 | AT27: 0.0083 | AU27: 0.2006 | AV27: 0.2880 | AW27: 0.1969
A28: 1873.03 | C28: =raw_Data!B34 -> 5.11 | D28: =raw_Data!J34 -> 0.0256 | E28: =raw_Data!L34 -> 0.0045 | F28: 5.15 | G28: =raw_Data!K34 -> 0.0050 | H28: -0.0078 | J28: 0.9993 | K28: 0.0039 | M28: 1.0039 | N28: 0.9972 | O28: 27 | P28: 29 | R28: 0.0471 | S28: -0.6317 | T28: 0.0000 | V28: =1/PI()*ATAN('Exhibit4_Impact-Test'!$Y$25*S_RDY_SP)+'Exhibit4_Impact-Test'!$Y$26 -> 0.5299 | W28: 0.5283 | X28: =1/PI()*ATAN('Exhibit4_Impact-Test'!$Y$25*S_RS_SP)+'Exhibit4_Impact-Test'!$Y$26 -> 0.2131 | Y28: 0.2120 | Z28: =1/PI()*ATAN('Exhibit4_Impact-Test'!$Y$25*S_5050_SP)+'Exhibit4_Impact-Test'!$Y$26 -> 0.5000 | AA28: 0.4983 | AB28: =VLOOKUP(_xlfn.NUMBERVALUE(LEFT(A28,4)),Transactioncosts!$C:$G,5,FALSE) -> 70 | AD28: 1.0003 | AE28: 1.0024 | AF28: 1.0005 | AG28: 1.00028 | AH28: 1.0023 | AI28: 1.0005 | AK28: 0.0003 | AL28: 0.0024 | AM28: 0.0005 | AN28: 0.2024 | AO28: 0.3307 | AP28: 0.1981 | AR28: 0.0003 | AS28: 0.0023 | AT28: 0.0005 | AU28: 0.2008 | AV28: 0.2902 | AW28: 0.1974
A29: 1873.04 | C29: =raw_Data!B35 -> 5.04 | D29: =raw_Data!J35 -> 0.0258 | E29: =raw_Data!L35 -> 0.0045 | F29: 5.11 | G29: =raw_Data!K35 -> 0.0051 | H29: -0.0137 | J29: 0.9993 | K29: 0.0038 | M29: 1.0038 | N29: 0.9914 | O29: 28 | P29: 30 | R29: 0.0559 | S29: -0.7519 | T29: 0.0000 | V29: =1/PI()*ATAN('Exhibit4_Impact-Test'!$Y$25*S_RDY_SP)+'Exhibit4_Impact-Test'!$Y$26 -> 0.5354 | W29: 0.5323 | X29: =1/PI()*ATAN('Exhibit4_Impact-Test'!$Y$25*S_RS_SP)+'Exhibit4_Impact-Test'!$Y$26 -> 0.1868 | Y29: 0.1849 | Z29: =1/PI()*ATAN('Exhibit4_Impact-Test'!$Y$25*S_5050_SP)+'Exhibit4_Impact-Test'!$Y$26 -> 0.5000 | AA29: 0.4969 | AB29: =VLOOKUP(_xlfn.NUMBERVALUE(LEFT(A29,4)),Transactioncosts!$C:$G,5,FALSE) -> 70 | AD29: 0.9972 | AE29: 1.0015 | AF29: 0.9976 | AG29: 0.99709 | AH29: 0.9981 | AI29: 0.9976 | AK29: -0.0028 | AL29: 0.0015 | AM29: -0.0024 | AN29: 0.1996 | AO29: 0.3322 | AP29: 0.1957 | AR29: -0.0029 | AS29: -0.0019 | AT29: -0.0024 | AU29: 0.1979 | AV29: 0.2883 | AW29: 0.1950
A30: 1873.05 | C30: =raw_Data!B36 -> 5.05 | D30: =raw_Data!J36 -> 0.0260 | E30: =raw_Data!L36 -> 0.0045 | F30: 5.04 | G30: =raw_Data!K36 -> 0.0052 | H30: 0.0020 | J30: 0.9993 | K30: 0.0038 | M30: 1.0038 | N30: 1.0072 | O30: 29 | P30: 31 | R30: 0.0675 | S30: 0.3054 | T30: 0.0000 | V30: =1/PI()*ATAN('Exhibit4_Impact-Test'!$Y$25*S_RDY_SP)+'Exhibit4_Impact-Test'!$Y$26 -> 0.5427 | W30: 0.5435 | X30: =1/PI()*ATAN('Exhibit4_Impact-Test'!$Y$25*S_RS_SP)+'Exhibit4_Impact-Test'!$Y$26 -> 0.6745 | Y30: 0.6752 | Z30: =1/PI()*ATAN('Exhibit4_Impact-Test'!$Y$25*S_5050_SP)+'Exhibit4_Impact-Test'!$Y$26 -> 0.5000 | AA30: 0.5008 | AB30: =VLOOKUP(_xlfn.NUMBERVALUE(LEFT(A30,4)),Transactioncosts!$C:$G,5,FALSE) -> 70 | AD30: 1.0056 | AE30: 1.0061 | AF30: 1.0055 | AG30: 1.00563 | AH30: 1.0026 | AI30: 1.0055 | AK30: 0.0056 | AL30: 0.0061 | AM30: 0.0055 | AN30: 0.2052 | AO30: 0.3382 | AP30: 0.2012 | AR30: 0.0056 | AS30: 0.0026 | AT30: 0.0055 | AU30: 0.2035 | AV30: 0.2910 | AW30: 0.2005
A31: 1873.06 | C31: =raw_Data!B37 -> 4.98 | D31: =raw_Data!J37 -> 0.0263 | E31: =raw_Data!L37 -> 0.0045 | F31: 5.05 | G31: =raw_Data!K37 -> 0.0052 | H31: -0.0139 | J31: 0.9993 | K31: 0.0038 | M31: 1.0038 | N31: 0.9913 | O31: 30 | P31: 32 | R31: 0.0713 | S31: -0.7547 | T31: 0.0000 | V31: =1/PI()*ATAN('Exhibit4_Impact-Test'!$Y$25*S_RDY_SP)+'Exhibit4_Impact-Test'!$Y$26 -> 0.5451 | W31: 0.5420 | X31: =1/PI()*ATAN('Exhibit4_Impact-Test'!$Y$25*S_RS_SP)+'Exhibit4_Impact-Test'!$Y$26 -> 0.1863 | Y31: 0.1844 | Z31: =1/PI()*ATAN('Exhibit4_Impact-Test'!$Y$25*S_5050_SP)+'Exhibit4_Impact-Test'!$Y$26 -> 0.5000 | AA31: 0.4969 | AB31: =VLOOKUP(_xlfn.NUMBERVALUE(LEFT(A31,4)),Transactioncosts!$C:$G,5,FALSE) -> 70 | AD31: 0.9970 | AE31: 1.0015 | AF31: 0.9976 | AG31: 0.99695 | AH31: 1.0005 | AI31: 0.9976 | AK31: -0.0030 | AL31: 0.0015 | AM31: -0.0024 | AN31: 0.2022 | AO31: 0.3397 | AP31: 0.1988 | AR31: -0.0031 | AS31: 0.0005 | AT31: -0.0024 | AU31: 0.2005 | AV31: 0.2915 | AW31: 0.1980
A32: 1873.07 | C32: =raw_Data!B38 -> 4.97 | D32: =raw_Data!J38 -> 0.0265 | E32: =raw_Data!L38 -> 0.0045 | F32: 4.98 | G32: =raw_Data!K38 -> 0.0053 | H32: -0.0020 | J32: 0.9993 | K32: 0.0038 | M32: 1.0038 | N32: 1.0033 | O32: 31 | P32: 33 | R32: 0.0830 | S32: -0.3086 | T32: 0.0000 | V32: =1/PI()*ATAN('Exhibit4_Impact-Test'!$Y$25*S_RDY_SP)+'Exhibit4_Impact-Test'!$Y$26 -> 0.5523 | W32: 0.5522 | X32: =1/PI()*ATAN('Exhibit4_Impact-Test'!$Y$25*S_RS_SP)+'Exhibit4_Impact-Test'!$Y$26 -> 0.3240 | Y32: 0.3239 | Z32: =1/PI()*ATAN('Exhibit4_Impact-Test'!$Y$25*S_5050_SP)+'Exhibit4_Impact-Test'!$Y$26 -> 0.5000 | AA32: 0.4999 | AB32: =VLOOKUP(_xlfn.NUMBERVALUE(LEFT(A32,4)),Transactioncosts!$C:$G,5,FALSE) -> 70 | AD32: 1.0035 | AE32: 1.0037 | AF32: 1.0036 | AG32: 1.00351 | AH32: 1.0024 | AI32: 1.0036 | AK32: 0.0035 | AL32: 0.0036 | AM32: 0.0036 | AN32: 0.2058 | AO32: 0.3434 | AP32: 0.2024 | AR32: 0.0035 | AS32: 0.0024 | AT32: 0.0036 | AU32: 0.2040 | AV32: 0.2939 | AW32: 0.2016
A33: 1873.08 | C33: =raw_Data!B39 -> 4.97 | D33: =raw_Data!J39 -> 0.0267 | E33: =raw_Data!L39 -> 0.0045 | F33: 4.97 | G33: =raw_Data!K39 -> 0.0054 | H33: 0.0000 | J33: 0.9993 | K33: 0.0038 | M33: 1.0038 | N33: 1.0054 | O33: 32 | P33: 34 | R33: 0.0887 | S33: 0.0000 | T33: 0.0000 | V33: =1/PI()*ATAN('Exhibit4_Impact-Test'!$Y$25*S_RDY_SP)+'Exhibit4_Impact-Test'!$Y$26 -> 0.5559 | W33: 0.5562 | X33: =1/PI()*ATAN('Exhibit4_Impact-Test'!$Y$25*S_RS_SP)+'Exhibit4_Impact-Test'!$Y$26 -> 0.5000 | Y33: 0.5004 | Z33: =1/PI()*ATAN('Exhibit4_Impact-Test'!$Y$25*S_5050_SP)+'Exhibit4_Impact-Test'!$Y$26 -> 0.5000 | AA33: 0.5004 | AB33: =VLOOKUP(_xlfn.NUMBERVALUE(LEFT(A33,4)),Transactioncosts!$C:$G,5,FALSE) -> 70 | AD33: 1.0047 | AE33: 1.0046 | AF33: 1.0046 | AG33: 1.00466 | AH33: 1.0022 | AI33: 1.0046 | AK33: 0.0047 | AL33: 0.0046 | AM33: 0.0046 | AN33: 0.2104 | AO33: 0.3480 | AP33: 0.2069 | AR33: 0.0046 | AS33: 0.0022 | AT33: 0.0046 | AU33: 0.2086 | AV33: 0.2961 | AW33: 0.2062
A34: 1873.09 | C34: =raw_Data!B40 -> 4.59 | D34: =raw_Data!J40 -> 0.0269 | E34: =raw_Data!L40 -> 0.0045 | F34: 4.97 | G34: =raw_Data!K40 -> 0.0054 | H34: -0.0765 | J34: 0.9993 | K34: 0.0038 | M34: 1.0038 | N34: 0.9289 | O34: 33 | P34: 35 | R34: 0.0933 | S34: -0.9446 | T34: 0.0000 | V34: =1/PI()*ATAN('Exhibit4_Impact-Test'!$Y$25*S_RDY_SP)+'Exhibit4_Impact-Test'!$Y$26 -> 0.5587 | W34: 0.5396 | X34: =1/PI()*ATAN('Exhibit4_Impact-Test'!$Y$25*S_RS_SP)+'Exhibit4_Impact-Test'!$Y$26 -> 0.1550 | Y34: 0.1451 | Z34: =1/PI()*ATAN('Exhibit4_Impact-Test'!$Y$25*S_5050_SP)+'Exhibit4_Impact-Test'!$Y$26 -> 0.5000 | AA34: 0.4806 | AB34: =VLOOKUP(_xlfn.NUMBERVALUE(LEFT(A34,4)),Transactioncosts!$C:$G,5,FALSE) -> 70 | AD34: 0.9620 | AE34: 0.9922 | AF34: 0.9664 | AG34: 0.96166 | AH34: 0.9921 | AI34: 0.9662 | AK34: -0.0388 | AL34: -0.0078 | AM34: -0.0342 | AN34: 0.1717 | AO34: 0.3402 | AP34: 0.1727 | AR34: -0.0391 | AS34: -0.0079 | AT34: -0.0343 | AU34: 0.1695 | AV34: 0.2882 | AW34: 0.1718
A35: 1873.10 | C35: =raw_Data!B41 -> 4.19 | D35: =raw_Data!J41 -> 0.0271 | E35: =raw_Data!L41 -> 0.0045 | F35: 4.59 | G35: =raw_Data!K41 -> 0.0059 | H35: -0.0871 | J35: 0.9993 | K35: 0.0038 | M35: 1.0038 | N35: 0.9188 | O35: 34 | P35: 36 | R35: 0.1372 | S35: -0.9511 | T35: 0.0000 | V35: =1/PI()*ATAN('Exhibit4_Impact-Test'!$Y$25*S_RDY_SP)+'Exhibit4_Impact-Test'!$Y$26 -> 0.5852 | W35: 0.5636 | X35: =1/PI()*ATAN('Exhibit4_Impact-Test'!$Y$25*S_RS_SP)+'Exhibit4_Impact-Test'!$Y$26 -> 0.1541 | Y35: 0.1429 | Z35: =1/PI()*ATAN('Exhibit4_Impact-Test'!$Y$25*S_5050_SP)+'Exhibit4_Impact-Test'!$Y$26 -> 0.5000 | AA35: 0.4779 | AB35: =VLOOKUP(_xlfn.NUMBERVALUE(LEFT(A35,4)),Transactioncosts!$C:$G,5,FALSE) -> 70 | AD35: 0.9540 | AE35: 0.9907 | AF35: 0.9613 | AG35: 0.95368 | AH35: 0.9906 | AI35: 0.9611 | AK35: -0.0471 | AL35: -0.0093 | AM35: -0.0395 | AN35: 0.1246 | AO35: 0.3308 | AP35: 0.1332 | AR35: -0.0474 | AS35: -0.0095 | AT35: -0.0397 | AU35: 0.1221 | AV35: 0.2787 | AW35: 0.1322
A36: 1873.11 | C36: =raw_Data!B42 -> 4.04 | D36: =raw_Data!J42 -> 0.0273 | E36: =raw_Data!L42 -> 0.0045 | F36: 4.19 | G36: =raw_Data!K42 -> 0.0065 | H36: -0.0358 | J36: 0.9993 | K36: 0.0038 | M36: 1.0038 | N36: 0.9707 | O36: 35 | P36: 37 | R36: 0.1861 | S36: -0.8890 | T36: 0.0000 | V36: =1/PI()*ATAN('Exhibit4_Impact-Test'!$Y$25*S_RDY_SP)+'Exhibit4_Impact-Test'!$Y$26 -> 0.6134 | W36: 0.6054 | X36: =1/PI()*ATAN('Exhibit4_Impact-Test'!$Y$25*S_RS_SP)+'Exhibit4_Impact-Test'!$Y$26 -> 0.1631 | Y36: 0.1586 | Z36: =1/PI()*ATAN('Exhibit4_Impact-Test'!$Y$25*S_5050_SP)+'Exhibit4_Impact-Test'!$Y$26 -> 0.5000 | AA36: 0.4916 | AB36: =VLOOKUP(_xlfn.NUMBERVALUE(LEFT(A36,4)),Transactioncosts!$C:$G,5,FALSE) -> 70 | AD36: 0.9835 | AE36: 0.9984 | AF36: 0.9873 | AG36: 0.98336 | AH36: 0.9936 | AI36: 0.9872 | AK36: -0.0166 | AL36: -0.0016 | AM36: -0.0128 | AN36: 0.1080 | AO36: 0.3292 | AP36: 0.1204 | AR36: -0.0168 | AS36: -0.0064 | AT36: -0.0129 | AU36: 0.1053 | AV36: 0.2723 | AW36: 0.1193
A37: 1873.12 | C37: =raw_Data!B43 -> 4.42 | D37: =raw_Data!J43 -> 0.0275 | E37: =raw_Data!L43 -> 0.0045 | F37: 4.04 | G37: =raw_Data!K43 -> 0.0068 | H37: 0.0941 | J37: 0.9993 | K37: 0.0038 | M37: 1.0038 | N37: 1.1009 | O37: 36 | P37: 38 | R37: 0.2080 | S37: 0.9547 | T37: 0.0000 | V37: =1/PI()*ATAN('Exhibit4_Impact-Test'!$Y$25*S_RDY_SP)+'Exhibit4_Impact-Test'!$Y$26 -> 0.6255 | W37: 0.6469 | X37: =1/PI()*ATAN('Exhibit4_Impact-Test'!$Y$25*S_RS_SP)+'Exhibit4_Impact-Test'!$Y$26 -> 0.8464 | Y37: 0.8581 | Z37: =1/PI()*ATAN('Exhibit4_Impact-Test'!$Y$25*S_5050_SP)+'Exhibit4_Impact-Test'!$Y$26 -> 0.5000 | AA37: 0.5231 | AB37: =VLOOKUP(_xlfn.NUMBERVALUE(LEFT(A37,4)),Transactioncosts!$C:$G,5,FALSE) -> 70 | AD37: 1.0645 | AE37: 1.0860 | AF37: 1.0523 | AG37: 1.06419 | AH37: 1.0858 | AI37: 1.0522 | AK37: 0.0625 | AL37: 0.0825 | AM37: 0.0510 | AN37: 0.1705 | AO37: 0.4117 | AP37: 0.1714 | AR37: 0.0622 | AS37: 0.0824 | AT37: 0.0508 | AU37: 0.1675 | AV37: 0.3546 | AW37: 0.1701
A38: 1874.01 | C38: =raw_Data!B44 -> 4.66 | D38: =raw_Data!J44 -> 0.0275 | E38: =raw_Data!L44 -> 0.0044 | F38: 4.42 | G38: =raw_Data!K44 -> 0.0062 | H38: 0.0543 | J38: 0.9993 | K38: 0.0038 | M38: 1.0038 | N38: 1.0605 | O38: 37 | P38: 39 | R38: 0.1655 | S38: 0.9242 | T38: 0.0000 | V38: =1/PI()*ATAN('Exhibit4_Impact-Test'!$Y$25*S_RDY_SP)+'Exhibit4_Impact-Test'!$Y$26 -> 0.6017 | W38: 0.6148 | X38: =1/PI()*ATAN('Exhibit4_Impact-Test'!$Y$25*S_RS_SP)+'Exhibit4_Impact-Test'!$Y$26 -> 0.8421 | Y38: 0.8493 | Z38: =1/PI()*ATAN('Exhibit4_Impact-Test'!$Y$25*S_5050_SP)+'Exhibit4_Impact-Test'!$Y$26 -> 0.5000 | AA38: 0.5137 | AB38: =VLOOKUP(_xlfn.NUMBERVALUE(LEFT(A38,4)),Transactioncosts!$C:$G,5,FALSE) -> 70 | AD38: 1.0379 | AE38: 1.0516 | AF38: 1.0321 | AG38: 1.03773 | AH38: 1.0515 | AI38: 1.0321 | AK38: 0.0372 | AL38: 0.0503 | AM38: 0.0316 | AN38: 0.2077 | AO38: 0.4619 | AP38: 0.2031 | AR38: 0.0370 | AS38: 0.0502 | AT38: 0.0315 | AU38: 0.2046 | AV38: 0.4048 | AW38: 0.2017
A39: 1874.02 | C39: =raw_Data!B45 -> 4.80 | D39: =raw_Data!J45 -> 0.0275 | E39: =raw_Data!L45 -> 0.0044 | F39: 4.66 | G39: =raw_Data!K45 -> 0.0059 | H39: 0.0300 | J39: 0.9976 | K39: 0.0020 | M39: 1.0020 | N39: 1.0359 | O39: 38 | P39: 40 | R39: 0.1404 | S39: 0.8710 | T39: 0.0000 | V39: =1/PI()*ATAN('Exhibit4_Impact-Test'!$Y$25*S_RDY_SP)+'Exhibit4_Impact-Test'!$Y$26 -> 0.5872 | W39: 0.5952 | X39: =1/PI()*ATAN('Exhibit4_Impact-Test'!$Y$25*S_RS_SP)+'Exhibit4_Impact-Test'!$Y$26 -> 0.8341 | Y39: 0.8387 | Z39: =1/PI()*ATAN('Exhibit4_Impact-Test'!$Y$25*S_5050_SP)+'Exhibit4_Impact-Test'!$Y$26 -> 0.5000 | AA39: 0.5083 | AB39: =VLOOKUP(_xlfn.NUMBERVALUE(LEFT(A39,4)),Transactioncosts!$C:$G,5,FALSE) -> 70 | AD39: 1.0219 | AE39: 1.0303 | AF39: 1.0190 | AG39: 1.02182 | AH39: 1.0257 | AI39: 1.0189 | AK39: 0.0217 | AL39: 0.0299 | AM39: 0.0188 | AN39: 0.2294 | AO39: 0.4918 | AP39: 0.2218 | AR39: 0.0216 | AS39: 0.0254 | AT39: 0.0187 | AU39: 0.2262 | AV39: 0.4302 | AW39: 0.2204
A40: 1874.03 | C40: =raw_Data!B46 -> 4.73 | D40: =raw_Data!J46 -> 0.0275 | E40: =raw_Data!L46 -> 0.0044 | F40: 4.8 | G40: =raw_Data!K46 -> 0.0057 | H40: -0.0146 | J40: 0.9976 | K40: 0.0020 | M40: 1.0020 | N40: 0.9911 | O40: 39 | P40: 41 | R40: 0.1288 | S40: -0.7674 | T40: 0.0000 | V40: =1/PI()*ATAN('Exhibit4_Impact-Test'!$Y$25*S_RDY_SP)+'Exhibit4_Impact-Test'!$Y$26 -> 0.5803 | W40: 0.5776 | X40: =1/PI()*ATAN('Exhibit4_Impact-Test'!$Y$25*S_RS_SP)+'Exhibit4_Impact-Test'!$Y$26 -> 0.1838 | Y40: 0.1822 | Z40: =1/PI()*ATAN('Exhibit4_Impact-Test'!$Y$25*S_5050_SP)+'Exhibit4_Impact-Test'!$Y$26 -> 0.5000 | AA40: 0.4973 | AB40: =VLOOKUP(_xlfn.NUMBERVALUE(LEFT(A40,4)),Transactioncosts!$C:$G,5,FALSE) -> 70 | AD40: 0.9957 | AE40: 1.0000 | AF40: 0.9965 | AG40: 0.99562 | AH40: 0.9999 | AI40: 0.9965 | AK40: -0.0043 | AL40: -0.0000 | AM40: -0.0035 | AN40: 0.2251 | AO40: 0.4918 | AP40: 0.2184 | AR40: -0.0044 | AS40: -0.0001 | AT40: -0.0035 | AU40: 0.2218 | AV40: 0.4301 | AW40: 0.2169
A41: 1874.04 | C41: =raw_Data!B47 -> 4.60 | D41: =raw_Data!J47 -> 0.0275 | E41: =raw_Data!L47 -> 0.0044 | F41: 4.73 | G41: =raw_Data!K47 -> 0.0058 | H41: -0.0275 | J41: 0.9976 | K41: 0.0019 | M41: 1.0019 | N41: 0.9783 | O41: 40 | P41: 42 | R41: 0.1390 | S41: -0.8621 | T41: 0.0000 | V41: =1/PI()*ATAN('Exhibit4_Impact-Test'!$Y$25*S_RDY_SP)+'Exhibit4_Impact-Test'!$Y$26 -> 0.5863 | W41: 0.5805 | X41: =1/PI()*ATAN('Exhibit4_Impact-Test'!$Y$25*S_RS_SP)+'Exhibit4_Impact-Test'!$Y$26 -> 0.1673 | Y41: 0.1640 | Z41: =1/PI()*ATAN('Exhibit4_Impact-Test'!$Y$25*S_5050_SP)+'Exhibit4_Impact-Test'!$Y$26 -> 0.5000 | AA41: 0.4940 | AB41: =VLOOKUP(_xlfn.NUMBERVALUE(LEFT(A41,4)),Transactioncosts!$C:$G,5,FALSE) -> 70 | AD41: 0.9881 | AE41: 0.9980 | AF41: 0.9901 | AG41: 0.98798 | AH41: 0.9979 | AI41: 0.9901 | AK41: -0.0120 | AL41: -0.0020 | AM41: -0.0099 | AN41: 0.2131 | AO41: 0.4897 | AP41: 0.2085 | AR41: -0.0121 | AS41: -0.0021 | AT41: -0.0100 | AU41: 0.2097 | AV41: 0.4280 | AW41: 0.2070
A42: 1874.05 | C42: =raw_Data!B48 -> 4.48 | D42: =raw_Data!J48 -> 0.0275 | E42: =raw_Data!L48 -> 0.0043 | F42: 4.6 | G42: =raw_Data!K48 -> 0.0060 | H42: -0.0261 | J42: 0.9975 | K42: 0.0019 | M42: 1.0019 | N42: 0.9799 | O42: 41 | P42: 43 | R42: 0.1556 | S42: -0.8566 | T42: 0.0000 | V42: =1/PI()*ATAN('Exhibit4_Impact-Test'!$Y$25*S_RDY_SP)+'Exhibit4_Impact-Test'!$Y$26 -> 0.5960 | W42: 0.5907 | X42: =1/PI()*ATAN('Exhibit4_Impact-Test'!$Y$25*S_RS_SP)+'Exhibit4_Impact-Test'!$Y$26 -> 0.1682 | Y42: 0.1651 | Z42: =1/PI()*ATAN('Exhibit4_Impact-Test'!$Y$25*S_5050_SP)+'Exhibit4_Impact-Test'!$Y$26 -> 0.5000 | AA42: 0.4945 | AB42: =VLOOKUP(_xlfn.NUMBERVALUE(LEFT(A42,4)),Transactioncosts!$C:$G,5,FALSE) -> 70 | AD42: 0.9888 | AE42: 0.9982 | AF42: 0.9909 | AG42: 0.98868 | AH42: 0.9976 | AI42: 0.9909 | AK42: -0.0113 | AL42: -0.0018 | AM42: -0.0092 | AN42: 0.2018 | AO42: 0.4879 | AP42: 0.1993 | AR42: -0.0114 | AS42: -0.0024 | AT42: -0.0092 | AU42: 0.1983 | AV42: 0.4256 | AW42: 0.1978
A43: 1874.06 | C43: =raw_Data!B49 -> 4.46 | D43: =raw_Data!J49 -> 0.0275 | E43: =raw_Data!L49 -> 0.0043 | F43: 4.48 | G43: =raw_Data!K49 -> 0.0061 | H43: -0.0045 | J43: 0.9975 | K43: 0.0019 | M43: 1.0019 | N43: 1.0017 | O43: 42 | P43: 44 | R43: 0.1714 | S43: -0.5069 | T43: 0.0000 | V43: =1/PI()*ATAN('Exhibit4_Impact-Test'!$Y$25*S_RDY_SP)+'Exhibit4_Impact-Test'!$Y$26 -> 0.6051 | W43: 0.6051 | X43: =1/PI()*ATAN('Exhibit4_Impact-Test'!$Y$25*S_RS_SP)+'Exhibit4_Impact-Test'!$Y$26 -> 0.2478 | Y43: 0.2478 | Z43: =1/PI()*ATAN('Exhibit4_Impact-Test'!$Y$25*S_5050_SP)+'Exhibit4_Impact-Test'!$Y$26 -> 0.5000 | AA43: 0.5000 | AB43: =VLOOKUP(_xlfn.NUMBERVALUE(LEFT(A43,4)),Transactioncosts!$C:$G,5,FALSE) -> 70 | AD43: 1.0017 | AE43: 1.0018 | AF43: 1.0018 | AG43: 1.00173 | AH43: 1.0000 | AI43: 1.0018 | AK43: 0.0017 | AL43: 0.0018 | AM43: 0.0018 | AN43: 0.2035 | AO43: 0.4897 | AP43: 0.2011 | AR43: 0.0017 | AS43: 0.0000 | AT43: 0.0018 | AU43: 0.2000 | AV43: 0.4257 | AW43: 0.1995
A44: 1874.07 | C44: =raw_Data!B50 -> 4.46 | D44: =raw_Data!J50 -> 0.0275 | E44: =raw_Data!L50 -> 0.0043 | F44: 4.46 | G44: =raw_Data!K50 -> 0.0062 | H44: 0.0000 | J44: 0.9975 | K44: 0.0018 | M44: 1.0018 | N44: 1.0062 | O44: 43 | P44: 45 | R44: 0.1765 | S44: 0.0000 | T44: 0.0000 | V44: =1/PI()*ATAN('Exhibit4_Impact-Test'!$Y$25*S_RDY_SP)+'Exhibit4_Impact-Test'!$Y$26 -> 0.6080 | W44: 0.6091 | X44: =1/PI()*ATAN('Exhibit4_Impact-Test'!$Y$25*S_RS_SP)+'Exhibit4_Impact-Test'!$Y$26 -> 0.5000 | Y44: 0.5011 | Z44: =1/PI()*ATAN('Exhibit4_Impact-Test'!$Y$25*S_5050_SP)+'Exhibit4_Impact-Test'!$Y$26 -> 0.5000 | AA44: 0.5011 | AB44: =VLOOKUP(_xlfn.NUMBERVALUE(LEFT(A44,4)),Transactioncosts!$C:$G,5,FALSE) -> 70 | AD44: 1.0045 | AE44: 1.0040 | AF44: 1.0040 | AG44: 1.00446 | AH44: 1.0027 | AI44: 1.0040 | AK44: 0.0045 | AL44: 0.0040 | AM44: 0.0040 | AN44: 0.2080 | AO44: 0.4937 | AP44: 0.2051 | AR44: 0.0045 | AS44: 0.0027 | AT44: 0.0040 | AU44: 0.2045 | AV44: 0.4283 | AW44: 0.2035
A45: 1874.08 | C45: =raw_Data!B51 -> 4.47 | D45: =raw_Data!J51 -> 0.0275 | E45: =raw_Data!L51 -> 0.0043 | F45: 4.46 | G45: =raw_Data!K51 -> 0.0062 | H45: 0.0022 | J45: 0.9975 | K45: 0.0018 | M45: 1.0018 | N45: 1.0084 | O45: 44 | P45: 46 | R45: 0.1795 | S45: 0.3433 | T45: 0.0000 | V45: =1/PI()*ATAN('Exhibit4_Impact-Test'!$Y$25*S_RDY_SP)+'Exhibit4_Impact-Test'!$Y$26 -> 0.6097 | W45: 0.6113 | X45: =1/PI()*ATAN('Exhibit4_Impact-Test'!$Y$25*S_RS_SP)+'Exhibit4_Impact-Test'!$Y$26 -> 0.6915 | Y45: 0.6929 | Z45: =1/PI()*ATAN('Exhibit4_Impact-Test'!$Y$25*S_5050_SP)+'Exhibit4_Impact-Test'!$Y$26 -> 0.5000 | AA45: 0.5016 | AB45: =VLOOKUP(_xlfn.NUMBERVALUE(LEFT(A45,4)),Transactioncosts!$C:$G,5,FALSE) -> 70 | AD45: 1.0058 | AE45: 1.0064 | AF45: 1.0051 | AG45: 1.00582 | AH45: 1.0055 | AI45: 1.0051 | AK45: 0.0058 | AL45: 0.0063 | AM45: 0.0051 | AN45: 0.2138 | AO45: 0.5001 | AP45: 0.2102 | AR45: 0.0058 | AS45: 0.0055 | AT45: 0.0051 | AU45: 0.2103 | AV45: 0.4338 | AW45: 0.2086
A46: 1874.09 | C46: =raw_Data!B52 -> 4.54 | D46: =raw_Data!J52 -> 0.0275 | E46: =raw_Data!L52 -> 0.0042 | F46: 4.47 | G46: =raw_Data!K52 -> 0.0062 | H46: 0.0157 | J46: 0.9975 | K46: 0.0018 | M46: 1.0018 | N46: 1.0218 | O46: 45 | P46: 47 | R46: 0.1814 | S46: 0.7860 | T46: 0.0000 | V46: =1/PI()*ATAN('Exhibit4_Impact-Test'!$Y$25*S_RDY_SP)+'Exhibit4_Impact-Test'!$Y$26 -> 0.6108 | W46: 0.6155 | X46: =1/PI()*ATAN('Exhibit4_Impact-Test'!$Y$25*S_RS_SP)+'Exhibit4_Impact-Test'!$Y$26 -> 0.8197 | Y46: 0.8226 | Z46: =1/PI()*ATAN('Exhibit4_Impact-Test'!$Y$25*S_5050_SP)+'Exhibit4_Impact-Test'!$Y$26 -> 0.5000 | AA46: 0.5050 | AB46: =VLOOKUP(_xlfn.NUMBERVALUE(LEFT(A46,4)),Transactioncosts!$C:$G,5,FALSE) -> 70 | AD46: 1.0140 | AE46: 1.0182 | AF46: 1.0118 | AG46: 1.01396 | AH46: 1.0146 | AI46: 1.0118 | AK46: 0.0139 | AL46: 0.0180 | AM46: 0.0117 | AN46: 0.2277 | AO46: 0.5181 | AP46: 0.2219 | AR46: 0.0139 | AS46: 0.0145 | AT46: 0.0117 | AU46: 0.2241 | AV46: 0.4483 | AW46: 0.2203
A47: 1874.10 | C47: =raw_Data!B53 -> 4.53 | D47: =raw_Data!J53 -> 0.0275 | E47: =raw_Data!L53 -> 0.0042 | F47: 4.54 | G47: =raw_Data!K53 -> 0.0061 | H47: -0.0022 | J47: 0.9975 | K47: 0.0017 | M47: 1.0017 | N47: 1.0039 | O47: 46 | P47: 48 | R47: 0.1769 | S47: -0.3421 | T47: 0.0000 | V47: =1/PI()*ATAN('Exhibit4_Impact-Test'!$Y$25*S_RDY_SP)+'Exhibit4_Impact-Test'!$Y$26 -> 0.6083 | W47: 0.6088 | X47: =1/PI()*ATAN('Exhibit4_Impact-Test'!$Y$25*S_RS_SP)+'Exhibit4_Impact-Test'!$Y$26 -> 0.3090 | Y47: 0.3095 | Z47: =1/PI()*ATAN('Exhibit4_Impact-Test'!$Y$25*S_5050_SP)+'Exhibit4_Impact-Test'!$Y$26 -> 0.5000 | AA47: 0.5005 | AB47: =VLOOKUP(_xlfn.NUMBERVALUE(LEFT(A47,4)),Transactioncosts!$C:$G,5,FALSE) -> 70 | AD47: 1.0030 | AE47: 1.0024 | AF47: 1.0028 | AG47: 1.00301 | AH47: 0.9990 | AI47: 1.0028 | AK47: 0.0030 | AL47: 0.0024 | AM47: 0.0028 | AN47: 0.2307 | AO47: 0.5205 | AP47: 0.2247 | AR47: 0.0030 | AS47: -0.0010 | AT47: 0.0028 | AU47: 0.2271 | AV47: 0.4472 | AW47: 0.2231
A48: 1874.11 | C48: =raw_Data!B54 -> 4.57 | D48: =raw_Data!J54 -> 0.0275 | E48: =raw_Data!L54 -> 0.0042 | F48: 4.53 | G48: =raw_Data!K54 -> 0.0061 | H48: 0.0088 | J48: 0.9975 | K48: 0.0017 | M48: 1.0017 | N48: 1.0149 | O48: 47 | P48: 49 | R48: 0.1810 | S48: 0.6772 | T48: 0.0000 | V48: =1/PI()*ATAN('Exhibit4_Impact-Test'!$Y$25*S_RDY_SP)+'Exhibit4_Impact-Test'!$Y$26 -> 0.6106 | W48: 0.6137 | X48: =1/PI()*ATAN('Exhibit4_Impact-Test'!$Y$25*S_RS_SP)+'Exhibit4_Impact-Test'!$Y$26 -> 0.7976 | Y48: 0.7997 | Z48: =1/PI()*ATAN('Exhibit4_Impact-Test'!$Y$25*S_5050_SP)+'Exhibit4_Impact-Test'!$Y$26 -> 0.5000 | AA48: 0.5033 | AB48: =VLOOKUP(_xlfn.NUMBERVALUE(LEFT(A48,4)),Transactioncosts!$C:$G,5,FALSE) -> 70 | AD48: 1.0098 | AE48: 1.0122 | AF48: 1.0083 | AG48: 1.00974 | AH48: 1.0082 | AI48: 1.0083 | AK48: 0.0097 | AL48: 0.0122 | AM48: 0.0083 | AN48: 0.2405 | AO48: 0.5326 | AP48: 0.2329 | AR48: 0.0097 | AS48: 0.0081 | AT48: 0.0082 | AU48: 0.2368 | AV48: 0.4554 | AW48: 0.2313
A49: 1874.12 | C49: =raw_Data!B55 -> 4.54 | D49: =raw_Data!J55 -> 0.0275 | E49: =raw_Data!L55 -> 0.0042 | F49: 4.57 | G49: =raw_Data!K55 -> 0.0060 | H49: -0.0066 | J49: 0.9975 | K49: 0.0017 | M49: 1.0017 | N49: 0.9995 | O49: 48 | P49: 50 | R49: 0.1798 | S49: -0.6108 | T49: 0.0000 | V49: =1/PI()*ATAN('Exhibit4_Impact-Test'!$Y$25*S_RDY_SP)+'Exhibit4_Impact-Test'!$Y$26 -> 0.6099 | W49: 0.6094 | X49: =1/PI()*ATAN('Exhibit4_Impact-Test'!$Y$25*S_RS_SP)+'Exhibit4_Impact-Test'!$Y$26 -> 0.2184 | Y49: 0.2180 | Z49: =1/PI()*ATAN('Exhibit4_Impact-Test'!$Y$25*S_5050_SP)+'Exhibit4_Impact-Test'!$Y$26 -> 0.5000 | AA49: 0.4994 | AB49: =VLOOKUP(_xlfn.NUMBERVALUE(LEFT(A49,4)),Transactioncosts!$C:$G,5,FALSE) -> 70 | AD49: 1.0003 | AE49: 1.0012 | AF49: 1.0006 | AG49: 1.00031 | AH49: 0.9992 | AI49: 1.0006 | AK49: 0.0003 | AL49: 0.0012 | AM49: 0.0006 | AN49: 0.2408 | AO49: 0.5338 | AP49: 0.2335 | AR49: 0.0003 | AS49: -0.0008 | AT49: 0.0006 | AU49: 0.2371 | AV49: 0.4546 | AW49: 0.2319
A50: 1875.01 | C50: =raw_Data!B56 -> 4.54 | D50: =raw_Data!J56 -> 0.0273 | E50: =raw_Data!L56 -> 0.0041 | F50: 4.54 | G50: =raw_Data!K56 -> 0.0060 | H50: 0.0000 | J50: 0.9975 | K50: 0.0016 | M50: 1.0016 | N50: 1.0060 | O50: 49 | P50: 51 | R50: 0.1824 | S50: 0.0000 | T50: 0.0000 | V50: =1/PI()*ATAN('Exhibit4_Impact-Test'!$Y$25*S_RDY_SP)+'Exhibit4_Impact-Test'!$Y$26 -> 0.6114 | W50: 0.6124 | X50: =1/PI()*ATAN('Exhibit4_Impact-Test'!$Y$25*S_RS_SP)+'Exhibit4_Impact-Test'!$Y$26 -> 0.5000 | Y50: 0.5011 | Z50: =1/PI()*ATAN('Exhibit4_Impact-Test'!$Y$25*S_5050_SP)+'Exhibit4_Impact-Test'!$Y$26 -> 0.5000 | AA50: 0.5011 | AB50: =VLOOKUP(_xlfn.NUMBERVALUE(LEFT(A50,4)),Transactioncosts!$C:$G,5,FALSE) -> 70 | AD50: 1.0043 | AE50: 1.0038 | AF50: 1.0038 | AG50: 1.00430 | AH50: 1.0025 | AI50: 1.0038 | AK50: 0.0043 | AL50: 0.0038 | AM50: 0.0038 | AN50: 0.2451 | AO50: 0.5377 | AP50: 0.2373 | AR50: 0.0043 | AS50: 0.0025 | AT50: 0.0038 | AU50: 0.2414 | AV50: 0.4571 | AW50: 0.2357
A51: 1875.02 | C51: =raw_Data!B57 -> 4.53 | D51: =raw_Data!J57 -> 0.0271 | E51: =raw_Data!L57 -> 0.0041 | F51: 4.54 | G51: =raw_Data!K57 -> 0.0060 | H51: -0.0022 | J51: 0.9970 | K51: 0.0011 | M51: 1.0011 | N51: 1.0038 | O51: 50 | P51: 52 | R51: 0.1818 | S51: -0.3478 | T51: 0.0000 | V51: =1/PI()*ATAN('Exhibit4_Impact-Test'!$Y$25*S_RDY_SP)+'Exhibit4_Impact-Test'!$Y$26 -> 0.6110 | W51: 0.6117 | X51: =1/PI()*ATAN('Exhibit4_Impact-Test'!$Y$25*S_RS_SP)+'Exhibit4_Impact-Test'!$Y$26 -> 0.3065 | Y51: 0.3071 | Z51: =1/PI()*ATAN('Exhibit4_Impact-Test'!$Y$25*S_5050_SP)+'Exhibit4_Impact-Test'!$Y$26 -> 0.5000 | AA51: 0.5007 | AB51: =VLOOKUP(_xlfn.NUMBERVALUE(LEFT(A51,4)),Transactioncosts!$C:$G,5,FALSE) -> 70 | AD51: 1.0027 | AE51: 1.0019 | AF51: 1.0024 | AG51: 1.00273 | AH51: 0.9984 | AI51: 1.0024 | AK51: 0.0027 | AL51: 0.0019 | AM51: 0.0024 | AN51: 0.2478 | AO51: 0.5396 | AP51: 0.2397 | AR51: 0.0027 | AS51: -0.0016 | AT51: 0.0024 | AU51: 0.2442 | AV51: 0.4554 | AW51: 0.2381
A52: 1875.03 | C52: =raw_Data!B58 -> 4.59 | D52: =raw_Data!J58 -> 0.0269 | E52: =raw_Data!L58 -> 0.0041 | F52: 4.53 | G52: =raw_Data!K58 -> 0.0059 | H52: 0.0132 | J52: 0.9970 | K52: 0.0011 | M52: 1.0011 | N52: 1.0192 | O52: 51 | P52: 53 | R52: 0.1829 | S52: 0.7637 | T52: 0.0000 | V52: =1/PI()*ATAN('Exhibit4_Impact-Test'!$Y$25*S_RDY_SP)+'Exhibit4_Impact-Test'!$Y$26 -> 0.6116 | W52: 0.6159 | X52: =1/PI()*ATAN('Exhibit4_Impact-Test'!$Y$25*S_RS_SP)+'Exhibit4_Impact-Test'!$Y$26 -> 0.8155 | Y52: 0.8182 | Z52: =1/PI()*ATAN('Exhibit4_Impact-Test'!$Y$25*S_5050_SP)+'Exhibit4_Impact-Test'!$Y$26 -> 0.5000 | AA52: 0.5045 | AB52: =VLOOKUP(_xlfn.NUMBERVALUE(LEFT(A52,4)),Transactioncosts!$C:$G,5,FALSE) -> 70 | AD52: 1.0121 | AE52: 1.0158 | AF52: 1.0101 | AG52: 1.01209 | AH52: 1.0158 | AI52: 1.0101 | AK52: 0.0121 | AL52: 0.0157 | AM52: 0.0101 | AN52: 0.2599 | AO52: 0.5553 | AP52: 0.2498 | AR52: 0.0120 | AS52: 0.0157 | AT52: 0.0100 | AU52: 0.2562 | AV52: 0.4711 | AW52: 0.2482
A53: 1875.04 | C53: =raw_Data!B59 -> 4.65 | D53: =raw_Data!J59 -> 0.0267 | E53: =raw_Data!L59 -> 0.0040 | F53: 4.59 | G53: =raw_Data!K59 -> 0.0058 | H53: 0.0131 | J53: 0.9970 | K53: 0.0010 | M53: 1.0010 | N53: 1.0189 | O53: 52 | P53: 54 | R53: 0.1765 | S53: 0.7627 | T53: 0.0000 | V53: =1/PI()*ATAN('Exhibit4_Impact-Test'!$Y$25*S_RDY_SP)+'Exhibit4_Impact-Test'!$Y$26 -> 0.6080 | W53: 0.6122 | X53: =1/PI()*ATAN('Exhibit4_Impact-Test'!$Y$25*S_RS_SP)+'Exhibit4_Impact-Test'!$Y$26 -> 0.8153 | Y53: 0.8179 | Z53: =1/PI()*ATAN('Exhibit4_Impact-Test'!$Y$25*S_5050_SP)+'Exhibit4_Impact-Test'!$Y$26 -> 0.5000 | AA53: 0.5044 | AB53: =VLOOKUP(_xlfn.NUMBERVALUE(LEFT(A53,4)),Transactioncosts!$C:$G,5,FALSE) -> 70 | AD53: 1.0119 | AE53: 1.0156 | AF53: 1.0100 | AG53: 1.01183 | AH53: 1.0110 | AI53: 1.0099 | AK53: 0.0118 | AL53: 0.0155 | AM53: 0.0099 | AN53: 0.2717 | AO53: 0.5708 | AP53: 0.2597 | AR53: 0.0118 | AS53: 0.0109 | AT53: 0.0099 | AU53: 0.2679 | AV53: 0.4820 | AW53: 0.2580
A54: 1875.05 | C54: =raw_Data!B60 -> 4.47 | D54: =raw_Data!J60 -> 0.0265 | E54: =raw_Data!L60 -> 0.0040 | F54: 4.65 | G54: =raw_Data!K60 -> 0.0057 | H54: -0.0387 | J54: 0.9970 | K54: 0.0010 | M54: 1.0010 | N54: 0.9670 | O54: 53 | P54: 55 | R54: 0.1703 | S54: -0.9056 | T54: 0.0000 | V54: =1/PI()*ATAN('Exhibit4_Impact-Test'!$Y$25*S_RDY_SP)+'Exhibit4_Impact-Test'!$Y$26 -> 0.6045 | W54: 0.5962 | X54: =1/PI()*ATAN('Exhibit4_Impact-Test'!$Y$25*S_RS_SP)+'Exhibit4_Impact-Test'!$Y$26 -> 0.1606 | Y54: 0.1560 | Z54: =1/PI()*ATAN('Exhibit4_Impact-Test'!$Y$25*S_5050_SP)+'Exhibit4_Impact-Test'!$Y$26 -> 0.5000 | AA54: 0.4914 | AB54: =VLOOKUP(_xlfn.NUMBERVALUE(LEFT(A54,4)),Transactioncosts!$C:$G,5,FALSE) -> 70 | AD54: 0.9804 | AE54: 0.9955 | AF54: 0.9840 | AG54: 0.98030 | AH54: 0.9954 | AI54: 0.9839 | AK54: -0.0198 | AL54: -0.0045 | AM54: -0.0161 | AN54: 0.2519 | AO54: 0.5663 | AP54: 0.2436 | AR54: -0.0199 | AS54: -0.0046 | AT54: -0.0162 | AU54: 0.2480 | AV54: 0.4774 | AW54: 0.2418
A55: 1875.06 | C55: =raw_Data!B61 -> 4.38 | D55: =raw_Data!J61 -> 0.0263 | E55: =raw_Data!L61 -> 0.0040 | F55: 4.47 | G55: =raw_Data!K61 -> 0.0059 | H55: -0.0201 | J55: 0.9970 | K55: 0.0010 | M55: 1.0010 | N55: 0.9857 | O55: 54 | P55: 56 | R55: 0.1894 | S55: -0.8342 | T55: 0.0000 | V55: =1/PI()*ATAN('Exhibit4_Impact-Test'!$Y$25*S_RDY_SP)+'Exhibit4_Impact-Test'!$Y$26 -> 0.6152 | W55: 0.6116 | X55: =1/PI()*ATAN('Exhibit4_Impact-Test'!$Y$25*S_RS_SP)+'Exhibit4_Impact-Test'!$Y$26 -> 0.1719 | Y55: 0.1697 | Z55: =1/PI()*ATAN('Exhibit4_Impact-Test'!$Y$25*S_5050_SP)+'Exhibit4_Impact-Test'!$Y$26 -> 0.5000 | AA55: 0.4962 | AB55: =VLOOKUP(_xlfn.NUMBERVALUE(LEFT(A55,4)),Transactioncosts!$C:$G,5,FALSE) -> 70 | AD55: 0.9916 | AE55: 0.9983 | AF55: 0.9933 | AG55: 0.99153 | AH55: 0.9946 | AI55: 0.9933 | AK55: -0.0084 | AL55: -0.0017 | AM55: -0.0067 | AN55: 0.2435 | AO55: 0.5646 | AP55: 0.2369 | AR55: -0.0085 | AS55: -0.0054 | AT55: -0.0067 | AU55: 0.2395 | AV55: 0.4720 | AW55: 0.2351
A56: 1875.07 | C56: =raw_Data!B62 -> 4.39 | D56: =raw_Data!J62 -> 0.0260 | E56: =raw_Data!L62 -> 0.0039 | F56: 4.38 | G56: =raw_Data!K62 -> 0.0059 | H56: 0.0023 | J56: 0.9970 | K56: 0.0009 | M56: 1.0009 | N56: 1.0082 | O56: 55 | P56: 57 | R56: 0.1992 | S56: 0.3651 | T56: 0.0000 | V56: =1/PI()*ATAN('Exhibit4_Impact-Test'!$Y$25*S_RDY_SP)+'Exhibit4_Impact-Test'!$Y$26 -> 0.6207 | W56: 0.6224 | X56: =1/PI()*ATAN('Exhibit4_Impact-Test'!$Y$25*S_RS_SP)+'Exhibit4_Impact-Test'!$Y$26 -> 0.7008 | Y56: 0.7023 | Z56: =1/PI()*ATAN('Exhibit4_Impact-Test'!$Y$25*S_5050_SP)+'Exhibit4_Impact-Test'!$Y$26 -> 0.5000 | AA56: 0.5018 | AB56: =VLOOKUP(_xlfn.NUMBERVALUE(LEFT(A56,4)),Transactioncosts!$C:$G,5,FALSE) -> 70 | AD56: 1.0055 | AE56: 1.0060 | AF56: 1.0046 | AG56: 1.00544 | AH56: 1.0056 | AI56: 1.0046 | AK56: 0.0054 | AL56: 0.0060 | AM56: 0.0046 | AN56: 0.2489 | AO56: 0.5706 | AP56: 0.2415 | AR56: 0.0054 | AS56: 0.0056 | AT56: 0.0045 | AU56: 0.2450 | AV56: 0.4777 | AW56: 0.2397
A57: 1875.08 | C57: =raw_Data!B63 -> 4.41 | D57: =raw_Data!J63 -> 0.0258 | E57: =raw_Data!L63 -> 0.0039 | F57: 4.39 | G57: =raw_Data!K63 -> 0.0059 | H57: 0.0046 | J57: 0.9970 | K57: 0.0009 | M57: 1.0009 | N57: 1.0104 | O57: 56 | P57: 58 | R57: 0.1981 | S57: 0.5363 | T57: 0.0000 | V57: =1/PI()*ATAN('Exhibit4_Impact-Test'!$Y$25*S_RDY_SP)+'Exhibit4_Impact-Test'!$Y$26 -> 0.6201 | W57: 0.6223 | X57: =1/PI()*ATAN('Exhibit4_Impact-Test'!$Y$25*S_RS_SP)+'Exhibit4_Impact-Test'!$Y$26 -> 0.7612 | Y57: 0.7629 | Z57: =1/PI()*ATAN('Exhibit4_Impact-Test'!$Y$25*S_5050_SP)+'Exhibit4_Impact-Test'!$Y$26 -> 0.5000 | AA57: 0.5024 | AB57: =VLOOKUP(_xlfn.NUMBERVALUE(LEFT(A57,4)),Transactioncosts!$C:$G,5,FALSE) -> 70 | AD57: 1.0068 | AE57: 1.0082 | AF57: 1.0057 | AG57: 1.00678 | AH57: 1.0042 | AI57: 1.0056 | AK57: 0.0068 | AL57: 0.0081 | AM57: 0.0056 | AN57: 0.2557 | AO57: 0.5788 | AP57: 0.2471 | AR57: 0.0068 | AS57: 0.0042 | AT57: 0.0056 | AU57: 0.2517 | AV57: 0.4818 | AW57: 0.2453
A58: 1875.09 | C58: =raw_Data!B64 -> 4.37 | D58: =raw_Data!J64 -> 0.0256 | E58: =raw_Data!L64 -> 0.0039 | F58: 4.41 | G58: =raw_Data!K64 -> 0.0058 | H58: -0.0091 | J58: 0.9970 | K58: 0.0008 | M58: 1.0008 | N58: 0.9967 | O58: 57 | P58: 59 | R58: 0.1959 | S58: -0.6990 | T58: 0.0000 | V58: =1/PI()*ATAN('Exhibit4_Impact-Test'!$Y$25*S_RDY_SP)+'Exhibit4_Impact-Test'!$Y$26 -> 0.6189 | W58: 0.6179 | X58: =1/PI()*ATAN('Exhibit4_Impact-Test'!$Y$25*S_RS_SP)+'Exhibit4_Impact-Test'!$Y$26 -> 0.1977 | Y58: 0.1970 | Z58: =1/PI()*ATAN('Exhibit4_Impact-Test'!$Y$25*S_5050_SP)+'Exhibit4_Impact-Test'!$Y$26 -> 0.5000 | AA58: 0.4990 | AB58: =VLOOKUP(_xlfn.NUMBERVALUE(LEFT(A58,4)),Transactioncosts!$C:$G,5,FALSE) -> 70 | AD58: 0.9983 | AE58: 1.0000 | AF58: 0.9988 | AG58: 0.99828 | AH58: 0.9999 | AI58: 0.9988 | AK58: -0.0017 | AL58: 0.0000 | AM58: -0.0012 | AN58: 0.2540 | AO58: 0.5788 | AP58: 0.2459 | AR58: -0.0017 | AS58: -0.0001 | AT58: -0.0012 | AU58: 0.2500 | AV58: 0.4817 | AW58: 0.2441
A59: 1875.10 | C59: =raw_Data!B65 -> 4.30 | D59: =raw_Data!J65 -> 0.0254 | E59: =raw_Data!L65 -> 0.0038 | F59: 4.37 | G59: =raw_Data!K65 -> 0.0058 | H59: -0.0160 | J59: 0.9970 | K59: 0.0008 | M59: 1.0008 | N59: 0.9898 | O59: 58 | P59: 60 | R59: 0.2003 | S59: -0.8052 | T59: 0.0000 | V59: =1/PI()*ATAN('Exhibit4_Impact-Test'!$Y$25*S_RDY_SP)+'Exhibit4_Impact-Test'!$Y$26 -> 0.6213 | W59: 0.6187 | X59: =1/PI()*ATAN('Exhibit4_Impact-Test'!$Y$25*S_RS_SP)+'Exhibit4_Impact-Test'!$Y$26 -> 0.1769 | Y59: 0.1753 | Z59: =1/PI()*ATAN('Exhibit4_Impact-Test'!$Y$25*S_5050_SP)+'Exhibit4_Impact-Test'!$Y$26 -> 0.5000 | AA59: 0.4972 | AB59: =VLOOKUP(_xlfn.NUMBERVALUE(LEFT(A59,4)),Transactioncosts!$C:$G,5,FALSE) -> 70 | AD59: 0.9940 | AE59: 0.9989 | AF59: 0.9953 | AG59: 0.99392 | AH59: 0.9943 | AI59: 0.9953 | AK59: -0.0061 | AL59: -0.0011 | AM59: -0.0047 | AN59: 0.2480 | AO59: 0.5776 | AP59: 0.2412 | AR59: -0.0061 | AS59: -0.0057 | AT59: -0.0047 | AU59: 0.2439 | AV59: 0.4760 | AW59: 0.2393
A60: 1875.11 | C60: =raw_Data!B66 -> 4.37 | D60: =raw_Data!J66 -> 0.0252 | E60: =raw_Data!L66 -> 0.0038 | F60: 4.3 | G60: =raw_Data!K66 -> 0.0059 | H60: 0.0163 | J60: 0.9970 | K60: 0.0008 | M60: 1.0008 | N60: 1.0221 | O60: 59 | P60: 61 | R60: 0.2081 | S60: 0.8090 | T60: 0.0000 | V60: =1/PI()*ATAN('Exhibit4_Impact-Test'!$Y$25*S_RDY_SP)+'Exhibit4_Impact-Test'!$Y$26 -> 0.6255 | W60: 0.6305 | X60: =1/PI()*ATAN('Exhibit4_Impact-Test'!$Y$25*S_RS_SP)+'Exhibit4_Impact-Test'!$Y$26 -> 0.8238 | Y60: 0.8268 | Z60: =1/PI()*ATAN('Exhibit4_Impact-Test'!$Y$25*S_5050_SP)+'Exhibit4_Impact-Test'!$Y$26 -> 0.5000 | AA60: 0.5053 | AB60: =VLOOKUP(_xlfn.NUMBERVALUE(LEFT(A60,4)),Transactioncosts!$C:$G,5,FALSE) -> 70 | AD60: 1.0141 | AE60: 1.0184 | AF60: 1.0115 | AG60: 1.01407 | AH60: 1.0161 | AI60: 1.0114 | AK60: 0.0140 | AL60: 0.0182 | AM60: 0.0114 | AN60: 0.2620 | AO60: 0.5958 | AP60: 0.2526 | AR60: 0.0140 | AS60: 0.0160 | AT60: 0.0114 | AU60: 0.2579 | AV60: 0.4920 | AW60: 0.2507
A61: 1875.12 | C61: =raw_Data!B67 -> 4.37 | D61: =raw_Data!J67 -> 0.0250 | E61: =raw_Data!L67 -> 0.0038 | F61: 4.37 | G61: =raw_Data!K67 -> 0.0057 | H61: 0.0000 | J61: 0.9969 | K61: 0.0007 | M61: 1.0007 | N61: 1.0057 | O61: 60 | P61: 62 | R61: 0.2004 | S61: 0.0000 | T61: 0.0000 | V61: =1/PI()*ATAN('Exhibit4_Impact-Test'!$Y$25*S_RDY_SP)+'Exhibit4_Impact-Test'!$Y$26 -> 0.6213 | W61: 0.6225 | X61: =1/PI()*ATAN('Exhibit4_Impact-Test'!$Y$25*S_RS_SP)+'Exhibit4_Impact-Test'!$Y$26 -> 0.5000 | Y61: 0.5012 | Z61: =1/PI()*ATAN('Exhibit4_Impact-Test'!$Y$25*S_5050_SP)+'Exhibit4_Impact-Test'!$Y$26 -> 0.5000 | AA61: 0.5012 | AB61: =VLOOKUP(_xlfn.NUMBERVALUE(LEFT(A61,4)),Transactioncosts!$C:$G,5,FALSE) -> 70 | AD61: 1.0038 | AE61: 1.0032 | AF61: 1.0032 | AG61: 1.00382 | AH61: 1.0009 | AI61: 1.0032 | AK61: 0.0038 | AL61: 0.0032 | AM61: 0.0032 | AN61: 0.2658 | AO61: 0.5991 | AP61: 0.2558 | AR61: 0.0038 | AS61: 0.0009 | AT61: 0.0032 | AU61: 0.2617 | AV61: 0.4929 | AW61: 0.2539
A62: 1876.01 | C62: =raw_Data!B68 -> 4.46 | D62: =raw_Data!J68 -> 0.0250 | E62: =raw_Data!L68 -> 0.0037 | F62: 4.37 | G62: =raw_Data!K68 -> 0.0057 | H62: 0.0206 | J62: 0.9969 | K62: 0.0007 | M62: 1.0007 | N62: 1.0263 | O62: 61 | P62: 63 | R62: 0.2044 | S62: 0.8450 | T62: 0.0000 | V62: =1/PI()*ATAN('Exhibit4_Impact-Test'!$Y$25*S_RDY_SP)+'Exhibit4_Impact-Test'!$Y$26 -> 0.6235 | W62: 0.6295 | X62: =1/PI()*ATAN('Exhibit4_Impact-Test'!$Y$25*S_RS_SP)+'Exhibit4_Impact-Test'!$Y$26 -> 0.8299 | Y62: 0.8335 | Z62: =1/PI()*ATAN('Exhibit4_Impact-Test'!$Y$25*S_5050_SP)+'Exhibit4_Impact-Test'!$Y$26 -> 0.5000 | AA62: 0.5063 | AB62: =VLOOKUP(_xlfn.NUMBERVALUE(LEFT(A62,4)),Transactioncosts!$C:$G,5,FALSE) -> 70 | AD62: 1.0167 | AE62: 1.0220 | AF62: 1.0135 | AG62: 1.01660 | AH62: 1.0219 | AI62: 1.0135 | AK62: 0.0165 | AL62: 0.0217 | AM62: 0.0134 | AN62: 0.2824 | AO62: 0.6208 | AP62: 0.2692 | AR62: 0.0165 | AS62: 0.0216 | AT62: 0.0134 | AU62: 0.2781 | AV62: 0.5145 | AW62: 0.2673
A63: 1876.02 | C63: =raw_Data!B69 -> 4.52 | D63: =raw_Data!J69 -> 0.0250 | E63: =raw_Data!L69 -> 0.0037 | F63: 4.46 | G63: =raw_Data!K69 -> 0.0056 | H63: 0.0135 | J63: 0.9991 | K63: 0.0028 | M63: 1.0028 | N63: 1.0191 | O63: 62 | P63: 64 | R63: 0.1987 | S63: 0.7822 | T63: 0.0000 | V63: =1/PI()*ATAN('Exhibit4_Impact-Test'!$Y$25*S_RDY_SP)+'Exhibit4_Impact-Test'!$Y$26 -> 0.6204 | W63: 0.6242 | X63: =1/PI()*ATAN('Exhibit4_Impact-Test'!$Y$25*S_RS_SP)+'Exhibit4_Impact-Test'!$Y$26 -> 0.8189 | Y63: 0.8213 | Z63: =1/PI()*ATAN('Exhibit4_Impact-Test'!$Y$25*S_5050_SP)+'Exhibit4_Impact-Test'!$Y$26 -> 0.5000 | AA63: 0.5040 | AB63: =VLOOKUP(_xlfn.NUMBERVALUE(LEFT(A63,4)),Transactioncosts!$C:$G,5,FALSE) -> 70 | AD63: 1.0129 | AE63: 1.0161 | AF63: 1.0110 | AG63: 1.01286 | AH63: 1.0124 | AI63: 1.0109 | AK63: 0.0128 | AL63: 0.0160 | AM63: 0.0109 | AN63: 0.2952 | AO63: 0.6368 | AP63: 0.2801 | AR63: 0.0128 | AS63: 0.0124 | AT63: 0.0109 | AU63: 0.2909 | AV63: 0.5269 | AW63: 0.2781
A64: 1876.03 | C64: =raw_Data!B70 -> 4.51 | D64: =raw_Data!J70 -> 0.0250 | E64: =raw_Data!L70 -> 0.0037 | F64: 4.52 | G64: =raw_Data!K70 -> 0.0055 | H64: -0.0022 | J64: 0.9991 | K64: 0.0028 | M64: 1.0028 | N64: 1.0033 | O64: 63 | P64: 65 | R64: 0.1935 | S64: -0.3718 | T64: 0.0000 | V64: =1/PI()*ATAN('Exhibit4_Impact-Test'!$Y$25*S_RDY_SP)+'Exhibit4_Impact-Test'!$Y$26 -> 0.6175 | W64: 0.6177 | X64: =1/PI()*ATAN('Exhibit4_Impact-Test'!$Y$25*S_RS_SP)+'Exhibit4_Impact-Test'!$Y$26 -> 0.2965 | Y64: 0.2966 | Z64: =1/PI()*ATAN('Exhibit4_Impact-Test'!$Y$25*S_5050_SP)+'Exhibit4_Impact-Test'!$Y$26 -> 0.5000 | AA64: 0.5001 | AB64: =VLOOKUP(_xlfn.NUMBERVALUE(LEFT(A64,4)),Transactioncosts!$C:$G,5,FALSE) -> 70 | AD64: 1.0031 | AE64: 1.0030 | AF64: 1.0031 | AG64: 1.00312 | AH64: 1.0020 | AI64: 1.0031 | AK64: 0.0031 | AL64: 0.0030 | AM64: 0.0031 | AN64: 0.2983 | AO64: 0.6398 | AP64: 0.2832 | AR64: 0.0031 | AS64: 0.0020 | AT64: 0.0031 | AU64: 0.2940 | AV64: 0.5289 | AW64: 0.2812
A65: 1876.04 | C65: =raw_Data!B71 -> 4.34 | D65: =raw_Data!J71 -> 0.0250 | E65: =raw_Data!L71 -> 0.0037 | F65: 4.51 | G65: =raw_Data!K71 -> 0.0055 | H65: -0.0377 | J65: 0.9991 | K65: 0.0028 | M65: 1.0028 | N65: 0.9678 | O65: 64 | P65: 66 | R65: 0.1958 | S65: -0.9100 | T65: 0.0000 | V65: =1/PI()*ATAN('Exhibit4_Impact-Test'!$Y$25*S_RDY_SP)+'Exhibit4_Impact-Test'!$Y$26 -> 0.6188 | W65: 0.6104 | X65: =1/PI()*ATAN('Exhibit4_Impact-Test'!$Y$25*S_RS_SP)+'Exhibit4_Impact-Test'!$Y$26 -> 0.1599 | Y65: 0.1552 | Z65: =1/PI()*ATAN('Exhibit4_Impact-Test'!$Y$25*S_5050_SP)+'Exhibit4_Impact-Test'!$Y$26 -> 0.5000 | AA65: 0.4911 | AB65: =VLOOKUP(_xlfn.NUMBERVALUE(LEFT(A65,4)),Transactioncosts!$C:$G,5,FALSE) -> 70 | AD65: 0.9812 | AE65: 0.9972 | AF65: 0.9853 | AG65: 0.98105 | AH65: 0.9972 | AI65: 0.9853 | AK65: -0.0190 | AL65: -0.0028 | AM65: -0.0148 | AN65: 0.2793 | AO65: 0.6370 | AP65: 0.2684 | AR65: -0.0191 | AS65: -0.0028 | AT65: -0.0148 | AU65: 0.2749 | AV65: 0.5261 | AW65: 0.2664
A66: 1876.05 | C66: =raw_Data!B72 -> 4.18 | D66: =raw_Data!J72 -> 0.0250 | E66: =raw_Data!L72 -> 0.0037 | F66: 4.34 | G66: =raw_Data!K72 -> 0.0058 | H66: -0.0369 | J66: 0.9991 | K66: 0.0028 | M66: =interest_mon+bond_approx_price -> 1.0028 | N66: 0.9689 | O66: =ROW(A66)-1 -> 65 | P66: =ROW(A66)+1 -> 67 | R66: 0.2154 | S66: -0.9084 | T66: 0.0000 | V66: =1/PI()*ATAN('Exhibit4_Impact-Test'!$Y$25*S_RDY_SP)+'Exhibit4_Impact-Test'!$Y$26 -> 0.6295 | W66: 0.6214 | X66: =1/PI()*ATAN('Exhibit4_Impact-Test'!$Y$25*S_RS_SP)+'Exhibit4_Impact-Test'!$Y$26 -> 0.1602 | Y66: 0.1556 | Z66: =1/PI()*ATAN('Exhibit4_Impact-Test'!$Y$25*S_5050_SP)+'Exhibit4_Impact-Test'!$Y$26 -> 0.5000 | AA66: 0.4914 | AB66: =VLOOKUP(_xlfn.NUMBERVALUE(LEFT(A66,4)),Transactioncosts!$C:$G,5,FALSE) -> 70 | AD66: 0.9815 | AE66: 0.9974 | AF66: 0.9859 | AG66: 0.98134 | AH66: 0.9970 | AI66: 0.9858 | AK66: -0.0187 | AL66: -0.0026 | AM66: -0.0142 | AN66: 0.2606 | AO66: 0.6344 | AP66: 0.2541 | AR66: -0.0188 | AS66: -0.0030 | AT66: -0.0143 | AU66: 0.2561 | AV66: 0.5231 | AW66: 0.2521
A67: 1876.06 | C67: =raw_Data!B73 -> 4.15 | D67: =raw_Data!J73 -> 0.0250 | E67: =raw_Data!L73 -> 0.0037 | F67: =C66 -> 4.18 | G67: =raw_Data!K73 -> 0.0060 | H67: =q_SP/q_SP_tminus-1 -> -0.0072 | J67: =interest_mon*((1-(1+INDEX(interest_mon,tMinus))^(-119))/INDEX(interest_mon,tMinus))+(1+INDEX(interest_mon,tMinus))^(-119) -> 0.9991 | K67: 0.0028 | M67: 1.0028 | N67: =(D_mon+q_SP)/INDEX(q_SP,tMinus) -> 0.9988 | O67: 66 | P67: 68 | R67: =(div_yield_mon-INDEX(interest_mon, tMinus))/(div_yield_mon+INDEX(interest_mon,tMinus)) -> 0.2344 | S67: =price_yield/(ABS(price_yield)+INDEX(interest_mon,tMinus)) -> -0.6593 | T67: 0.0000 | V67: =1/PI()*ATAN('Exhibit4_Impact-Test'!$Y$25*S_RDY_SP)+'Exhibit4_Impact-Test'!$Y$26 -> 0.6395 | W67: =L_RDY_SP_set*R_SP/R_RDY -> 0.6386 | X67: =1/PI()*ATAN('Exhibit4_Impact-Test'!$Y$25*S_RS_SP)+'Exhibit4_Impact-Test'!$Y$26 -> 0.2065 | Y67: =L_RS_SP_set*R_SP/R_RS -> 0.2059 | Z67: =1/PI()*ATAN('Exhibit4_Impact-Test'!$Y$25*S_5050_SP)+'Exhibit4_Impact-Test'!$Y$26 -> 0.5000 | AA67: =L_5050_SP_set*R_SP/R_5050 -> 0.4990 | AB67: =VLOOKUP(_xlfn.NUMBERVALUE(LEFT(A67,4)),Transactioncosts!$C:$G,5,FALSE) -> 70 | AD67: =R_Cash*(1-L_RDY_SP_set)+R_SP*L_RDY_SP_set -> 1.0002 | AE67: =R_Cash*(1-L_RS_SP_set)+R_SP*L_RS_SP_set -> 1.0020 | AF67: =R_Cash*(1-L_5050_SP_set)+R_SP*L_5050_SP_set -> 1.0008 | AG67: =R_RDY-ABS(L_RDY_SP_act-INDEX(L_RDY_SP_set,tPlus))*TC/10000 -> 1.00022 | AH67: =R_RS-ABS(L_RS_SP_act-INDEX(L_RS_SP_set,tPlus))*TC/10000 -> 1.0018 | AI67: =R_5050-ABS(L_5050_SP_act-INDEX(L_5050_SP_set,tPlus))*TC/10000 -> 1.0008 | AK67: =LN(R_RDY) -> 0.0002 | AL67: =LN(R_RS) -> 0.0020 | AM67: =LN(R_5050) -> 0.0008 | AN67: 0.2608 | AO67: 0.6363 | AP67: 0.2549 | AR67: =LN(R_RDY_TC) -> 0.0002 | AS67: =LN(R_RS_TC) -> 0.0018 | AT67: =LN(R_5050_TC) -> 0.0008 | AU67: 0.2563 | AV67: 0.5250 | AW67: 0.2529
A68: 1876.07 | C68: =raw_Data!B74 -> 4.10 | D68: =raw_Data!J74 -> 0.0250 | E68: =raw_Data!L74 -> 0.0037 | F68: 4.15 | G68: =raw_Data!K74 -> 0.0060 | H68: -0.0120 | J68: 0.9991 | K68: =M68-1 -> 0.0028 | M68: 1.0028 | N68: 0.9940 | O68: 67 | P68: 69 | R68: 0.2390 | S68: -0.7650 | T68: 0.0000 | V68: =1/PI()*ATAN('Exhibit4_Impact-Test'!$Y$25*S_RDY_SP)+'Exhibit4_Impact-Test'!$Y$26 -> 0.6419 | W68: 0.6399 | X68: =1/PI()*ATAN('Exhibit4_Impact-Test'!$Y$25*S_RS_SP)+'Exhibit4_Impact-Test'!$Y$26 -> 0.1843 | Y68: 0.1829 | Z68: =1/PI()*ATAN('Exhibit4_Impact-Test'!$Y$25*S_5050_SP)+'Exhibit4_Impact-Test'!$Y$26 -> 0.5000 | AA68: 0.4978 | AB68: =VLOOKUP(_xlfn.NUMBERVALUE(LEFT(A68,4)),Transactioncosts!$C:$G,5,FALSE) -> 70 | AD68: 0.9971 | AE68: 1.0012 | AF68: 0.9984 | AG68: 0.99709 | AH68: 1.0010 | AI68: 0.9984 | AK68: -0.0029 | AL68: 0.0012 | AM68: -0.0016 | AN68: =AK68+AN67 -> 0.2580 | AO68: 0.6375 | AP68: 0.2533 | AR68: -0.0029 | AS68: 0.0010 | AT68: -0.0016 | AU68: =AR68+AU67 -> 0.2534 | AV68: =AS68+AV67 -> 0.5260 | AW68: =AT68+AW67 -> 0.2512
A69: 1876.08 | C69: =raw_Data!B75 -> 3.93 | D69: =raw_Data!J75 -> 0.0250 | E69: =raw_Data!L75 -> 0.0037 | F69: 4.1 | G69: =raw_Data!K75 -> 0.0061 | H69: -0.0415 | J69: 0.9991 | K69: 0.0028 | M69: 1.0028 | N69: 0.9646 | O69: 68 | P69: 70 | R69: 0.2459 | S69: -0.9183 | T69: 0.0000 | V69: =1/PI()*ATAN('Exhibit4_Impact-Test'!$Y$25*S_RDY_SP)+'Exhibit4_Impact-Test'!$Y$26 -> 0.6455 | W69: 0.6366 | X69: =1/PI()*ATAN('Exhibit4_Impact-Test'!$Y$25*S_RS_SP)+'Exhibit4_Impact-Test'!$Y$26 -> 0.1587 | Y69: 0.1536 | Z69: =1/PI()*ATAN('Exhibit4_Impact-Test'!$Y$25*S_5050_SP)+'Exhibit4_Impact-Test'!$Y$26 -> 0.5000 | AA69: 0.4903 | AB69: =VLOOKUP(_xlfn.NUMBERVALUE(LEFT(A69,4)),Transactioncosts!$C:$G,5,FALSE) -> 70 | AD69: 0.9782 | AE69: 0.9967 | AF69: 0.9837 | AG69: 0.97802 | AH69: 0.9967 | AI69: 0.9836 | AK69: -0.0221 | AL69: -0.0033 | AM69: -0.0164 | AN69: 0.2359 | AO69: 0.6342 | AP69: 0.2369 | AR69: -0.0222 | AS69: -0.0033 | AT69: -0.0165 | AU69: 0.2312 | AV69: 0.5227 | AW69: 0.2347
A70: 1876.09 | C70: =raw_Data!B76 -> 3.69 | D70: =raw_Data!J76 -> 0.0250 | E70: =raw_Data!L76 -> 0.0037 | F70: 3.93 | G70: =raw_Data!K76 -> 0.0064 | H70: -0.0611 | J70: 0.9991 | K70: 0.0028 | M70: 1.0028 | N70: 0.9453 | O70: 69 | P70: 71 | R70: 0.2668 | S70: -0.9431 | T70: 0.0000 | V70: =1/PI()*ATAN('Exhibit4_Impact-Test'!$Y$25*S_RDY_SP)+'Exhibit4_Impact-Test'!$Y$26 -> 0.6560 | W70: 0.6426 | X70: =1/PI()*ATAN('Exhibit4_Impact-Test'!$Y$25*S_RS_SP)+'Exhibit4_Impact-Test'!$Y$26 -> 0.1552 | Y70: 0.1476 | Z70: =1/PI()*ATAN('Exhibit4_Impact-Test'!$Y$25*S_5050_SP)+'Exhibit4_Impact-Test'!$Y$26 -> 0.5000 | AA70: 0.4852 | AB70: =VLOOKUP(_xlfn.NUMBERVALUE(LEFT(A70,4)),Transactioncosts!$C:$G,5,FALSE) -> 70 | AD70: 0.9651 | AE70: 0.9939 | AF70: 0.9740 | AG70: 0.96487 | AH70: 0.9933 | AI70: 0.9739 | AK70: -0.0356 | AL70: -0.0062 | AM70: -0.0263 | AN70: 0.2003 | AO70: 0.6281 | AP70: 0.2106 | AR70: -0.0358 | AS70: -0.0067 | AT70: -0.0264 | AU70: 0.1954 | AV70: 0.5160 | AW70: 0.2083
A71: 1876.10 | C71: =raw_Data!B77 -> 3.67 | D71: =raw_Data!J77 -> 0.0250 | E71: =raw_Data!L77 -> 0.0037 | F71: 3.69 | G71: =raw_Data!K77 -> 0.0068 | H71: -0.0054 | J71: 0.9991 | K71: 0.0028 | M71: 1.0028 | N71: 1.0014 | O71: 70 | P71: 72 | R71: 0.2970 | S71: -0.5961 | T71: 0.0000 | V71: =1/PI()*ATAN('Exhibit4_Impact-Test'!$Y$25*S_RDY_SP)+'Exhibit4_Impact-Test'!$Y$26 -> 0.6706 | W71: 0.6703 | X71: =1/PI()*ATAN('Exhibit4_Impact-Test'!$Y$25*S_RS_SP)+'Exhibit4_Impact-Test'!$Y$26 -> 0.2222 | Y71: 0.2219 | Z71: =1/PI()*ATAN('Exhibit4_Impact-Test'!$Y$25*S_5050_SP)+'Exhibit4_Impact-Test'!$Y$26 -> 0.5000 | AA71: 0.4996 | AB71: =VLOOKUP(_xlfn.NUMBERVALUE(LEFT(A71,4)),Transactioncosts!$C:$G,5,FALSE) -> 70 | AD71: 1.0018 | AE71: 1.0025 | AF71: 1.0021 | AG71: 1.00180 | AH71: 1.0021 | AI71: 1.0021 | AK71: 0.0018 | AL71: 0.0024 | AM71: 0.0021 | AN71: 0.2021 | AO71: 0.6305 | AP71: 0.2127 | AR71: 0.0018 | AS71: 0.0021 | AT71: 0.0021 | AU71: 0.1972 | AV71: 0.5181 | AW71: 0.2104
A72: 1876.11 | C72: =raw_Data!B78 -> 3.60 | D72: =raw_Data!J78 -> 0.0250 | E72: =raw_Data!L78 -> 0.0037 | F72: 3.67 | G72: =raw_Data!K78 -> 0.0068 | H72: -0.0191 | J72: 0.9991 | K72: 0.0028 | M72: 1.0028 | N72: 0.9877 | O72: 71 | P72: 73 | R72: 0.3006 | S72: -0.8389 | T72: 0.0000 | V72: =1/PI()*ATAN('Exhibit4_Impact-Test'!$Y$25*S_RDY_SP)+'Exhibit4_Impact-Test'!$Y$26 -> 0.6723 | W72: 0.6690 | X72: =1/PI()*ATAN('Exhibit4_Impact-Test'!$Y$25*S_RS_SP)+'Exhibit4_Impact-Test'!$Y$26 -> 0.1711 | Y72: 0.1690 | Z72: =1/PI()*ATAN('Exhibit4_Impact-Test'!$Y$25*S_5050_SP)+'Exhibit4_Impact-Test'!$Y$26 -> 0.5000 | AA72: 0.4962 | AB72: =VLOOKUP(_xlfn.NUMBERVALUE(LEFT(A72,4)),Transactioncosts!$C:$G,5,FALSE) -> 70 | AD72: 0.9927 | AE72: 1.0002 | AF72: 0.9952 | AG72: 0.99260 | AH72: 0.9998 | AI72: 0.9952 | AK72: -0.0074 | AL72: 0.0002 | AM72: -0.0048 | AN72: 0.1948 | AO72: 0.6307 | AP72: 0.2079 | AR72: -0.0074 | AS72: -0.0002 | AT72: -0.0048 | AU72: 0.1898 | AV72: 0.5179 | AW72: 0.2056
A73: 1876.12 | C73: =raw_Data!B79 -> 3.58 | D73: =raw_Data!J79 -> 0.0250 | E73: =raw_Data!L79 -> 0.0036 | F73: 3.6 | G73: =raw_Data!K79 -> 0.0069 | H73: -0.0056 | J73: 0.9991 | K73: 0.0027 | M73: 1.0027 | N73: 1.0014 | O73: 72 | P73: 74 | R73: 0.3105 | S73: -0.6033 | T73: 0.0000 | V73: =1/PI()*ATAN('Exhibit4_Impact-Test'!$Y$25*S_RDY_SP)+'Exhibit4_Impact-Test'!$Y$26 -> 0.6769 | W73: 0.6766 | X73: =1/PI()*ATAN('Exhibit4_Impact-Test'!$Y$25*S_RS_SP)+'Exhibit4_Impact-Test'!$Y$26 -> 0.2203 | Y73: 0.2201 | Z73: =1/PI()*ATAN('Exhibit4_Impact-Test'!$Y$25*S_5050_SP)+'Exhibit4_Impact-Test'!$Y$26 -> 0.5000 | AA73: 0.4997 | AB73: =VLOOKUP(_xlfn.NUMBERVALUE(LEFT(A73,4)),Transactioncosts!$C:$G,5,FALSE) -> 70 | AD73: 1.0018 | AE73: 1.0024 | AF73: 1.0021 | AG73: 1.00179 | AH73: 1.0023 | AI73: 1.0021 | AK73: 0.0018 | AL73: 0.0024 | AM73: 0.0021 | AN73: 0.1966 | AO73: 0.6331 | AP73: 0.2100 | AR73: 0.0018 | AS73: 0.0023 | AT73: 0.0021 | AU73: 0.1916 | AV73: 0.5202 | AW73: 0.2076
A74: 1877.01 | C74: =raw_Data!B80 -> 3.55 | D74: =raw_Data!J80 -> 0.0242 | E74: =raw_Data!L80 -> 0.0036 | F74: 3.58 | G74: =raw_Data!K80 -> 0.0068 | H74: -0.0084 | J74: 0.9991 | K74: 0.0027 | M74: 1.0027 | N74: 0.9984 | O74: 73 | P74: 75 | R74: 0.3001 | S74: -0.6969 | T74: 0.0000 | V74: =1/PI()*ATAN('Exhibit4_Impact-Test'!$Y$25*S_RDY_SP)+'Exhibit4_Impact-Test'!$Y$26 -> 0.6721 | W74: 0.6711 | X74: =1/PI()*ATAN('Exhibit4_Impact-Test'!$Y$25*S_RS_SP)+'Exhibit4_Impact-Test'!$Y$26 -> 0.1981 | Y74: 0.1974 | Z74: =1/PI()*ATAN('Exhibit4_Impact-Test'!$Y$25*S_5050_SP)+'Exhibit4_Impact-Test'!$Y$26 -> 0.5000 | AA74: 0.4989 | AB74: =VLOOKUP(_xlfn.NUMBERVALUE(LEFT(A74,4)),Transactioncosts!$C:$G,5,FALSE) -> 70 | AD74: 0.9998 | AE74: 1.0019 | AF74: 1.0006 | AG74: 0.99979 | AH74: 1.0016 | AI74: 1.0006 | AK74: -0.0002 | AL74: 0.0019 | AM74: 0.0006 | AN74: 0.1964 | AO74: 0.6350 | AP74: 0.2105 | AR74: -0.0002 | AS74: 0.0016 | AT74: 0.0006 | AU74: 0.1914 | AV74: 0.5218 | AW74: 0.2082
A75: 1877.02 | C75: =raw_Data!B81 -> 3.34 | D75: =raw_Data!J81 -> 0.0235 | E75: =raw_Data!L81 -> 0.0036 | F75: 3.55 | G75: =raw_Data!K81 -> 0.0066 | H75: -0.0592 | J75: 0.9993 | K75: 0.0029 | M75: 1.0029 | N75: 0.9475 | O75: 74 | P75: 76 | R75: 0.2906 | S75: -0.9421 | T75: 0.0000 | V75: =1/PI()*ATAN('Exhibit4_Impact-Test'!$Y$25*S_RDY_SP)+'Exhibit4_Impact-Test'!$Y$26 -> 0.6676 | W75: 0.6548 | X75: =1/PI()*ATAN('Exhibit4_Impact-Test'!$Y$25*S_RS_SP)+'Exhibit4_Impact-Test'!$Y$26 -> 0.1553 | Y75: 0.1480 | Z75: =1/PI()*ATAN('Exhibit4_Impact-Test'!$Y$25*S_5050_SP)+'Exhibit4_Impact-Test'!$Y$26 -> 0.5000 | AA75: 0.4858 | AB75: =VLOOKUP(_xlfn.NUMBERVALUE(LEFT(A75,4)),Transactioncosts!$C:$G,5,FALSE) -> 70 | AD75: 0.9659 | AE75: 0.9943 | AF75: 0.9752 | AG75: 0.96576 | AH75: 0.9942 | AI75: 0.9751 | AK75: -0.0347 | AL75: -0.0057 | AM75: -0.0251 | AN75: 0.1617 | AO75: 0.6293 | AP75: 0.1854 | AR75: -0.0348 | AS75: -0.0058 | AT75: -0.0252 | AU75: 0.1565 | AV75: 0.5160 | AW75: 0.1830
A76: 1877.03 | C76: =raw_Data!B82 -> 3.17 | D76: =raw_Data!J82 -> 0.0227 | E76: =raw_Data!L82 -> 0.0036 | F76: 3.34 | G76: =raw_Data!K82 -> 0.0068 | H76: -0.0509 | J76: 0.9993 | K76: 0.0029 | M76: 1.0029 | N76: 0.9559 | O76: 75 | P76: 77 | R76: 0.3042 | S76: -0.9335 | T76: 0.0000 | V76: =1/PI()*ATAN('Exhibit4_Impact-Test'!$Y$25*S_RDY_SP)+'Exhibit4_Impact-Test'!$Y$26 -> 0.6740 | W76: 0.6633 | X76: =1/PI()*ATAN('Exhibit4_Impact-Test'!$Y$25*S_RS_SP)+'Exhibit4_Impact-Test'!$Y$26 -> 0.1565 | Y76: 0.1503 | Z76: =1/PI()*ATAN('Exhibit4_Impact-Test'!$Y$25*S_5050_SP)+'Exhibit4_Impact-Test'!$Y$26 -> 0.5000 | AA76: 0.4880 | AB76: =VLOOKUP(_xlfn.NUMBERVALUE(LEFT(A76,4)),Transactioncosts!$C:$G,5,FALSE) -> 70 | AD76: 0.9712 | AE76: 0.9956 | AF76: 0.9794 | AG76: 0.97112 | AH76: 0.9955 | AI76: 0.9793 | AK76: -0.0292 | AL76: -0.0045 | AM76: -0.0208 | AN76: 0.1325 | AO76: 0.6248 | AP76: 0.1646 | AR76: -0.0293 | AS76: -0.0045 | AT76: -0.0209 | AU76: 0.1272 | AV76: 0.5115 | AW76: 0.1621
A77: 1877.04 | C77: =raw_Data!B83 -> 2.94 | D77: =raw_Data!J83 -> 0.0219 | E77: =raw_Data!L83 -> 0.0036 | F77: 3.17 | G77: =raw_Data!K83 -> 0.0069 | H77: -0.0726 | J77: 0.9993 | K77: 0.0029 | M77: 1.0029 | N77: 0.9344 | O77: 76 | P77: 78 | R77: 0.3132 | S77: -0.9525 | T77: 0.0000 | V77: =1/PI()*ATAN('Exhibit4_Impact-Test'!$Y$25*S_RDY_SP)+'Exhibit4_Impact-Test'!$Y$26 -> 0.6781 | W77: 0.6625 | X77: =1/PI()*ATAN('Exhibit4_Impact-Test'!$Y$25*S_RS_SP)+'Exhibit4_Impact-Test'!$Y$26 -> 0.1539 | Y77: 0.1449 | Z77: =1/PI()*ATAN('Exhibit4_Impact-Test'!$Y$25*S_5050_SP)+'Exhibit4_Impact-Test'!$Y$26 -> 0.5000 | AA77: 0.4823 | AB77: =VLOOKUP(_xlfn.NUMBERVALUE(LEFT(A77,4)),Transactioncosts!$C:$G,5,FALSE) -> 70 | AD77: 0.9564 | AE77: 0.9924 | AF77: 0.9686 | AG77: 0.95626 | AH77: 0.9899 | AI77: 0.9685 | AK77: -0.0446 | AL77: -0.0077 | AM77: -0.0319 | AN77: 0.0880 | AO77: 0.6172 | AP77: 0.1327 | AR77: -0.0447 | AS77: -0.0102 | AT77: -0.0320 | AU77: 0.0825 | AV77: 0.5013 | AW77: 0.1301
A78: 1877.05 | C78: =raw_Data!B84 -> 2.94 | D78: =raw_Data!J84 -> 0.0212 | E78: =raw_Data!L84 -> 0.0036 | F78: 2.94 | G78: =raw_Data!K84 -> 0.0072 | H78: 0.0000 | J78: 0.9993 | K78: 0.0029 | M78: 1.0029 | N78: 1.0072 | O78: 77 | P78: 79 | R78: 0.3321 | S78: 0.0000 | T78: 0.0000 | V78: =1/PI()*ATAN('Exhibit4_Impact-Test'!$Y$25*S_RDY_SP)+'Exhibit4_Impact-Test'!$Y$26 -> 0.6866 | W78: 0.6875 | X78: =1/PI()*ATAN('Exhibit4_Impact-Test'!$Y$25*S_RS_SP)+'Exhibit4_Impact-Test'!$Y$26 -> 0.5000 | Y78: 0.5011 | Z78: =1/PI()*ATAN('Exhibit4_Impact-Test'!$Y$25*S_5050_SP)+'Exhibit4_Impact-Test'!$Y$26 -> 0.5000 | AA78: 0.5011 | AB78: =VLOOKUP(_xlfn.NUMBERVALUE(LEFT(A78,4)),Transactioncosts!$C:$G,5,FALSE) -> 70 | AD78: 1.0059 | AE78: 1.0051 | AF78: 1.0051 | AG78: 1.00580 | AH78: 1.0026 | AI78: 1.0050 | AK78: 0.0058 | AL78: 0.0050 | AM78: 0.0050 | AN78: 0.0938 | AO78: 0.6222 | AP78: 0.1378 | AR78: 0.0058 | AS78: 0.0026 | AT78: 0.0050 | AU78: 0.0883 | AV78: 0.5040 | AW78: 0.1351
A79: 1877.06 | C79: =raw_Data!B85 -> 2.73 | D79: =raw_Data!J85 -> 0.0204 | E79: =raw_Data!L85 -> 0.0036 | F79: 2.94 | G79: =raw_Data!K85 -> 0.0069 | H79: -0.0714 | J79: 0.9993 | K79: 0.0029 | M79: 1.0029 | N79: 0.9355 | O79: 78 | P79: 80 | R79: 0.3165 | S79: -0.9519 | T79: 0.0000 | V79: =1/PI()*ATAN('Exhibit4_Impact-Test'!$Y$25*S_RDY_SP)+'Exhibit4_Impact-Test'!$Y$26 -> 0.6796 | W79: 0.6643 | X79: =1/PI()*ATAN('Exhibit4_Impact-Test'!$Y$25*S_RS_SP)+'Exhibit4_Impact-Test'!$Y$26 -> 0.1539 | Y79: 0.1451 | Z79: =1/PI()*ATAN('Exhibit4_Impact-Test'!$Y$25*S_5050_SP)+'Exhibit4_Impact-Test'!$Y$26 -> 0.5000 | AA79: 0.4826 | AB79: =VLOOKUP(_xlfn.NUMBERVALUE(LEFT(A79,4)),Transactioncosts!$C:$G,5,FALSE) -> 70 | AD79: 0.9571 | AE79: 0.9925 | AF79: 0.9692 | AG79: 0.95694 | AH79: 0.9876 | AI79: 0.9691 | AK79: -0.0438 | AL79: -0.0075 | AM79: -0.0313 | AN79: 0.0500 | AO79: 0.6147 | AP79: 0.1065 | AR79: -0.0440 | AS79: -0.0124 | AT79: -0.0314 | AU79: 0.0443 | AV79: 0.4915 | AW79: 0.1037
A80: 1877.07 | C80: =raw_Data!B86 -> 2.85 | D80: =raw_Data!J86 -> 0.0197 | E80: =raw_Data!L86 -> 0.0036 | F80: 2.73 | G80: =raw_Data!K86 -> 0.0072 | H80: 0.0440 | J80: 0.9993 | K80: 0.0029 | M80: 1.0029 | N80: 1.0512 | O80: 79 | P80: 81 | R80: 0.3334 | S80: 0.9243 | T80: 0.0000 | V80: =1/PI()*ATAN('Exhibit4_Impact-Test'!$Y$25*S_RDY_SP)+'Exhibit4_Impact-Test'!$Y$26 -> 0.6872 | W80: 0.6972 | X80: =1/PI()*ATAN('Exhibit4_Impact-Test'!$Y$25*S_RS_SP)+'Exhibit4_Impact-Test'!$Y$26 -> 0.8422 | Y80: 0.8483 | Z80: =1/PI()*ATAN('Exhibit4_Impact-Test'!$Y$25*S_5050_SP)+'Exhibit4_Impact-Test'!$Y$26 -> 0.5000 | AA80: 0.5118 | AB80: =VLOOKUP(_xlfn.NUMBERVALUE(LEFT(A80,4)),Transactioncosts!$C:$G,5,FALSE) -> 70 | AD80: 1.0361 | AE80: 1.0435 | AF80: 1.0270 | AG80: 1.03587 | AH80: 1.0435 | AI80: 1.0269 | AK80: 0.0354 | AL80: 0.0426 | AM80: 0.0267 | AN80: 0.0854 | AO80: 0.6573 | AP80: 0.1331 | AR80: 0.0352 | AS80: 0.0426 | AT80: 0.0266 | AU80: 0.0795 | AV80: 0.5341 | AW80: 0.1303
A81: 1877.08 | C81: =raw_Data!B87 -> 3.05 | D81: =raw_Data!J87 -> 0.0189 | E81: =raw_Data!L87 -> 0.0036 | F81: 2.85 | G81: =raw_Data!K87 -> 0.0066 | H81: 0.0702 | J81: 0.9993 | K81: 0.0029 | M81: 1.0029 | N81: 1.0768 | O81: 80 | P81: 82 | R81: 0.2973 | S81: 0.9513 | T81: 0.0000 | V81: =1/PI()*ATAN('Exhibit4_Impact-Test'!$Y$25*S_RDY_SP)+'Exhibit4_Impact-Test'!$Y$26 -> 0.6707 | W81: 0.6863 | X81: =1/PI()*ATAN('Exhibit4_Impact-Test'!$Y$25*S_RS_SP)+'Exhibit4_Impact-Test'!$Y$26 -> 0.8460 | Y81: 0.8550 | Z81: =1/PI()*ATAN('Exhibit4_Impact-Test'!$Y$25*S_5050_SP)+'Exhibit4_Impact-Test'!$Y$26 -> 0.5000 | AA81: 0.5178 | AB81: =VLOOKUP(_xlfn.NUMBERVALUE(LEFT(A81,4)),Transactioncosts!$C:$G,5,FALSE) -> 70 | AD81: 1.0525 | AE81: 1.0654 | AF81: 1.0398 | AG81: 1.05218 | AH81: 1.0653 | AI81: 1.0397 | AK81: 0.0511 | AL81: 0.0634 | AM81: 0.0391 | AN81: 0.1365 | AO81: 0.7207 | AP81: 0.1722 | AR81: 0.0509 | AS81: 0.0633 | AT81: 0.0389 | AU81: 0.1304 | AV81: 0.5974 | AW81: 0.1692
A82: 1877.09 | C82: =raw_Data!B88 -> 3.24 | D82: =raw_Data!J88 -> 0.0181 | E82: =raw_Data!L88 -> 0.0036 | F82: 3.05 | G82: =raw_Data!K88 -> 0.0059 | H82: 0.0623 | J82: 0.9993 | K82: 0.0029 | M82: 1.0029 | N82: 1.0682 | O82: 81 | P82: 83 | R82: 0.2477 | S82: 0.9456 | T82: 0.0000 | V82: =1/PI()*ATAN('Exhibit4_Impact-Test'!$Y$25*S_RDY_SP)+'Exhibit4_Impact-Test'!$Y$26 -> 0.6464 | W82: 0.6607 | X82: =1/PI()*ATAN('Exhibit4_Impact-Test'!$Y$25*S_RS_SP)+'Exhibit4_Impact-Test'!$Y$26 -> 0.8452 | Y82: 0.8533 | Z82: =1/PI()*ATAN('Exhibit4_Impact-Test'!$Y$25*S_5050_SP)+'Exhibit4_Impact-Test'!$Y$26 -> 0.5000 | AA82: 0.5158 | AB82: =VLOOKUP(_xlfn.NUMBERVALUE(LEFT(A82,4)),Transactioncosts!$C:$G,5,FALSE) -> 70 | AD82: 1.0451 | AE82: 1.0581 | AF82: 1.0356 | AG82: 1.04484 | AH82: 1.0580 | AI82: 1.0354 | AK82: 0.0441 | AL82: 0.0565 | AM82: 0.0349 | AN82: 0.1806 | AO82: 0.7772 | AP82: 0.2071 | AR82: 0.0439 | AS82: 0.0564 | AT82: 0.0348 | AU82: 0.1742 | AV82: 0.6538 | AW82: 0.2041
A83: 1877.10 | C83: =raw_Data!B89 -> 3.31 | D83: =raw_Data!J89 -> 0.0174 | E83: =raw_Data!L89 -> 0.0036 | F83: 3.24 | G83: =raw_Data!K89 -> 0.0054 | H83: 0.0216 | J83: 0.9993 | K83: 0.0029 | M83: 1.0029 | N83: 1.0270 | O83: 82 | P83: 84 | R83: 0.1994 | S83: 0.8580 | T83: 0.0000 | V83: =1/PI()*ATAN('Exhibit4_Impact-Test'!$Y$25*S_RDY_SP)+'Exhibit4_Impact-Test'!$Y$26 -> 0.6208 | W83: 0.6264 | X83: =1/PI()*ATAN('Exhibit4_Impact-Test'!$Y$25*S_RS_SP)+'Exhibit4_Impact-Test'!$Y$26 -> 0.8320 | Y83: 0.8353 | Z83: =1/PI()*ATAN('Exhibit4_Impact-Test'!$Y$25*S_5050_SP)+'Exhibit4_Impact-Test'!$Y$26 -> 0.5000 | AA83: 0.5059 | AB83: =VLOOKUP(_xlfn.NUMBERVALUE(LEFT(A83,4)),Transactioncosts!$C:$G,5,FALSE) -> 70 | AD83: 1.0178 | AE83: 1.0229 | AF83: 1.0149 | AG83: 1.01766 | AH83: 1.0183 | AI83: 1.0149 | AK83: 0.0177 | AL83: 0.0227 | AM83: 0.0148 | AN83: 0.1983 | AO83: 0.7998 | AP83: 0.2219 | AR83: 0.0175 | AS83: 0.0181 | AT83: 0.0148 | AU83: 0.1917 | AV83: 0.6719 | AW83: 0.2188
A84: 1877.11 | C84: =raw_Data!B90 -> 3.26 | D84: =raw_Data!J90 -> 0.0166 | E84: =raw_Data!L90 -> 0.0036 | F84: 3.31 | G84: =raw_Data!K90 -> 0.0050 | H84: -0.0151 | J84: 0.9993 | K84: 0.0029 | M84: 1.0029 | N84: 0.9899 | O84: 83 | P84: 85 | R84: 0.1685 | S84: -0.8089 | T84: 0.0000 | V84: =1/PI()*ATAN('Exhibit4_Impact-Test'!$Y$25*S_RDY_SP)+'Exhibit4_Impact-Test'!$Y$26 -> 0.6035 | W84: 0.6004 | X84: =1/PI()*ATAN('Exhibit4_Impact-Test'!$Y$25*S_RS_SP)+'Exhibit4_Impact-Test'!$Y$26 -> 0.1762 | Y84: 0.1744 | Z84: =1/PI()*ATAN('Exhibit4_Impact-Test'!$Y$25*S_5050_SP)+'Exhibit4_Impact-Test'!$Y$26 -> 0.5000 | AA84: 0.4968 | AB84: =VLOOKUP(_xlfn.NUMBERVALUE(LEFT(A84,4)),Transactioncosts!$C:$G,5,FALSE) -> 70 | AD84: 0.9950 | AE84: 1.0006 | AF84: 0.9964 | AG84: 0.99500 | AH84: 1.0000 | AI84: 0.9964 | AK84: -0.0050 | AL84: 0.0006 | AM84: -0.0036 | AN84: 0.1933 | AO84: 0.8004 | AP84: 0.2183 | AR84: -0.0050 | AS84: -0.0000 | AT84: -0.0036 | AU84: 0.1867 | AV84: 0.6719 | AW84: 0.2152
A85: 1877.12 | C85: =raw_Data!B91 -> 3.25 | D85: =raw_Data!J91 -> 0.0158 | E85: =raw_Data!L91 -> 0.0036 | F85: 3.26 | G85: =raw_Data!K91 -> 0.0049 | H85: -0.0031 | J85: 0.9993 | K85: 0.0028 | M85: 1.0028 | N85: 1.0018 | O85: 84 | P85: 86 | R85: 0.1539 | S85: -0.4627 | T85: 0.0000 | V85: =1/PI()*ATAN('Exhibit4_Impact-Test'!$Y$25*S_RDY_SP)+'Exhibit4_Impact-Test'!$Y$26 -> 0.5950 | W85: 0.5948 | X85: =1/PI()*ATAN('Exhibit4_Impact-Test'!$Y$25*S_RS_SP)+'Exhibit4_Impact-Test'!$Y$26 -> 0.2623 | Y85: 0.2621 | Z85: =1/PI()*ATAN('Exhibit4_Impact-Test'!$Y$25*S_5050_SP)+'Exhibit4_Impact-Test'!$Y$26 -> 0.5000 | AA85: 0.4997 | AB85: =VLOOKUP(_xlfn.NUMBERVALUE(LEFT(A85,4)),Transactioncosts!$C:$G,5,FALSE) -> 70 | AD85: 1.0022 | AE85: 1.0026 | AF85: 1.0023 | AG85: 1.00221 | AH85: 1.0009 | AI85: 1.0023 | AK85: 0.0022 | AL85: 0.0026 | AM85: 0.0023 | AN85: 0.1955 | AO85: 0.8029 | AP85: 0.2206 | AR85: 0.0022 | AS85: 0.0009 | AT85: 0.0023 | AU85: 0.1889 | AV85: 0.6728 | AW85: 0.2175
A86: 1878.01 | C86: =raw_Data!B92 -> 3.25 | D86: =raw_Data!J92 -> 0.0158 | E86: =raw_Data!L92 -> 0.0035 | F86: 3.25 | G86: =raw_Data!K92 -> 0.0049 | H86: 0.0000 | J86: 0.9993 | K86: 0.0028 | M86: 1.0028 | N86: 1.0049 | O86: 85 | P86: 87 | R86: 0.1543 | S86: 0.0000 | T86: 0.0000 | V86: =1/PI()*ATAN('Exhibit4_Impact-Test'!$Y$25*S_RDY_SP)+'Exhibit4_Impact-Test'!$Y$26 -> 0.5953 | W86: 0.5958 | X86: =1/PI()*ATAN('Exhibit4_Impact-Test'!$Y$25*S_RS_SP)+'Exhibit4_Impact-Test'!$Y$26 -> 0.5000 | Y86: 0.5005 | Z86: =1/PI()*ATAN('Exhibit4_Impact-Test'!$Y$25*S_5050_SP)+'Exhibit4_Impact-Test'!$Y$26 -> 0.5000 | AA86: 0.5005 | AB86: =VLOOKUP(_xlfn.NUMBERVALUE(LEFT(A86,4)),Transactioncosts!$C:$G,5,FALSE) -> 70 | AD86: 1.0040 | AE86: 1.0038 | AF86: 1.0038 | AG86: 1.00403 | AH86: 1.0015 | AI86: 1.0038 | AK86: 0.0040 | AL86: 0.0038 | AM86: 0.0038 | AN86: 0.1996 | AO86: 0.8068 | AP86: 0.2245 | AR86: 0.0040 | AS86: 0.0015 | AT86: 0.0038 | AU86: 0.1930 | AV86: 0.6743 | AW86: 0.2213
A87: 1878.02 | C87: =raw_Data!B93 -> 3.18 | D87: =raw_Data!J93 -> 0.0157 | E87: =raw_Data!L93 -> 0.0035 | F87: 3.25 | G87: =raw_Data!K93 -> 0.0048 | H87: -0.0215 | J87: 0.9992 | K87: 0.0028 | M87: 1.0028 | N87: 0.9833 | O87: 86 | P87: 88 | R87: 0.1530 | S87: -0.8586 | T87: 0.0000 | V87: =1/PI()*ATAN('Exhibit4_Impact-Test'!$Y$25*S_RDY_SP)+'Exhibit4_Impact-Test'!$Y$26 -> 0.5945 | W87: 0.5898 | X87: =1/PI()*ATAN('Exhibit4_Impact-Test'!$Y$25*S_RS_SP)+'Exhibit4_Impact-Test'!$Y$26 -> 0.1679 | Y87: 0.1651 | Z87: =1/PI()*ATAN('Exhibit4_Impact-Test'!$Y$25*S_5050_SP)+'Exhibit4_Impact-Test'!$Y$26 -> 0.5000 | AA87: 0.4951 | AB87: =VLOOKUP(_xlfn.NUMBERVALUE(LEFT(A87,4)),Transactioncosts!$C:$G,5,FALSE) -> 70 | AD87: 0.9912 | AE87: 0.9995 | AF87: 0.9930 | AG87: 0.99111 | AH87: 0.9948 | AI87: 0.9930 | AK87: -0.0089 | AL87: -0.0005 | AM87: -0.0070 | AN87: 0.1907 | AO87: 0.8063 | AP87: 0.2175 | AR87: -0.0089 | AS87: -0.0052 | AT87: -0.0070 | AU87: 0.1840 | AV87: 0.6691 | AW87: 0.2143
A88: 1878.03 | C88: =raw_Data!B94 -> 3.24 | D88: =raw_Data!J94 -> 0.0156 | E88: =raw_Data!L94 -> 0.0035 | F88: 3.18 | G88: =raw_Data!K94 -> 0.0049 | H88: 0.0189 | J88: 0.9992 | K88: 0.0028 | M88: 1.0028 | N88: 1.0238 | O88: 87 | P88: 89 | R88: 0.1627 | S88: 0.8421 | T88: 0.0000 | V88: =1/PI()*ATAN('Exhibit4_Impact-Test'!$Y$25*S_RDY_SP)+'Exhibit4_Impact-Test'!$Y$26 -> 0.6001 | W88: 0.6051 | X88: =1/PI()*ATAN('Exhibit4_Impact-Test'!$Y$25*S_RS_SP)+'Exhibit4_Impact-Test'!$Y$26 -> 0.8294 | Y88: 0.8324 | Z88: =1/PI()*ATAN('Exhibit4_Impact-Test'!$Y$25*S_5050_SP)+'Exhibit4_Impact-Test'!$Y$26 -> 0.5000 | AA88: 0.5052 | AB88: =VLOOKUP(_xlfn.NUMBERVALUE(LEFT(A88,4)),Transactioncosts!$C:$G,5,FALSE) -> 70 | AD88: 1.0154 | AE88: 1.0202 | AF88: 1.0133 | AG88: 1.01530 | AH88: 1.0202 | AI88: 1.0132 | AK88: 0.0153 | AL88: 0.0200 | AM88: 0.0132 | AN88: 0.2060 | AO88: 0.8263 | AP88: 0.2306 | AR88: 0.0152 | AS88: 0.0200 | AT88: 0.0131 | AU88: 0.1992 | AV88: 0.6891 | AW88: 0.2274
A89: 1878.04 | C89: =raw_Data!B95 -> 3.33 | D89: =raw_Data!J95 -> 0.0156 | E89: =raw_Data!L95 -> 0.0035 | F89: 3.24 | G89: =raw_Data!K95 -> 0.0048 | H89: 0.0278 | J89: 0.9992 | K89: 0.0027 | M89: 1.0027 | N89: 1.0326 | O89: 88 | P89: 90 | R89: 0.1526 | S89: 0.8872 | T89: 0.0000 | V89: =1/PI()*ATAN('Exhibit4_Impact-Test'!$Y$25*S_RDY_SP)+'Exhibit4_Impact-Test'!$Y$26 -> 0.5943 | W89: 0.6013 | X89: =1/PI()*ATAN('Exhibit4_Impact-Test'!$Y$25*S_RS_SP)+'Exhibit4_Impact-Test'!$Y$26 -> 0.8366 | Y89: 0.8406 | Z89: =1/PI()*ATAN('Exhibit4_Impact-Test'!$Y$25*S_5050_SP)+'Exhibit4_Impact-Test'!$Y$26 -> 0.5000 | AA89: 0.5073 | AB89: =VLOOKUP(_xlfn.NUMBERVALUE(LEFT(A89,4)),Transactioncosts!$C:$G,5,FALSE) -> 70 | AD89: 1.0205 | AE89: 1.0277 | AF89: 1.0177 | AG89: 1.02037 | AH89: 1.0270 | AI89: 1.0176 | AK89: 0.0203 | AL89: 0.0273 | AM89: 0.0175 | AN89: 0.2262 | AO89: 0.8536 | AP89: 0.2481 | AR89: 0.0202 | AS89: 0.0266 | AT89: 0.0175 | AU89: 0.2194 | AV89: 0.7157 | AW89: 0.2449
A90: 1878.05 | C90: =raw_Data!B96 -> 3.34 | D90: =raw_Data!J96 -> 0.0155 | E90: =raw_Data!L96 -> 0.0035 | F90: 3.33 | G90: =raw_Data!K96 -> 0.0046 | H90: 0.0030 | J90: 0.9992 | K90: 0.0027 | M90: 1.0027 | N90: 1.0077 | O90: 89 | P90: 91 | R90: 0.1379 | S90: 0.4602 | T90: 0.0000 | V90: =1/PI()*ATAN('Exhibit4_Impact-Test'!$Y$25*S_RDY_SP)+'Exhibit4_Impact-Test'!$Y$26 -> 0.5857 | W90: 0.5869 | X90: =1/PI()*ATAN('Exhibit4_Impact-Test'!$Y$25*S_RS_SP)+'Exhibit4_Impact-Test'!$Y$26 -> 0.7368 | Y90: 0.7378 | Z90: =1/PI()*ATAN('Exhibit4_Impact-Test'!$Y$25*S_5050_SP)+'Exhibit4_Impact-Test'!$Y$26 -> 0.5000 | AA90: 0.5012 | AB90: =VLOOKUP(_xlfn.NUMBERVALUE(LEFT(A90,4)),Transactioncosts!$C:$G,5,FALSE) -> 70 | AD90: 1.0056 | AE90: 1.0064 | AF90: 1.0052 | AG90: 1.00560 | AH90: 1.0057 | AI90: 1.0052 | AK90: 0.0056 | AL90: 0.0063 | AM90: 0.0052 | AN90: 0.2318 | AO90: 0.8599 | AP90: 0.2533 | AR90: 0.0056 | AS90: 0.0057 | AT90: 0.0052 | AU90: 0.2249 | AV90: 0.7214 | AW90: 0.2500
A91: 1878.06 | C91: =raw_Data!B97 -> 3.41 | D91: =raw_Data!J97 -> 0.0154 | E91: =raw_Data!L97 -> 0.0035 | F91: 3.34 | G91: =raw_Data!K97 -> 0.0046 | H91: 0.0210 | J91: 0.9992 | K91: 0.0027 | M91: 1.0027 | N91: 1.0256 | O91: 90 | P91: 92 | R91: 0.1354 | S91: 0.8564 | T91: 0.0000 | V91: =1/PI()*ATAN('Exhibit4_Impact-Test'!$Y$25*S_RDY_SP)+'Exhibit4_Impact-Test'!$Y$26 -> 0.5842 | W91: 0.5897 | X91: =1/PI()*ATAN('Exhibit4_Impact-Test'!$Y$25*S_RS_SP)+'Exhibit4_Impact-Test'!$Y$26 -> 0.8318 | Y91: 0.8349 | Z91: =1/PI()*ATAN('Exhibit4_Impact-Test'!$Y$25*S_5050_SP)+'Exhibit4_Impact-Test'!$Y$26 -> 0.5000 | AA91: 0.5056 | AB91: =VLOOKUP(_xlfn.NUMBERVALUE(LEFT(A91,4)),Transactioncosts!$C:$G,5,FALSE) -> 70 | AD91: 1.0161 | AE91: 1.0217 | AF91: 1.0142 | AG91: 1.01599 | AH91: 1.0217 | AI91: 1.0141 | AK91: 0.0159 | AL91: 0.0215 | AM91: 0.0141 | AN91: 0.2478 | AO91: 0.8814 | AP91: 0.2674 | AR91: 0.0159 | AS91: 0.0215 | AT91: 0.0140 | AU91: 0.2408 | AV91: 0.7428 | AW91: 0.2641
A92: 1878.07 | C92: =raw_Data!B98 -> 3.48 | D92: =raw_Data!J98 -> 0.0154 | E92: =raw_Data!L98 -> 0.0035 | F92: 3.41 | G92: =raw_Data!K98 -> 0.0045 | H92: 0.0205 | J92: 0.9992 | K92: 0.0027 | M92: 1.0027 | N92: 1.0250 | O92: 91 | P92: 93 | R92: 0.1242 | S92: 0.8541 | T92: 0.0000 | V92: =1/PI()*ATAN('Exhibit4_Impact-Test'!$Y$25*S_RDY_SP)+'Exhibit4_Impact-Test'!$Y$26 -> 0.5775 | W92: 0.5829 | X92: =1/PI()*ATAN('Exhibit4_Impact-Test'!$Y$25*S_RS_SP)+'Exhibit4_Impact-Test'!$Y$26 -> 0.8314 | Y92: 0.8345 | Z92: =1/PI()*ATAN('Exhibit4_Impact-Test'!$Y$25*S_5050_SP)+'Exhibit4_Impact-Test'!$Y$26 -> 0.5000 | AA92: 0.5055 | AB92: =VLOOKUP(_xlfn.NUMBERVALUE(LEFT(A92,4)),Transactioncosts!$C:$G,5,FALSE) -> 70 | AD92: 1.0156 | AE92: 1.0213 | AF92: 1.0139 | AG92: 1.01552 | AH92: 1.0168 | AI92: 1.0138 | AK92: 0.0155 | AL92: 0.0210 | AM92: 0.0138 | AN92: 0.2633 | AO92: 0.9025 | AP92: 0.2812 | AR92: 0.0154 | AS92: 0.0167 | AT92: 0.0137 | AU92: 0.2562 | AV92: 0.7595 | AW92: 0.2778
A93: 1878.08 | C93: =raw_Data!B99 -> 3.45 | D93: =raw_Data!J99 -> 0.0153 | E93: =raw_Data!L99 -> 0.0035 | F93: 3.48 | G93: =raw_Data!K99 -> 0.0044 | H93: -0.0086 | J93: 0.9992 | K93: 0.0027 | M93: 1.0027 | N93: 0.9958 | O93: 92 | P93: 94 | R93: 0.1129 | S93: -0.7113 | T93: 0.0000 | V93: =1/PI()*ATAN('Exhibit4_Impact-Test'!$Y$25*S_RDY_SP)+'Exhibit4_Impact-Test'!$Y$26 -> 0.5707 | W93: 0.5690 | X93: =1/PI()*ATAN('Exhibit4_Impact-Test'!$Y$25*S_RS_SP)+'Exhibit4_Impact-Test'!$Y$26 -> 0.1950 | Y93: 0.1939 | Z93: =1/PI()*ATAN('Exhibit4_Impact-Test'!$Y$25*S_5050_SP)+'Exhibit4_Impact-Test'!$Y$26 -> 0.5000 | AA93: 0.4983 | AB93: =VLOOKUP(_xlfn.NUMBERVALUE(LEFT(A93,4)),Transactioncosts!$C:$G,5,FALSE) -> 70 | AD93: 0.9987 | AE93: 1.0014 | AF93: 0.9992 | AG93: 0.99872 | AH93: 0.9969 | AI93: 0.9992 | AK93: -0.0013 | AL93: 0.0014 | AM93: -0.0008 | AN93: 0.2620 | AO93: 0.9038 | AP93: 0.2804 | AR93: -0.0013 | AS93: -0.0031 | AT93: -0.0008 | AU93: 0.2549 | AV93: 0.7564 | AW93: 0.2770
A94: 1878.09 | C94: =raw_Data!B100 -> 3.52 | D94: =raw_Data!J100 -> 0.0152 | E94: =raw_Data!L100 -> 0.0035 | F94: 3.45 | G94: =raw_Data!K100 -> 0.0044 | H94: 0.0203 | J94: 0.9992 | K94: 0.0027 | M94: 1.0027 | N94: 1.0247 | O94: 93 | P94: 95 | R94: 0.1162 | S94: 0.8532 | T94: 0.0000 | V94: =1/PI()*ATAN('Exhibit4_Impact-Test'!$Y$25*S_RDY_SP)+'Exhibit4_Impact-Test'!$Y$26 -> 0.5727 | W94: 0.5780 | X94: =1/PI()*ATAN('Exhibit4_Impact-Test'!$Y$25*S_RS_SP)+'Exhibit4_Impact-Test'!$Y$26 -> 0.8313 | Y94: 0.8343 | Z94: =1/PI()*ATAN('Exhibit4_Impact-Test'!$Y$25*S_5050_SP)+'Exhibit4_Impact-Test'!$Y$26 -> 0.5000 | AA94: 0.5054 | AB94: =VLOOKUP(_xlfn.NUMBERVALUE(LEFT(A94,4)),Transactioncosts!$C:$G,5,FALSE) -> 70 | AD94: 1.0153 | AE94: 1.0210 | AF94: 1.0137 | AG94: 1.01522 | AH94: 1.0164 | AI94: 1.0137 | AK94: 0.0152 | AL94: 0.0208 | AM94: 0.0136 | AN94: 0.2772 | AO94: 0.9246 | AP94: 0.2940 | AR94: 0.0151 | AS94: 0.0163 | AT94: 0.0136 | AU94: 0.2700 | AV94: 0.7727 | AW94: 0.2906
A95: 1878.10 | C95: =raw_Data!B101 -> 3.48 | D95: =raw_Data!J101 -> 0.0151 | E95: =raw_Data!L101 -> 0.0035 | F95: 3.52 | G95: =raw_Data!K101 -> 0.0043 | H95: -0.0114 | J95: 0.9992 | K95: 0.0027 | M95: 1.0027 | N95: 0.9929 | O95: 94 | P95: 96 | R95: 0.1052 | S95: -0.7654 | T95: 0.0000 | V95: =1/PI()*ATAN('Exhibit4_Impact-Test'!$Y$25*S_RDY_SP)+'Exhibit4_Impact-Test'!$Y$26 -> 0.5660 | W95: 0.5636 | X95: =1/PI()*ATAN('Exhibit4_Impact-Test'!$Y$25*S_RS_SP)+'Exhibit4_Impact-Test'!$Y$26 -> 0.1842 | Y95: 0.1827 | Z95: =1/PI()*ATAN('Exhibit4_Impact-Test'!$Y$25*S_5050_SP)+'Exhibit4_Impact-Test'!$Y$26 -> 0.5000 | AA95: 0.4976 | AB95: =VLOOKUP(_xlfn.NUMBERVALUE(LEFT(A95,4)),Transactioncosts!$C:$G,5,FALSE) -> 70 | AD95: 0.9972 | AE95: 1.0009 | AF95: 0.9978 | AG95: 0.99714 | AH95: 1.0003 | AI95: 0.9978 | AK95: -0.0028 | AL95: 0.0009 | AM95: -0.0022 | AN95: 0.2744 | AO95: 0.9255 | AP95: 0.2918 | AR95: -0.0029 | AS95: 0.0003 | AT95: -0.0022 | AU95: 0.2672 | AV95: 0.7730 | AW95: 0.2884
A96: 1878.11 | C96: =raw_Data!B102 -> 3.47 | D96: =raw_Data!J102 -> 0.0151 | E96: =raw_Data!L102 -> 0.0035 | F96: 3.48 | G96: =raw_Data!K102 -> 0.0043 | H96: -0.0029 | J96: 0.9992 | K96: 0.0027 | M96: 1.0027 | N96: 1.0015 | O96: 95 | P96: 97 | R96: 0.1096 | S96: -0.4527 | T96: 0.0000 | V96: =1/PI()*ATAN('Exhibit4_Impact-Test'!$Y$25*S_RDY_SP)+'Exhibit4_Impact-Test'!$Y$26 -> 0.5687 | W96: 0.5684 | X96: =1/PI()*ATAN('Exhibit4_Impact-Test'!$Y$25*S_RS_SP)+'Exhibit4_Impact-Test'!$Y$26 -> 0.2658 | Y96: 0.2656 | Z96: =1/PI()*ATAN('Exhibit4_Impact-Test'!$Y$25*S_5050_SP)+'Exhibit4_Impact-Test'!$Y$26 -> 0.5000 | AA96: 0.4997 | AB96: =VLOOKUP(_xlfn.NUMBERVALUE(LEFT(A96,4)),Transactioncosts!$C:$G,5,FALSE) -> 70 | AD96: 1.0020 | AE96: 1.0024 | AF96: 1.0021 | AG96: 1.00198 | AH96: 1.0020 | AI96: 1.0021 | AK96: 0.0020 | AL96: 0.0024 | AM96: 0.0021 | AN96: 0.2764 | AO96: 0.9279 | AP96: 0.2939 | AR96: 0.0020 | AS96: 0.0020 | AT96: 0.0021 | AU96: 0.2691 | AV96: 0.7750 | AW96: 0.2905
A97: 1878.12 | C97: =raw_Data!B103 -> 3.45 | D97: =raw_Data!J103 -> 0.0150 | E97: =raw_Data!L103 -> 0.0035 | F97: 3.47 | G97: =raw_Data!K103 -> 0.0043 | H97: -0.0058 | J97: 0.9992 | K97: 0.0027 | M97: 1.0027 | N97: 0.9986 | O97: 96 | P97: 98 | R97: 0.1099 | S97: -0.6244 | T97: 0.0000 | V97: =1/PI()*ATAN('Exhibit4_Impact-Test'!$Y$25*S_RDY_SP)+'Exhibit4_Impact-Test'!$Y$26 -> 0.5689 | W97: 0.5679 | X97: =1/PI()*ATAN('Exhibit4_Impact-Test'!$Y$25*S_RS_SP)+'Exhibit4_Impact-Test'!$Y$26 -> 0.2149 | Y97: 0.2142 | Z97: =1/PI()*ATAN('Exhibit4_Impact-Test'!$Y$25*S_5050_SP)+'Exhibit4_Impact-Test'!$Y$26 -> 0.5000 | AA97: 0.4990 | AB97: =VLOOKUP(_xlfn.NUMBERVALUE(LEFT(A97,4)),Transactioncosts!$C:$G,5,FALSE) -> 70 | AD97: 1.0003 | AE97: 1.0018 | AF97: 1.0006 | AG97: 1.00029 | AH97: 0.9974 | AI97: 1.0006 | AK97: 0.0003 | AL97: 0.0018 | AM97: 0.0006 | AN97: 0.2767 | AO97: 0.9297 | AP97: 0.2945 | AR97: 0.0003 | AS97: -0.0026 | AT97: 0.0006 | AU97: 0.2694 | AV97: 0.7724 | AW97: 0.2911
A98: 1879.01 | C98: =raw_Data!B104 -> 3.58 | D98: =raw_Data!J104 -> 0.0151 | E98: =raw_Data!L104 -> 0.0035 | F98: 3.45 | G98: =raw_Data!K104 -> 0.0044 | H98: 0.0377 | J98: 0.9992 | K98: 0.0027 | M98: 1.0027 | N98: 1.0421 | O98: 97 | P98: 99 | R98: 0.1186 | S98: 0.9159 | T98: 0.0000 | V98: =1/PI()*ATAN('Exhibit4_Impact-Test'!$Y$25*S_RDY_SP)+'Exhibit4_Impact-Test'!$Y$26 -> 0.5741 | W98: 0.5835 | X98: =1/PI()*ATAN('Exhibit4_Impact-Test'!$Y$25*S_RS_SP)+'Exhibit4_Impact-Test'!$Y$26 -> 0.8409 | Y98: 0.8460 | Z98: =1/PI()*ATAN('Exhibit4_Impact-Test'!$Y$25*S_5050_SP)+'Exhibit4_Impact-Test'!$Y$26 -> 0.5000 | AA98: 0.5096 | AB98: =VLOOKUP(_xlfn.NUMBERVALUE(LEFT(A98,4)),Transactioncosts!$C:$G,5,FALSE) -> 70 | AD98: 1.0253 | AE98: 1.0358 | AF98: 1.0224 | AG98: 1.02517 | AH98: 1.0358 | AI98: 1.0223 | AK98: 0.0250 | AL98: 0.0352 | AM98: 0.0221 | AN98: 0.3017 | AO98: 0.9648 | AP98: 0.3166 | AR98: 0.0249 | AS98: 0.0351 | AT98: 0.0221 | AU98: 0.2943 | AV98: 0.8075 | AW98: 0.3131
A99: 1879.02 | C99: =raw_Data!B105 -> 3.71 | D99: =raw_Data!J105 -> 0.0153 | E99: =raw_Data!L105 -> 0.0034 | F99: 3.58 | G99: =raw_Data!K105 -> 0.0043 | H99: 0.0363 | J99: 0.9987 | K99: 0.0021 | M99: 1.0021 | N99: 1.0406 | O99: 98 | P99: 100 | R99: 0.1058 | S99: 0.9132 | T99: 0.0000 | V99: =1/PI()*ATAN('Exhibit4_Impact-Test'!$Y$25*S_RDY_SP)+'Exhibit4_Impact-Test'!$Y$26 -> 0.5664 | W99: 0.5756 | X99: =1/PI()*ATAN('Exhibit4_Impact-Test'!$Y$25*S_RS_SP)+'Exhibit4_Impact-Test'!$Y$26 -> 0.8405 | Y99: 0.8455 | Z99: =1/PI()*ATAN('Exhibit4_Impact-Test'!$Y$25*S_5050_SP)+'Exhibit4_Impact-Test'!$Y$26 -> 0.5000 | AA99: 0.5094 | AB99: =VLOOKUP(_xlfn.NUMBERVALUE(LEFT(A99,4)),Transactioncosts!$C:$G,5,FALSE) -> 70 | AD99: 1.0239 | AE99: 1.0344 | AF99: 1.0214 | AG99: 1.02380 | AH99: 1.0297 | AI99: 1.0213 | AK99: 0.0236 | AL99: 0.0339 | AM99: 0.0211 | AN99: 0.3253 | AO99: 0.9987 | AP99: 0.3378 | AR99: 0.0235 | AS99: 0.0293 | AT99: 0.0211 | AU99: 0.3178 | AV99: 0.8369 | AW99: 0.3342
A100: 1879.03 | C100: =raw_Data!B106 -> 3.65 | D100: =raw_Data!J106 -> 0.0154 | E100: =raw_Data!L106 -> 0.0034 | F100: 3.71 | G100: =raw_Data!K106 -> 0.0042 | H100: -0.0162 | J100: 0.9987 | K100: 0.0021 | M100: 1.0021 | N100: 0.9880 | O100: 99 | P100: 101 | R100: 0.0946 | S100: -0.8247 | T100: 0.0000 | V100: =1/PI()*ATAN('Exhibit4_Impact-Test'!$Y$25*S_RDY_SP)+'Exhibit4_Impact-Test'!$Y$26 -> 0.5595 | W100: 0.5560 | X100: =1/PI()*ATAN('Exhibit4_Impact-Test'!$Y$25*S_RS_SP)+'Exhibit4_Impact-Test'!$Y$26 -> 0.1735 | Y100: 0.1715 | Z100: =1/PI()*ATAN('Exhibit4_Impact-Test'!$Y$25*S_5050_SP)+'Exhibit4_Impact-Test'!$Y$26 -> 0.5000 | AA100: 0.4964 | AB100: =VLOOKUP(_xlfn.NUMBERVALUE(LEFT(A100,4)),Transactioncosts!$C:$G,5,FALSE) -> 70 | AD100: 0.9942 | AE100: 0.9997 | AF100: 0.9951 | AG100: 0.99412 | AH100: 0.9950 | AI100: 0.9950 | AK100: -0.0058 | AL100: -0.0003 | AM100: -0.0050 | AN100: 0.3195 | AO100: 0.9984 | AP100: 0.3328 | AR100: -0.0059 | AS100: -0.0050 | AT100: -0.0050 | AU100: 0.3119 | AV100: 0.8318 | AW100: 0.3292
A101: 1879.04 | C101: =raw_Data!B107 -> 3.77 | D101: =raw_Data!J107 -> 0.0156 | E101: =raw_Data!L107 -> 0.0034 | F101: 3.65 | G101: =raw_Data!K107 -> 0.0043 | H101: 0.0329 | J101: 0.9987 | K101: 0.0021 | M101: 1.0021 | N101: 1.0371 | O101: 100 | P101: 102 | R101: 0.1091 | S101: 0.9057 | T101: 0.0000 | V101: =1/PI()*ATAN('Exhibit4_Impact-Test'!$Y$25*S_RDY_SP)+'Exhibit4_Impact-Test'!$Y$26 -> 0.5684 | W101: 0.5768 | X101: =1/PI()*ATAN('Exhibit4_Impact-Test'!$Y$25*S_RS_SP)+'Exhibit4_Impact-Test'!$Y$26 -> 0.8394 | Y101: 0.8440 | Z101: =1/PI()*ATAN('Exhibit4_Impact-Test'!$Y$25*S_5050_SP)+'Exhibit4_Impact-Test'!$Y$26 -> 0.5000 | AA101: 0.5086 | AB101: =VLOOKUP(_xlfn.NUMBERVALUE(LEFT(A101,4)),Transactioncosts!$C:$G,5,FALSE) -> 70 | AD101: 1.0220 | AE101: 1.0315 | AF101: 1.0196 | AG101: 1.02192 | AH101: 1.0315 | AI101: 1.0196 | AK101: 0.0218 | AL101: 0.0310 | AM101: 0.0194 | AN101: 0.3413 | AO101: 1.0294 | AP101: 0.3522 | AR101: 0.0217 | AS101: 0.0310 | AT101: 0.0194 | AU101: 0.3336 | AV101: 0.8629 | AW101: 0.3486
A102: 1879.05 | C102: =raw_Data!B108 -> 3.94 | D102: =raw_Data!J108 -> 0.0157 | E102: =raw_Data!L108 -> 0.0034 | F102: 3.77 | G102: =raw_Data!K108 -> 0.0042 | H102: 0.0451 | J102: 0.9987 | K102: 0.0021 | M102: 1.0021 | N102: 1.0493 | O102: 101 | P102: 103 | R102: 0.0993 | S102: 0.9297 | T102: 0.0000 | V102: =1/PI()*ATAN('Exhibit4_Impact-Test'!$Y$25*S_RDY_SP)+'Exhibit4_Impact-Test'!$Y$26 -> 0.5624 | W102: 0.5737 | X102: =1/PI()*ATAN('Exhibit4_Impact-Test'!$Y$25*S_RS_SP)+'Exhibit4_Impact-Test'!$Y$26 -> 0.8429 | Y102: 0.8489 | Z102: =1/PI()*ATAN('Exhibit4_Impact-Test'!$Y$25*S_5050_SP)+'Exhibit4_Impact-Test'!$Y$26 -> 0.5000 | AA102: 0.5115 | AB102: =VLOOKUP(_xlfn.NUMBERVALUE(LEFT(A102,4)),Transactioncosts!$C:$G,5,FALSE) -> 70 | AD102: 1.0286 | AE102: 1.0418 | AF102: 1.0257 | AG102: 1.02847 | AH102: 1.0414 | AI102: 1.0256 | AK102: 0.0282 | AL102: 0.0410 | AM102: 0.0253 | AN102: 0.3695 | AO102: 1.0704 | AP102: 0.3776 | AR102: 0.0281 | AS102: 0.0405 | AT102: 0.0253 | AU102: 0.3617 | AV102: 0.9034 | AW102: 0.3739
A103: 1879.06 | C103: =raw_Data!B109 -> 3.96 | D103: =raw_Data!J109 -> 0.0158 | E103: =raw_Data!L109 -> 0.0034 | F103: 3.94 | G103: =raw_Data!K109 -> 0.0040 | H103: 0.0051 | J103: 0.9987 | K103: 0.0021 | M103: 1.0021 | N103: 1.0091 | O103: 102 | P103: 104 | R103: 0.0838 | S103: 0.5991 | T103: 0.0000 | V103: =1/PI()*ATAN('Exhibit4_Impact-Test'!$Y$25*S_RDY_SP)+'Exhibit4_Impact-Test'!$Y$26 -> 0.5529 | W103: 0.5546 | X103: =1/PI()*ATAN('Exhibit4_Impact-Test'!$Y$25*S_RS_SP)+'Exhibit4_Impact-Test'!$Y$26 -> 0.7786 | Y103: 0.7798 | Z103: =1/PI()*ATAN('Exhibit4_Impact-Test'!$Y$25*S_5050_SP)+'Exhibit4_Impact-Test'!$Y$26 -> 0.5000 | AA103: 0.5017 | AB103: =VLOOKUP(_xlfn.NUMBERVALUE(LEFT(A103,4)),Transactioncosts!$C:$G,5,FALSE) -> 70 | AD103: 1.0060 | AE103: 1.0075 | AF103: 1.0056 | AG103: 1.00595 | AH103: 1.0072 | AI103: 1.0056 | AK103: 0.0059 | AL103: 0.0075 | AM103: 0.0056 | AN103: 0.3754 | AO103: 1.0779 | AP103: 0.3831 | AR103: 0.0059 | AS103: 0.0072 | AT103: 0.0056 | AU103: 0.3676 | AV103: 0.9105 | AW103: 0.3794
A104: 1879.07 | C104: =raw_Data!B110 -> 4.04 | D104: =raw_Data!J110 -> 0.0160 | E104: =raw_Data!L110 -> 0.0034 | F104: 3.96 | G104: =raw_Data!K110 -> 0.0040 | H104: 0.0202 | J104: 0.9987 | K104: 0.0021 | M104: 1.0021 | N104: 1.0242 | O104: 103 | P104: 105 | R104: 0.0877 | S104: 0.8565 | T104: 0.0000 | V104: =1/PI()*ATAN('Exhibit4_Impact-Test'!$Y$25*S_RDY_SP)+'Exhibit4_Impact-Test'!$Y$26 -> 0.5553 | W104: 0.5607 | X104: =1/PI()*ATAN('Exhibit4_Impact-Test'!$Y$25*S_RS_SP)+'Exhibit4_Impact-Test'!$Y$26 -> 0.8318 | Y104: 0.8349 | Z104: =1/PI()*ATAN('Exhibit4_Impact-Test'!$Y$25*S_5050_SP)+'Exhibit4_Impact-Test'!$Y$26 -> 0.5000 | AA104: 0.5055 | AB104: =VLOOKUP(_xlfn.NUMBERVALUE(LEFT(A104,4)),Transactioncosts!$C:$G,5,FALSE) -> 70 | AD104: 1.0144 | AE104: 1.0205 | AF104: 1.0131 | AG104: 1.01432 | AH104: 1.0203 | AI104: 1.0131 | AK104: 0.0143 | AL104: 0.0203 | AM104: 0.0131 | AN104: 0.3897 | AO104: 1.0982 | AP104: 0.3962 | AR104: 0.0142 | AS104: 0.0201 | AT104: 0.0130 | AU104: 0.3818 | AV104: 0.9306 | AW104: 0.3924
A105: 1879.08 | C105: =raw_Data!B111 -> 4.07 | D105: =raw_Data!J111 -> 0.0161 | E105: =raw_Data!L111 -> 0.0034 | F105: 4.04 | G105: =raw_Data!K111 -> 0.0040 | H105: 0.0074 | J105: 0.9987 | K105: 0.0020 | M105: 1.0020 | N105: 1.0114 | O105: 104 | P105: 106 | R105: 0.0839 | S105: 0.6878 | T105: 0.0000 | V105: =1/PI()*ATAN('Exhibit4_Impact-Test'!$Y$25*S_RDY_SP)+'Exhibit4_Impact-Test'!$Y$26 -> 0.5529 | W105: 0.5552 | X105: =1/PI()*ATAN('Exhibit4_Impact-Test'!$Y$25*S_RS_SP)+'Exhibit4_Impact-Test'!$Y$26 -> 0.7999 | Y105: 0.8014 | Z105: =1/PI()*ATAN('Exhibit4_Impact-Test'!$Y$25*S_5050_SP)+'Exhibit4_Impact-Test'!$Y$26 -> 0.5000 | AA105: 0.5023 | AB105: =VLOOKUP(_xlfn.NUMBERVALUE(LEFT(A105,4)),Transactioncosts!$C:$G,5,FALSE) -> 70 | AD105: 1.0072 | AE105: 1.0095 | AF105: 1.0067 | AG105: 1.00722 | AH105: 1.0093 | AI105: 1.0067 | AK105: 0.0072 | AL105: 0.0095 | AM105: 0.0067 | AN105: 0.3969 | AO105: 1.1077 | AP105: 0.4029 | AR105: 0.0072 | AS105: 0.0092 | AT105: 0.0067 | AU105: 0.3890 | AV105: 0.9398 | AW105: 0.3991
A106: 1879.09 | C106: =raw_Data!B112 -> 4.22 | D106: =raw_Data!J112 -> 0.0163 | E106: =raw_Data!L112 -> 0.0033 | F106: 4.07 | G106: =raw_Data!K112 -> 0.0040 | H106: 0.0369 | J106: 0.9987 | K106: 0.0020 | M106: 1.0020 | N106: 1.0408 | O106: 105 | P106: 107 | R106: 0.0865 | S106: 0.9165 | T106: 0.0000 | V106: =1/PI()*ATAN('Exhibit4_Impact-Test'!$Y$25*S_RDY_SP)+'Exhibit4_Impact-Test'!$Y$26 -> 0.5545 | W106: 0.5639 | X106: =1/PI()*ATAN('Exhibit4_Impact-Test'!$Y$25*S_RS_SP)+'Exhibit4_Impact-Test'!$Y$26 -> 0.8410 | Y106: 0.8460 | Z106: =1/PI()*ATAN('Exhibit4_Impact-Test'!$Y$25*S_5050_SP)+'Exhibit4_Impact-Test'!$Y$26 -> 0.5000 | AA106: 0.5095 | AB106: =VLOOKUP(_xlfn.NUMBERVALUE(LEFT(A106,4)),Transactioncosts!$C:$G,5,FALSE) -> 70 | AD106: 1.0236 | AE106: 1.0347 | AF106: 1.0214 | AG106: 1.02344 | AH106: 1.0347 | AI106: 1.0214 | AK106: 0.0233 | AL106: 0.0341 | AM106: 0.0212 | AN106: 0.4202 | AO106: 1.1418 | AP106: 0.4241 | AR106: 0.0232 | AS106: 0.0341 | AT106: 0.0211 | AU106: 0.4122 | AV106: 0.9739 | AW106: 0.4203
A107: 1879.10 | C107: =raw_Data!B113 -> 4.68 | D107: =raw_Data!J113 -> 0.0164 | E107: =raw_Data!L113 -> 0.0033 | F107: 4.22 | G107: =raw_Data!K113 -> 0.0039 | H107: 0.1090 | J107: 0.9987 | K107: 0.0020 | M107: 1.0020 | N107: 1.1129 | O107: 106 | P107: 108 | R107: 0.0748 | S107: 0.9702 | T107: 0.0000 | V107: =1/PI()*ATAN('Exhibit4_Impact-Test'!$Y$25*S_RDY_SP)+'Exhibit4_Impact-Test'!$Y$26 -> 0.5473 | W107: 0.5731 | X107: =1/PI()*ATAN('Exhibit4_Impact-Test'!$Y$25*S_RS_SP)+'Exhibit4_Impact-Test'!$Y$26 -> 0.8485 | Y107: 0.8615 | Z107: =1/PI()*ATAN('Exhibit4_Impact-Test'!$Y$25*S_5050_SP)+'Exhibit4_Impact-Test'!$Y$26 -> 0.5000 | AA107: 0.5262 | AB107: =VLOOKUP(_xlfn.NUMBERVALUE(LEFT(A107,4)),Transactioncosts!$C:$G,5,FALSE) -> 70 | AD107: 1.0627 | AE107: 1.0961 | AF107: 1.0575 | AG107: 1.06231 | AH107: 1.0960 | AI107: 1.0573 | AK107: 0.0608 | AL107: 0.0918 | AM107: 0.0559 | AN107: 0.4810 | AO107: 1.2335 | AP107: 0.4800 | AR107: 0.0605 | AS107: 0.0916 | AT107: 0.0557 | AU107: 0.4726 | AV107: 1.0655 | AW107: 0.4760
A108: 1879.11 | C108: =raw_Data!B114 -> 4.93 | D108: =raw_Data!J114 -> 0.0165 | E108: =raw_Data!L114 -> 0.0033 | F108: 4.68 | G108: =raw_Data!K114 -> 0.0035 | H108: 0.0534 | J108: 0.9987 | K108: 0.0020 | M108: 1.0020 | N108: 1.0569 | O108: 107 | P108: 109 | R108: 0.0293 | S108: 0.9413 | T108: 0.0000 | V108: =1/PI()*ATAN('Exhibit4_Impact-Test'!$Y$25*S_RDY_SP)+'Exhibit4_Impact-Test'!$Y$26 -> 0.5186 | W108: 0.5319 | X108: =1/PI()*ATAN('Exhibit4_Impact-Test'!$Y$25*S_RS_SP)+'Exhibit4_Impact-Test'!$Y$26 -> 0.8446 | Y108: 0.8515 | Z108: =1/PI()*ATAN('Exhibit4_Impact-Test'!$Y$25*S_5050_SP)+'Exhibit4_Impact-Test'!$Y$26 -> 0.5000 | AA108: 0.5133 | AB108: =VLOOKUP(_xlfn.NUMBERVALUE(LEFT(A108,4)),Transactioncosts!$C:$G,5,FALSE) -> 70 | AD108: 1.0305 | AE108: 1.0484 | AF108: 1.0295 | AG108: 1.03032 | AH108: 1.0445 | AI108: 1.0294 | AK108: 0.0300 | AL108: 0.0473 | AM108: 0.0291 | AN108: 0.5110 | AO108: 1.2808 | AP108: 0.5090 | AR108: 0.0299 | AS108: 0.0435 | AT108: 0.0290 | AU108: 0.5025 | AV108: 1.1091 | AW108: 0.5049
A109: 1879.12 | C109: =raw_Data!B115 -> 4.92 | D109: =raw_Data!J115 -> 0.0167 | E109: =raw_Data!L115 -> 0.0033 | F109: 4.93 | G109: =raw_Data!K115 -> 0.0034 | H109: -0.0020 | J109: 0.9987 | K109: 0.0020 | M109: 1.0020 | N109: 1.0014 | O109: 108 | P109: 110 | R109: 0.0096 | S109: -0.3795 | T109: 0.0000 | V109: =1/PI()*ATAN('Exhibit4_Impact-Test'!$Y$25*S_RDY_SP)+'Exhibit4_Impact-Test'!$Y$26 -> 0.5061 | W109: 0.5059 | X109: =1/PI()*ATAN('Exhibit4_Impact-Test'!$Y$25*S_RS_SP)+'Exhibit4_Impact-Test'!$Y$26 -> 0.2933 | Y109: 0.2932 | Z109: =1/PI()*ATAN('Exhibit4_Impact-Test'!$Y$25*S_5050_SP)+'Exhibit4_Impact-Test'!$Y$26 -> 0.5000 | AA109: 0.4998 | AB109: =VLOOKUP(_xlfn.NUMBERVALUE(LEFT(A109,4)),Transactioncosts!$C:$G,5,FALSE) -> 70 | AD109: 1.0017 | AE109: 1.0018 | AF109: 1.0017 | AG109: 1.00160 | AH109: 0.9980 | AI109: 1.0017 | AK109: 0.0017 | AL109: 0.0018 | AM109: 0.0017 | AN109: 0.5127 | AO109: 1.2826 | AP109: 0.5107 | AR109: 0.0016 | AS109: -0.0020 | AT109: 0.0017 | AU109: 0.5041 | AV109: 1.1070 | AW109: 0.5066
A110: 1880.01 | C110: =raw_Data!B116 -> 5.11 | D110: =raw_Data!J116 -> 0.0171 | E110: =raw_Data!L116 -> 0.0033 | F110: 4.92 | G110: =raw_Data!K116 -> 0.0035 | H110: 0.0386 | J110: 0.9987 | K110: 0.0020 | M110: 1.0020 | N110: 1.0421 | O110: 109 | P110: 111 | R110: 0.0249 | S110: 0.9212 | T110: 0.0000 | V110: =1/PI()*ATAN('Exhibit4_Impact-Test'!$Y$25*S_RDY_SP)+'Exhibit4_Impact-Test'!$Y$26 -> 0.5159 | W110: 0.5257 | X110: =1/PI()*ATAN('Exhibit4_Impact-Test'!$Y$25*S_RS_SP)+'Exhibit4_Impact-Test'!$Y$26 -> 0.8417 | Y110: 0.8469 | Z110: =1/PI()*ATAN('Exhibit4_Impact-Test'!$Y$25*S_5050_SP)+'Exhibit4_Impact-Test'!$Y$26 -> 0.5000 | AA110: 0.5098 | AB110: =VLOOKUP(_xlfn.NUMBERVALUE(LEFT(A110,4)),Transactioncosts!$C:$G,5,FALSE) -> 70 | AD110: 1.0227 | AE110: 1.0357 | AF110: 1.0220 | AG110: 1.02258 | AH110: 1.0356 | AI110: 1.0220 | AK110: 0.0224 | AL110: 0.0351 | AM110: 0.0218 | AN110: 0.5351 | AO110: 1.3177 | AP110: 0.5325 | AR110: 0.0223 | AS110: 0.0350 | AT110: 0.0217 | AU110: 0.5264 | AV110: 1.1420 | AW110: 0.5283
A111: 1880.02 | C111: =raw_Data!B117 -> 5.20 | D111: =raw_Data!J117 -> 0.0175 | E111: =raw_Data!L117 -> 0.0033 | F111: 5.11 | G111: =raw_Data!K117 -> 0.0034 | H111: 0.0176 | J111: 0.9979 | K111: 0.0012 | M111: 1.0012 | N111: 1.0210 | O111: 110 | P111: 112 | R111: 0.0201 | S111: 0.8426 | T111: 0.0000 | V111: =1/PI()*ATAN('Exhibit4_Impact-Test'!$Y$25*S_RDY_SP)+'Exhibit4_Impact-Test'!$Y$26 -> 0.5128 | W111: 0.5177 | X111: =1/PI()*ATAN('Exhibit4_Impact-Test'!$Y$25*S_RS_SP)+'Exhibit4_Impact-Test'!$Y$26 -> 0.8295 | Y111: 0.8323 | Z111: =1/PI()*ATAN('Exhibit4_Impact-Test'!$Y$25*S_5050_SP)+'Exhibit4_Impact-Test'!$Y$26 -> 0.5000 | AA111: 0.5049 | AB111: =VLOOKUP(_xlfn.NUMBERVALUE(LEFT(A111,4)),Transactioncosts!$C:$G,5,FALSE) -> 70 | AD111: 1.0114 | AE111: 1.0176 | AF111: 1.0111 | AG111: 1.01135 | AH111: 1.0176 | AI111: 1.0111 | AK111: 0.0113 | AL111: 0.0175 | AM111: 0.0110 | AN111: 0.5464 | AO111: 1.3352 | AP111: 0.5435 | AR111: 0.0113 | AS111: 0.0175 | AT111: 0.0110 | AU111: 0.5377 | AV111: 1.1595 | AW111: 0.5393
A112: 1880.03 | C112: =raw_Data!B118 -> 5.30 | D112: =raw_Data!J118 -> 0.0179 | E112: =raw_Data!L118 -> 0.0032 | F112: 5.2 | G112: =raw_Data!K118 -> 0.0034 | H112: 0.0192 | J112: 0.9979 | K112: 0.0011 | M112: 1.0011 | N112: 1.0227 | O112: 111 | P112: 113 | R112: 0.0264 | S112: 0.8547 | T112: 0.0000 | V112: =1/PI()*ATAN('Exhibit4_Impact-Test'!$Y$25*S_RDY_SP)+'Exhibit4_Impact-Test'!$Y$26 -> 0.5168 | W112: 0.5221 | X112: =1/PI()*ATAN('Exhibit4_Impact-Test'!$Y$25*S_RS_SP)+'Exhibit4_Impact-Test'!$Y$26 -> 0.8315 | Y112: 0.8345 | Z112: =1/PI()*ATAN('Exhibit4_Impact-Test'!$Y$25*S_5050_SP)+'Exhibit4_Impact-Test'!$Y$26 -> 0.5000 | AA112: 0.5053 | AB112: =VLOOKUP(_xlfn.NUMBERVALUE(LEFT(A112,4)),Transactioncosts!$C:$G,5,FALSE) -> 70 | AD112: 1.0123 | AE112: 1.0190 | AF112: 1.0119 | AG112: 1.01225 | AH112: 1.0144 | AI112: 1.0119 | AK112: 0.0122 | AL112: 0.0189 | AM112: 0.0118 | AN112: 0.5586 | AO112: 1.3541 | AP112: 0.5554 | AR112: 0.0122 | AS112: 0.0143 | AT112: 0.0118 | AU112: 0.5499 | AV112: 1.1738 | AW112: 0.5511
A113: 1880.04 | C113: =raw_Data!B119 -> 5.18 | D113: =raw_Data!J119 -> 0.0183 | E113: =raw_Data!L119 -> 0.0032 | F113: 5.3 | G113: =raw_Data!K119 -> 0.0035 | H113: -0.0226 | J113: 0.9979 | K113: 0.0011 | M113: 1.0011 | N113: 0.9808 | O113: 112 | P113: 114 | R113: 0.0316 | S113: -0.8746 | T113: 0.0000 | V113: =1/PI()*ATAN('Exhibit4_Impact-Test'!$Y$25*S_RDY_SP)+'Exhibit4_Impact-Test'!$Y$26 -> 0.5201 | W113: 0.5150 | X113: =1/PI()*ATAN('Exhibit4_Impact-Test'!$Y$25*S_RS_SP)+'Exhibit4_Impact-Test'!$Y$26 -> 0.1653 | Y113: 0.1625 | Z113: =1/PI()*ATAN('Exhibit4_Impact-Test'!$Y$25*S_5050_SP)+'Exhibit4_Impact-Test'!$Y$26 -> 0.5000 | AA113: 0.4949 | AB113: =VLOOKUP(_xlfn.NUMBERVALUE(LEFT(A113,4)),Transactioncosts!$C:$G,5,FALSE) -> 70 | AD113: 0.9906 | AE113: 0.9978 | AF113: 0.9910 | AG113: 0.99041 | AH113: 0.9977 | AI113: 0.9909 | AK113: -0.0095 | AL113: -0.0022 | AM113: -0.0091 | AN113: 0.5491 | AO113: 1.3518 | AP113: 0.5463 | AR113: -0.0096 | AS113: -0.0023 | AT113: -0.0091 | AU113: 0.5402 | AV113: 1.1715 | AW113: 0.5420
A114: 1880.05 | C114: =raw_Data!B120 -> 4.77 | D114: =raw_Data!J120 -> 0.0188 | E114: =raw_Data!L120 -> 0.0032 | F114: 5.18 | G114: =raw_Data!K120 -> 0.0036 | H114: -0.0792 | J114: 0.9979 | K114: 0.0011 | M114: 1.0011 | N114: 0.9245 | O114: 113 | P114: 115 | R114: 0.0576 | S114: -0.9608 | T114: 0.0000 | V114: =1/PI()*ATAN('Exhibit4_Impact-Test'!$Y$25*S_RDY_SP)+'Exhibit4_Impact-Test'!$Y$26 -> 0.5365 | W114: 0.5167 | X114: =1/PI()*ATAN('Exhibit4_Impact-Test'!$Y$25*S_RS_SP)+'Exhibit4_Impact-Test'!$Y$26 -> 0.1527 | Y114: 0.1427 | Z114: =1/PI()*ATAN('Exhibit4_Impact-Test'!$Y$25*S_5050_SP)+'Exhibit4_Impact-Test'!$Y$26 -> 0.5000 | AA114: 0.4801 | AB114: =VLOOKUP(_xlfn.NUMBERVALUE(LEFT(A114,4)),Transactioncosts!$C:$G,5,FALSE) -> 70 | AD114: 0.9600 | AE114: 0.9894 | AF114: 0.9628 | AG114: 0.95960 | AH114: 0.9850 | AI114: 0.9626 | AK114: -0.0408 | AL114: -0.0107 | AM114: -0.0379 | AN114: 0.5083 | AO114: 1.3412 | AP114: 0.5084 | AR114: -0.0412 | AS114: -0.0151 | AT114: -0.0381 | AU114: 0.4990 | AV114: 1.1563 | AW114: 0.5039
A115: 1880.06 | C115: =raw_Data!B121 -> 4.79 | D115: =raw_Data!J121 -> 0.0192 | E115: =raw_Data!L121 -> 0.0032 | F115: 4.77 | G115: =raw_Data!K121 -> 0.0040 | H115: 0.0042 | J115: 0.9979 | K115: 0.0011 | M115: 1.0011 | N115: 1.0082 | O115: 114 | P115: 116 | R115: 0.1127 | S115: 0.5668 | T115: 0.0000 | V115: =1/PI()*ATAN('Exhibit4_Impact-Test'!$Y$25*S_RDY_SP)+'Exhibit4_Impact-Test'!$Y$26 -> 0.5706 | W115: 0.5723 | X115: =1/PI()*ATAN('Exhibit4_Impact-Test'!$Y$25*S_RS_SP)+'Exhibit4_Impact-Test'!$Y$26 -> 0.7699 | Y115: 0.7712 | Z115: =1/PI()*ATAN('Exhibit4_Impact-Test'!$Y$25*S_5050_SP)+'Exhibit4_Impact-Test'!$Y$26 -> 0.5000 | AA115: 0.5018 | AB115: =VLOOKUP(_xlfn.NUMBERVALUE(LEFT(A115,4)),Transactioncosts!$C:$G,5,FALSE) -> 70 | AD115: 1.0051 | AE115: 1.0066 | AF115: 1.0046 | AG115: 1.00510 | AH115: 1.0061 | AI115: 1.0046 | AK115: 0.0051 | AL115: 0.0065 | AM115: 0.0046 | AN115: 0.5134 | AO115: 1.3477 | AP115: 0.5130 | AR115: 0.0051 | AS115: 0.0060 | AT115: 0.0046 | AU115: 0.5041 | AV115: 1.1624 | AW115: 0.5085
A116: 1880.07 | C116: =raw_Data!B122 -> 5.01 | D116: =raw_Data!J122 -> 0.0196 | E116: =raw_Data!L122 -> 0.0032 | F116: 4.79 | G116: =raw_Data!K122 -> 0.0041 | H116: 0.0459 | J116: 0.9979 | K116: 0.0010 | M116: 1.0010 | N116: 1.0500 | O116: 115 | P116: 117 | R116: 0.1246 | S116: 0.9352 | T116: 0.0000 | V116: =1/PI()*ATAN('Exhibit4_Impact-Test'!$Y$25*S_RDY_SP)+'Exhibit4_Impact-Test'!$Y$26 -> 0.5777 | W116: 0.5893 | X116: =1/PI()*ATAN('Exhibit4_Impact-Test'!$Y$25*S_RS_SP)+'Exhibit4_Impact-Test'!$Y$26 -> 0.8437 | Y116: 0.8499 | Z116: =1/PI()*ATAN('Exhibit4_Impact-Test'!$Y$25*S_5050_SP)+'Exhibit4_Impact-Test'!$Y$26 -> 0.5000 | AA116: 0.5119 | AB116: =VLOOKUP(_xlfn.NUMBERVALUE(LEFT(A116,4)),Transactioncosts!$C:$G,5,FALSE) -> 70 | AD116: 1.0293 | AE116: 1.0424 | AF116: 1.0255 | AG116: 1.02922 | AH116: 1.0423 | AI116: 1.0254 | AK116: 0.0289 | AL116: 0.0415 | AM116: 0.0252 | AN116: 0.5423 | AO116: 1.3892 | AP116: 0.5382 | AR116: 0.0288 | AS116: 0.0414 | AT116: 0.0251 | AU116: 0.5329 | AV116: 1.2038 | AW116: 0.5337
A117: 1880.08 | C117: =raw_Data!B123 -> 5.19 | D117: =raw_Data!J123 -> 0.0200 | E117: =raw_Data!L123 -> 0.0031 | F117: 5.01 | G117: =raw_Data!K123 -> 0.0040 | H117: 0.0359 | J117: 0.9979 | K117: 0.0010 | M117: 1.0010 | N117: 1.0399 | O117: 116 | P117: 118 | R117: 0.1162 | S117: 0.9191 | T117: 0.0000 | V117: =1/PI()*ATAN('Exhibit4_Impact-Test'!$Y$25*S_RDY_SP)+'Exhibit4_Impact-Test'!$Y$26 -> 0.5727 | W117: 0.5820 | X117: =1/PI()*ATAN('Exhibit4_Impact-Test'!$Y$25*S_RS_SP)+'Exhibit4_Impact-Test'!$Y$26 -> 0.8414 | Y117: 0.8464 | Z117: =1/PI()*ATAN('Exhibit4_Impact-Test'!$Y$25*S_5050_SP)+'Exhibit4_Impact-Test'!$Y$26 -> 0.5000 | AA117: 0.5095 | AB117: =VLOOKUP(_xlfn.NUMBERVALUE(LEFT(A117,4)),Transactioncosts!$C:$G,5,FALSE) -> 70 | AD117: 1.0233 | AE117: 1.0338 | AF117: 1.0205 | AG117: 1.02321 | AH117: 1.0299 | AI117: 1.0204 | AK117: 0.0230 | AL117: 0.0332 | AM117: 0.0203 | AN117: 0.5653 | AO117: 1.4224 | AP117: 0.5585 | AR117: 0.0229 | AS117: 0.0294 | AT117: 0.0202 | AU117: 0.5559 | AV117: 1.2333 | AW117: 0.5539
A118: 1880.09 | C118: =raw_Data!B124 -> 5.18 | D118: =raw_Data!J124 -> 0.0204 | E118: =raw_Data!L124 -> 0.0031 | F118: 5.19 | G118: =raw_Data!K124 -> 0.0039 | H118: -0.0019 | J118: 0.9979 | K118: 0.0010 | M118: 1.0010 | N118: 1.0020 | O118: 117 | P118: 119 | R118: 0.1123 | S118: -0.3803 | T118: 0.0000 | V118: =1/PI()*ATAN('Exhibit4_Impact-Test'!$Y$25*S_RDY_SP)+'Exhibit4_Impact-Test'!$Y$26 -> 0.5703 | W118: 0.5706 | X118: =1/PI()*ATAN('Exhibit4_Impact-Test'!$Y$25*S_RS_SP)+'Exhibit4_Impact-Test'!$Y$26 -> 0.2930 | Y118: 0.2932 | Z118: =1/PI()*ATAN('Exhibit4_Impact-Test'!$Y$25*S_5050_SP)+'Exhibit4_Impact-Test'!$Y$26 -> 0.5000 | AA118: 0.5003 | AB118: =VLOOKUP(_xlfn.NUMBERVALUE(LEFT(A118,4)),Transactioncosts!$C:$G,5,FALSE) -> 70 | AD118: 1.0016 | AE118: 1.0013 | AF118: 1.0015 | AG118: 1.00151 | AH118: 0.9975 | AI118: 1.0015 | AK118: 0.0016 | AL118: 0.0013 | AM118: 0.0015 | AN118: 0.5669 | AO118: 1.4237 | AP118: 0.5600 | AR118: 0.0015 | AS118: -0.0025 | AT118: 0.0015 | AU118: 0.5574 | AV118: 1.2307 | AW118: 0.5554
A119: 1880.10 | C119: =raw_Data!B125 -> 5.33 | D119: =raw_Data!J125 -> 0.0208 | E119: =raw_Data!L125 -> 0.0031 | F119: 5.18 | G119: =raw_Data!K125 -> 0.0040 | H119: 0.0290 | J119: 0.9979 | K119: 0.0010 | M119: 1.0010 | N119: 1.0330 | O119: 118 | P119: 120 | R119: 0.1266 | S119: 0.9028 | T119: 0.0000 | V119: =1/PI()*ATAN('Exhibit4_Impact-Test'!$Y$25*S_RDY_SP)+'Exhibit4_Impact-Test'!$Y$26 -> 0.5789 | W119: 0.5866 | X119: =1/PI()*ATAN('Exhibit4_Impact-Test'!$Y$25*S_RS_SP)+'Exhibit4_Impact-Test'!$Y$26 -> 0.8390 | Y119: 0.8432 | Z119: =1/PI()*ATAN('Exhibit4_Impact-Test'!$Y$25*S_5050_SP)+'Exhibit4_Impact-Test'!$Y$26 -> 0.5000 | AA119: 0.5079 | AB119: =VLOOKUP(_xlfn.NUMBERVALUE(LEFT(A119,4)),Transactioncosts!$C:$G,5,FALSE) -> 70 | AD119: 1.0195 | AE119: 1.0278 | AF119: 1.0170 | AG119: 1.01944 | AH119: 1.0278 | AI119: 1.0169 | AK119: 0.0193 | AL119: 0.0274 | AM119: 0.0168 | AN119: 0.5862 | AO119: 1.4511 | AP119: 0.5768 | AR119: 0.0193 | AS119: 0.0274 | AT119: 0.0168 | AU119: 0.5766 | AV119: 1.2582 | AW119: 0.5721
A120: 1880.11 | C120: =raw_Data!B126 -> 5.61 | D120: =raw_Data!J126 -> 0.0213 | E120: =raw_Data!L126 -> 0.0031 | F120: 5.33 | G120: =raw_Data!K126 -> 0.0040 | H120: 0.0525 | J120: 0.9979 | K120: 0.0009 | M120: 1.0009 | N120: 1.0565 | O120: 119 | P120: 121 | R120: 0.1257 | S120: 0.9443 | T120: 0.0000 | V120: =1/PI()*ATAN('Exhibit4_Impact-Test'!$Y$25*S_RDY_SP)+'Exhibit4_Impact-Test'!$Y$26 -> 0.5784 | W120: 0.5915 | X120: =1/PI()*ATAN('Exhibit4_Impact-Test'!$Y$25*S_RS_SP)+'Exhibit4_Impact-Test'!$Y$26 -> 0.8450 | Y120: 0.8519 | Z120: =1/PI()*ATAN('Exhibit4_Impact-Test'!$Y$25*S_5050_SP)+'Exhibit4_Impact-Test'!$Y$26 -> 0.5000 | AA120: 0.5135 | AB120: =VLOOKUP(_xlfn.NUMBERVALUE(LEFT(A120,4)),Transactioncosts!$C:$G,5,FALSE) -> 70 | AD120: 1.0331 | AE120: 1.0479 | AF120: 1.0287 | AG120: 1.03294 | AH120: 1.0478 | AI120: 1.0286 | AK120: 0.0326 | AL120: 0.0468 | AM120: 0.0283 | AN120: 0.6188 | AO120: 1.4979 | AP120: 0.6051 | AR120: 0.0324 | AS120: 0.0467 | AT120: 0.0282 | AU120: 0.6090 | AV120: 1.3049 | AW120: 0.6004
A121: 1880.12 | C121: =raw_Data!B127 -> 5.84 | D121: =raw_Data!J127 -> 0.0217 | E121: =raw_Data!L127 -> 0.0031 | F121: 5.61 | G121: =raw_Data!K127 -> 0.0039 | H121: 0.0410 | J121: 0.9979 | K121: 0.0009 | M121: 1.0009 | N121: 1.0449 | O121: 120 | P121: 122 | R121: 0.1134 | S121: 0.9302 | T121: 0.0000 | V121: =1/PI()*ATAN('Exhibit4_Impact-Test'!$Y$25*S_RDY_SP)+'Exhibit4_Impact-Test'!$Y$26 -> 0.5710 | W121: 0.5815 | X121: =1/PI()*ATAN('Exhibit4_Impact-Test'!$Y$25*S_RS_SP)+'Exhibit4_Impact-Test'!$Y$26 -> 0.8430 | Y121: 0.8486 | Z121: =1/PI()*ATAN('Exhibit4_Impact-Test'!$Y$25*S_5050_SP)+'Exhibit4_Impact-Test'!$Y$26 -> 0.5000 | AA121: 0.5107 | AB121: =VLOOKUP(_xlfn.NUMBERVALUE(LEFT(A121,4)),Transactioncosts!$C:$G,5,FALSE) -> 70 | AD121: 1.0260 | AE121: 1.0380 | AF121: 1.0229 | AG121: 1.02591 | AH121: 1.0379 | AI121: 1.0228 | AK121: 0.0257 | AL121: 0.0373 | AM121: 0.0226 | AN121: 0.6444 | AO121: 1.5352 | AP121: 0.6277 | AR121: 0.0256 | AS121: 0.0372 | AT121: 0.0226 | AU121: 0.6346 | AV121: 1.3421 | AW121: 0.6229
A122: 1881.01 | C122: =raw_Data!B128 -> 6.19 | D122: =raw_Data!J128 -> 0.0221 | E122: =raw_Data!L128 -> 0.0030 | F122: 5.84 | G122: =raw_Data!K128 -> 0.0038 | H122: 0.0599 | J122: 0.9979 | K122: 0.0009 | M122: 1.0009 | N122: 1.0637 | O122: 121 | P122: 123 | R122: 0.1065 | S122: 0.9515 | T122: 0.0000 | V122: =1/PI()*ATAN('Exhibit4_Impact-Test'!$Y$25*S_RDY_SP)+'Exhibit4_Impact-Test'!$Y$26 -> 0.5668 | W122: 0.5817 | X122: =1/PI()*ATAN('Exhibit4_Impact-Test'!$Y$25*S_RS_SP)+'Exhibit4_Impact-Test'!$Y$26 -> 0.8460 | Y122: 0.8538 | Z122: =1/PI()*ATAN('Exhibit4_Impact-Test'!$Y$25*S_5050_SP)+'Exhibit4_Impact-Test'!$Y$26 -> 0.5000 | AA122: 0.5152 | AB122: =VLOOKUP(_xlfn.NUMBERVALUE(LEFT(A122,4)),Transactioncosts!$C:$G,5,FALSE) -> 70 | AD122: 1.0365 | AE122: 1.0540 | AF122: 1.0323 | AG122: 1.03632 | AH122: 1.0498 | AI122: 1.0322 | AK122: 0.0358 | AL122: 0.0526 | AM122: 0.0318 | AN122: 0.6803 | AO122: 1.5878 | AP122: 0.6595 | AR122: 0.0357 | AS122: 0.0486 | AT122: 0.0317 | AU122: 0.6703 | AV122: 1.3907 | AW122: 0.6546
A123: 1881.02 | C123: =raw_Data!B129 -> 6.17 | D123: =raw_Data!J129 -> 0.0225 | E123: =raw_Data!L129 -> 0.0030 | F123: 6.19 | G123: =raw_Data!K129 -> 0.0036 | H123: -0.0032 | J123: 0.9995 | K123: 0.0025 | M123: 1.0025 | N123: 1.0004 | O123: 122 | P123: 124 | R123: 0.0904 | S123: -0.5159 | T123: 0.0000 | V123: =1/PI()*ATAN('Exhibit4_Impact-Test'!$Y$25*S_RDY_SP)+'Exhibit4_Impact-Test'!$Y$26 -> 0.5569 | W123: 0.5564 | X123: =1/PI()*ATAN('Exhibit4_Impact-Test'!$Y$25*S_RS_SP)+'Exhibit4_Impact-Test'!$Y$26 -> 0.2450 | Y123: 0.2446 | Z123: =1/PI()*ATAN('Exhibit4_Impact-Test'!$Y$25*S_5050_SP)+'Exhibit4_Impact-Test'!$Y$26 -> 0.5000 | AA123: 0.4995 | AB123: =VLOOKUP(_xlfn.NUMBERVALUE(LEFT(A123,4)),Transactioncosts!$C:$G,5,FALSE) -> 70 | AD123: 1.0013 | AE123: 1.0020 | AF123: 1.0014 | AG123: 1.00128 | AH123: 0.9979 | AI123: 1.0014 | AK123: 0.0013 | AL123: 0.0020 | AM123: 0.0014 | AN123: 0.6816 | AO123: 1.5898 | AP123: 0.6610 | AR123: 0.0013 | AS123: -0.0021 | AT123: 0.0014 | AU123: 0.6716 | AV123: 1.3887 | AW123: 0.6561
A124: 1881.03 | C124: =raw_Data!B130 -> 6.24 | D124: =raw_Data!J130 -> 0.0229 | E124: =raw_Data!L130 -> 0.0030 | F124: 6.17 | G124: =raw_Data!K130 -> 0.0037 | H124: 0.0113 | J124: 0.9995 | K124: 0.0025 | M124: 1.0025 | N124: 1.0151 | O124: 123 | P124: 125 | R124: 0.1020 | S124: 0.7894 | T124: 0.0000 | V124: =1/PI()*ATAN('Exhibit4_Impact-Test'!$Y$25*S_RDY_SP)+'Exhibit4_Impact-Test'!$Y$26 -> 0.5640 | W124: 0.5671 | X124: =1/PI()*ATAN('Exhibit4_Impact-Test'!$Y$25*S_RS_SP)+'Exhibit4_Impact-Test'!$Y$26 -> 0.8203 | Y124: 0.8221 | Z124: =1/PI()*ATAN('Exhibit4_Impact-Test'!$Y$25*S_5050_SP)+'Exhibit4_Impact-Test'!$Y$26 -> 0.5000 | AA124: 0.5031 | AB124: =VLOOKUP(_xlfn.NUMBERVALUE(LEFT(A124,4)),Transactioncosts!$C:$G,5,FALSE) -> 70 | AD124: 1.0096 | AE124: 1.0128 | AF124: 1.0088 | AG124: 1.00957 | AH124: 1.0088 | AI124: 1.0088 | AK124: 0.0095 | AL124: 0.0127 | AM124: 0.0087 | AN124: 0.6911 | AO124: 1.6025 | AP124: 0.6697 | AR124: 0.0095 | AS124: 0.0087 | AT124: 0.0087 | AU124: 0.6811 | AV124: 1.3974 | AW124: 0.6648
A125: 1881.04 | C125: =raw_Data!B131 -> 6.22 | D125: =raw_Data!J131 -> 0.0233 | E125: =raw_Data!L131 -> 0.0030 | F125: 6.24 | G125: =raw_Data!K131 -> 0.0037 | H125: -0.0032 | J125: 0.9995 | K125: 0.0025 | M125: 1.0025 | N125: 1.0005 | O125: 124 | P125: 126 | R125: 0.1062 | S125: -0.5147 | T125: 0.0000 | V125: =1/PI()*ATAN('Exhibit4_Impact-Test'!$Y$25*S_RDY_SP)+'Exhibit4_Impact-Test'!$Y$26 -> 0.5666 | W125: 0.5661 | X125: =1/PI()*ATAN('Exhibit4_Impact-Test'!$Y$25*S_RS_SP)+'Exhibit4_Impact-Test'!$Y$26 -> 0.2454 | Y125: 0.2450 | Z125: =1/PI()*ATAN('Exhibit4_Impact-Test'!$Y$25*S_5050_SP)+'Exhibit4_Impact-Test'!$Y$26 -> 0.5000 | AA125: 0.4995 | AB125: =VLOOKUP(_xlfn.NUMBERVALUE(LEFT(A125,4)),Transactioncosts!$C:$G,5,FALSE) -> 70 | AD125: 1.0014 | AE125: 1.0020 | AF125: 1.0015 | AG125: 1.00133 | AH125: 0.9978 | AI125: 1.0015 | AK125: 0.0014 | AL125: 0.0020 | AM125: 0.0015 | AN125: 0.6925 | AO125: 1.6045 | AP125: 0.6712 | AR125: 0.0013 | AS125: -0.0022 | AT125: 0.0015 | AU125: 0.6824 | AV125: 1.3952 | AW125: 0.6663
A126: 1881.05 | C126: =raw_Data!B132 -> 6.50 | D126: =raw_Data!J132 -> 0.0238 | E126: =raw_Data!L132 -> 0.0030 | F126: 6.22 | G126: =raw_Data!K132 -> 0.0038 | H126: 0.0450 | J126: 0.9995 | K126: 0.0025 | M126: 1.0025 | N126: 1.0488 | O126: 125 | P126: 127 | R126: 0.1174 | S126: 0.9372 | T126: 0.0000 | V126: =1/PI()*ATAN('Exhibit4_Impact-Test'!$Y$25*S_RDY_SP)+'Exhibit4_Impact-Test'!$Y$26 -> 0.5734 | W126: 0.5844 | X126: =1/PI()*ATAN('Exhibit4_Impact-Test'!$Y$25*S_RS_SP)+'Exhibit4_Impact-Test'!$Y$26 -> 0.8440 | Y126: 0.8499 | Z126: =1/PI()*ATAN('Exhibit4_Impact-Test'!$Y$25*S_5050_SP)+'Exhibit4_Impact-Test'!$Y$26 -> 0.5000 | AA126: 0.5113 | AB126: =VLOOKUP(_xlfn.NUMBERVALUE(LEFT(A126,4)),Transactioncosts!$C:$G,5,FALSE) -> 70 | AD126: 1.0291 | AE126: 1.0416 | AF126: 1.0257 | AG126: 1.02893 | AH126: 1.0414 | AI126: 1.0256 | AK126: 0.0286 | AL126: 0.0408 | AM126: 0.0253 | AN126: 0.7212 | AO126: 1.6453 | AP126: 0.6965 | AR126: 0.0285 | AS126: 0.0406 | AT126: 0.0253 | AU126: 0.7109 | AV126: 1.4358 | AW126: 0.6915
A127: 1881.06 | C127: =raw_Data!B133 -> 6.58 | D127: =raw_Data!J133 -> 0.0242 | E127: =raw_Data!L133 -> 0.0030 | F127: 6.5 | G127: =raw_Data!K133 -> 0.0037 | H127: 0.0123 | J127: 0.9995 | K127: 0.0025 | M127: 1.0025 | N127: 1.0160 | O127: 126 | P127: 128 | R127: 0.1051 | S127: 0.8035 | T127: 0.0000 | V127: =1/PI()*ATAN('Exhibit4_Impact-Test'!$Y$25*S_RDY_SP)+'Exhibit4_Impact-Test'!$Y$26 -> 0.5659 | W127: 0.5692 | X127: =1/PI()*ATAN('Exhibit4_Impact-Test'!$Y$25*S_RS_SP)+'Exhibit4_Impact-Test'!$Y$26 -> 0.8228 | Y127: 0.8248 | Z127: =1/PI()*ATAN('Exhibit4_Impact-Test'!$Y$25*S_5050_SP)+'Exhibit4_Impact-Test'!$Y$26 -> 0.5000 | AA127: 0.5034 | AB127: =VLOOKUP(_xlfn.NUMBERVALUE(LEFT(A127,4)),Transactioncosts!$C:$G,5,FALSE) -> 70 | AD127: 1.0101 | AE127: 1.0136 | AF127: 1.0092 | AG127: 1.01013 | AH127: 1.0090 | AI127: 1.0092 | AK127: 0.0101 | AL127: 0.0135 | AM127: 0.0092 | AN127: 0.7312 | AO127: 1.6588 | AP127: 0.7058 | AR127: 0.0101 | AS127: 0.0089 | AT127: 0.0092 | AU127: 0.7210 | AV127: 1.4447 | AW127: 0.7007
A128: 1881.07 | C128: =raw_Data!B134 -> 6.35 | D128: =raw_Data!J134 -> 0.0246 | E128: =raw_Data!L134 -> 0.0030 | F128: 6.58 | G128: =raw_Data!K134 -> 0.0037 | H128: -0.0350 | J128: 0.9995 | K128: 0.0025 | M128: 1.0025 | N128: 0.9688 | O128: 127 | P128: 129 | R128: 0.1084 | S128: -0.9208 | T128: 0.0000 | V128: =1/PI()*ATAN('Exhibit4_Impact-Test'!$Y$25*S_RDY_SP)+'Exhibit4_Impact-Test'!$Y$26 -> 0.5680 | W128: 0.5595 | X128: =1/PI()*ATAN('Exhibit4_Impact-Test'!$Y$25*S_RS_SP)+'Exhibit4_Impact-Test'!$Y$26 -> 0.1583 | Y128: 0.1538 | Z128: =1/PI()*ATAN('Exhibit4_Impact-Test'!$Y$25*S_5050_SP)+'Exhibit4_Impact-Test'!$Y$26 -> 0.5000 | AA128: 0.4915 | AB128: =VLOOKUP(_xlfn.NUMBERVALUE(LEFT(A128,4)),Transactioncosts!$C:$G,5,FALSE) -> 70 | AD128: 0.9833 | AE128: 0.9971 | AF128: 0.9856 | AG128: 0.98316 | AH128: 0.9971 | AI128: 0.9856 | AK128: -0.0168 | AL128: -0.0029 | AM128: -0.0145 | AN128: 0.7144 | AO128: 1.6559 | AP128: 0.6913 | AR128: -0.0170 | AS128: -0.0029 | AT128: -0.0145 | AU128: 0.7040 | AV128: 1.4417 | AW128: 0.6862
A129: 1881.08 | C129: =raw_Data!B135 -> 6.20 | D129: =raw_Data!J135 -> 0.0250 | E129: =raw_Data!L135 -> 0.0030 | F129: 6.35 | G129: =raw_Data!K135 -> 0.0039 | H129: -0.0236 | J129: 0.9995 | K129: 0.0025 | M129: 1.0025 | N129: 0.9803 | O129: 128 | P129: 130 | R129: 0.1351 | S129: -0.8873 | T129: 0.0000 | V129: =1/PI()*ATAN('Exhibit4_Impact-Test'!$Y$25*S_RDY_SP)+'Exhibit4_Impact-Test'!$Y$26 -> 0.5840 | W129: 0.5785 | X129: =1/PI()*ATAN('Exhibit4_Impact-Test'!$Y$25*S_RS_SP)+'Exhibit4_Impact-Test'!$Y$26 -> 0.1633 | Y129: 0.1603 | Z129: =1/PI()*ATAN('Exhibit4_Impact-Test'!$Y$25*S_5050_SP)+'Exhibit4_Impact-Test'!$Y$26 -> 0.5000 | AA129: 0.4944 | AB129: =VLOOKUP(_xlfn.NUMBERVALUE(LEFT(A129,4)),Transactioncosts!$C:$G,5,FALSE) -> 70 | AD129: 0.9895 | AE129: 0.9988 | AF129: 0.9914 | AG129: 0.98940 | AH129: 0.9943 | AI129: 0.9913 | AK129: -0.0105 | AL129: -0.0012 | AM129: -0.0087 | AN129: 0.7039 | AO129: 1.6548 | AP129: 0.6826 | AR129: -0.0107 | AS129: -0.0057 | AT129: -0.0087 | AU129: 0.6934 | AV129: 1.4360 | AW129: 0.6775
A130: 1881.09 | C130: =raw_Data!B136 -> 6.25 | D130: =raw_Data!J136 -> 0.0254 | E130: =raw_Data!L136 -> 0.0030 | F130: 6.2 | G130: =raw_Data!K136 -> 0.0041 | H130: 0.0081 | J130: 0.9995 | K130: 0.0025 | M130: =interest_mon+bond_approx_price -> 1.0025 | N130: 1.0122 | O130: =ROW(A130)-1 -> 129 | P130: =ROW(A130)+1 -> 131 | R130: 0.1557 | S130: 0.7292 | T130: 0.0000 | V130: =1/PI()*ATAN('Exhibit4_Impact-Test'!$Y$25*S_RDY_SP)+'Exhibit4_Impact-Test'!$Y$26 -> 0.5961 | W130: 0.5984 | X130: =1/PI()*ATAN('Exhibit4_Impact-Test'!$Y$25*S_RS_SP)+'Exhibit4_Impact-Test'!$Y$26 -> 0.8087 | Y130: 0.8102 | Z130: =1/PI()*ATAN('Exhibit4_Impact-Test'!$Y$25*S_5050_SP)+'Exhibit4_Impact-Test'!$Y$26 -> 0.5000 | AA130: 0.5024 | AB130: =VLOOKUP(_xlfn.NUMBERVALUE(LEFT(A130,4)),Transactioncosts!$C:$G,5,FALSE) -> 70 | AD130: 1.0082 | AE130: 1.0103 | AF130: 1.0073 | AG130: 1.00824 | AH130: 1.0058 | AI130: 1.0073 | AK130: 0.0082 | AL130: 0.0103 | AM130: 0.0073 | AN130: 0.7121 | AO130: 1.6650 | AP130: 0.6899 | AR130: 0.0082 | AS130: 0.0058 | AT130: 0.0073 | AU130: 0.7016 | AV130: 1.4418 | AW130: 0.6847
A131: 1881.10 | C131: =raw_Data!B137 -> 6.15 | D131: =raw_Data!J137 -> 0.0258 | E131: =raw_Data!L137 -> 0.0030 | F131: =C130 -> 6.25 | G131: =raw_Data!K137 -> 0.0041 | H131: =q_SP/q_SP_tminus-1 -> -0.0160 | J131: =interest_mon*((1-(1+INDEX(interest_mon,tMinus))^(-119))/INDEX(interest_mon,tMinus))+(1+INDEX(interest_mon,tMinus))^(-119) -> 0.9995 | K131: 0.0024 | M131: 1.0024 | N131: =(D_mon+q_SP)/INDEX(q_SP,tMinus) -> 0.9881 | O131: 130 | P131: 132 | R131: =(div_yield_mon-INDEX(interest_mon, tMinus))/(div_yield_mon+INDEX(interest_mon,tMinus)) -> 0.1606 | S131: =price_yield/(ABS(price_yield)+INDEX(interest_mon,tMinus)) -> -0.8426 | T131: 0.0000 | V131: =1/PI()*ATAN('Exhibit4_Impact-Test'!$Y$25*S_RDY_SP)+'Exhibit4_Impact-Test'!$Y$26 -> 0.5989 | W131: =L_RDY_SP_set*R_SP/R_RDY -> 0.5955 | X131: =1/PI()*ATAN('Exhibit4_Impact-Test'!$Y$25*S_RS_SP)+'Exhibit4_Impact-Test'!$Y$26 -> 0.1705 | Y131: =L_RS_SP_set*R_SP/R_RS -> 0.1685 | Z131: =1/PI()*ATAN('Exhibit4_Impact-Test'!$Y$25*S_5050_SP)+'Exhibit4_Impact-Test'!$Y$26 -> 0.5000 | AA131: =L_5050_SP_set*R_SP/R_5050 -> 0.4964 | AB131: =VLOOKUP(_xlfn.NUMBERVALUE(LEFT(A131,4)),Transactioncosts!$C:$G,5,FALSE) -> 70 | AD131: =R_Cash*(1-L_RDY_SP_set)+R_SP*L_RDY_SP_set -> 0.9939 | AE131: =R_Cash*(1-L_RS_SP_set)+R_SP*L_RS_SP_set -> 1.0000 | AF131: =R_Cash*(1-L_5050_SP_set)+R_SP*L_5050_SP_set -> 0.9953 | AG131: =R_RDY-ABS(L_RDY_SP_act-INDEX(L_RDY_SP_set,tPlus))*TC/10000 -> 0.99378 | AH131: =R_RS-ABS(L_RS_SP_act-INDEX(L_RS_SP_set,tPlus))*TC/10000 -> 0.9956 | AI131: =R_5050-ABS(L_5050_SP_act-INDEX(L_5050_SP_set,tPlus))*TC/10000 -> 0.9953 | AK131: =LN(R_RDY) -> -0.0061 | AL131: =LN(R_RS) -> 0.0000 | AM131: =LN(R_5050) -> -0.0047 | AN131: 0.7060 | AO131: 1.6650 | AP131: 0.6852 | AR131: =LN(R_RDY_TC) -> -0.0062 | AS131: =LN(R_RS_TC) -> -0.0044 | AT131: =LN(R_5050_TC) -> -0.0047 | AU131: 0.6953 | AV131: 1.4374 | AW131: 0.6800
A132: 1881.11 | C132: =raw_Data!B138 -> 6.19 | D132: =raw_Data!J138 -> 0.0263 | E132: =raw_Data!L138 -> 0.0030 | F132: 6.15 | G132: =raw_Data!K138 -> 0.0043 | H132: 0.0065 | J132: 0.9995 | K132: =M132-1 -> 0.0024 | M132: 1.0024 | N132: 1.0108 | O132: 131 | P132: 133 | R132: 0.1771 | S132: 0.6855 | T132: 0.0000 | V132: =1/PI()*ATAN('Exhibit4_Impact-Test'!$Y$25*S_RDY_SP)+'Exhibit4_Impact-Test'!$Y$26 -> 0.6084 | W132: 0.6103 | X132: =1/PI()*ATAN('Exhibit4_Impact-Test'!$Y$25*S_RS_SP)+'Exhibit4_Impact-Test'!$Y$26 -> 0.7994 | Y132: 0.8007 | Z132: =1/PI()*ATAN('Exhibit4_Impact-Test'!$Y$25*S_5050_SP)+'Exhibit4_Impact-Test'!$Y$26 -> 0.5000 | AA132: 0.5021 | AB132: =VLOOKUP(_xlfn.NUMBERVALUE(LEFT(A132,4)),Transactioncosts!$C:$G,5,FALSE) -> 70 | AD132: 1.0075 | AE132: 1.0091 | AF132: 1.0066 | AG132: 1.00750 | AH132: 1.0046 | AI132: 1.0066 | AK132: 0.0075 | AL132: 0.0091 | AM132: 0.0066 | AN132: =AK132+AN131 -> 0.7135 | AO132: 1.6741 | AP132: 0.6918 | AR132: 0.0075 | AS132: 0.0046 | AT132: 0.0066 | AU132: =AR132+AU131 -> 0.7028 | AV132: =AS132+AV131 -> 1.4420 | AW132: =AT132+AW131 -> 0.6866
A133: 1881.12 | C133: =raw_Data!B139 -> 6.01 | D133: =raw_Data!J139 -> 0.0267 | E133: =raw_Data!L139 -> 0.0030 | F133: 6.19 | G133: =raw_Data!K139 -> 0.0043 | H133: -0.0291 | J133: 0.9995 | K133: 0.0024 | M133: 1.0024 | N133: 0.9752 | O133: 132 | P133: 134 | R133: 0.1825 | S133: -0.9071 | T133: 0.0000 | V133: =1/PI()*ATAN('Exhibit4_Impact-Test'!$Y$25*S_RDY_SP)+'Exhibit4_Impact-Test'!$Y$26 -> 0.6114 | W133: 0.6048 | X133: =1/PI()*ATAN('Exhibit4_Impact-Test'!$Y$25*S_RS_SP)+'Exhibit4_Impact-Test'!$Y$26 -> 0.1604 | Y133: 0.1567 | Z133: =1/PI()*ATAN('Exhibit4_Impact-Test'!$Y$25*S_5050_SP)+'Exhibit4_Impact-Test'!$Y$26 -> 0.5000 | AA133: 0.4931 | AB133: =VLOOKUP(_xlfn.NUMBERVALUE(LEFT(A133,4)),Transactioncosts!$C:$G,5,FALSE) -> 70 | AD133: 0.9858 | AE133: 0.9981 | AF133: 0.9888 | AG133: 0.98570 | AH133: 0.9980 | AI133: 0.9888 | AK133: -0.0143 | AL133: -0.0019 | AM133: -0.0112 | AN133: 0.6992 | AO133: 1.6722 | AP133: 0.6805 | AR133: -0.0144 | AS133: -0.0020 | AT133: -0.0113 | AU133: 0.6884 | AV133: 1.4400 | AW133: 0.6753
A134: 1882.01 | C134: =raw_Data!B140 -> 5.92 | D134: =raw_Data!J140 -> 0.0267 | E134: =raw_Data!L140 -> 0.0030 | F134: 6.01 | G134: =raw_Data!K140 -> 0.0044 | H134: -0.0150 | J134: 0.9995 | K134: 0.0024 | M134: 1.0024 | N134: 0.9895 | O134: 133 | P134: 135 | R134: 0.1976 | S134: -0.8343 | T134: 0.0000 | V134: =1/PI()*ATAN('Exhibit4_Impact-Test'!$Y$25*S_RDY_SP)+'Exhibit4_Impact-Test'!$Y$26 -> 0.6198 | W134: 0.6167 | X134: =1/PI()*ATAN('Exhibit4_Impact-Test'!$Y$25*S_RS_SP)+'Exhibit4_Impact-Test'!$Y$26 -> 0.1718 | Y134: 0.1700 | Z134: =1/PI()*ATAN('Exhibit4_Impact-Test'!$Y$25*S_5050_SP)+'Exhibit4_Impact-Test'!$Y$26 -> 0.5000 | AA134: 0.4967 | AB134: =VLOOKUP(_xlfn.NUMBERVALUE(LEFT(A134,4)),Transactioncosts!$C:$G,5,FALSE) -> 70 | AD134: 0.9944 | AE134: 1.0002 | AF134: 0.9959 | AG134: 0.99434 | AH134: 1.0002 | AI134: 0.9959 | AK134: -0.0056 | AL134: 0.0002 | AM134: -0.0041 | AN134: 0.6935 | AO134: 1.6724 | AP134: 0.6765 | AR134: -0.0057 | AS134: 0.0002 | AT134: -0.0041 | AU134: 0.6827 | AV134: 1.4401 | AW134: 0.6712
A135: 1882.02 | C135: =raw_Data!B141 -> 5.79 | D135: =raw_Data!J141 -> 0.0267 | E135: =raw_Data!L141 -> 0.0030 | F135: 5.92 | G135: =raw_Data!K141 -> 0.0045 | H135: -0.0220 | J135: 1.0001 | K135: 0.0030 | M135: 1.0030 | N135: 0.9825 | O135: 134 | P135: 136 | R135: 0.2057 | S135: -0.8809 | T135: 0.0000 | V135: =1/PI()*ATAN('Exhibit4_Impact-Test'!$Y$25*S_RDY_SP)+'Exhibit4_Impact-Test'!$Y$26 -> 0.6242 | W135: 0.6194 | X135: =1/PI()*ATAN('Exhibit4_Impact-Test'!$Y$25*S_RS_SP)+'Exhibit4_Impact-Test'!$Y$26 -> 0.1643 | Y135: 0.1615 | Z135: =1/PI()*ATAN('Exhibit4_Impact-Test'!$Y$25*S_5050_SP)+'Exhibit4_Impact-Test'!$Y$26 -> 0.5000 | AA135: 0.4948 | AB135: =VLOOKUP(_xlfn.NUMBERVALUE(LEFT(A135,4)),Transactioncosts!$C:$G,5,FALSE) -> 70 | AD135: 0.9902 | AE135: 0.9997 | AF135: 0.9928 | AG135: 0.99017 | AH135: 0.9987 | AI135: 0.9928 | AK135: -0.0098 | AL135: -0.0003 | AM135: -0.0072 | AN135: 0.6837 | AO135: 1.6720 | AP135: 0.6692 | AR135: -0.0099 | AS135: -0.0013 | AT135: -0.0073 | AU135: 0.6729 | AV135: 1.4389 | AW135: 0.6639
A136: 1882.03 | C136: =raw_Data!B142 -> 5.78 | D136: =raw_Data!J142 -> 0.0267 | E136: =raw_Data!L142 -> 0.0030 | F136: 5.79 | G136: =raw_Data!K142 -> 0.0046 | H136: -0.0017 | J136: 1.0001 | K136: 0.0030 | M136: 1.0030 | N136: 1.0029 | O136: 135 | P136: 137 | R136: 0.2162 | S136: -0.3678 | T136: 0.0000 | V136: =1/PI()*ATAN('Exhibit4_Impact-Test'!$Y$25*S_RDY_SP)+'Exhibit4_Impact-Test'!$Y$26 -> 0.6299 | W136: 0.6299 | X136: =1/PI()*ATAN('Exhibit4_Impact-Test'!$Y$25*S_RS_SP)+'Exhibit4_Impact-Test'!$Y$26 -> 0.2981 | Y136: 0.2981 | Z136: =1/PI()*ATAN('Exhibit4_Impact-Test'!$Y$25*S_5050_SP)+'Exhibit4_Impact-Test'!$Y$26 -> 0.5000 | AA136: 0.5000 | AB136: =VLOOKUP(_xlfn.NUMBERVALUE(LEFT(A136,4)),Transactioncosts!$C:$G,5,FALSE) -> 70 | AD136: 1.0029 | AE136: 1.0030 | AF136: 1.0030 | AG136: 1.00293 | AH136: 1.0016 | AI136: 1.0030 | AK136: 0.0029 | AL136: 0.0030 | AM136: 0.0030 | AN136: 0.6867 | AO136: 1.6750 | AP136: 0.6722 | AR136: 0.0029 | AS136: 0.0016 | AT136: 0.0030 | AU136: 0.6758 | AV136: 1.4404 | AW136: 0.6669
A137: 1882.04 | C137: =raw_Data!B143 -> 5.78 | D137: =raw_Data!J143 -> 0.0267 | E137: =raw_Data!L143 -> 0.0030 | F137: 5.78 | G137: =raw_Data!K143 -> 0.0046 | H137: 0.0000 | J137: 1.0001 | K137: 0.0030 | M137: 1.0030 | N137: 1.0046 | O137: 136 | P137: 138 | R137: 0.2169 | S137: 0.0000 | T137: 0.0000 | V137: =1/PI()*ATAN('Exhibit4_Impact-Test'!$Y$25*S_RDY_SP)+'Exhibit4_Impact-Test'!$Y$26 -> 0.6303 | W137: 0.6306 | X137: =1/PI()*ATAN('Exhibit4_Impact-Test'!$Y$25*S_RS_SP)+'Exhibit4_Impact-Test'!$Y$26 -> 0.5000 | Y137: 0.5004 | Z137: =1/PI()*ATAN('Exhibit4_Impact-Test'!$Y$25*S_5050_SP)+'Exhibit4_Impact-Test'!$Y$26 -> 0.5000 | AA137: 0.5004 | AB137: =VLOOKUP(_xlfn.NUMBERVALUE(LEFT(A137,4)),Transactioncosts!$C:$G,5,FALSE) -> 70 | AD137: 1.0040 | AE137: 1.0038 | AF137: 1.0038 | AG137: 1.00403 | AH137: 1.0016 | AI137: 1.0038 | AK137: 0.0040 | AL137: 0.0038 | AM137: 0.0038 | AN137: 0.6907 | AO137: 1.6788 | AP137: 0.6760 | AR137: 0.0040 | AS137: 0.0016 | AT137: 0.0038 | AU137: 0.6798 | AV137: 1.4420 | AW137: 0.6707
A138: 1882.05 | C138: =raw_Data!B144 -> 5.71 | D138: =raw_Data!J144 -> 0.0267 | E138: =raw_Data!L144 -> 0.0030 | F138: 5.78 | G138: =raw_Data!K144 -> 0.0046 | H138: -0.0121 | J138: 1.0001 | K138: 0.0030 | M138: 1.0030 | N138: 0.9925 | O138: 137 | P138: 139 | R138: 0.2168 | S138: -0.8031 | T138: 0.0000 | V138: =1/PI()*ATAN('Exhibit4_Impact-Test'!$Y$25*S_RDY_SP)+'Exhibit4_Impact-Test'!$Y$26 -> 0.6302 | W138: 0.6278 | X138: =1/PI()*ATAN('Exhibit4_Impact-Test'!$Y$25*S_RS_SP)+'Exhibit4_Impact-Test'!$Y$26 -> 0.1773 | Y138: 0.1757 | Z138: =1/PI()*ATAN('Exhibit4_Impact-Test'!$Y$25*S_5050_SP)+'Exhibit4_Impact-Test'!$Y$26 -> 0.5000 | AA138: 0.4974 | AB138: =VLOOKUP(_xlfn.NUMBERVALUE(LEFT(A138,4)),Transactioncosts!$C:$G,5,FALSE) -> 70 | AD138: 0.9964 | AE138: 1.0012 | AF138: 0.9978 | AG138: 0.99636 | AH138: 1.0009 | AI138: 0.9978 | AK138: -0.0036 | AL138: 0.0012 | AM138: -0.0022 | AN138: 0.6871 | AO138: 1.6800 | AP138: 0.6738 | AR138: -0.0036 | AS138: 0.0009 | AT138: -0.0023 | AU138: 0.6762 | AV138: 1.4429 | AW138: 0.6684
A139: 1882.06 | C139: =raw_Data!B145 -> 5.68 | D139: =raw_Data!J145 -> 0.0267 | E139: =raw_Data!L145 -> 0.0030 | F139: 5.71 | G139: =raw_Data!K145 -> 0.0047 | H139: -0.0053 | J139: 1.0001 | K139: 0.0030 | M139: 1.0030 | N139: 0.9994 | O139: 138 | P139: 140 | R139: 0.2225 | S139: -0.6388 | T139: 0.0000 | V139: =1/PI()*ATAN('Exhibit4_Impact-Test'!$Y$25*S_RDY_SP)+'Exhibit4_Impact-Test'!$Y$26 -> 0.6333 | W139: 0.6324 | X139: =1/PI()*ATAN('Exhibit4_Impact-Test'!$Y$25*S_RS_SP)+'Exhibit4_Impact-Test'!$Y$26 -> 0.2114 | Y139: 0.2108 | Z139: =1/PI()*ATAN('Exhibit4_Impact-Test'!$Y$25*S_5050_SP)+'Exhibit4_Impact-Test'!$Y$26 -> 0.5000 | AA139: 0.4991 | AB139: =VLOOKUP(_xlfn.NUMBERVALUE(LEFT(A139,4)),Transactioncosts!$C:$G,5,FALSE) -> 70 | AD139: 1.0007 | AE139: 1.0023 | AF139: 1.0012 | AG139: 1.00073 | AH139: 0.9978 | AI139: 1.0012 | AK139: 0.0007 | AL139: 0.0023 | AM139: 0.0012 | AN139: 0.6878 | AO139: 1.6823 | AP139: 0.6750 | AR139: 0.0007 | AS139: -0.0022 | AT139: 0.0012 | AU139: 0.6769 | AV139: 1.4407 | AW139: 0.6697
A140: 1882.07 | C140: =raw_Data!B146 -> 6.00 | D140: =raw_Data!J146 -> 0.0267 | E140: =raw_Data!L146 -> 0.0030 | F140: 5.68 | G140: =raw_Data!K146 -> 0.0047 | H140: 0.0563 | J140: 1.0001 | K140: 0.0030 | M140: 1.0030 | N140: 1.0610 | O140: 139 | P140: 141 | R140: 0.2249 | S140: 0.9499 | T140: 0.0000 | V140: =1/PI()*ATAN('Exhibit4_Impact-Test'!$Y$25*S_RDY_SP)+'Exhibit4_Impact-Test'!$Y$26 -> 0.6345 | W140: 0.6475 | X140: =1/PI()*ATAN('Exhibit4_Impact-Test'!$Y$25*S_RS_SP)+'Exhibit4_Impact-Test'!$Y$26 -> 0.8458 | Y140: 0.8530 | Z140: =1/PI()*ATAN('Exhibit4_Impact-Test'!$Y$25*S_5050_SP)+'Exhibit4_Impact-Test'!$Y$26 -> 0.5000 | AA140: 0.5140 | AB140: =VLOOKUP(_xlfn.NUMBERVALUE(LEFT(A140,4)),Transactioncosts!$C:$G,5,FALSE) -> 70 | AD140: 1.0398 | AE140: 1.0521 | AF140: 1.0320 | AG140: 1.03965 | AH140: 1.0520 | AI140: 1.0319 | AK140: 0.0391 | AL140: 0.0508 | AM140: 0.0315 | AN140: 0.7269 | AO140: 1.7330 | AP140: 0.7065 | AR140: 0.0389 | AS140: 0.0507 | AT140: 0.0314 | AU140: 0.7158 | AV140: 1.4914 | AW140: 0.7011
A141: 1882.08 | C141: =raw_Data!B147 -> 6.18 | D141: =raw_Data!J147 -> 0.0267 | E141: =raw_Data!L147 -> 0.0030 | F141: 6 | G141: =raw_Data!K147 -> 0.0044 | H141: 0.0300 | J141: 1.0001 | K141: 0.0030 | M141: 1.0030 | N141: 1.0344 | O141: 140 | P141: 142 | R141: 0.1986 | S141: 0.9099 | T141: 0.0000 | V141: =1/PI()*ATAN('Exhibit4_Impact-Test'!$Y$25*S_RDY_SP)+'Exhibit4_Impact-Test'!$Y$26 -> 0.6203 | W141: 0.6276 | X141: =1/PI()*ATAN('Exhibit4_Impact-Test'!$Y$25*S_RS_SP)+'Exhibit4_Impact-Test'!$Y$26 -> 0.8401 | Y141: 0.8442 | Z141: =1/PI()*ATAN('Exhibit4_Impact-Test'!$Y$25*S_5050_SP)+'Exhibit4_Impact-Test'!$Y$26 -> 0.5000 | AA141: 0.5077 | AB141: =VLOOKUP(_xlfn.NUMBERVALUE(LEFT(A141,4)),Transactioncosts!$C:$G,5,FALSE) -> 70 | AD141: 1.0225 | AE141: 1.0294 | AF141: 1.0187 | AG141: 1.02241 | AH141: 1.0292 | AI141: 1.0187 | AK141: 0.0223 | AL141: 0.0290 | AM141: 0.0186 | AN141: 0.7492 | AO141: 1.7620 | AP141: 0.7251 | AR141: 0.0222 | AS141: 0.0288 | AT141: 0.0185 | AU141: 0.7379 | AV141: 1.5202 | AW141: 0.7196
A142: 1882.09 | C142: =raw_Data!B148 -> 6.24 | D142: =raw_Data!J148 -> 0.0267 | E142: =raw_Data!L148 -> 0.0030 | F142: 6.18 | G142: =raw_Data!K148 -> 0.0043 | H142: 0.0097 | J142: 1.0001 | K142: 0.0030 | M142: 1.0030 | N142: 1.0140 | O142: 141 | P142: 143 | R142: 0.1842 | S142: 0.7656 | T142: 0.0000 | V142: =1/PI()*ATAN('Exhibit4_Impact-Test'!$Y$25*S_RDY_SP)+'Exhibit4_Impact-Test'!$Y$26 -> 0.6124 | W142: 0.6150 | X142: =1/PI()*ATAN('Exhibit4_Impact-Test'!$Y$25*S_RS_SP)+'Exhibit4_Impact-Test'!$Y$26 -> 0.8158 | Y142: 0.8175 | Z142: =1/PI()*ATAN('Exhibit4_Impact-Test'!$Y$25*S_5050_SP)+'Exhibit4_Impact-Test'!$Y$26 -> 0.5000 | AA142: 0.5027 | AB142: =VLOOKUP(_xlfn.NUMBERVALUE(LEFT(A142,4)),Transactioncosts!$C:$G,5,FALSE) -> 70 | AD142: 1.0098 | AE142: 1.0120 | AF142: 1.0085 | AG142: 1.00973 | AH142: 1.0074 | AI142: 1.0085 | AK142: 0.0097 | AL142: 0.0119 | AM142: 0.0085 | AN142: 0.7589 | AO142: 1.7740 | AP142: 0.7336 | AR142: 0.0097 | AS142: 0.0074 | AT142: 0.0085 | AU142: 0.7476 | AV142: 1.5276 | AW142: 0.7281
A143: 1882.10 | C143: =raw_Data!B149 -> 6.07 | D143: =raw_Data!J149 -> 0.0267 | E143: =raw_Data!L149 -> 0.0030 | F143: 6.24 | G143: =raw_Data!K149 -> 0.0043 | H143: -0.0272 | J143: 1.0001 | K143: 0.0030 | M143: 1.0030 | N143: 0.9770 | O143: 142 | P143: 144 | R143: 0.1794 | S143: -0.9016 | T143: 0.0000 | V143: =1/PI()*ATAN('Exhibit4_Impact-Test'!$Y$25*S_RDY_SP)+'Exhibit4_Impact-Test'!$Y$26 -> 0.6097 | W143: 0.6034 | X143: =1/PI()*ATAN('Exhibit4_Impact-Test'!$Y$25*S_RS_SP)+'Exhibit4_Impact-Test'!$Y$26 -> 0.1612 | Y143: 0.1577 | Z143: =1/PI()*ATAN('Exhibit4_Impact-Test'!$Y$25*S_5050_SP)+'Exhibit4_Impact-Test'!$Y$26 -> 0.5000 | AA143: 0.4934 | AB143: =VLOOKUP(_xlfn.NUMBERVALUE(LEFT(A143,4)),Transactioncosts!$C:$G,5,FALSE) -> 70 | AD143: 0.9872 | AE143: 0.9988 | AF143: 0.9900 | AG143: 0.98709 | AH143: 0.9988 | AI143: 0.9900 | AK143: -0.0129 | AL143: -0.0012 | AM143: -0.0100 | AN143: 0.7460 | AO143: 1.7728 | AP143: 0.7236 | AR143: -0.0130 | AS143: -0.0012 | AT143: -0.0101 | AU143: 0.7346 | AV143: 1.5265 | AW143: 0.7180
A144: 1882.11 | C144: =raw_Data!B150 -> 5.81 | D144: =raw_Data!J150 -> 0.0267 | E144: =raw_Data!L150 -> 0.0030 | F144: 6.07 | G144: =raw_Data!K150 -> 0.0044 | H144: -0.0428 | J144: 1.0001 | K144: 0.0030 | M144: 1.0030 | N144: 0.9616 | O144: 143 | P144: 145 | R144: 0.1927 | S144: -0.9351 | T144: 0.0000 | V144: =1/PI()*ATAN('Exhibit4_Impact-Test'!$Y$25*S_RDY_SP)+'Exhibit4_Impact-Test'!$Y$26 -> 0.6171 | W144: 0.6070 | X144: =1/PI()*ATAN('Exhibit4_Impact-Test'!$Y$25*S_RS_SP)+'Exhibit4_Impact-Test'!$Y$26 -> 0.1563 | Y144: 0.1508 | Z144: =1/PI()*ATAN('Exhibit4_Impact-Test'!$Y$25*S_5050_SP)+'Exhibit4_Impact-Test'!$Y$26 -> 0.5000 | AA144: 0.4894 | AB144: =VLOOKUP(_xlfn.NUMBERVALUE(LEFT(A144,4)),Transactioncosts!$C:$G,5,FALSE) -> 70 | AD144: 0.9774 | AE144: 0.9966 | AF144: 0.9823 | AG144: 0.97729 | AH144: 0.9921 | AI144: 0.9822 | AK144: -0.0228 | AL144: -0.0034 | AM144: -0.0179 | AN144: 0.7232 | AO144: 1.7694 | AP144: 0.7057 | AR144: -0.0230 | AS144: -0.0079 | AT144: -0.0179 | AU144: 0.7117 | AV144: 1.5185 | AW144: 0.7001
A145: 1882.12 | C145: =raw_Data!B151 -> 5.84 | D145: =raw_Data!J151 -> 0.0267 | E145: =raw_Data!L151 -> 0.0030 | F145: 5.81 | G145: =raw_Data!K151 -> 0.0046 | H145: 0.0052 | J145: 1.0001 | K145: 0.0030 | M145: 1.0030 | N145: 1.0098 | O145: 144 | P145: 146 | R145: 0.2135 | S145: 0.6345 | T145: 0.0000 | V145: =1/PI()*ATAN('Exhibit4_Impact-Test'!$Y$25*S_RDY_SP)+'Exhibit4_Impact-Test'!$Y$26 -> 0.6285 | W145: 0.6300 | X145: =1/PI()*ATAN('Exhibit4_Impact-Test'!$Y$25*S_RS_SP)+'Exhibit4_Impact-Test'!$Y$26 -> 0.7876 | Y145: 0.7887 | Z145: =1/PI()*ATAN('Exhibit4_Impact-Test'!$Y$25*S_5050_SP)+'Exhibit4_Impact-Test'!$Y$26 -> 0.5000 | AA145: 0.5017 | AB145: =VLOOKUP(_xlfn.NUMBERVALUE(LEFT(A145,4)),Transactioncosts!$C:$G,5,FALSE) -> 70 | AD145: 1.0073 | AE145: 1.0083 | AF145: 1.0064 | AG145: 1.00724 | AH145: 1.0043 | AI145: 1.0064 | AK145: 0.0072 | AL145: 0.0083 | AM145: 0.0064 | AN145: 0.7304 | AO145: 1.7777 | AP145: 0.7121 | AR145: 0.0072 | AS145: 0.0043 | AT145: 0.0064 | AU145: 0.7189 | AV145: 1.5228 | AW145: 0.7065
A146: 1883.01 | C146: =raw_Data!B152 -> 5.81 | D146: =raw_Data!J152 -> 0.0267 | E146: =raw_Data!L152 -> 0.0030 | F146: 5.84 | G146: =raw_Data!K152 -> 0.0046 | H146: -0.0051 | J146: 1.0001 | K146: 0.0030 | M146: 1.0030 | N146: 0.9994 | O146: 145 | P146: 147 | R146: 0.2122 | S146: -0.6332 | T146: 0.0000 | V146: =1/PI()*ATAN('Exhibit4_Impact-Test'!$Y$25*S_RDY_SP)+'Exhibit4_Impact-Test'!$Y$26 -> 0.6277 | W146: 0.6269 | X146: =1/PI()*ATAN('Exhibit4_Impact-Test'!$Y$25*S_RS_SP)+'Exhibit4_Impact-Test'!$Y$26 -> 0.2127 | Y146: 0.2121 | Z146: =1/PI()*ATAN('Exhibit4_Impact-Test'!$Y$25*S_5050_SP)+'Exhibit4_Impact-Test'!$Y$26 -> 0.5000 | AA146: 0.4991 | AB146: =VLOOKUP(_xlfn.NUMBERVALUE(LEFT(A146,4)),Transactioncosts!$C:$G,5,FALSE) -> 70 | AD146: 1.0008 | AE146: 1.0023 | AF146: 1.0012 | AG146: 1.00076 | AH146: 1.0019 | AI146: 1.0012 | AK146: 0.0008 | AL146: 0.0023 | AM146: 0.0012 | AN146: 0.7312 | AO146: 1.7799 | AP146: 0.7133 | AR146: 0.0008 | AS146: 0.0019 | AT146: 0.0012 | AU146: 0.7196 | AV146: 1.5248 | AW146: 0.7077
A147: 1883.02 | C147: =raw_Data!B153 -> 5.68 | D147: =raw_Data!J153 -> 0.0268 | E147: =raw_Data!L153 -> 0.0030 | F147: 5.81 | G147: =raw_Data!K153 -> 0.0046 | H147: -0.0224 | J147: 0.9999 | K147: 0.0029 | M147: 1.0029 | N147: 0.9822 | O147: 146 | P147: 148 | R147: 0.2159 | S147: -0.8826 | T147: 0.0000 | V147: =1/PI()*ATAN('Exhibit4_Impact-Test'!$Y$25*S_RDY_SP)+'Exhibit4_Impact-Test'!$Y$26 -> 0.6297 | W147: 0.6249 | X147: =1/PI()*ATAN('Exhibit4_Impact-Test'!$Y$25*S_RS_SP)+'Exhibit4_Impact-Test'!$Y$26 -> 0.1641 | Y147: 0.1612 | Z147: =1/PI()*ATAN('Exhibit4_Impact-Test'!$Y$25*S_5050_SP)+'Exhibit4_Impact-Test'!$Y$26 -> 0.5000 | AA147: 0.4948 | AB147: =VLOOKUP(_xlfn.NUMBERVALUE(LEFT(A147,4)),Transactioncosts!$C:$G,5,FALSE) -> 70 | AD147: 0.9899 | AE147: 0.9995 | AF147: 0.9926 | AG147: 0.98981 | AH147: 0.9949 | AI147: 0.9925 | AK147: -0.0102 | AL147: -0.0005 | AM147: -0.0075 | AN147: 0.7210 | AO147: 1.7795 | AP147: 0.7059 | AR147: -0.0102 | AS147: -0.0051 | AT147: -0.0075 | AU147: 0.7094 | AV147: 1.5196 | AW147: 0.7002
A148: 1883.03 | C148: =raw_Data!B154 -> 5.75 | D148: =raw_Data!J154 -> 0.0269 | E148: =raw_Data!L154 -> 0.0030 | F148: 5.68 | G148: =raw_Data!K154 -> 0.0047 | H148: 0.0123 | J148: 0.9999 | K148: 0.0029 | M148: 1.0029 | N148: 1.0171 | O148: 147 | P148: 149 | R148: 0.2279 | S148: 0.8055 | T148: 0.0000 | V148: =1/PI()*ATAN('Exhibit4_Impact-Test'!$Y$25*S_RDY_SP)+'Exhibit4_Impact-Test'!$Y$26 -> 0.6361 | W148: 0.6394 | X148: =1/PI()*ATAN('Exhibit4_Impact-Test'!$Y$25*S_RS_SP)+'Exhibit4_Impact-Test'!$Y$26 -> 0.8232 | Y148: 0.8252 | Z148: =1/PI()*ATAN('Exhibit4_Impact-Test'!$Y$25*S_5050_SP)+'Exhibit4_Impact-Test'!$Y$26 -> 0.5000 | AA148: 0.5035 | AB148: =VLOOKUP(_xlfn.NUMBERVALUE(LEFT(A148,4)),Transactioncosts!$C:$G,5,FALSE) -> 70 | AD148: 1.0119 | AE148: 1.0146 | AF148: 1.0100 | AG148: 1.01187 | AH148: 1.0145 | AI148: 1.0100 | AK148: 0.0118 | AL148: 0.0144 | AM148: 0.0099 | AN148: 0.7329 | AO148: 1.7939 | AP148: 0.7158 | AR148: 0.0118 | AS148: 0.0144 | AT148: 0.0099 | AU148: 0.7212 | AV148: 1.5340 | AW148: 0.7101
A149: 1883.04 | C149: =raw_Data!B155 -> 5.87 | D149: =raw_Data!J155 -> 0.0269 | E149: =raw_Data!L155 -> 0.0030 | F149: 5.75 | G149: =raw_Data!K155 -> 0.0047 | H149: 0.0209 | J149: 0.9999 | K149: 0.0029 | M149: 1.0029 | N149: 1.0256 | O149: 148 | P149: 150 | R149: 0.2234 | S149: 0.8753 | T149: 0.0000 | V149: =1/PI()*ATAN('Exhibit4_Impact-Test'!$Y$25*S_RDY_SP)+'Exhibit4_Impact-Test'!$Y$26 -> 0.6337 | W149: 0.6389 | X149: =1/PI()*ATAN('Exhibit4_Impact-Test'!$Y$25*S_RS_SP)+'Exhibit4_Impact-Test'!$Y$26 -> 0.8348 | Y149: 0.8378 | Z149: =1/PI()*ATAN('Exhibit4_Impact-Test'!$Y$25*S_5050_SP)+'Exhibit4_Impact-Test'!$Y$26 -> 0.5000 | AA149: 0.5056 | AB149: =VLOOKUP(_xlfn.NUMBERVALUE(LEFT(A149,4)),Transactioncosts!$C:$G,5,FALSE) -> 70 | AD149: 1.0173 | AE149: 1.0218 | AF149: 1.0142 | AG149: 1.01719 | AH149: 1.0171 | AI149: 1.0142 | AK149: 0.0171 | AL149: 0.0216 | AM149: 0.0141 | AN149: 0.7500 | AO149: 1.8155 | AP149: 0.7300 | AR149: 0.0170 | AS149: 0.0170 | AT149: 0.0141 | AU149: 0.7382 | AV149: 1.5510 | AW149: 0.7242
A150: 1883.05 | C150: =raw_Data!B156 -> 5.77 | D150: =raw_Data!J156 -> 0.0270 | E150: =raw_Data!L156 -> 0.0030 | F150: 5.87 | G150: =raw_Data!K156 -> 0.0046 | H150: -0.0170 | J150: 0.9999 | K150: 0.0029 | M150: 1.0029 | N150: 0.9876 | O150: 149 | P150: 151 | R150: 0.2150 | S150: -0.8514 | T150: 0.0000 | V150: =1/PI()*ATAN('Exhibit4_Impact-Test'!$Y$25*S_RDY_SP)+'Exhibit4_Impact-Test'!$Y$26 -> 0.6293 | W150: 0.6256 | X150: =1/PI()*ATAN('Exhibit4_Impact-Test'!$Y$25*S_RS_SP)+'Exhibit4_Impact-Test'!$Y$26 -> 0.1690 | Y150: 0.1669 | Z150: =1/PI()*ATAN('Exhibit4_Impact-Test'!$Y$25*S_5050_SP)+'Exhibit4_Impact-Test'!$Y$26 -> 0.5000 | AA150: 0.4961 | AB150: =VLOOKUP(_xlfn.NUMBERVALUE(LEFT(A150,4)),Transactioncosts!$C:$G,5,FALSE) -> 70 | AD150: 0.9933 | AE150: 1.0003 | AF150: 0.9952 | AG150: 0.99319 | AH150: 0.9958 | AI150: 0.9952 | AK150: -0.0068 | AL150: 0.0003 | AM150: -0.0048 | AN150: 0.7432 | AO150: 1.8158 | AP150: 0.7252 | AR150: -0.0068 | AS150: -0.0042 | AT150: -0.0048 | AU150: 0.7314 | AV150: 1.5468 | AW150: 0.7194
A151: 1883.06 | C151: =raw_Data!B157 -> 5.82 | D151: =raw_Data!J157 -> 0.0271 | E151: =raw_Data!L157 -> 0.0030 | F151: 5.77 | G151: =raw_Data!K157 -> 0.0047 | H151: 0.0087 | J151: 0.9999 | K151: 0.0029 | M151: 1.0029 | N151: 1.0134 | O151: 150 | P151: 152 | R151: 0.2244 | S151: 0.7445 | T151: 0.0000 | V151: =1/PI()*ATAN('Exhibit4_Impact-Test'!$Y$25*S_RDY_SP)+'Exhibit4_Impact-Test'!$Y$26 -> 0.6343 | W151: 0.6367 | X151: =1/PI()*ATAN('Exhibit4_Impact-Test'!$Y$25*S_RS_SP)+'Exhibit4_Impact-Test'!$Y$26 -> 0.8118 | Y151: 0.8133 | Z151: =1/PI()*ATAN('Exhibit4_Impact-Test'!$Y$25*S_5050_SP)+'Exhibit4_Impact-Test'!$Y$26 -> 0.5000 | AA151: 0.5026 | AB151: =VLOOKUP(_xlfn.NUMBERVALUE(LEFT(A151,4)),Transactioncosts!$C:$G,5,FALSE) -> 70 | AD151: 1.0095 | AE151: 1.0114 | AF151: 1.0081 | AG151: 1.00951 | AH151: 1.0069 | AI151: 1.0081 | AK151: 0.0095 | AL151: 0.0113 | AM151: 0.0081 | AN151: 0.7527 | AO151: 1.8271 | AP151: 0.7333 | AR151: 0.0095 | AS151: 0.0069 | AT151: 0.0081 | AU151: 0.7409 | AV151: 1.5537 | AW151: 0.7275
A152: 1883.07 | C152: =raw_Data!B158 -> 5.73 | D152: =raw_Data!J158 -> 0.0272 | E152: =raw_Data!L158 -> 0.0030 | F152: 5.82 | G152: =raw_Data!K158 -> 0.0047 | H152: -0.0155 | J152: 0.9999 | K152: 0.0029 | M152: 1.0029 | N152: 0.9892 | O152: 151 | P152: 153 | R152: 0.2216 | S152: -0.8388 | T152: 0.0000 | V152: =1/PI()*ATAN('Exhibit4_Impact-Test'!$Y$25*S_RDY_SP)+'Exhibit4_Impact-Test'!$Y$26 -> 0.6328 | W152: 0.6296 | X152: =1/PI()*ATAN('Exhibit4_Impact-Test'!$Y$25*S_RS_SP)+'Exhibit4_Impact-Test'!$Y$26 -> 0.1711 | Y152: 0.1692 | Z152: =1/PI()*ATAN('Exhibit4_Impact-Test'!$Y$25*S_5050_SP)+'Exhibit4_Impact-Test'!$Y$26 -> 0.5000 | AA152: 0.4966 | AB152: =VLOOKUP(_xlfn.NUMBERVALUE(LEFT(A152,4)),Transactioncosts!$C:$G,5,FALSE) -> 70 | AD152: 0.9942 | AE152: 1.0006 | AF152: 0.9961 | AG152: 0.99418 | AH152: 1.0005 | AI152: 0.9960 | AK152: -0.0058 | AL152: 0.0006 | AM152: -0.0040 | AN152: 0.7469 | AO152: 1.8277 | AP152: 0.7293 | AR152: -0.0058 | AS152: 0.0005 | AT152: -0.0040 | AU152: 0.7350 | AV152: 1.5541 | AW152: 0.7235
A153: 1883.08 | C153: =raw_Data!B159 -> 5.47 | D153: =raw_Data!J159 -> 0.0272 | E153: =raw_Data!L159 -> 0.0030 | F153: 5.73 | G153: =raw_Data!K159 -> 0.0048 | H153: -0.0454 | J153: 0.9999 | K153: 0.0029 | M153: 1.0029 | N153: 0.9594 | O153: 152 | P153: 154 | R153: 0.2304 | S153: -0.9385 | T153: 0.0000 | V153: =1/PI()*ATAN('Exhibit4_Impact-Test'!$Y$25*S_RDY_SP)+'Exhibit4_Impact-Test'!$Y$26 -> 0.6375 | W153: 0.6271 | X153: =1/PI()*ATAN('Exhibit4_Impact-Test'!$Y$25*S_RS_SP)+'Exhibit4_Impact-Test'!$Y$26 -> 0.1558 | Y153: 0.1501 | Z153: =1/PI()*ATAN('Exhibit4_Impact-Test'!$Y$25*S_5050_SP)+'Exhibit4_Impact-Test'!$Y$26 -> 0.5000 | AA153: 0.4889 | AB153: =VLOOKUP(_xlfn.NUMBERVALUE(LEFT(A153,4)),Transactioncosts!$C:$G,5,FALSE) -> 70 | AD153: 0.9752 | AE153: 0.9961 | AF153: 0.9811 | AG153: 0.97500 | AH153: 0.9914 | AI153: 0.9811 | AK153: -0.0252 | AL153: -0.0039 | AM153: -0.0190 | AN153: 0.7217 | AO153: 1.8238 | AP153: 0.7103 | AR153: -0.0253 | AS153: -0.0086 | AT153: -0.0191 | AU153: 0.7097 | AV153: 1.5455 | AW153: 0.7044
A154: 1883.09 | C154: =raw_Data!B160 -> 5.53 | D154: =raw_Data!J160 -> 0.0273 | E154: =raw_Data!L160 -> 0.0030 | F154: 5.47 | G154: =raw_Data!K160 -> 0.0050 | H154: 0.0110 | J154: 0.9999 | K154: 0.0029 | M154: 1.0029 | N154: 1.0160 | O154: 153 | P154: 155 | R154: 0.2535 | S154: 0.7869 | T154: 0.0000 | V154: =1/PI()*ATAN('Exhibit4_Impact-Test'!$Y$25*S_RDY_SP)+'Exhibit4_Impact-Test'!$Y$26 -> 0.6494 | W154: 0.6523 | X154: =1/PI()*ATAN('Exhibit4_Impact-Test'!$Y$25*S_RS_SP)+'Exhibit4_Impact-Test'!$Y$26 -> 0.8198 | Y154: 0.8217 | Z154: =1/PI()*ATAN('Exhibit4_Impact-Test'!$Y$25*S_5050_SP)+'Exhibit4_Impact-Test'!$Y$26 -> 0.5000 | AA154: 0.5032 | AB154: =VLOOKUP(_xlfn.NUMBERVALUE(LEFT(A154,4)),Transactioncosts!$C:$G,5,FALSE) -> 70 | AD154: 1.0114 | AE154: 1.0136 | AF154: 1.0094 | AG154: 1.01135 | AH154: 1.0090 | AI154: 1.0094 | AK154: 0.0113 | AL154: 0.0135 | AM154: 0.0094 | AN154: 0.7331 | AO154: 1.8373 | AP154: 0.7197 | AR154: 0.0113 | AS154: 0.0089 | AT154: 0.0094 | AU154: 0.7210 | AV154: 1.5545 | AW154: 0.7138
A155: 1883.10 | C155: =raw_Data!B161 -> 5.38 | D155: =raw_Data!J161 -> 0.0274 | E155: =raw_Data!L161 -> 0.0030 | F155: 5.53 | G155: =raw_Data!K161 -> 0.0049 | H155: -0.0271 | J155: 0.9999 | K155: 0.0029 | M155: 1.0029 | N155: 0.9778 | O155: 154 | P155: 156 | R155: 0.2497 | S155: -0.9013 | T155: 0.0000 | V155: =1/PI()*ATAN('Exhibit4_Impact-Test'!$Y$25*S_RDY_SP)+'Exhibit4_Impact-Test'!$Y$26 -> 0.6474 | W155: 0.6416 | X155: =1/PI()*ATAN('Exhibit4_Impact-Test'!$Y$25*S_RS_SP)+'Exhibit4_Impact-Test'!$Y$26 -> 0.1612 | Y155: 0.1578 | Z155: =1/PI()*ATAN('Exhibit4_Impact-Test'!$Y$25*S_5050_SP)+'Exhibit4_Impact-Test'!$Y$26 -> 0.5000 | AA155: 0.4937 | AB155: =VLOOKUP(_xlfn.NUMBERVALUE(LEFT(A155,4)),Transactioncosts!$C:$G,5,FALSE) -> 70 | AD155: 0.9867 | AE155: 0.9989 | AF155: 0.9904 | AG155: 0.98657 | AH155: 0.9942 | AI155: 0.9903 | AK155: -0.0134 | AL155: -0.0011 | AM155: -0.0097 | AN155: 0.7196 | AO155: 1.8362 | AP155: 0.7100 | AR155: -0.0135 | AS155: -0.0058 | AT155: -0.0097 | AU155: 0.7075 | AV155: 1.5486 | AW155: 0.7040
A156: 1883.11 | C156: =raw_Data!B162 -> 5.46 | D156: =raw_Data!J162 -> 0.0274 | E156: =raw_Data!L162 -> 0.0030 | F156: 5.38 | G156: =raw_Data!K162 -> 0.0051 | H156: 0.0149 | J156: 0.9999 | K156: 0.0029 | M156: 1.0029 | N156: 1.0200 | O156: 155 | P156: 157 | R156: 0.2639 | S156: 0.8335 | T156: 0.0000 | V156: =1/PI()*ATAN('Exhibit4_Impact-Test'!$Y$25*S_RDY_SP)+'Exhibit4_Impact-Test'!$Y$26 -> 0.6546 | W156: 0.6584 | X156: =1/PI()*ATAN('Exhibit4_Impact-Test'!$Y$25*S_RS_SP)+'Exhibit4_Impact-Test'!$Y$26 -> 0.8280 | Y156: 0.8304 | Z156: =1/PI()*ATAN('Exhibit4_Impact-Test'!$Y$25*S_5050_SP)+'Exhibit4_Impact-Test'!$Y$26 -> 0.5000 | AA156: 0.5042 | AB156: =VLOOKUP(_xlfn.NUMBERVALUE(LEFT(A156,4)),Transactioncosts!$C:$G,5,FALSE) -> 70 | AD156: 1.0141 | AE156: 1.0170 | AF156: 1.0114 | AG156: 1.01403 | AH156: 1.0124 | AI156: 1.0114 | AK156: 0.0140 | AL156: 0.0169 | AM156: 0.0114 | AN156: 0.7336 | AO156: 1.8531 | AP156: 0.7214 | AR156: 0.0139 | AS156: 0.0123 | AT156: 0.0113 | AU156: 0.7214 | AV156: 1.5609 | AW156: 0.7154
A157: 1883.12 | C157: =raw_Data!B163 -> 5.34 | D157: =raw_Data!J163 -> 0.0275 | E157: =raw_Data!L163 -> 0.0030 | F157: 5.46 | G157: =raw_Data!K163 -> 0.0050 | H157: -0.0220 | J157: 0.9999 | K157: 0.0029 | M157: 1.0029 | N157: 0.9831 | O157: 156 | P157: 158 | R157: 0.2583 | S157: -0.8810 | T157: 0.0000 | V157: =1/PI()*ATAN('Exhibit4_Impact-Test'!$Y$25*S_RDY_SP)+'Exhibit4_Impact-Test'!$Y$26 -> 0.6518 | W157: 0.6472 | X157: =1/PI()*ATAN('Exhibit4_Impact-Test'!$Y$25*S_RS_SP)+'Exhibit4_Impact-Test'!$Y$26 -> 0.1643 | Y157: 0.1616 | Z157: =1/PI()*ATAN('Exhibit4_Impact-Test'!$Y$25*S_5050_SP)+'Exhibit4_Impact-Test'!$Y$26 -> 0.5000 | AA157: 0.4950 | AB157: =VLOOKUP(_xlfn.NUMBERVALUE(LEFT(A157,4)),Transactioncosts!$C:$G,5,FALSE) -> 70 | AD157: 0.9900 | AE157: 0.9996 | AF157: 0.9930 | AG157: 0.98991 | AH157: 0.9996 | AI157: 0.9929 | AK157: -0.0101 | AL157: -0.0004 | AM157: -0.0070 | AN157: 0.7235 | AO157: 1.8527 | AP157: 0.7143 | AR157: -0.0101 | AS157: -0.0004 | AT157: -0.0071 | AU157: 0.7113 | AV157: 1.5605 | AW157: 0.7083
A158: 1884.01 | C158: =raw_Data!B164 -> 5.18 | D158: =raw_Data!J164 -> 0.0274 | E158: =raw_Data!L164 -> 0.0030 | F158: 5.34 | G158: =raw_Data!K164 -> 0.0051 | H158: -0.0300 | J158: 0.9999 | K158: 0.0029 | M158: 1.0029 | N158: 0.9752 | O158: 157 | P158: 159 | R158: 0.2663 | S158: -0.9099 | T158: 0.0000 | V158: =1/PI()*ATAN('Exhibit4_Impact-Test'!$Y$25*S_RDY_SP)+'Exhibit4_Impact-Test'!$Y$26 -> 0.6558 | W158: 0.6494 | X158: =1/PI()*ATAN('Exhibit4_Impact-Test'!$Y$25*S_RS_SP)+'Exhibit4_Impact-Test'!$Y$26 -> 0.1599 | Y158: 0.1562 | Z158: =1/PI()*ATAN('Exhibit4_Impact-Test'!$Y$25*S_5050_SP)+'Exhibit4_Impact-Test'!$Y$26 -> 0.5000 | AA158: 0.4930 | AB158: =VLOOKUP(_xlfn.NUMBERVALUE(LEFT(A158,4)),Transactioncosts!$C:$G,5,FALSE) -> 70 | AD158: 0.9847 | AE158: 0.9985 | AF158: 0.9890 | AG158: 0.98462 | AH158: 0.9937 | AI158: 0.9890 | AK158: -0.0154 | AL158: -0.0015 | AM158: -0.0110 | AN158: 0.7081 | AO158: 1.8512 | AP158: 0.7033 | AR158: -0.0155 | AS158: -0.0063 | AT158: -0.0111 | AU158: 0.6958 | AV158: 1.5542 | AW158: 0.6972
A159: 1884.02 | C159: =raw_Data!B165 -> 5.32 | D159: =raw_Data!J165 -> 0.0272 | E159: =raw_Data!L165 -> 0.0030 | F159: 5.18 | G159: =raw_Data!K165 -> 0.0053 | H159: 0.0270 | J159: 0.9993 | K159: 0.0023 | M159: 1.0023 | N159: 1.0323 | O159: 158 | P159: 160 | R159: 0.2782 | S159: 0.9011 | T159: 0.0000 | V159: =1/PI()*ATAN('Exhibit4_Impact-Test'!$Y$25*S_RDY_SP)+'Exhibit4_Impact-Test'!$Y$26 -> 0.6616 | W159: 0.6682 | X159: =1/PI()*ATAN('Exhibit4_Impact-Test'!$Y$25*S_RS_SP)+'Exhibit4_Impact-Test'!$Y$26 -> 0.8387 | Y159: 0.8427 | Z159: =1/PI()*ATAN('Exhibit4_Impact-Test'!$Y$25*S_5050_SP)+'Exhibit4_Impact-Test'!$Y$26 -> 0.5000 | AA159: 0.5074 | AB159: =VLOOKUP(_xlfn.NUMBERVALUE(LEFT(A159,4)),Transactioncosts!$C:$G,5,FALSE) -> 70 | AD159: 1.0221 | AE159: 1.0274 | AF159: 1.0173 | AG159: 1.02204 | AH159: 1.0232 | AI159: 1.0172 | AK159: 0.0219 | AL159: 0.0271 | AM159: 0.0171 | AN159: 0.7300 | AO159: 1.8782 | AP159: 0.7204 | AR159: 0.0218 | AS159: 0.0229 | AT159: 0.0171 | AU159: 0.7176 | AV159: 1.5771 | AW159: 0.7143
A160: 1884.03 | C160: =raw_Data!B166 -> 5.30 | D160: =raw_Data!J166 -> 0.0271 | E160: =raw_Data!L166 -> 0.0030 | F160: 5.32 | G160: =raw_Data!K166 -> 0.0051 | H160: -0.0038 | J160: 0.9993 | K160: 0.0023 | M160: 1.0023 | N160: 1.0013 | O160: 159 | P160: 161 | R160: 0.2645 | S160: -0.5594 | T160: 0.0000 | V160: =1/PI()*ATAN('Exhibit4_Impact-Test'!$Y$25*S_RDY_SP)+'Exhibit4_Impact-Test'!$Y$26 -> 0.6549 | W160: 0.6547 | X160: =1/PI()*ATAN('Exhibit4_Impact-Test'!$Y$25*S_RS_SP)+'Exhibit4_Impact-Test'!$Y$26 -> 0.2322 | Y160: 0.2320 | Z160: =1/PI()*ATAN('Exhibit4_Impact-Test'!$Y$25*S_5050_SP)+'Exhibit4_Impact-Test'!$Y$26 -> 0.5000 | AA160: 0.4998 | AB160: =VLOOKUP(_xlfn.NUMBERVALUE(LEFT(A160,4)),Transactioncosts!$C:$G,5,FALSE) -> 70 | AD160: 1.0017 | AE160: 1.0021 | AF160: 1.0018 | AG160: 1.00166 | AH160: 1.0015 | AI160: 1.0018 | AK160: 0.0017 | AL160: 0.0021 | AM160: 0.0018 | AN160: 0.7317 | AO160: 1.8803 | AP160: 0.7222 | AR160: 0.0017 | AS160: 0.0015 | AT160: 0.0018 | AU160: 0.7192 | AV160: 1.5786 | AW160: 0.7161
A161: 1884.04 | C161: =raw_Data!B167 -> 5.06 | D161: =raw_Data!J167 -> 0.0269 | E161: =raw_Data!L167 -> 0.0029 | F161: 5.3 | G161: =raw_Data!K167 -> 0.0051 | H161: -0.0453 | J161: 0.9993 | K161: 0.0023 | M161: 1.0023 | N161: 0.9598 | O161: 160 | P161: 162 | R161: 0.2649 | S161: -0.9388 | T161: 0.0000 | V161: =1/PI()*ATAN('Exhibit4_Impact-Test'!$Y$25*S_RDY_SP)+'Exhibit4_Impact-Test'!$Y$26 -> 0.6551 | W161: 0.6452 | X161: =1/PI()*ATAN('Exhibit4_Impact-Test'!$Y$25*S_RS_SP)+'Exhibit4_Impact-Test'!$Y$26 -> 0.1558 | Y161: 0.1502 | Z161: =1/PI()*ATAN('Exhibit4_Impact-Test'!$Y$25*S_5050_SP)+'Exhibit4_Impact-Test'!$Y$26 -> 0.5000 | AA161: 0.4892 | AB161: =VLOOKUP(_xlfn.NUMBERVALUE(LEFT(A161,4)),Transactioncosts!$C:$G,5,FALSE) -> 70 | AD161: 0.9745 | AE161: 0.9957 | AF161: 0.9810 | AG161: 0.97431 | AH161: 0.9956 | AI161: 0.9810 | AK161: -0.0259 | AL161: -0.0044 | AM161: -0.0191 | AN161: 0.7058 | AO161: 1.8759 | AP161: 0.7031 | AR161: -0.0260 | AS161: -0.0044 | AT161: -0.0192 | AU161: 0.6932 | AV161: 1.5743 | AW161: 0.6969
A162: 1884.05 | C162: =raw_Data!B168 -> 4.65 | D162: =raw_Data!J168 -> 0.0268 | E162: =raw_Data!L168 -> 0.0029 | F162: 5.06 | G162: =raw_Data!K168 -> 0.0053 | H162: -0.0810 | J162: 0.9993 | K162: 0.0023 | M162: 1.0023 | N162: 0.9243 | O162: 161 | P162: 163 | R162: 0.2851 | S162: -0.9649 | T162: 0.0000 | V162: =1/PI()*ATAN('Exhibit4_Impact-Test'!$Y$25*S_RDY_SP)+'Exhibit4_Impact-Test'!$Y$26 -> 0.6649 | W162: 0.6467 | X162: =1/PI()*ATAN('Exhibit4_Impact-Test'!$Y$25*S_RS_SP)+'Exhibit4_Impact-Test'!$Y$26 -> 0.1522 | Y162: 0.1420 | Z162: =1/PI()*ATAN('Exhibit4_Impact-Test'!$Y$25*S_5050_SP)+'Exhibit4_Impact-Test'!$Y$26 -> 0.5000 | AA162: 0.4798 | AB162: =VLOOKUP(_xlfn.NUMBERVALUE(LEFT(A162,4)),Transactioncosts!$C:$G,5,FALSE) -> 70 | AD162: 0.9504 | AE162: 0.9904 | AF162: 0.9633 | AG162: 0.95016 | AH162: 0.9903 | AI162: 0.9631 | AK162: -0.0509 | AL162: -0.0096 | AM162: -0.0374 | AN162: 0.6549 | AO162: 1.8663 | AP162: 0.6657 | AR162: -0.0511 | AS162: -0.0098 | AT162: -0.0376 | AU162: 0.6421 | AV162: 1.5645 | AW162: 0.6593
A163: 1884.06 | C163: =raw_Data!B169 -> 4.46 | D163: =raw_Data!J169 -> 0.0267 | E163: =raw_Data!L169 -> 0.0029 | F163: 4.65 | G163: =raw_Data!K169 -> 0.0057 | H163: -0.0409 | J163: 0.9993 | K163: 0.0023 | M163: 1.0023 | N163: 0.9649 | O163: 162 | P163: 164 | R163: 0.3220 | S163: -0.9329 | T163: 0.0000 | V163: =1/PI()*ATAN('Exhibit4_Impact-Test'!$Y$25*S_RDY_SP)+'Exhibit4_Impact-Test'!$Y$26 -> 0.6821 | W163: 0.6738 | X163: =1/PI()*ATAN('Exhibit4_Impact-Test'!$Y$25*S_RS_SP)+'Exhibit4_Impact-Test'!$Y$26 -> 0.1566 | Y163: 0.1517 | Z163: =1/PI()*ATAN('Exhibit4_Impact-Test'!$Y$25*S_5050_SP)+'Exhibit4_Impact-Test'!$Y$26 -> 0.5000 | AA163: 0.4905 | AB163: =VLOOKUP(_xlfn.NUMBERVALUE(LEFT(A163,4)),Transactioncosts!$C:$G,5,FALSE) -> 70 | AD163: 0.9768 | AE163: 0.9964 | AF163: 0.9836 | AG163: 0.97665 | AH163: 0.9940 | AI163: 0.9835 | AK163: -0.0235 | AL163: -0.0036 | AM163: -0.0166 | AN163: 0.6314 | AO163: 1.8627 | AP163: 0.6491 | AR163: -0.0236 | AS163: -0.0061 | AT163: -0.0166 | AU163: 0.6185 | AV163: 1.5585 | AW163: 0.6427
A164: 1884.07 | C164: =raw_Data!B170 -> 4.46 | D164: =raw_Data!J170 -> 0.0265 | E164: =raw_Data!L170 -> 0.0029 | F164: 4.46 | G164: =raw_Data!K170 -> 0.0059 | H164: 0.0000 | J164: 0.9993 | K164: 0.0023 | M164: 1.0023 | N164: 1.0059 | O164: 163 | P164: 165 | R164: 0.3393 | S164: 0.0000 | T164: 0.0000 | V164: =1/PI()*ATAN('Exhibit4_Impact-Test'!$Y$25*S_RDY_SP)+'Exhibit4_Impact-Test'!$Y$26 -> 0.6898 | W164: 0.6906 | X164: =1/PI()*ATAN('Exhibit4_Impact-Test'!$Y$25*S_RS_SP)+'Exhibit4_Impact-Test'!$Y$26 -> 0.5000 | Y164: 0.5009 | Z164: =1/PI()*ATAN('Exhibit4_Impact-Test'!$Y$25*S_5050_SP)+'Exhibit4_Impact-Test'!$Y$26 -> 0.5000 | AA164: 0.5009 | AB164: =VLOOKUP(_xlfn.NUMBERVALUE(LEFT(A164,4)),Transactioncosts!$C:$G,5,FALSE) -> 70 | AD164: 1.0048 | AE164: 1.0041 | AF164: 1.0041 | AG164: 1.00479 | AH164: 1.0017 | AI164: 1.0041 | AK164: 0.0048 | AL164: 0.0041 | AM164: 0.0041 | AN164: 0.6362 | AO164: 1.8668 | AP164: 0.6532 | AR164: 0.0048 | AS164: 0.0017 | AT164: 0.0041 | AU164: 0.6232 | AV164: 1.5601 | AW164: 0.6468
A165: 1884.08 | C165: =raw_Data!B171 -> 4.74 | D165: =raw_Data!J171 -> 0.0264 | E165: =raw_Data!L171 -> 0.0029 | F165: 4.46 | G165: =raw_Data!K171 -> 0.0059 | H165: 0.0628 | J165: 0.9993 | K165: 0.0022 | M165: 1.0022 | N165: 1.0687 | O165: 164 | P165: 166 | R165: 0.3381 | S165: 0.9554 | T165: 0.0000 | V165: =1/PI()*ATAN('Exhibit4_Impact-Test'!$Y$25*S_RDY_SP)+'Exhibit4_Impact-Test'!$Y$26 -> 0.6892 | W165: 0.7028 | X165: =1/PI()*ATAN('Exhibit4_Impact-Test'!$Y$25*S_RS_SP)+'Exhibit4_Impact-Test'!$Y$26 -> 0.8465 | Y165: 0.8547 | Z165: =1/PI()*ATAN('Exhibit4_Impact-Test'!$Y$25*S_5050_SP)+'Exhibit4_Impact-Test'!$Y$26 -> 0.5000 | AA165: 0.5160 | AB165: =VLOOKUP(_xlfn.NUMBERVALUE(LEFT(A165,4)),Transactioncosts!$C:$G,5,FALSE) -> 70 | AD165: 1.0480 | AE165: 1.0585 | AF165: 1.0355 | AG165: 1.04786 | AH165: 1.0536 | AI165: 1.0354 | AK165: 0.0469 | AL165: 0.0569 | AM165: 0.0349 | AN165: 0.6831 | AO165: 1.9236 | AP165: 0.6880 | AR165: 0.0468 | AS165: 0.0522 | AT165: 0.0347 | AU165: 0.6700 | AV165: 1.6124 | AW165: 0.6815
A166: 1884.09 | C166: =raw_Data!B172 -> 4.59 | D166: =raw_Data!J172 -> 0.0263 | E166: =raw_Data!L172 -> 0.0029 | F166: 4.74 | G166: =raw_Data!K172 -> 0.0055 | H166: -0.0316 | J166: 0.9993 | K166: 0.0022 | M166: 1.0022 | N166: 0.9739 | O166: 165 | P166: 167 | R166: 0.3094 | S166: -0.9155 | T166: 0.0000 | V166: =1/PI()*ATAN('Exhibit4_Impact-Test'!$Y$25*S_RDY_SP)+'Exhibit4_Impact-Test'!$Y$26 -> 0.6764 | W166: 0.6701 | X166: =1/PI()*ATAN('Exhibit4_Impact-Test'!$Y$25*S_RS_SP)+'Exhibit4_Impact-Test'!$Y$26 -> 0.1591 | Y166: 0.1553 | Z166: =1/PI()*ATAN('Exhibit4_Impact-Test'!$Y$25*S_5050_SP)+'Exhibit4_Impact-Test'!$Y$26 -> 0.5000 | AA166: 0.4928 | AB166: =VLOOKUP(_xlfn.NUMBERVALUE(LEFT(A166,4)),Transactioncosts!$C:$G,5,FALSE) -> 70 | AD166: 0.9831 | AE166: 0.9977 | AF166: 0.9881 | AG166: 0.98298 | AH166: 0.9977 | AI166: 0.9880 | AK166: -0.0171 | AL166: -0.0023 | AM166: -0.0120 | AN166: 0.6660 | AO166: 1.9214 | AP166: 0.6760 | AR166: -0.0172 | AS166: -0.0023 | AT166: -0.0121 | AU166: 0.6528 | AV166: 1.6101 | AW166: 0.6694
A167: 1884.10 | C167: =raw_Data!B173 -> 4.44 | D167: =raw_Data!J173 -> 0.0261 | E167: =raw_Data!L173 -> 0.0029 | F167: 4.59 | G167: =raw_Data!K173 -> 0.0057 | H167: -0.0327 | J167: 0.9993 | K167: 0.0022 | M167: 1.0022 | N167: 0.9730 | O167: 166 | P167: 168 | R167: 0.3225 | S167: -0.9181 | T167: 0.0000 | V167: =1/PI()*ATAN('Exhibit4_Impact-Test'!$Y$25*S_RDY_SP)+'Exhibit4_Impact-Test'!$Y$26 -> 0.6823 | W167: 0.6759 | X167: =1/PI()*ATAN('Exhibit4_Impact-Test'!$Y$25*S_RS_SP)+'Exhibit4_Impact-Test'!$Y$26 -> 0.1587 | Y167: 0.1548 | Z167: =1/PI()*ATAN('Exhibit4_Impact-Test'!$Y$25*S_5050_SP)+'Exhibit4_Impact-Test'!$Y$26 -> 0.5000 | AA167: 0.4926 | AB167: =VLOOKUP(_xlfn.NUMBERVALUE(LEFT(A167,4)),Transactioncosts!$C:$G,5,FALSE) -> 70 | AD167: 0.9823 | AE167: 0.9976 | AF167: 0.9876 | AG167: 0.98220 | AH167: 0.9975 | AI167: 0.9876 | AK167: -0.0179 | AL167: -0.0024 | AM167: -0.0125 | AN167: 0.6482 | AO167: 1.9190 | AP167: 0.6636 | AR167: -0.0180 | AS167: -0.0025 | AT167: -0.0125 | AU167: 0.6349 | AV167: 1.6076 | AW167: 0.6569
A168: 1884.11 | C168: =raw_Data!B174 -> 4.35 | D168: =raw_Data!J174 -> 0.0260 | E168: =raw_Data!L174 -> 0.0029 | F168: 4.44 | G168: =raw_Data!K174 -> 0.0059 | H168: -0.0203 | J168: 0.9993 | K168: 0.0022 | M168: 1.0022 | N168: 0.9856 | O168: 167 | P168: 169 | R168: 0.3361 | S168: -0.8746 | T168: 0.0000 | V168: =1/PI()*ATAN('Exhibit4_Impact-Test'!$Y$25*S_RDY_SP)+'Exhibit4_Impact-Test'!$Y$26 -> 0.6884 | W168: 0.6848 | X168: =1/PI()*ATAN('Exhibit4_Impact-Test'!$Y$25*S_RS_SP)+'Exhibit4_Impact-Test'!$Y$26 -> 0.1653 | Y168: 0.1630 | Z168: =1/PI()*ATAN('Exhibit4_Impact-Test'!$Y$25*S_5050_SP)+'Exhibit4_Impact-Test'!$Y$26 -> 0.5000 | AA168: 0.4958 | AB168: =VLOOKUP(_xlfn.NUMBERVALUE(LEFT(A168,4)),Transactioncosts!$C:$G,5,FALSE) -> 70 | AD168: 0.9908 | AE168: 0.9995 | AF168: 0.9939 | AG168: 0.99072 | AH168: 0.9987 | AI168: 0.9939 | AK168: -0.0093 | AL168: -0.0005 | AM168: -0.0061 | AN168: 0.6389 | AO168: 1.9184 | AP168: 0.6575 | AR168: -0.0093 | AS168: -0.0013 | AT168: -0.0061 | AU168: 0.6255 | AV168: 1.6063 | AW168: 0.6508
A169: 1884.12 | C169: =raw_Data!B175 -> 4.34 | D169: =raw_Data!J175 -> 0.0258 | E169: =raw_Data!L175 -> 0.0029 | F169: 4.35 | G169: =raw_Data!K175 -> 0.0059 | H169: -0.0023 | J169: 0.9993 | K169: 0.0022 | M169: 1.0022 | N169: 1.0036 | O169: 168 | P169: 170 | R169: 0.3437 | S169: -0.4421 | T169: 0.0000 | V169: =1/PI()*ATAN('Exhibit4_Impact-Test'!$Y$25*S_RDY_SP)+'Exhibit4_Impact-Test'!$Y$26 -> 0.6917 | W169: 0.6920 | X169: =1/PI()*ATAN('Exhibit4_Impact-Test'!$Y$25*S_RS_SP)+'Exhibit4_Impact-Test'!$Y$26 -> 0.2695 | Y169: 0.2698 | Z169: =1/PI()*ATAN('Exhibit4_Impact-Test'!$Y$25*S_5050_SP)+'Exhibit4_Impact-Test'!$Y$26 -> 0.5000 | AA169: 0.5004 | AB169: =VLOOKUP(_xlfn.NUMBERVALUE(LEFT(A169,4)),Transactioncosts!$C:$G,5,FALSE) -> 70 | AD169: 1.0032 | AE169: 1.0026 | AF169: 1.0029 | AG169: 1.00318 | AH169: 1.0019 | AI169: 1.0029 | AK169: 0.0032 | AL169: 0.0026 | AM169: 0.0029 | AN169: 0.6421 | AO169: 1.9210 | AP169: 0.6604 | AR169: 0.0032 | AS169: 0.0019 | AT169: 0.0029 | AU169: 0.6287 | AV169: 1.6082 | AW169: 0.6537
A170: 1885.01 | C170: =raw_Data!B176 -> 4.24 | D170: =raw_Data!J176 -> 0.0254 | E170: =raw_Data!L176 -> 0.0029 | F170: 4.34 | G170: =raw_Data!K176 -> 0.0058 | H170: -0.0230 | J170: 0.9993 | K170: 0.0022 | M170: 1.0022 | N170: 0.9828 | O170: 169 | P170: 171 | R170: 0.3374 | S170: -0.8884 | T170: 0.0000 | V170: =1/PI()*ATAN('Exhibit4_Impact-Test'!$Y$25*S_RDY_SP)+'Exhibit4_Impact-Test'!$Y$26 -> 0.6890 | W170: 0.6848 | X170: =1/PI()*ATAN('Exhibit4_Impact-Test'!$Y$25*S_RS_SP)+'Exhibit4_Impact-Test'!$Y$26 -> 0.1632 | Y170: 0.1605 | Z170: =1/PI()*ATAN('Exhibit4_Impact-Test'!$Y$25*S_5050_SP)+'Exhibit4_Impact-Test'!$Y$26 -> 0.5000 | AA170: 0.4951 | AB170: =VLOOKUP(_xlfn.NUMBERVALUE(LEFT(A170,4)),Transactioncosts!$C:$G,5,FALSE) -> 70 | AD170: 0.9888 | AE170: 0.9990 | AF170: 0.9925 | AG170: 0.98880 | AH170: 0.9943 | AI170: 0.9925 | AK170: -0.0112 | AL170: -0.0010 | AM170: -0.0075 | AN170: 0.6309 | AO170: 1.9201 | AP170: 0.6529 | AR170: -0.0113 | AS170: -0.0057 | AT170: -0.0076 | AU170: 0.6174 | AV170: 1.6024 | AW170: 0.6462
A171: 1885.02 | C171: =raw_Data!B177 -> 4.37 | D171: =raw_Data!J177 -> 0.0249 | E171: =raw_Data!L177 -> 0.0029 | F171: 4.24 | G171: =raw_Data!K177 -> 0.0059 | H171: 0.0307 | J171: 0.9990 | K171: 0.0019 | M171: 1.0019 | N171: 1.0365 | O171: 170 | P171: 172 | R171: 0.3401 | S171: 0.9139 | T171: 0.0000 | V171: =1/PI()*ATAN('Exhibit4_Impact-Test'!$Y$25*S_RDY_SP)+'Exhibit4_Impact-Test'!$Y$26 -> 0.6901 | W171: 0.6974 | X171: =1/PI()*ATAN('Exhibit4_Impact-Test'!$Y$25*S_RS_SP)+'Exhibit4_Impact-Test'!$Y$26 -> 0.8407 | Y171: 0.8452 | Z171: =1/PI()*ATAN('Exhibit4_Impact-Test'!$Y$25*S_5050_SP)+'Exhibit4_Impact-Test'!$Y$26 -> 0.5000 | AA171: 0.5085 | AB171: =VLOOKUP(_xlfn.NUMBERVALUE(LEFT(A171,4)),Transactioncosts!$C:$G,5,FALSE) -> 70 | AD171: 1.0258 | AE171: 1.0310 | AF171: 1.0192 | AG171: 1.02567 | AH171: 1.0302 | AI171: 1.0191 | AK171: 0.0255 | AL171: 0.0305 | AM171: 0.0190 | AN171: 0.6563 | AO171: 1.9506 | AP171: 0.6719 | AR171: 0.0253 | AS171: 0.0298 | AT171: 0.0190 | AU171: 0.6428 | AV171: 1.6322 | AW171: 0.6651
A172: 1885.03 | C172: =raw_Data!B178 -> 4.38 | D172: =raw_Data!J178 -> 0.0244 | E172: =raw_Data!L178 -> 0.0029 | F172: 4.37 | G172: =raw_Data!K178 -> 0.0056 | H172: 0.0023 | J172: 0.9990 | K172: 0.0019 | M172: 1.0019 | N172: 1.0079 | O172: 171 | P172: 173 | R172: 0.3194 | S172: 0.4430 | T172: 0.0000 | V172: =1/PI()*ATAN('Exhibit4_Impact-Test'!$Y$25*S_RDY_SP)+'Exhibit4_Impact-Test'!$Y$26 -> 0.6810 | W172: 0.6823 | X172: =1/PI()*ATAN('Exhibit4_Impact-Test'!$Y$25*S_RS_SP)+'Exhibit4_Impact-Test'!$Y$26 -> 0.7308 | Y172: 0.7320 | Z172: =1/PI()*ATAN('Exhibit4_Impact-Test'!$Y$25*S_5050_SP)+'Exhibit4_Impact-Test'!$Y$26 -> 0.5000 | AA172: 0.5015 | AB172: =VLOOKUP(_xlfn.NUMBERVALUE(LEFT(A172,4)),Transactioncosts!$C:$G,5,FALSE) -> 70 | AD172: 1.0059 | AE172: 1.0062 | AF172: 1.0049 | AG172: 1.00591 | AH172: 1.0030 | AI172: 1.0048 | AK172: 0.0059 | AL172: 0.0062 | AM172: 0.0048 | AN172: 0.6623 | AO172: 1.9568 | AP172: 0.6767 | AR172: 0.0059 | AS172: 0.0030 | AT172: 0.0048 | AU172: 0.6487 | AV172: 1.6352 | AW172: 0.6699
A173: 1885.04 | C173: =raw_Data!B179 -> 4.37 | D173: =raw_Data!J179 -> 0.0239 | E173: =raw_Data!L179 -> 0.0029 | F173: 4.38 | G173: =raw_Data!K179 -> 0.0055 | H173: -0.0023 | J173: 0.9990 | K173: 0.0018 | M173: 1.0018 | N173: 1.0032 | O173: 172 | P173: 174 | R173: 0.3110 | S173: -0.4433 | T173: 0.0000 | V173: =1/PI()*ATAN('Exhibit4_Impact-Test'!$Y$25*S_RDY_SP)+'Exhibit4_Impact-Test'!$Y$26 -> 0.6771 | W173: 0.6774 | X173: =1/PI()*ATAN('Exhibit4_Impact-Test'!$Y$25*S_RS_SP)+'Exhibit4_Impact-Test'!$Y$26 -> 0.2691 | Y173: 0.2694 | Z173: =1/PI()*ATAN('Exhibit4_Impact-Test'!$Y$25*S_5050_SP)+'Exhibit4_Impact-Test'!$Y$26 -> 0.5000 | AA173: 0.5003 | AB173: =VLOOKUP(_xlfn.NUMBERVALUE(LEFT(A173,4)),Transactioncosts!$C:$G,5,FALSE) -> 70 | AD173: 1.0027 | AE173: 1.0022 | AF173: 1.0025 | AG173: 1.00272 | AH173: 1.0016 | AI173: 1.0025 | AK173: 0.0027 | AL173: 0.0022 | AM173: 0.0025 | AN173: 0.6650 | AO173: 1.9590 | AP173: 0.6792 | AR173: 0.0027 | AS173: 0.0016 | AT173: 0.0025 | AU173: 0.6514 | AV173: 1.6368 | AW173: 0.6724
A174: 1885.05 | C174: =raw_Data!B180 -> 4.32 | D174: =raw_Data!J180 -> 0.0234 | E174: =raw_Data!L180 -> 0.0028 | F174: 4.37 | G174: =raw_Data!K180 -> 0.0054 | H174: -0.0114 | J174: 0.9990 | K174: 0.0018 | M174: 1.0018 | N174: 0.9939 | O174: 173 | P174: 175 | R174: 0.3042 | S174: -0.8002 | T174: 0.0000 | V174: =1/PI()*ATAN('Exhibit4_Impact-Test'!$Y$25*S_RDY_SP)+'Exhibit4_Impact-Test'!$Y$26 -> 0.6740 | W174: 0.6722 | X174: =1/PI()*ATAN('Exhibit4_Impact-Test'!$Y$25*S_RS_SP)+'Exhibit4_Impact-Test'!$Y$26 -> 0.1778 | Y174: 0.1766 | Z174: =1/PI()*ATAN('Exhibit4_Impact-Test'!$Y$25*S_5050_SP)+'Exhibit4_Impact-Test'!$Y$26 -> 0.5000 | AA174: 0.4980 | AB174: =VLOOKUP(_xlfn.NUMBERVALUE(LEFT(A174,4)),Transactioncosts!$C:$G,5,FALSE) -> 70 | AD174: 0.9965 | AE174: 1.0004 | AF174: 0.9979 | AG174: 0.99649 | AH174: 1.0001 | AI174: 0.9979 | AK174: -0.0035 | AL174: 0.0004 | AM174: -0.0021 | AN174: 0.6615 | AO174: 1.9594 | AP174: 0.6771 | AR174: -0.0035 | AS174: 0.0001 | AT174: -0.0021 | AU174: 0.6479 | AV174: 1.6369 | AW174: 0.6703
A175: 1885.06 | C175: =raw_Data!B181 -> 4.30 | D175: =raw_Data!J181 -> 0.0229 | E175: =raw_Data!L181 -> 0.0028 | F175: 4.32 | G175: =raw_Data!K181 -> 0.0053 | H175: -0.0046 | J175: 0.9990 | K175: 0.0018 | M175: 1.0018 | N175: 1.0007 | O175: 174 | P175: 176 | R175: 0.3016 | S175: -0.6192 | T175: 0.0000 | V175: =1/PI()*ATAN('Exhibit4_Impact-Test'!$Y$25*S_RDY_SP)+'Exhibit4_Impact-Test'!$Y$26 -> 0.6727 | W175: 0.6725 | X175: =1/PI()*ATAN('Exhibit4_Impact-Test'!$Y$25*S_RS_SP)+'Exhibit4_Impact-Test'!$Y$26 -> 0.2162 | Y175: 0.2160 | Z175: =1/PI()*ATAN('Exhibit4_Impact-Test'!$Y$25*S_5050_SP)+'Exhibit4_Impact-Test'!$Y$26 -> 0.5000 | AA175: 0.4997 | AB175: =VLOOKUP(_xlfn.NUMBERVALUE(LEFT(A175,4)),Transactioncosts!$C:$G,5,FALSE) -> 70 | AD175: 1.0010 | AE175: 1.0016 | AF175: 1.0012 | AG175: 1.00103 | AH175: 0.9972 | AI175: 1.0012 | AK175: 0.0010 | AL175: 0.0016 | AM175: 0.0012 | AN175: 0.6625 | AO175: 1.9610 | AP175: 0.6783 | AR175: 0.0010 | AS175: -0.0028 | AT175: 0.0012 | AU175: 0.6489 | AV175: 1.6341 | AW175: 0.6715
A176: 1885.07 | C176: =raw_Data!B182 -> 4.46 | D176: =raw_Data!J182 -> 0.0224 | E176: =raw_Data!L182 -> 0.0028 | F176: 4.3 | G176: =raw_Data!K182 -> 0.0052 | H176: 0.0372 | J176: 0.9990 | K176: 0.0018 | M176: 1.0018 | N176: 1.0424 | O176: 175 | P176: 177 | R176: 0.2956 | S176: 0.9292 | T176: 0.0000 | V176: =1/PI()*ATAN('Exhibit4_Impact-Test'!$Y$25*S_RDY_SP)+'Exhibit4_Impact-Test'!$Y$26 -> 0.6699 | W176: 0.6787 | X176: =1/PI()*ATAN('Exhibit4_Impact-Test'!$Y$25*S_RS_SP)+'Exhibit4_Impact-Test'!$Y$26 -> 0.8429 | Y176: 0.8481 | Z176: =1/PI()*ATAN('Exhibit4_Impact-Test'!$Y$25*S_5050_SP)+'Exhibit4_Impact-Test'!$Y$26 -> 0.5000 | AA176: 0.5099 | AB176: =VLOOKUP(_xlfn.NUMBERVALUE(LEFT(A176,4)),Transactioncosts!$C:$G,5,FALSE) -> 70 | AD176: 1.0290 | AE176: 1.0360 | AF176: 1.0221 | AG176: 1.02887 | AH176: 1.0360 | AI176: 1.0220 | AK176: 0.0286 | AL176: 0.0354 | AM176: 0.0219 | AN176: 0.6911 | AO176: 1.9964 | AP176: 0.7002 | AR176: 0.0285 | AS176: 0.0354 | AT176: 0.0218 | AU176: 0.6774 | AV176: 1.6695 | AW176: 0.6933
A177: 1885.08 | C177: =raw_Data!B183 -> 4.71 | D177: =raw_Data!J183 -> 0.0219 | E177: =raw_Data!L183 -> 0.0028 | F177: 4.46 | G177: =raw_Data!K183 -> 0.0049 | H177: 0.0561 | J177: 0.9990 | K177: 0.0018 | M177: 1.0018 | N177: 1.0610 | O177: 176 | P177: 178 | R177: 0.2702 | S177: 0.9520 | T177: 0.0000 | V177: =1/PI()*ATAN('Exhibit4_Impact-Test'!$Y$25*S_RDY_SP)+'Exhibit4_Impact-Test'!$Y$26 -> 0.6577 | W177: 0.6705 | X177: =1/PI()*ATAN('Exhibit4_Impact-Test'!$Y$25*S_RS_SP)+'Exhibit4_Impact-Test'!$Y$26 -> 0.8461 | Y177: 0.8534 | Z177: =1/PI()*ATAN('Exhibit4_Impact-Test'!$Y$25*S_5050_SP)+'Exhibit4_Impact-Test'!$Y$26 -> 0.5000 | AA177: 0.5143 | AB177: =VLOOKUP(_xlfn.NUMBERVALUE(LEFT(A177,4)),Transactioncosts!$C:$G,5,FALSE) -> 70 | AD177: 1.0407 | AE177: 1.0519 | AF177: 1.0314 | AG177: 1.04051 | AH177: 1.0471 | AI177: 1.0313 | AK177: 0.0399 | AL177: 0.0506 | AM177: 0.0309 | AN177: 0.7311 | AO177: 2.0470 | AP177: 0.7311 | AR177: 0.0397 | AS177: 0.0460 | AT177: 0.0308 | AU177: 0.7171 | AV177: 1.7155 | AW177: 0.7242
A178: 1885.09 | C178: =raw_Data!B184 -> 4.65 | D178: =raw_Data!J184 -> 0.0215 | E178: =raw_Data!L184 -> 0.0028 | F178: 4.71 | G178: =raw_Data!K184 -> 0.0046 | H178: -0.0127 | J178: 0.9990 | K178: 0.0018 | M178: 1.0018 | N178: 0.9918 | O178: 177 | P178: 179 | R178: 0.2360 | S178: -0.8189 | T178: 0.0000 | V178: =1/PI()*ATAN('Exhibit4_Impact-Test'!$Y$25*S_RDY_SP)+'Exhibit4_Impact-Test'!$Y$26 -> 0.6404 | W178: 0.6380 | X178: =1/PI()*ATAN('Exhibit4_Impact-Test'!$Y$25*S_RS_SP)+'Exhibit4_Impact-Test'!$Y$26 -> 0.1745 | Y178: 0.1730 | Z178: =1/PI()*ATAN('Exhibit4_Impact-Test'!$Y$25*S_5050_SP)+'Exhibit4_Impact-Test'!$Y$26 -> 0.5000 | AA178: 0.4975 | AB178: =VLOOKUP(_xlfn.NUMBERVALUE(LEFT(A178,4)),Transactioncosts!$C:$G,5,FALSE) -> 70 | AD178: 0.9954 | AE178: 1.0000 | AF178: 0.9968 | AG178: 0.99540 | AH178: 0.9953 | AI178: 0.9968 | AK178: -0.0046 | AL178: 0.0000 | AM178: -0.0032 | AN178: 0.7264 | AO178: 2.0470 | AP178: 0.7279 | AR178: -0.0046 | AS178: -0.0047 | AT178: -0.0032 | AU178: 0.7125 | AV178: 1.7108 | AW178: 0.7209
A179: 1885.10 | C179: =raw_Data!B185 -> 4.92 | D179: =raw_Data!J185 -> 0.0210 | E179: =raw_Data!L185 -> 0.0028 | F179: 4.65 | G179: =raw_Data!K185 -> 0.0045 | H179: 0.0581 | J179: 0.9990 | K179: 0.0018 | M179: 1.0018 | N179: 1.0626 | O179: 178 | P179: 180 | R179: 0.2329 | S179: 0.9539 | T179: 0.0000 | V179: =1/PI()*ATAN('Exhibit4_Impact-Test'!$Y$25*S_RDY_SP)+'Exhibit4_Impact-Test'!$Y$26 -> 0.6388 | W179: 0.6523 | X179: =1/PI()*ATAN('Exhibit4_Impact-Test'!$Y$25*S_RS_SP)+'Exhibit4_Impact-Test'!$Y$26 -> 0.8463 | Y179: 0.8538 | Z179: =1/PI()*ATAN('Exhibit4_Impact-Test'!$Y$25*S_5050_SP)+'Exhibit4_Impact-Test'!$Y$26 -> 0.5000 | AA179: 0.5147 | AB179: =VLOOKUP(_xlfn.NUMBERVALUE(LEFT(A179,4)),Transactioncosts!$C:$G,5,FALSE) -> 70 | AD179: 1.0406 | AE179: 1.0532 | AF179: 1.0322 | AG179: 1.04038 | AH179: 1.0532 | AI179: 1.0321 | AK179: 0.0398 | AL179: 0.0519 | AM179: 0.0317 | AN179: 0.7663 | AO179: 2.0989 | AP179: 0.7596 | AR179: 0.0396 | AS179: 0.0518 | AT179: 0.0316 | AU179: 0.7521 | AV179: 1.7627 | AW179: 0.7525
A180: 1885.11 | C180: =raw_Data!B186 -> 5.24 | D180: =raw_Data!J186 -> 0.0205 | E180: =raw_Data!L186 -> 0.0028 | F180: 4.92 | G180: =raw_Data!K186 -> 0.0042 | H180: 0.0650 | J180: 0.9990 | K180: 0.0018 | M180: 1.0018 | N180: 1.0692 | O180: 179 | P180: 181 | R180: 0.1964 | S180: 0.9588 | T180: 0.0000 | V180: =1/PI()*ATAN('Exhibit4_Impact-Test'!$Y$25*S_RDY_SP)+'Exhibit4_Impact-Test'!$Y$26 -> 0.6192 | W180: 0.6344 | X180: =1/PI()*ATAN('Exhibit4_Impact-Test'!$Y$25*S_RS_SP)+'Exhibit4_Impact-Test'!$Y$26 -> 0.8470 | Y180: 0.8552 | Z180: =1/PI()*ATAN('Exhibit4_Impact-Test'!$Y$25*S_5050_SP)+'Exhibit4_Impact-Test'!$Y$26 -> 0.5000 | AA180: 0.5163 | AB180: =VLOOKUP(_xlfn.NUMBERVALUE(LEFT(A180,4)),Transactioncosts!$C:$G,5,FALSE) -> 70 | AD180: 1.0435 | AE180: 1.0589 | AF180: 1.0355 | AG180: 1.04325 | AH180: 1.0542 | AI180: 1.0354 | AK180: 0.0426 | AL180: 0.0572 | AM180: 0.0349 | AN180: 0.8089 | AO180: 2.1561 | AP180: 0.7944 | AR180: 0.0423 | AS180: 0.0528 | AT180: 0.0348 | AU180: 0.7944 | AV180: 1.8155 | AW180: 0.7873
A181: 1885.12 | C181: =raw_Data!B187 -> 5.20 | D181: =raw_Data!J187 -> 0.0200 | E181: =raw_Data!L187 -> 0.0028 | F181: 5.24 | G181: =raw_Data!K187 -> 0.0038 | H181: -0.0076 | J181: 0.9990 | K181: 0.0018 | M181: 1.0018 | N181: 0.9962 | O181: 180 | P181: 182 | R181: 0.1561 | S181: -0.7326 | T181: 0.0000 | V181: =1/PI()*ATAN('Exhibit4_Impact-Test'!$Y$25*S_RDY_SP)+'Exhibit4_Impact-Test'!$Y$26 -> 0.5963 | W181: 0.5950 | X181: =1/PI()*ATAN('Exhibit4_Impact-Test'!$Y$25*S_RS_SP)+'Exhibit4_Impact-Test'!$Y$26 -> 0.1906 | Y181: 0.1898 | Z181: =1/PI()*ATAN('Exhibit4_Impact-Test'!$Y$25*S_5050_SP)+'Exhibit4_Impact-Test'!$Y$26 -> 0.5000 | AA181: 0.4986 | AB181: =VLOOKUP(_xlfn.NUMBERVALUE(LEFT(A181,4)),Transactioncosts!$C:$G,5,FALSE) -> 70 | AD181: 0.9984 | AE181: 1.0007 | AF181: 0.9990 | AG181: 0.99841 | AH181: 0.9985 | AI181: 0.9990 | AK181: -0.0016 | AL181: 0.0007 | AM181: -0.0010 | AN181: 0.8073 | AO181: 2.1568 | AP181: 0.7934 | AR181: -0.0016 | AS181: -0.0015 | AT181: -0.0010 | AU181: 0.7928 | AV181: 1.8140 | AW181: 0.7862
A182: 1886.01 | C182: =raw_Data!B188 -> 5.20 | D182: =raw_Data!J188 -> 0.0199 | E182: =raw_Data!L188 -> 0.0028 | F182: 5.2 | G182: =raw_Data!K188 -> 0.0038 | H182: 0.0000 | J182: 0.9990 | K182: 0.0017 | M182: 1.0017 | N182: 1.0038 | O182: 181 | P182: 183 | R182: 0.1581 | S182: 0.0000 | T182: 0.0000 | V182: =1/PI()*ATAN('Exhibit4_Impact-Test'!$Y$25*S_RDY_SP)+'Exhibit4_Impact-Test'!$Y$26 -> 0.5975 | W182: 0.5980 | X182: =1/PI()*ATAN('Exhibit4_Impact-Test'!$Y$25*S_RS_SP)+'Exhibit4_Impact-Test'!$Y$26 -> 0.5000 | Y182: 0.5005 | Z182: =1/PI()*ATAN('Exhibit4_Impact-Test'!$Y$25*S_5050_SP)+'Exhibit4_Impact-Test'!$Y$26 -> 0.5000 | AA182: 0.5005 | AB182: =VLOOKUP(_xlfn.NUMBERVALUE(LEFT(A182,4)),Transactioncosts!$C:$G,5,FALSE) -> 70 | AD182: 1.0030 | AE182: 1.0028 | AF182: 1.0028 | AG182: 1.00297 | AH182: 1.0004 | AI182: 1.0028 | AK182: 0.0030 | AL182: 0.0028 | AM182: 0.0028 | AN182: 0.8103 | AO182: 2.1596 | AP182: 0.7962 | AR182: 0.0030 | AS182: 0.0004 | AT182: 0.0028 | AU182: 0.7958 | AV182: 1.8144 | AW182: 0.7890
A183: 1886.02 | C183: =raw_Data!B189 -> 5.30 | D183: =raw_Data!J189 -> 0.0197 | E183: =raw_Data!L189 -> 0.0028 | F183: 5.2 | G183: =raw_Data!K189 -> 0.0038 | H183: 0.0192 | J183: 1.0010 | K183: 0.0038 | M183: 1.0038 | N183: 1.0230 | O183: 182 | P183: 184 | R183: 0.1566 | S183: 0.8743 | T183: 0.0000 | V183: =1/PI()*ATAN('Exhibit4_Impact-Test'!$Y$25*S_RDY_SP)+'Exhibit4_Impact-Test'!$Y$26 -> 0.5966 | W183: 0.6012 | X183: =1/PI()*ATAN('Exhibit4_Impact-Test'!$Y$25*S_RS_SP)+'Exhibit4_Impact-Test'!$Y$26 -> 0.8346 | Y183: 0.8372 | Z183: =1/PI()*ATAN('Exhibit4_Impact-Test'!$Y$25*S_5050_SP)+'Exhibit4_Impact-Test'!$Y$26 -> 0.5000 | AA183: 0.5047 | AB183: =VLOOKUP(_xlfn.NUMBERVALUE(LEFT(A183,4)),Transactioncosts!$C:$G,5,FALSE) -> 70 | AD183: 1.0153 | AE183: 1.0198 | AF183: 1.0134 | AG183: 1.01518 | AH183: 1.0151 | AI183: 1.0134 | AK183: 0.0152 | AL183: 0.0197 | AM183: 0.0133 | AN183: 0.8254 | AO183: 2.1792 | AP183: 0.8095 | AR183: 0.0151 | AS183: 0.0150 | AT183: 0.0133 | AU183: 0.8109 | AV183: 1.8294 | AW183: 0.8023
A184: 1886.03 | C184: =raw_Data!B190 -> 5.19 | D184: =raw_Data!J190 -> 0.0196 | E184: =raw_Data!L190 -> 0.0028 | F184: 5.3 | G184: =raw_Data!K190 -> 0.0037 | H184: -0.0208 | J184: 1.0010 | K184: 0.0038 | M184: 1.0038 | N184: 0.9829 | O184: 183 | P184: 185 | R184: 0.1420 | S184: -0.8820 | T184: 0.0000 | V184: =1/PI()*ATAN('Exhibit4_Impact-Test'!$Y$25*S_RDY_SP)+'Exhibit4_Impact-Test'!$Y$26 -> 0.5881 | W184: 0.5830 | X184: =1/PI()*ATAN('Exhibit4_Impact-Test'!$Y$25*S_RS_SP)+'Exhibit4_Impact-Test'!$Y$26 -> 0.1642 | Y184: 0.1613 | Z184: =1/PI()*ATAN('Exhibit4_Impact-Test'!$Y$25*S_5050_SP)+'Exhibit4_Impact-Test'!$Y$26 -> 0.5000 | AA184: 0.4947 | AB184: =VLOOKUP(_xlfn.NUMBERVALUE(LEFT(A184,4)),Transactioncosts!$C:$G,5,FALSE) -> 70 | AD184: 0.9915 | AE184: 1.0004 | AF184: 0.9934 | AG184: 0.99148 | AH184: 1.0003 | AI184: 0.9933 | AK184: -0.0085 | AL184: 0.0004 | AM184: -0.0066 | AN184: 0.8169 | AO184: 2.1796 | AP184: 0.8029 | AR184: -0.0086 | AS184: 0.0003 | AT184: -0.0067 | AU184: 0.8023 | AV184: 1.8298 | AW184: 0.7956
A185: 1886.04 | C185: =raw_Data!B191 -> 5.12 | D185: =raw_Data!J191 -> 0.0194 | E185: =raw_Data!L191 -> 0.0028 | F185: 5.19 | G185: =raw_Data!K191 -> 0.0037 | H185: -0.0135 | J185: 1.0010 | K185: 0.0038 | M185: 1.0038 | N185: 0.9903 | O185: 184 | P185: 186 | R185: 0.1470 | S185: -0.8288 | T185: 0.0000 | V185: =1/PI()*ATAN('Exhibit4_Impact-Test'!$Y$25*S_RDY_SP)+'Exhibit4_Impact-Test'!$Y$26 -> 0.5910 | W185: 0.5877 | X185: =1/PI()*ATAN('Exhibit4_Impact-Test'!$Y$25*S_RS_SP)+'Exhibit4_Impact-Test'!$Y$26 -> 0.1728 | Y185: 0.1709 | Z185: =1/PI()*ATAN('Exhibit4_Impact-Test'!$Y$25*S_5050_SP)+'Exhibit4_Impact-Test'!$Y$26 -> 0.5000 | AA185: 0.4966 | AB185: =VLOOKUP(_xlfn.NUMBERVALUE(LEFT(A185,4)),Transactioncosts!$C:$G,5,FALSE) -> 70 | AD185: 0.9958 | AE185: 1.0015 | AF185: 0.9970 | AG185: 0.99578 | AH185: 1.0014 | AI185: 0.9970 | AK185: -0.0042 | AL185: 0.0015 | AM185: -0.0030 | AN185: 0.8127 | AO185: 2.1811 | AP185: 0.7999 | AR185: -0.0042 | AS185: 0.0014 | AT185: -0.0030 | AU185: 0.7981 | AV185: 1.8312 | AW185: 0.7926
A186: 1886.05 | C186: =raw_Data!B192 -> 5.02 | D186: =raw_Data!J192 -> 0.0193 | E186: =raw_Data!L192 -> 0.0028 | F186: 5.12 | G186: =raw_Data!K192 -> 0.0038 | H186: -0.0195 | J186: 1.0010 | K186: 0.0038 | M186: 1.0038 | N186: 0.9842 | O186: 185 | P186: 187 | R186: 0.1485 | S186: -0.8748 | T186: 0.0000 | V186: =1/PI()*ATAN('Exhibit4_Impact-Test'!$Y$25*S_RDY_SP)+'Exhibit4_Impact-Test'!$Y$26 -> 0.5919 | W186: 0.5871 | X186: =1/PI()*ATAN('Exhibit4_Impact-Test'!$Y$25*S_RS_SP)+'Exhibit4_Impact-Test'!$Y$26 -> 0.1653 | Y186: 0.1626 | Z186: =1/PI()*ATAN('Exhibit4_Impact-Test'!$Y$25*S_5050_SP)+'Exhibit4_Impact-Test'!$Y$26 -> 0.5000 | AA186: 0.4951 | AB186: =VLOOKUP(_xlfn.NUMBERVALUE(LEFT(A186,4)),Transactioncosts!$C:$G,5,FALSE) -> 70 | AD186: 0.9922 | AE186: 1.0006 | AF186: 0.9940 | AG186: 0.99218 | AH186: 0.9958 | AI186: 0.9940 | AK186: -0.0078 | AL186: 0.0006 | AM186: -0.0060 | AN186: 0.8049 | AO186: 2.1817 | AP186: 0.7939 | AR186: -0.0078 | AS186: -0.0042 | AT186: -0.0060 | AU186: 0.7902 | AV186: 1.8270 | AW186: 0.7866
A187: 1886.06 | C187: =raw_Data!B193 -> 5.25 | D187: =raw_Data!J193 -> 0.0192 | E187: =raw_Data!L193 -> 0.0028 | F187: 5.02 | G187: =raw_Data!K193 -> 0.0038 | H187: 0.0458 | J187: 1.0010 | K187: 0.0038 | M187: 1.0038 | N187: 1.0496 | O187: 186 | P187: 188 | R187: 0.1527 | S187: 0.9423 | T187: 0.0000 | V187: =1/PI()*ATAN('Exhibit4_Impact-Test'!$Y$25*S_RDY_SP)+'Exhibit4_Impact-Test'!$Y$26 -> 0.5944 | W187: 0.6051 | X187: =1/PI()*ATAN('Exhibit4_Impact-Test'!$Y$25*S_RS_SP)+'Exhibit4_Impact-Test'!$Y$26 -> 0.8447 | Y187: 0.8505 | Z187: =1/PI()*ATAN('Exhibit4_Impact-Test'!$Y$25*S_5050_SP)+'Exhibit4_Impact-Test'!$Y$26 -> 0.5000 | AA187: 0.5112 | AB187: =VLOOKUP(_xlfn.NUMBERVALUE(LEFT(A187,4)),Transactioncosts!$C:$G,5,FALSE) -> 70 | AD187: 1.0311 | AE187: 1.0425 | AF187: 1.0267 | AG187: 1.03087 | AH187: 1.0424 | AI187: 1.0267 | AK187: 0.0306 | AL187: 0.0416 | AM187: 0.0264 | AN187: 0.8355 | AO187: 2.2233 | AP187: 0.8203 | AR187: 0.0304 | AS187: 0.0415 | AT187: 0.0263 | AU187: 0.8206 | AV187: 1.8685 | AW187: 0.8129
A188: 1886.07 | C188: =raw_Data!B194 -> 5.33 | D188: =raw_Data!J194 -> 0.0190 | E188: =raw_Data!L194 -> 0.0028 | F188: 5.25 | G188: =raw_Data!K194 -> 0.0036 | H188: 0.0152 | J188: 1.0010 | K188: 0.0038 | M188: 1.0038 | N188: 1.0189 | O188: 187 | P188: 189 | R188: 0.1254 | S188: 0.8440 | T188: 0.0000 | V188: =1/PI()*ATAN('Exhibit4_Impact-Test'!$Y$25*S_RDY_SP)+'Exhibit4_Impact-Test'!$Y$26 -> 0.5782 | W188: 0.5818 | X188: =1/PI()*ATAN('Exhibit4_Impact-Test'!$Y$25*S_RS_SP)+'Exhibit4_Impact-Test'!$Y$26 -> 0.8298 | Y188: 0.8318 | Z188: =1/PI()*ATAN('Exhibit4_Impact-Test'!$Y$25*S_5050_SP)+'Exhibit4_Impact-Test'!$Y$26 -> 0.5000 | AA188: 0.5037 | AB188: =VLOOKUP(_xlfn.NUMBERVALUE(LEFT(A188,4)),Transactioncosts!$C:$G,5,FALSE) -> 70 | AD188: 1.0125 | AE188: 1.0163 | AF188: 1.0114 | AG188: 1.01245 | AH188: 1.0161 | AI188: 1.0113 | AK188: 0.0125 | AL188: 0.0162 | AM188: 0.0113 | AN188: 0.8480 | AO188: 2.2395 | AP188: 0.8316 | AR188: 0.0124 | AS188: 0.0160 | AT188: 0.0113 | AU188: 0.8330 | AV188: 1.8845 | AW188: 0.8242
A189: 1886.08 | C189: =raw_Data!B195 -> 5.37 | D189: =raw_Data!J195 -> 0.0189 | E189: =raw_Data!L195 -> 0.0028 | F189: 5.33 | G189: =raw_Data!K195 -> 0.0035 | H189: 0.0075 | J189: 1.0010 | K189: 0.0039 | M189: 1.0039 | N189: 1.0110 | O189: 188 | P189: 190 | R189: 0.1127 | S189: 0.7264 | T189: 0.0000 | V189: =1/PI()*ATAN('Exhibit4_Impact-Test'!$Y$25*S_RDY_SP)+'Exhibit4_Impact-Test'!$Y$26 -> 0.5706 | W189: 0.5723 | X189: =1/PI()*ATAN('Exhibit4_Impact-Test'!$Y$25*S_RS_SP)+'Exhibit4_Impact-Test'!$Y$26 -> 0.8081 | Y189: 0.8092 | Z189: =1/PI()*ATAN('Exhibit4_Impact-Test'!$Y$25*S_5050_SP)+'Exhibit4_Impact-Test'!$Y$26 -> 0.5000 | AA189: 0.5018 | AB189: =VLOOKUP(_xlfn.NUMBERVALUE(LEFT(A189,4)),Transactioncosts!$C:$G,5,FALSE) -> 70 | AD189: 1.0080 | AE189: 1.0097 | AF189: 1.0075 | AG189: 1.00791 | AH189: 1.0095 | AI189: 1.0074 | AK189: 0.0079 | AL189: 0.0096 | AM189: 0.0074 | AN189: 0.8559 | AO189: 2.2491 | AP189: 0.8390 | AR189: 0.0079 | AS189: 0.0094 | AT189: 0.0074 | AU189: 0.8409 | AV189: 1.8939 | AW189: 0.8316
A190: 1886.09 | C190: =raw_Data!B196 -> 5.51 | D190: =raw_Data!J196 -> 0.0188 | E190: =raw_Data!L196 -> 0.0028 | F190: 5.37 | G190: =raw_Data!K196 -> 0.0035 | H190: 0.0261 | J190: 1.0010 | K190: 0.0039 | M190: 1.0039 | N190: 1.0296 | O190: 189 | P190: 191 | R190: 0.1035 | S190: 0.9019 | T190: 0.0000 | V190: =1/PI()*ATAN('Exhibit4_Impact-Test'!$Y$25*S_RDY_SP)+'Exhibit4_Impact-Test'!$Y$26 -> 0.5650 | W190: 0.5712 | X190: =1/PI()*ATAN('Exhibit4_Impact-Test'!$Y$25*S_RS_SP)+'Exhibit4_Impact-Test'!$Y$26 -> 0.8389 | Y190: 0.8423 | Z190: =1/PI()*ATAN('Exhibit4_Impact-Test'!$Y$25*S_5050_SP)+'Exhibit4_Impact-Test'!$Y$26 -> 0.5000 | AA190: 0.5063 | AB190: =VLOOKUP(_xlfn.NUMBERVALUE(LEFT(A190,4)),Transactioncosts!$C:$G,5,FALSE) -> 70 | AD190: 1.0184 | AE190: 1.0254 | AF190: 1.0167 | AG190: 1.01826 | AH190: 1.0254 | AI190: 1.0167 | AK190: 0.0182 | AL190: 0.0251 | AM190: 0.0166 | AN190: 0.8741 | AO190: 2.2742 | AP190: 0.8556 | AR190: 0.0181 | AS190: 0.0251 | AT190: 0.0165 | AU190: 0.8590 | AV190: 1.9190 | AW190: 0.8481
A191: 1886.10 | C191: =raw_Data!B197 -> 5.65 | D191: =raw_Data!J197 -> 0.0186 | E191: =raw_Data!L197 -> 0.0029 | F191: 5.51 | G191: =raw_Data!K197 -> 0.0034 | H191: 0.0254 | J191: 1.0010 | K191: 0.0039 | M191: 1.0039 | N191: 1.0288 | O191: 190 | P191: 192 | R191: 0.0852 | S191: 0.8993 | T191: 0.0000 | V191: =1/PI()*ATAN('Exhibit4_Impact-Test'!$Y$25*S_RDY_SP)+'Exhibit4_Impact-Test'!$Y$26 -> 0.5537 | W191: 0.5598 | X191: =1/PI()*ATAN('Exhibit4_Impact-Test'!$Y$25*S_RS_SP)+'Exhibit4_Impact-Test'!$Y$26 -> 0.8385 | Y191: 0.8418 | Z191: =1/PI()*ATAN('Exhibit4_Impact-Test'!$Y$25*S_5050_SP)+'Exhibit4_Impact-Test'!$Y$26 -> 0.5000 | AA191: 0.5061 | AB191: =VLOOKUP(_xlfn.NUMBERVALUE(LEFT(A191,4)),Transactioncosts!$C:$G,5,FALSE) -> 70 | AD191: 1.0177 | AE191: 1.0248 | AF191: 1.0163 | AG191: 1.01755 | AH191: 1.0247 | AI191: 1.0163 | AK191: 0.0175 | AL191: 0.0245 | AM191: 0.0162 | AN191: 0.8916 | AO191: 2.2987 | AP191: 0.8718 | AR191: 0.0174 | AS191: 0.0244 | AT191: 0.0162 | AU191: 0.8764 | AV191: 1.9434 | AW191: 0.8643
A192: 1886.11 | C192: =raw_Data!B198 -> 5.79 | D192: =raw_Data!J198 -> 0.0185 | E192: =raw_Data!L198 -> 0.0029 | F192: 5.65 | G192: =raw_Data!K198 -> 0.0033 | H192: 0.0248 | J192: 1.0010 | K192: 0.0039 | M192: 1.0039 | N192: 1.0280 | O192: 191 | P192: 193 | R192: 0.0674 | S192: 0.8966 | T192: 0.0000 | V192: =1/PI()*ATAN('Exhibit4_Impact-Test'!$Y$25*S_RDY_SP)+'Exhibit4_Impact-Test'!$Y$26 -> 0.5427 | W192: 0.5486 | X192: =1/PI()*ATAN('Exhibit4_Impact-Test'!$Y$25*S_RS_SP)+'Exhibit4_Impact-Test'!$Y$26 -> 0.8381 | Y192: 0.8413 | Z192: =1/PI()*ATAN('Exhibit4_Impact-Test'!$Y$25*S_5050_SP)+'Exhibit4_Impact-Test'!$Y$26 -> 0.5000 | AA192: 0.5059 | AB192: =VLOOKUP(_xlfn.NUMBERVALUE(LEFT(A192,4)),Transactioncosts!$C:$G,5,FALSE) -> 70 | AD192: 1.0170 | AE192: 1.0241 | AF192: 1.0160 | AG192: 1.01688 | AH192: 1.0194 | AI192: 1.0159 | AK192: 0.0169 | AL192: 0.0238 | AM192: 0.0158 | AN192: 0.9085 | AO192: 2.3225 | AP192: 0.8876 | AR192: 0.0167 | AS192: 0.0192 | AT192: 0.0158 | AU192: 0.8931 | AV192: 1.9626 | AW192: 0.8801
A193: 1886.12 | C193: =raw_Data!B199 -> 5.64 | D193: =raw_Data!J199 -> 0.0183 | E193: =raw_Data!L199 -> 0.0029 | F193: 5.79 | G193: =raw_Data!K199 -> 0.0032 | H193: -0.0259 | J193: 1.0010 | K193: 0.0039 | M193: 1.0039 | N193: 0.9773 | O193: 192 | P193: 194 | R193: 0.0496 | S193: -0.9004 | T193: 0.0000 | V193: =1/PI()*ATAN('Exhibit4_Impact-Test'!$Y$25*S_RDY_SP)+'Exhibit4_Impact-Test'!$Y$26 -> 0.5315 | W193: 0.5248 | X193: =1/PI()*ATAN('Exhibit4_Impact-Test'!$Y$25*S_RS_SP)+'Exhibit4_Impact-Test'!$Y$26 -> 0.1614 | Y193: 0.1578 | Z193: =1/PI()*ATAN('Exhibit4_Impact-Test'!$Y$25*S_5050_SP)+'Exhibit4_Impact-Test'!$Y$26 -> 0.5000 | AA193: 0.4933 | AB193: =VLOOKUP(_xlfn.NUMBERVALUE(LEFT(A193,4)),Transactioncosts!$C:$G,5,FALSE) -> 70 | AD193: 0.9897 | AE193: 0.9996 | AF193: 0.9906 | AG193: 0.98962 | AH193: 0.9994 | AI193: 0.9905 | AK193: -0.0103 | AL193: -0.0004 | AM193: -0.0095 | AN193: 0.8982 | AO193: 2.3221 | AP193: 0.8782 | AR193: -0.0104 | AS193: -0.0006 | AT193: -0.0095 | AU193: 0.8827 | AV193: 1.9621 | AW193: 0.8705
A194: 1887.01 | C194: =raw_Data!B200 -> 5.58 | D194: =raw_Data!J200 -> 0.0185 | E194: =raw_Data!L200 -> 0.0029 | F194: 5.64 | G194: =raw_Data!K200 -> 0.0033 | H194: -0.0106 | J194: 1.0010 | K194: 0.0039 | M194: =interest_mon+bond_approx_price -> 1.0039 | N194: 0.9926 | O194: =ROW(A194)-1 -> 193 | P194: =ROW(A194)+1 -> 195 | R194: 0.0666 | S194: -0.7871 | T194: 0.0000 | V194: =1/PI()*ATAN('Exhibit4_Impact-Test'!$Y$25*S_RDY_SP)+'Exhibit4_Impact-Test'!$Y$26 -> 0.5422 | W194: 0.5394 | X194: =1/PI()*ATAN('Exhibit4_Impact-Test'!$Y$25*S_RS_SP)+'Exhibit4_Impact-Test'!$Y$26 -> 0.1801 | Y194: 0.1785 | Z194: =1/PI()*ATAN('Exhibit4_Impact-Test'!$Y$25*S_5050_SP)+'Exhibit4_Impact-Test'!$Y$26 -> 0.5000 | AA194: 0.4972 | AB194: =VLOOKUP(_xlfn.NUMBERVALUE(LEFT(A194,4)),Transactioncosts!$C:$G,5,FALSE) -> 70 | AD194: 0.9978 | AE194: 1.0019 | AF194: 0.9983 | AG194: 0.99774 | AH194: 1.0018 | AI194: 0.9983 | AK194: -0.0022 | AL194: 0.0019 | AM194: -0.0017 | AN194: 0.8960 | AO194: 2.3240 | AP194: 0.8764 | AR194: -0.0023 | AS194: 0.0018 | AT194: -0.0017 | AU194: 0.8804 | AV194: 1.9638 | AW194: 0.8688
A195: 1887.02 | C195: =raw_Data!B201 -> 5.54 | D195: =raw_Data!J201 -> 0.0188 | E195: =raw_Data!L201 -> 0.0029 | F195: =C194 -> 5.58 | G195: =raw_Data!K201 -> 0.0034 | H195: =q_SP/q_SP_tminus-1 -> -0.0072 | J195: =interest_mon*((1-(1+INDEX(interest_mon,tMinus))^(-119))/INDEX(interest_mon,tMinus))+(1+INDEX(interest_mon,tMinus))^(-119) -> 1.0010 | K195: 0.0039 | M195: 1.0039 | N195: =(D_mon+q_SP)/INDEX(q_SP,tMinus) -> 0.9962 | O195: 194 | P195: 196 | R195: =(div_yield_mon-INDEX(interest_mon, tMinus))/(div_yield_mon+INDEX(interest_mon,tMinus)) -> 0.0757 | S195: =price_yield/(ABS(price_yield)+INDEX(interest_mon,tMinus)) -> -0.7129 | T195: 0.0000 | V195: =1/PI()*ATAN('Exhibit4_Impact-Test'!$Y$25*S_RDY_SP)+'Exhibit4_Impact-Test'!$Y$26 -> 0.5479 | W195: =L_RDY_SP_set*R_SP/R_RDY -> 0.5459 | X195: =1/PI()*ATAN('Exhibit4_Impact-Test'!$Y$25*S_RS_SP)+'Exhibit4_Impact-Test'!$Y$26 -> 0.1947 | Y195: =L_RS_SP_set*R_SP/R_RS -> 0.1935 | Z195: =1/PI()*ATAN('Exhibit4_Impact-Test'!$Y$25*S_5050_SP)+'Exhibit4_Impact-Test'!$Y$26 -> 0.5000 | AA195: =L_5050_SP_set*R_SP/R_5050 -> 0.4981 | AB195: =VLOOKUP(_xlfn.NUMBERVALUE(LEFT(A195,4)),Transactioncosts!$C:$G,5,FALSE) -> 70 | AD195: =R_Cash*(1-L_RDY_SP_set)+R_SP*L_RDY_SP_set -> 0.9997 | AE195: =R_Cash*(1-L_RS_SP_set)+R_SP*L_RS_SP_set -> 1.0024 | AF195: =R_Cash*(1-L_5050_SP_set)+R_SP*L_5050_SP_set -> 1.0001 | AG195: =R_RDY-ABS(L_RDY_SP_act-INDEX(L_RDY_SP_set,tPlus))*TC/10000 -> 0.99964 | AH195: =R_RS-ABS(L_RS_SP_act-INDEX(L_RS_SP_set,tPlus))*TC/10000 -> 0.9979 | AI195: =R_5050-ABS(L_5050_SP_act-INDEX(L_5050_SP_set,tPlus))*TC/10000 -> 1.0000 | AK195: =LN(R_RDY) -> -0.0003 | AL195: =LN(R_RS) -> 0.0024 | AM195: =LN(R_5050) -> 0.0001 | AN195: 0.8956 | AO195: 2.3264 | AP195: 0.8765 | AR195: =LN(R_RDY_TC) -> -0.0004 | AS195: =LN(R_RS_TC) -> -0.0021 | AT195: =LN(R_5050_TC) -> 0.0000 | AU195: 0.8800 | AV195: 1.9617 | AW195: 0.8688
A196: 1887.03 | C196: =raw_Data!B202 -> 5.67 | D196: =raw_Data!J202 -> 0.0190 | E196: =raw_Data!L202 -> 0.0029 | F196: 5.54 | G196: =raw_Data!K202 -> 0.0034 | H196: 0.0235 | J196: 1.0010 | K196: =M196-1 -> 0.0039 | M196: 1.0039 | N196: 1.0269 | O196: 195 | P196: 197 | R196: 0.0831 | S196: 0.8901 | T196: 0.0000 | V196: =1/PI()*ATAN('Exhibit4_Impact-Test'!$Y$25*S_RDY_SP)+'Exhibit4_Impact-Test'!$Y$26 -> 0.5524 | W196: 0.5580 | X196: =1/PI()*ATAN('Exhibit4_Impact-Test'!$Y$25*S_RS_SP)+'Exhibit4_Impact-Test'!$Y$26 -> 0.8371 | Y196: 0.8401 | Z196: =1/PI()*ATAN('Exhibit4_Impact-Test'!$Y$25*S_5050_SP)+'Exhibit4_Impact-Test'!$Y$26 -> 0.5000 | AA196: 0.5057 | AB196: =VLOOKUP(_xlfn.NUMBERVALUE(LEFT(A196,4)),Transactioncosts!$C:$G,5,FALSE) -> 70 | AD196: 1.0166 | AE196: 1.0231 | AF196: 1.0154 | AG196: 1.01654 | AH196: 1.0231 | AI196: 1.0154 | AK196: 0.0165 | AL196: 0.0229 | AM196: 0.0153 | AN196: =AK196+AN195 -> 0.9121 | AO196: 2.3493 | AP196: 0.8918 | AR196: 0.0164 | AS196: 0.0229 | AT196: 0.0152 | AU196: =AR196+AU195 -> 0.8964 | AV196: =AS196+AV195 -> 1.9846 | AW196: =AT196+AW195 -> 0.8841
A197: 1887.04 | C197: =raw_Data!B203 -> 5.80 | D197: =raw_Data!J203 -> 0.0192 | E197: =raw_Data!L203 -> 0.0029 | F197: 5.67 | G197: =raw_Data!K203 -> 0.0034 | H197: 0.0229 | J197: 1.0010 | K197: 0.0039 | M197: 1.0039 | N197: 1.0263 | O197: 196 | P197: 198 | R197: 0.0752 | S197: 0.8875 | T197: 0.0000 | V197: =1/PI()*ATAN('Exhibit4_Impact-Test'!$Y$25*S_RDY_SP)+'Exhibit4_Impact-Test'!$Y$26 -> 0.5475 | W197: 0.5530 | X197: =1/PI()*ATAN('Exhibit4_Impact-Test'!$Y$25*S_RS_SP)+'Exhibit4_Impact-Test'!$Y$26 -> 0.8367 | Y197: 0.8397 | Z197: =1/PI()*ATAN('Exhibit4_Impact-Test'!$Y$25*S_5050_SP)+'Exhibit4_Impact-Test'!$Y$26 -> 0.5000 | AA197: 0.5055 | AB197: =VLOOKUP(_xlfn.NUMBERVALUE(LEFT(A197,4)),Transactioncosts!$C:$G,5,FALSE) -> 70 | AD197: 1.0162 | AE197: 1.0227 | AF197: 1.0151 | AG197: 1.01611 | AH197: 1.0226 | AI197: 1.0151 | AK197: 0.0161 | AL197: 0.0224 | AM197: 0.0150 | AN197: 0.9282 | AO197: 2.3717 | AP197: 0.9068 | AR197: 0.0160 | AS197: 0.0223 | AT197: 0.0150 | AU197: 0.9124 | AV197: 2.0069 | AW197: 0.8991
A198: 1887.05 | C198: =raw_Data!B204 -> 5.90 | D198: =raw_Data!J204 -> 0.0194 | E198: =raw_Data!L204 -> 0.0029 | F198: 5.8 | G198: =raw_Data!K204 -> 0.0033 | H198: 0.0172 | J198: 1.0010 | K198: 0.0039 | M198: 1.0039 | N198: 1.0206 | O198: 197 | P198: 199 | R198: 0.0676 | S198: 0.8553 | T198: 0.0000 | V198: =1/PI()*ATAN('Exhibit4_Impact-Test'!$Y$25*S_RDY_SP)+'Exhibit4_Impact-Test'!$Y$26 -> 0.5428 | W198: 0.5469 | X198: =1/PI()*ATAN('Exhibit4_Impact-Test'!$Y$25*S_RS_SP)+'Exhibit4_Impact-Test'!$Y$26 -> 0.8316 | Y198: 0.8339 | Z198: =1/PI()*ATAN('Exhibit4_Impact-Test'!$Y$25*S_5050_SP)+'Exhibit4_Impact-Test'!$Y$26 -> 0.5000 | AA198: 0.5041 | AB198: =VLOOKUP(_xlfn.NUMBERVALUE(LEFT(A198,4)),Transactioncosts!$C:$G,5,FALSE) -> 70 | AD198: 1.0130 | AE198: 1.0178 | AF198: 1.0123 | AG198: 1.01292 | AH198: 1.0131 | AI198: 1.0122 | AK198: 0.0129 | AL198: 0.0176 | AM198: 0.0122 | AN198: 0.9410 | AO198: 2.3893 | AP198: 0.9190 | AR198: 0.0128 | AS198: 0.0130 | AT198: 0.0122 | AU198: 0.9253 | AV198: 2.0199 | AW198: 0.9112
A199: 1887.06 | C199: =raw_Data!B205 -> 5.73 | D199: =raw_Data!J205 -> 0.0196 | E199: =raw_Data!L205 -> 0.0029 | F199: 5.9 | G199: =raw_Data!K205 -> 0.0033 | H199: -0.0288 | J199: 1.0010 | K199: 0.0039 | M199: 1.0039 | N199: 0.9745 | O199: 198 | P199: 200 | R199: 0.0627 | S199: -0.9078 | T199: 0.0000 | V199: =1/PI()*ATAN('Exhibit4_Impact-Test'!$Y$25*S_RDY_SP)+'Exhibit4_Impact-Test'!$Y$26 -> 0.5397 | W199: 0.5323 | X199: =1/PI()*ATAN('Exhibit4_Impact-Test'!$Y$25*S_RS_SP)+'Exhibit4_Impact-Test'!$Y$26 -> 0.1603 | Y199: 0.1563 | Z199: =1/PI()*ATAN('Exhibit4_Impact-Test'!$Y$25*S_5050_SP)+'Exhibit4_Impact-Test'!$Y$26 -> 0.5000 | AA199: 0.4926 | AB199: =VLOOKUP(_xlfn.NUMBERVALUE(LEFT(A199,4)),Transactioncosts!$C:$G,5,FALSE) -> 70 | AD199: 0.9881 | AE199: 0.9992 | AF199: 0.9892 | AG199: 0.98793 | AH199: 0.9992 | AI199: 0.9892 | AK199: -0.0120 | AL199: -0.0008 | AM199: -0.0108 | AN199: 0.9290 | AO199: 2.3885 | AP199: 0.9081 | AR199: -0.0121 | AS199: -0.0008 | AT199: -0.0109 | AU199: 0.9131 | AV199: 2.0191 | AW199: 0.9003
A200: 1887.07 | C200: =raw_Data!B206 -> 5.59 | D200: =raw_Data!J206 -> 0.0198 | E200: =raw_Data!L206 -> 0.0029 | F200: 5.73 | G200: =raw_Data!K206 -> 0.0035 | H200: -0.0244 | J200: 1.0010 | K200: 0.0040 | M200: 1.0040 | N200: 0.9790 | O200: 199 | P200: 201 | R200: 0.0808 | S200: -0.8927 | T200: 0.0000 | V200: =1/PI()*ATAN('Exhibit4_Impact-Test'!$Y$25*S_RDY_SP)+'Exhibit4_Impact-Test'!$Y$26 -> 0.5510 | W200: 0.5448 | X200: =1/PI()*ATAN('Exhibit4_Impact-Test'!$Y$25*S_RS_SP)+'Exhibit4_Impact-Test'!$Y$26 -> 0.1625 | Y200: 0.1591 | Z200: =1/PI()*ATAN('Exhibit4_Impact-Test'!$Y$25*S_5050_SP)+'Exhibit4_Impact-Test'!$Y$26 -> 0.5000 | AA200: 0.4937 | AB200: =VLOOKUP(_xlfn.NUMBERVALUE(LEFT(A200,4)),Transactioncosts!$C:$G,5,FALSE) -> 70 | AD200: 0.9902 | AE200: 0.9999 | AF200: 0.9915 | AG200: 0.99011 | AH200: 0.9999 | AI200: 0.9914 | AK200: -0.0098 | AL200: -0.0001 | AM200: -0.0085 | AN200: 0.9192 | AO200: 2.3885 | AP200: 0.8996 | AR200: -0.0099 | AS200: -0.0001 | AT200: -0.0086 | AU200: 0.9032 | AV200: 2.0190 | AW200: 0.8917
... 1577 more rows

Sheet Exhibit4_Impact-Test
A1: =Timecode -> Time | B1: Aufgabe 10 | C1: =C2*10000&"BP "&"(epsilon)" -> 100BP (epsilon) | D1: ="Impact_neg_"&$C$1 -> Impact_neg_100BP (epsilon) | E1: ="Impact_pos_RDY_"&$C$1 -> Impact_pos_RDY_100BP (epsilon) | F1: ="Impact_pos_RS_"&$C$1 -> Impact_pos_RS_100BP (epsilon) | G1: ="Impact_ges_RDY_"&$C$1 -> Impact_ges_RDY_100BP (epsilon) | H1: ="Impact_ges_RS_"&$C$1 -> Impact_ges_RS_100BP (epsilon) | I1: Aufgabe 11 | J1: ="q_impact_RDY_"&$C$1 -> q_impact_RDY_100BP (epsilon) | K1: ="q_impact_RS_"&$C$1 -> q_impact_RS_100BP (epsilon) | L1: Aufgabe 12 | M1: ="R_epsilon_1st_11_"&$C$1 -> R_epsilon_1st_11_100BP (epsilon) | N1: ="R_epsilon_1st_12_"&$C$1 -> R_epsilon_1st_12_100BP (epsilon) | O1: ="R_epsilon_1st_21_"&$C$1 -> R_epsilon_1st_21_100BP (epsilon) | P1: ="R_epsilon_1st_22_"&$C$1 -> R_epsilon_1st_22_100BP (epsilon) | Q1: Aufgabe 13 | R1: ="Gamma_IT_1st_11_"&$C$1 -> Gamma_IT_1st_11_100BP (epsilon) | S1: ="Gamma_IT_1st_12_"&$C$1 -> Gamma_IT_1st_12_100BP (epsilon) | T1: ="Gamma_IT_1st_21_"&$C$1 -> Gamma_IT_1st_21_100BP (epsilon) | U1: ="Gamma_IT_1st_22_"&$C$1 -> Gamma_IT_1st_22_100BP (epsilon)
A2: 1871.01 | C2: ='Exhibit4_Impact-Test'!$Y$27/10000 -> 0.0100 | G2: =Impact_neg_d+Impact_pos_RDY_d -> 0.00 | H2: =Impact_neg_d+Impact_pos_RS_d -> 0.00 | J2: =q_SP+Impact_ges_RDY_d -> 4.44 | K2: =q_SP+Impact_ges_RS_d -> 4.44
A3: 1871.02 | C3: =C2 -> 0.0100 | D3: =(1-Epsilon)*q_SP-q_SP -> -0.04 | E3: =(Epsilon*2*L_RDY_SP_set*q_SP) -> 0.05 | F3: =(Epsilon*2*L_RS_SP_set*q_SP) -> 0.07 | G3: =Impact_neg_d+Impact_pos_RDY_d -> 0.00 | H3: 0.03 | J3: 4.50 | K3: =q_SP+Impact_ges_RS_d -> 4.53 | M3: =(D_mon+q_impact_RDY_d)/INDEX(q_impact_RDY_d,tMinus)*L_RDY_SP_set+(R_Cash)*(1-L_RDY_SP_set) -> 1.0124 | N3: =(D_mon+q_impact_RS_d)/INDEX(q_impact_RS_d,tMinus)*L_RDY_SP_set+(R_Cash)*(1-L_RDY_SP_set) -> 1.0154 | O3: =(D_mon+q_impact_RDY_d)/INDEX(q_impact_RDY_d,tMinus)*L_RS_SP_set+(R_Cash)*(1-L_RS_SP_set) -> 1.0165 | P3: =(D_mon+q_impact_RS_d)/INDEX(q_impact_RS_d,tMinus)*L_RS_SP_set+(R_Cash)*(1-L_RS_SP_set) -> 1.0210 | R3: =LN(M3) -> 0.0123 | S3: =LN(N3) -> 0.0153 | T3: =LN(O3) -> 0.0163 | U3: =LN(P3) -> 0.0208
A4: 1871.03 | C4: =C3 -> 0.0100 | D4: =(1-Epsilon)*q_SP-q_SP -> -0.05 | E4: =(Epsilon*2*L_RDY_SP_set*q_SP) -> 0.05 | F4: 0.08 | G4: =Impact_neg_d+Impact_pos_RDY_d -> 0.00 | H4: =Impact_neg_d+Impact_pos_RS_d -> 0.03 | J4: =q_SP+Impact_ges_RDY_d -> 4.61 | K4: =q_SP+Impact_ges_RS_d -> 4.64 | M4: =(D_mon+q_impact_RDY_d)/INDEX(q_impact_RDY_d,tMinus)*L_RDY_SP_set+(R_Cash)*(1-L_RDY_SP_set) -> 1.0177 | N4: =(D_mon+q_impact_RS_d)/INDEX(q_impact_RS_d,tMinus)*L_RDY_SP_set+(R_Cash)*(1-L_RDY_SP_set) -> 1.0179 | O4: =(D_mon+q_impact_RDY_d)/INDEX(q_impact_RDY_d,tMinus)*L_RS_SP_set+(R_Cash)*(1-L_RS_SP_set) -> 1.0250 | P4: 1.0253 | R4: 0.0175 | S4: 0.0178 | T4: 0.0247 | U4: 0.0250
A5: 1871.04 | C5: =C4 -> 0.0100 | D5: =(1-Epsilon)*q_SP-q_SP -> -0.05 | E5: =(Epsilon*2*L_RDY_SP_set*q_SP) -> 0.05 | F5: 0.08 | G5: =Impact_neg_d+Impact_pos_RDY_d -> 0.00 | H5: =Impact_neg_d+Impact_pos_RS_d -> 0.03 | J5: =q_SP+Impact_ges_RDY_d -> 4.74 | K5: 4.77 | M5: =(D_mon+q_impact_RDY_d)/INDEX(q_impact_RDY_d,tMinus)*L_RDY_SP_set+(R_Cash)*(1-L_RDY_SP_set) -> 1.0194 | N5: 1.0195 | O5: =(D_mon+q_impact_RDY_d)/INDEX(q_impact_RDY_d,tMinus)*L_RS_SP_set+(R_Cash)*(1-L_RS_SP_set) -> 1.0280 | P5: 1.0282 | R5: 0.0192 | S5: 0.0193 | T5: 0.0277 | U5: 0.0278 | X5: Exhibit 4: Excess annual return (in percentage points) of original strategies after market impact.
A6: 1871.05 | C6: =C5 -> 0.0100 | D6: -0.05 | E6: =(Epsilon*2*L_RDY_SP_set*q_SP) -> 0.05 | F6: =(Epsilon*2*L_RS_SP_set*q_SP) -> 0.08 | G6: 0.00 | H6: 0.03 | J6: =q_SP+Impact_ges_RDY_d -> 4.86 | K6: 4.89 | M6: =(D_mon+q_impact_RDY_d)/INDEX(q_impact_RDY_d,tMinus)*L_RDY_SP_set+(R_Cash)*(1-L_RDY_SP_set) -> 1.0176 | N6: =(D_mon+q_impact_RS_d)/INDEX(q_impact_RS_d,tMinus)*L_RDY_SP_set+(R_Cash)*(1-L_RDY_SP_set) -> 1.0176 | O6: =(D_mon+q_impact_RDY_d)/INDEX(q_impact_RDY_d,tMinus)*L_RS_SP_set+(R_Cash)*(1-L_RS_SP_set) -> 1.0255 | P6: =(D_mon+q_impact_RS_d)/INDEX(q_impact_RS_d,tMinus)*L_RS_SP_set+(R_Cash)*(1-L_RS_SP_set) -> 1.0256 | R6: 0.0174 | S6: 0.0175 | T6: 0.0251 | U6: 0.0252
A7: 1871.06 | C7: 0.0100 | D7: =(1-Epsilon)*q_SP-q_SP -> -0.05 | E7: 0.05 | F7: 0.02 | G7: 0.00 | H7: -0.03 | J7: 4.82 | K7: 4.79 | M7: 1.0003 | N7: 0.9941 | O7: 1.0028 | P7: =(D_mon+q_impact_RS_d)/INDEX(q_impact_RS_d,tMinus)*L_RS_SP_set+(R_Cash)*(1-L_RS_SP_set) -> 1.0003 | R7: 0.0003 | S7: -0.0059 | T7: 0.0028 | U7: 0.0003 | AA7: no transaction costs
A8: 1871.07 | C8: 0.0100 | D8: =(1-Epsilon)*q_SP-q_SP -> -0.05 | E8: 0.05 | F8: 0.02 | G8: 0.00 | H8: -0.03 | J8: 4.73 | K8: 4.70 | M8: 0.9950 | N8: 0.9947 | O8: =(D_mon+q_impact_RDY_d)/INDEX(q_impact_RDY_d,tMinus)*L_RS_SP_set+(R_Cash)*(1-L_RS_SP_set) -> 1.0013 | P8: 1.0012 | R8: -0.0050 | S8: -0.0053 | T8: 0.0013 | U8: 0.0012 | AA8: impact strategy
A9: 1871.08 | C9: 0.0100 | D9: -0.05 | E9: =(Epsilon*2*L_RDY_SP_set*q_SP) -> 0.05 | F9: 0.08 | G9: 0.00 | H9: 0.03 | J9: 4.79 | K9: 4.82 | M9: 1.0112 | N9: 1.0179 | O9: 1.0150 | P9: 1.0254 | R9: 0.0111 | S9: 0.0177 | T9: 0.0149 | U9: 0.0251 | Y9: ε (in bp) | AA9: RDY | AB9: MOM
A10: 1871.09 | C10: 0.0100 | D10: -0.05 | E10: 0.05 | F10: 0.08 | G10: 0.00 | H10: 0.03 | J10: 4.84 | K10: 4.87 | M10: 1.0099 | N10: 1.0098 | O10: 1.0129 | P10: 1.0128 | R10: 0.0098 | S10: 0.0098 | T10: 0.0128 | U10: 0.0127 | X10: ="a = "&'Exhibit4_Impact-Test'!Y25 -> a = 2 | Y10: ='Exhibit4_Impact-Test'!Y27 -> 100 | Z10: RDY | AA10: =(AVERAGE(g_RDYRDY_1st)*12-(AVERAGE(g_RDY)*12))*100 -> -0.0032 | AB10: =(AVERAGE(g_RDYRS_1st)*12-(AVERAGE(g_RDY)*12))*100 -> 0.0986
A11: 1871.10 | C11: 0.0100 | D11: -0.05 | E11: 0.05 | F11: 0.01 | G11: 0.00 | H11: -0.03 | J11: 4.59 | K11: 4.56 | M11: 0.9782 | N11: 0.9720 | O11: 0.9964 | P11: 0.9945 | R11: -0.0220 | S11: -0.0284 | T11: -0.0036 | U11: -0.0055 | Z11: MOM | AA11: =(AVERAGE(g_RSRDY_1st)*12-AVERAGE(g_RS)*12)*100 -> -0.0147 | AB11: =(AVERAGE(g_RSRS_1st)*12-AVERAGE(g_RS)*12)*100 -> 1.8979
A12: 1871.11 | C12: 0.0100 | D12: -0.05 | E12: 0.05 | F12: 0.07 | G12: 0.00 | H12: 0.03 | J12: 4.64 | K12: 4.67 | M12: 1.0106 | N12: 1.0173 | O12: 1.0137 | P12: 1.0241 | R12: 0.0105 | S12: 0.0172 | T12: 0.0136 | U12: 0.0238 | X12: The impact is caused by the column strategy with capital amount determined by the value of in the respective row. Performance is reported for the investment strategy in the corresponding row. We measure performance as the excess annualized return over the performance of that strategy in the original market (Exhibit 2, log returns for the same value of a). Reversal (relative dividend yield, RDY) and time-series momentum (relative strength, MOM). Di erent degrees of aggressiveness a.
A13: 1871.12 | C13: 0.0100 | D13: -0.05 | E13: 0.05 | F13: 0.08 | G13: 0.00 | H13: 0.03 | J13: 4.74 | K13: 4.77 | M13: 1.0159 | N13: 1.0161 | O13: 1.0224 | P13: 1.0228 | R13: 0.0157 | S13: 0.0160 | T13: 0.0222 | U13: 0.0226
A14: 1872.01 | C14: 0.0100 | D14: -0.05 | E14: 0.05 | F14: 0.08 | G14: 0.00 | H14: 0.03 | J14: 4.86 | K14: 4.89 | M14: 1.0177 | N14: 1.0178 | O14: 1.0256 | P14: 1.0257 | R14: 0.0176 | S14: 0.0176 | T14: 0.0253 | U14: 0.0254
A15: 1872.02 | C15: 0.0100 | D15: -0.05 | E15: 0.05 | F15: 0.07 | G15: 0.00 | H15: 0.02 | J15: 4.88 | K15: 4.90 | M15: 1.0072 | N15: 1.0064 | O15: 1.0079 | P15: 1.0066 | R15: 0.0072 | S15: 0.0063 | T15: 0.0078 | U15: 0.0066
A16: 1872.03 | C16: 0.0100 | D16: -0.05 | E16: 0.05 | F16: 0.08 | G16: 0.00 | H16: 0.03 | J16: 5.04 | K16: 5.07 | M16: 1.0221 | N16: 1.0230 | O16: 1.0322 | P16: 1.0337 | R16: 0.0219 | S16: 0.0228 | T16: 0.0317 | U16: 0.0332
A17: 1872.04 | C17: 0.0100 | D17: -0.05 | E17: 0.05 | F17: 0.09 | G17: 0.00 | H17: 0.03 | J17: 5.18 | K17: 5.21 | M17: 1.0192 | N17: 1.0192 | O17: 1.0277 | P17: 1.0278 | R17: 0.0190 | S17: 0.0190 | T17: 0.0274 | U17: 0.0274
A18: 1872.05 | C18: 0.0100 | D18: -0.05 | E18: 0.05 | F18: 0.05 | G18: 0.00 | H18: -0.00 | J18: 5.18 | K18: 5.18 | M18: 1.0050 | N18: 1.0018 | O18: 1.0050 | P18: 1.0018 | R18: 0.0050 | S18: 0.0018 | T18: 0.0050 | U18: 0.0018
A19: 1872.06 | C19: 0.0100 | D19: -0.05 | E19: =(Epsilon*2*L_RDY_SP_set*q_SP) -> 0.05 | F19: 0.02 | G19: 0.00 | H19: -0.03 | J19: 5.13 | K19: 5.10 | M19: 1.0003 | N19: 0.9972 | O19: 1.0036 | P19: 1.0024 | R19: 0.0003 | S19: -0.0028 | T19: 0.0036 | U19: 0.0024
A20: 1872.07 | C20: 0.0100 | D20: -0.05 | E20: 0.05 | F20: 0.02 | G20: 0.00 | H20: -0.03 | J20: 5.10 | K20: 5.07 | M20: 1.0022 | N20: 1.0025 | O20: 1.0042 | P20: 1.0043 | R20: 0.0022 | S20: 0.0025 | T20: 0.0042 | U20: 0.0043
A21: 1872.08 | C21: 0.0100 | D21: -0.05 | E21: 0.05 | F21: 0.02 | G21: 0.00 | H21: -0.03 | J21: 5.04 | K21: 5.01 | M21: 0.9992 | N21: 0.9988 | O21: 1.0033 | P21: 1.0032 | R21: -0.0008 | S21: -0.0012 | T21: 0.0033 | U21: 0.0032
A22: 1872.09 | C22: 0.0100 | D22: =(1-Epsilon)*q_SP-q_SP -> -0.05 | E22: 0.05 | F22: 0.02 | G22: 0.00 | H22: -0.03 | J22: 4.95 | K22: 4.92 | M22: 0.9960 | N22: 0.9958 | O22: 1.0025 | P22: 1.0024 | R22: -0.0040 | S22: -0.0042 | T22: 0.0025 | U22: 0.0024
A23: 1872.10 | C23: 0.0100 | D23: -0.05 | E23: 0.05 | F23: 0.07 | G23: 0.00 | H23: 0.02 | J23: 4.97 | K23: 4.99 | M23: 1.0076 | N23: 1.0136 | O23: 1.0083 | P23: 1.0166 | R23: 0.0076 | S23: 0.0135 | T23: 0.0083 | U23: 0.0165 | W23: Aufgabe 9
A24: 1872.11 | C24: 0.0100 | D24: -0.05 | E24: 0.05 | F24: 0.03 | G24: 0.00 | H24: -0.02 | J24: 4.95 | K24: 4.93 | M24: 1.0033 | N24: 0.9981 | O24: 1.0046 | P24: 1.0021 | R24: 0.0032 | S24: -0.0019 | T24: 0.0046 | U24: 0.0021 | W24: Parameters for calculations:
A25: 1872.12 | C25: 0.0100 | D25: -0.05 | E25: 0.05 | F25: 0.08 | G25: 0.00 | H25: 0.03 | J25: 5.07 | K25: 5.10 | M25: 1.0185 | N25: 1.0247 | O25: 1.0254 | P25: 1.0351 | R25: 0.0183 | S25: 0.0244 | T25: 0.0250 | U25: 0.0345 | W25: a | Y25: 2
A26: 1873.01 | C26: 0.0100 | D26: =(1-Epsilon)*q_SP-q_SP -> -0.05 | E26: 0.05 | F26: 0.08 | G26: 0.00 | H26: 0.03 | J26: 5.11 | K26: 5.14 | M26: 1.0095 | N26: 1.0091 | O26: 1.0113 | P26: 1.0107 | R26: 0.0095 | S26: 0.0091 | T26: 0.0112 | U26: 0.0106 | W26: intercept | Y26: 0.5
A27: 1873.02 | C27: 0.0100 | D27: -0.05 | E27: 0.05 | F27: 0.08 | G27: 0.00 | H27: 0.03 | J27: 5.15 | K27: 5.18 | M27: 1.0086 | N27: 1.0086 | O27: 1.0109 | P27: 1.0109 | R27: 0.0085 | S27: 0.0085 | T27: 0.0108 | U27: 0.0108 | W27: epsilon (BP) | Y27: 100
A28: 1873.03 | C28: 0.0100 | D28: -0.05 | E28: 0.05 | F28: 0.02 | G28: 0.00 | H28: -0.03 | J28: 5.11 | K28: 5.08 | M28: 1.0003 | N28: 0.9943 | O28: 1.0024 | P28: 1.0000 | R28: 0.0003 | S28: -0.0057 | T28: 0.0024 | U28: 0.0000
A29: 1873.04 | C29: 0.0100 | D29: -0.05 | E29: 0.05 | F29: 0.02 | G29: 0.00 | H29: -0.03 | J29: 5.04 | K29: 5.01 | M29: 0.9972 | N29: 0.9969 | O29: 1.0015 | P29: 1.0014 | R29: -0.0028 | S29: -0.0031 | T29: 0.0015 | U29: 0.0014
A30: 1873.05 | C30: 0.0100 | D30: -0.05 | E30: 0.05 | F30: 0.07 | G30: 0.00 | H30: 0.02 | J30: 5.05 | K30: 5.07 | M30: 1.0057 | N30: 1.0110 | O30: 1.0062 | P30: 1.0127 | R30: 0.0057 | S30: 0.0109 | T30: 0.0062 | U30: 0.0126
A31: 1873.06 | C31: 0.0100 | D31: -0.05 | E31: 0.05 | F31: 0.02 | G31: 0.00 | H31: -0.03 | J31: 4.98 | K31: 4.95 | M31: 0.9970 | N31: 0.9918 | O31: 1.0015 | P31: 0.9997 | R31: -0.0030 | S31: -0.0083 | T31: 0.0015 | U31: -0.0003
A32: 1873.07 | C32: 0.0100 | D32: -0.05 | E32: 0.05 | F32: 0.03 | G32: 0.01 | H32: -0.02 | J32: 4.98 | K32: 4.95 | M32: 1.0036 | N32: 1.0051 | O32: 1.0037 | P32: 1.0046 | R32: 0.0036 | S32: 0.0051 | T32: 0.0037 | U32: 0.0046
A33: 1873.08 | C33: 0.0100 | D33: -0.05 | E33: 0.06 | F33: 0.05 | G33: 0.01 | H33: 0.00 | J33: 4.98 | K33: 4.97 | M33: 1.0047 | N33: 1.0067 | O33: 1.0046 | P33: 1.0064 | R33: 0.0047 | S33: 0.0066 | T33: 0.0046 | U33: 0.0063
A34: 1873.09 | C34: 0.0100 | D34: -0.05 | E34: 0.05 | F34: 0.01 | G34: 0.01 | H34: -0.03 | J34: 4.60 | K34: 4.56 | M34: 0.9620 | N34: 0.9584 | O34: 0.9922 | P34: 0.9912 | R34: -0.0387 | S34: -0.0425 | T34: -0.0078 | U34: -0.0088
A35: 1873.10 | C35: 0.0100 | D35: -0.04 | E35: 0.05 | F35: 0.01 | G35: 0.01 | H35: -0.03 | J35: 4.20 | K35: 4.16 | M35: 0.9543 | N35: 0.9540 | O35: 0.9908 | P35: 0.9907 | R35: -0.0468 | S35: -0.0470 | T35: -0.0093 | U35: -0.0093
A36: 1873.11 | C36: 0.0100 | D36: -0.04 | E36: 0.05 | F36: 0.01 | G36: 0.01 | H36: -0.03 | J36: 4.05 | K36: 4.01 | M36: 0.9838 | N36: 0.9836 | O36: 0.9985 | P36: 0.9984 | R36: -0.0163 | S36: -0.0165 | T36: -0.0015 | U36: -0.0016
A37: 1873.12 | C37: 0.0100 | D37: -0.04 | E37: 0.06 | F37: 0.07 | G37: 0.01 | H37: 0.03 | J37: 4.43 | K37: 4.45 | M37: 1.0647 | N37: 1.0740 | O37: 1.0862 | P37: 1.0987 | R37: 0.0627 | S37: 0.0713 | T37: 0.0827 | U37: 0.0942
A38: 1874.01 | C38: 0.0100 | D38: -0.05 | E38: 0.06 | F38: 0.08 | G38: 0.01 | H38: 0.03 | J38: 4.67 | K38: 4.69 | M38: 1.0376 | N38: 1.0378 | O38: 1.0511 | P38: 1.0515 | R38: 0.0369 | S38: 0.0371 | T38: 0.0499 | U38: 0.0502
A39: 1874.02 | C39: 0.0100 | D39: -0.05 | E39: 0.06 | F39: 0.08 | G39: 0.01 | H39: 0.03 | J39: 4.81 | K39: 4.83 | M39: 1.0217 | N39: 1.0218 | O39: 1.0301 | P39: 1.0301 | R39: 0.0215 | S39: 0.0216 | T39: 0.0296 | U39: 0.0297
A40: 1874.03 | C40: 0.0100 | D40: -0.05 | E40: 0.05 | F40: 0.02 | G40: 0.01 | H40: -0.03 | J40: 4.74 | K40: 4.70 | M40: 0.9956 | N40: 0.9883 | O40: 0.9999 | P40: 0.9976 | R40: -0.0044 | S40: -0.0118 | T40: -0.0001 | U40: -0.0024
A41: 1874.04 | C41: 0.0100 | D41: -0.05 | E41: 0.05 | F41: 0.02 | G41: 0.01 | H41: -0.03 | J41: 4.61 | K41: 4.57 | M41: 0.9882 | N41: 0.9879 | O41: 0.9980 | P41: 0.9979 | R41: -0.0119 | S41: -0.0122 | T41: -0.0020 | U41: -0.0021
A42: 1874.05 | C42: 0.0100 | D42: =(1-Epsilon)*q_SP-q_SP -> -0.04 | E42: 0.05 | F42: 0.02 | G42: 0.01 | H42: -0.03 | J42: 4.49 | K42: 4.45 | M42: 0.9889 | N42: 0.9888 | O42: 0.9982 | P42: 0.9982 | R42: -0.0112 | S42: -0.0113 | T42: -0.0018 | U42: -0.0018
A43: 1874.06 | C43: 0.0100 | D43: -0.04 | E43: 0.05 | F43: 0.02 | G43: 0.01 | H43: -0.02 | J43: 4.47 | K43: 4.44 | M43: 1.0018 | N43: 1.0027 | O43: 1.0019 | P43: 1.0022 | R43: 0.0018 | S43: 0.0027 | T43: 0.0019 | U43: 0.0022
A44: 1874.07 | C44: 0.0100 | D44: -0.04 | E44: 0.05 | F44: 0.04 | G44: 0.01 | H44: 0.00 | J44: 4.47 | K44: 4.46 | M44: 1.0045 | N44: 1.0076 | O44: 1.0040 | P44: 1.0065 | R44: 0.0045 | S44: 0.0075 | T44: 0.0040 | U44: 0.0065
A45: 1874.08 | C45: 0.0100 | D45: -0.04 | E45: 0.05 | F45: 0.06 | G45: 0.01 | H45: 0.02 | J45: 4.48 | K45: 4.49 | M45: 1.0058 | N45: 1.0082 | O45: 1.0064 | P45: 1.0090 | R45: 0.0058 | S45: 0.0081 | T45: 0.0064 | U45: 0.0090
A46: 1874.09 | C46: 0.0100 | D46: -0.05 | E46: 0.06 | F46: 0.07 | G46: 0.01 | H46: 0.03 | J46: 4.55 | K46: 4.57 | M46: 1.0140 | N46: 1.0156 | O46: 1.0182 | P46: 1.0203 | R46: 0.0139 | S46: 0.0155 | T46: 0.0180 | U46: 0.0201
A47: 1874.10 | C47: 0.0100 | D47: -0.05 | E47: 0.06 | F47: 0.03 | G47: 0.01 | H47: -0.02 | J47: 4.54 | K47: 4.51 | M47: 1.0030 | N47: 0.9968 | O47: 1.0024 | P47: 0.9992 | R47: 0.0030 | S47: -0.0032 | T47: 0.0024 | U47: -0.0008
A48: 1874.11 | C48: 0.0100 | D48: -0.05 | E48: 0.06 | F48: 0.07 | G48: 0.01 | H48: 0.03 | J48: 4.58 | K48: 4.60 | M48: 1.0098 | N48: 1.0158 | O48: 1.0123 | P48: 1.0201 | R48: 0.0097 | S48: 0.0157 | T48: 0.0122 | U48: 0.0199
A49: 1874.12 | C49: 0.0100 | D49: -0.05 | E49: 0.06 | F49: 0.02 | G49: 0.01 | H49: -0.03 | J49: 4.55 | K49: 4.51 | M49: 1.0003 | N49: 0.9933 | O49: 1.0012 | P49: 0.9987 | R49: 0.0003 | S49: -0.0067 | T49: 0.0012 | U49: -0.0013
A50: 1875.01 | C50: 0.0100 | D50: -0.05 | E50: 0.06 | F50: 0.05 | G50: 0.01 | H50: 0.00 | J50: 4.55 | K50: 4.54 | M50: 1.0043 | N50: 1.0078 | O50: 1.0038 | P50: 1.0067 | R50: 0.0043 | S50: 0.0078 | T50: 0.0038 | U50: 0.0067
A51: 1875.02 | C51: 0.0100 | D51: -0.05 | E51: 0.06 | F51: 0.03 | G51: 0.01 | H51: -0.02 | J51: 4.54 | K51: 4.51 | M51: 1.0027 | N51: 1.0004 | O51: 1.0019 | P51: 1.0007 | R51: 0.0027 | S51: 0.0004 | T51: 0.0019 | U51: 0.0007
A52: 1875.03 | C52: 0.0100 | D52: -0.05 | E52: 0.06 | F52: 0.07 | G52: 0.01 | H52: 0.03 | J52: 4.60 | K52: 4.62 | M52: 1.0121 | N52: 1.0185 | O52: 1.0158 | P52: 1.0243 | R52: 0.0121 | S52: 0.0183 | T52: 0.0157 | U52: 0.0240
A53: 1875.04 | C53: 0.0100 | D53: -0.05 | E53: 0.06 | F53: 0.08 | G53: 0.01 | H53: 0.03 | J53: 4.66 | K53: 4.68 | M53: 1.0118 | N53: 1.0119 | O53: 1.0155 | P53: 1.0156 | R53: 0.0118 | S53: 0.0118 | T53: 0.0154 | U53: 0.0154
A54: 1875.05 | C54: 0.0100 | D54: -0.04 | E54: 0.05 | F54: 0.01 | G54: 0.01 | H54: -0.03 | J54: 4.48 | K54: 4.44 | M54: 0.9804 | N54: 0.9729 | O54: 0.9955 | P54: 0.9935 | R54: -0.0198 | S54: -0.0275 | T54: -0.0045 | U54: -0.0065
A55: 1875.06 | C55: 0.0100 | D55: -0.04 | E55: 0.05 | F55: 0.02 | G55: 0.01 | H55: -0.03 | J55: 4.39 | K55: 4.35 | M55: 0.9917 | N55: 0.9918 | O55: 0.9984 | P55: 0.9984 | R55: -0.0083 | S55: -0.0083 | T55: -0.0016 | U55: -0.0016
A56: 1875.07 | C56: 0.0100 | D56: -0.04 | E56: 0.05 | F56: 0.06 | G56: 0.01 | H56: 0.02 | J56: 4.40 | K56: 4.41 | M56: 1.0055 | N56: 1.0121 | O56: 1.0061 | P56: 1.0135 | R56: 0.0055 | S56: 0.0120 | T56: 0.0061 | U56: 0.0135
A57: 1875.08 | C57: 0.0100 | D57: -0.04 | E57: 0.05 | F57: 0.07 | G57: 0.01 | H57: 0.02 | J57: 4.42 | K57: 4.43 | M57: 1.0068 | N57: 1.0075 | O57: 1.0081 | P57: 1.0091 | R57: 0.0068 | S57: 0.0075 | T57: 0.0081 | U57: 0.0090
A58: 1875.09 | C58: 0.0100 | D58: -0.04 | E58: 0.05 | F58: 0.02 | G58: 0.01 | H58: -0.03 | J58: 4.38 | K58: 4.34 | M58: 0.9983 | N58: 0.9914 | O58: 1.0000 | P58: 0.9978 | R58: -0.0017 | S58: -0.0086 | T58: 0.0000 | U58: -0.0022
A59: 1875.10 | C59: 0.0100 | D59: -0.04 | E59: 0.05 | F59: 0.02 | G59: 0.01 | H59: -0.03 | J59: 4.31 | K59: 4.27 | M59: 0.9940 | N59: 0.9937 | O59: 0.9989 | P59: 0.9988 | R59: -0.0060 | S59: -0.0063 | T59: -0.0011 | U59: -0.0012
A60: 1875.11 | C60: 0.0100 | D60: -0.04 | E60: 0.05 | F60: 0.07 | G60: 0.01 | H60: 0.03 | J60: 4.38 | K60: 4.40 | M60: 1.0142 | N60: 1.0224 | O60: 1.0184 | P60: 1.0293 | R60: 0.0141 | S60: 0.0222 | T60: 0.0183 | U60: 0.0289
A61: 1875.12 | C61: 0.0100 | D61: -0.04 | E61: 0.05 | F61: 0.04 | G61: 0.01 | H61: -0.00 | J61: 4.38 | K61: 4.37 | M61: 1.0038 | N61: 0.9998 | O61: 1.0032 | P61: 1.0000 | R61: 0.0038 | S61: -0.0002 | T61: 0.0032 | U61: -0.0000
A62: 1876.01 | C62: 0.0100 | D62: =(1-Epsilon)*q_SP-q_SP -> -0.04 | E62: 0.06 | F62: 0.07 | G62: 0.01 | H62: 0.03 | J62: 4.47 | K62: 4.49 | M62: 1.0167 | N62: 1.0209 | O62: 1.0220 | P62: 1.0275 | R62: 0.0165 | S62: 0.0207 | T62: 0.0217 | U62: 0.0272
A63: 1876.02 | C63: 0.0100 | D63: -0.05 | E63: 0.06 | F63: 0.07 | G63: 0.01 | H63: 0.03 | J63: 4.53 | K63: 4.55 | M63: 1.0129 | N63: 1.0127 | O63: 1.0161 | P63: 1.0159 | R63: 0.0128 | S63: 0.0127 | T63: 0.0159 | U63: 0.0158
A64: 1876.03 | C64: 0.0100 | D64: -0.05 | E64: 0.06 | F64: 0.03 | G64: 0.01 | H64: -0.02 | J64: 4.52 | K64: 4.49 | M64: 1.0031 | N64: 0.9967 | O64: 1.0030 | P64: 0.9999 | R64: 0.0031 | S64: -0.0033 | T64: 0.0030 | U64: -0.0001
A65: =Timecode -> 1876.04 | C65: 0.0100 | D65: -0.04 | E65: 0.05 | F65: 0.01 | G65: 0.01 | H65: -0.03 | J65: 4.35 | K65: 4.31 | M65: 0.9812 | N65: 0.9796 | O65: 0.9972 | P65: 0.9968 | R65: -0.0190 | S65: -0.0206 | T65: -0.0028 | U65: -0.0032
A66: 1876.05 | C66: 0.0100 | D66: -0.04 | E66: =(Epsilon*2*L_RDY_SP_set*q_SP) -> 0.05 | F66: =(Epsilon*2*L_RS_SP_set*q_SP) -> 0.01 | G66: =Impact_neg_d+Impact_pos_RDY_d -> 0.01 | H66: =Impact_neg_d+Impact_pos_RS_d -> -0.03 | J66: =q_SP+Impact_ges_RDY_d -> 4.19 | K66: =q_SP+Impact_ges_RS_d -> 4.15 | M66: 0.9816 | N66: 0.9815 | O66: 0.9974 | P66: 0.9974 | R66: -0.0186 | S66: -0.0187 | T66: -0.0026 | U66: -0.0026
A67: 1876.06 | C67: =C66 -> 0.0100 | D67: -0.04 | E67: 0.05 | F67: 0.02 | G67: 0.01 | H67: -0.02 | J67: 4.16 | K67: 4.13 | M67: =(D_mon+q_impact_RDY_d)/INDEX(q_impact_RDY_d,tMinus)*L_RDY_SP_set+(R_Cash)*(1-L_RDY_SP_set) -> 1.0004 | N67: =(D_mon+q_impact_RS_d)/INDEX(q_impact_RS_d,tMinus)*L_RDY_SP_set+(R_Cash)*(1-L_RDY_SP_set) -> 1.0009 | O67: =(D_mon+q_impact_RDY_d)/INDEX(q_impact_RDY_d,tMinus)*L_RS_SP_set+(R_Cash)*(1-L_RS_SP_set) -> 1.0020 | P67: =(D_mon+q_impact_RS_d)/INDEX(q_impact_RS_d,tMinus)*L_RS_SP_set+(R_Cash)*(1-L_RS_SP_set) -> 1.0022 | R67: =LN(M67) -> 0.0004 | S67: =LN(N67) -> 0.0009 | T67: =LN(O67) -> 0.0020 | U67: =LN(P67) -> 0.0022
A68: 1876.07 | C68: 0.0100 | D68: -0.04 | E68: 0.05 | F68: 0.02 | G68: 0.01 | H68: -0.03 | J68: 4.11 | K68: 4.07 | M68: 0.9972 | N68: 0.9969 | O68: 1.0012 | P68: 1.0011 | R68: -0.0029 | S68: -0.0031 | T68: 0.0012 | U68: 0.0011
A69: 1876.08 | C69: 0.0100 | D69: -0.04 | E69: 0.05 | F69: 0.01 | G69: 0.01 | H69: -0.03 | J69: 3.94 | K69: 3.90 | M69: 0.9782 | N69: 0.9779 | O69: 0.9967 | P69: 0.9967 | R69: -0.0220 | S69: -0.0224 | T69: -0.0033 | U69: -0.0033
A70: 1876.09 | C70: 0.0100 | D70: -0.04 | E70: 0.05 | F70: 0.01 | G70: 0.01 | H70: -0.03 | J70: 3.70 | K70: 3.66 | M70: 0.9652 | N70: 0.9650 | O70: 0.9939 | P70: 0.9939 | R70: -0.0354 | S70: -0.0356 | T70: -0.0061 | U70: -0.0062
A71: 1876.10 | C71: 0.0100 | D71: -0.04 | E71: 0.05 | F71: 0.02 | G71: 0.01 | H71: -0.02 | J71: 3.68 | K71: 3.65 | M71: 1.0020 | N71: 1.0028 | O71: 1.0025 | P71: 1.0028 | R71: 0.0020 | S71: 0.0027 | T71: 0.0025 | U71: 0.0028
A72: 1876.11 | C72: 0.0100 | D72: -0.04 | E72: 0.05 | F72: 0.01 | G72: 0.01 | H72: -0.02 | J72: 3.61 | K72: 3.58 | M72: 0.9927 | N72: 0.9920 | O72: 1.0002 | P72: 1.0000 | R72: -0.0074 | S72: -0.0080 | T72: 0.0002 | U72: 0.0000
A73: 1876.12 | C73: 0.0100 | D73: -0.04 | E73: 0.05 | F73: 0.02 | G73: 0.01 | H73: -0.02 | J73: 3.59 | K73: 3.56 | M73: 1.0019 | N73: 1.0025 | O73: 1.0025 | P73: 1.0027 | R73: 0.0019 | S73: 0.0025 | T73: 0.0025 | U73: 0.0027
A74: 1877.01 | C74: 0.0100 | D74: -0.04 | E74: 0.05 | F74: 0.01 | G74: 0.01 | H74: -0.02 | J74: 3.56 | K74: 3.53 | M74: 0.9997 | N74: 0.9995 | O74: 1.0018 | P74: 1.0018 | R74: -0.0003 | S74: -0.0005 | T74: 0.0018 | U74: 0.0018
A75: 1877.02 | C75: 0.0100 | D75: -0.03 | E75: 0.04 | F75: 0.01 | G75: 0.01 | H75: -0.02 | J75: 3.35 | K75: 3.32 | M75: 0.9658 | N75: 0.9654 | O75: 0.9943 | P75: 0.9942 | R75: -0.0348 | S75: -0.0352 | T75: -0.0057 | U75: -0.0058
A76: 1877.03 | C76: 0.0100 | D76: -0.03 | E76: 0.04 | F76: 0.01 | G76: 0.01 | H76: -0.02 | J76: 3.18 | K76: 3.15 | M76: 0.9713 | N76: 0.9713 | O76: 0.9956 | P76: 0.9956 | R76: -0.0291 | S76: -0.0291 | T76: -0.0044 | U76: -0.0044
A77: 1877.04 | C77: 0.0100 | D77: -0.03 | E77: 0.04 | F77: 0.01 | G77: 0.01 | H77: -0.02 | J77: 2.95 | K77: 2.92 | M77: 0.9565 | N77: 0.9564 | O77: 0.9924 | P77: 0.9924 | R77: -0.0445 | S77: -0.0446 | T77: -0.0077 | U77: -0.0077
A78: 1877.05 | C78: 0.0100 | D78: -0.03 | E78: 0.04 | F78: 0.03 | G78: 0.01 | H78: 0.00 | J78: 2.95 | K78: 2.94 | M78: 1.0060 | N78: 1.0107 | O78: 1.0051 | P78: 1.0086 | R78: 0.0059 | S78: 0.0106 | T78: 0.0051 | U78: 0.0085
A79: 1877.06 | C79: 0.0100 | D79: -0.03 | E79: 0.04 | F79: 0.01 | G79: 0.01 | H79: -0.02 | J79: 2.74 | K79: 2.71 | M79: 0.9570 | N79: 0.9527 | O79: 0.9925 | P79: 0.9915 | R79: -0.0440 | S79: -0.0484 | T79: -0.0075 | U79: -0.0085
A80: 1877.07 | C80: 0.0100 | D80: -0.03 | E80: 0.04 | F80: 0.05 | G80: 0.01 | H80: 0.02 | J80: 2.86 | K80: 2.87 | M80: 1.0361 | N80: 1.0460 | O80: 1.0436 | P80: 1.0558 | R80: 0.0355 | S80: 0.0450 | T80: 0.0427 | U80: 0.0543
A81: 1877.08 | C81: 0.0100 | D81: -0.03 | E81: 0.04 | F81: 0.05 | G81: 0.01 | H81: 0.02 | J81: 3.06 | K81: 3.07 | M81: 1.0522 | N81: 1.0525 | O81: 1.0651 | P81: 1.0654 | R81: 0.0509 | S81: 0.0512 | T81: 0.0631 | U81: 0.0634
A82: 1877.09 | C82: 0.0100 | D82: =(1-Epsilon)*q_SP-q_SP -> -0.03 | E82: 0.04 | F82: 0.05 | G82: 0.01 | H82: 0.02 | J82: 3.25 | K82: 3.26 | M82: 1.0448 | N82: 1.0451 | O82: 1.0577 | P82: 1.0581 | R82: 0.0438 | S82: 0.0441 | T82: 0.0561 | U82: 0.0564
A83: 1877.10 | C83: 0.0100 | D83: -0.03 | E83: 0.04 | F83: 0.06 | G83: 0.01 | H83: 0.02 | J83: 3.32 | K83: 3.33 | M83: 1.0175 | N83: 1.0176 | O83: 1.0225 | P83: 1.0227 | R83: 0.0173 | S83: 0.0175 | T83: 0.0222 | U83: 0.0224
A84: 1877.11 | C84: 0.0100 | D84: -0.03 | E84: 0.04 | F84: 0.01 | G84: 0.01 | H84: -0.02 | J84: 3.27 | K84: 3.24 | M84: 0.9948 | N84: 0.9873 | O84: 1.0005 | P84: 0.9983 | R84: -0.0052 | S84: -0.0128 | T84: 0.0005 | U84: -0.0017
A85: 1877.12 | C85: 0.0100 | D85: -0.03 | E85: 0.04 | F85: 0.02 | G85: 0.01 | H85: -0.02 | J85: 3.26 | K85: 3.23 | M85: 1.0021 | N85: 1.0033 | O85: 1.0025 | P85: 1.0030 | R85: 0.0021 | S85: 0.0033 | T85: 0.0025 | U85: 0.0030
A86: 1878.01 | C86: 0.0100 | D86: -0.03 | E86: 0.04 | F86: 0.03 | G86: 0.01 | H86: -0.00 | J86: 3.26 | K86: 3.25 | M86: 1.0040 | N86: 1.0069 | O86: 1.0038 | P86: 1.0062 | R86: 0.0040 | S86: 0.0069 | T86: 0.0038 | U86: 0.0062
A87: 1878.02 | C87: 0.0100 | D87: -0.03 | E87: 0.04 | F87: 0.01 | G87: 0.01 | H87: -0.02 | J87: 3.19 | K87: 3.16 | M87: 0.9912 | N87: 0.9873 | O87: 0.9995 | P87: 0.9984 | R87: -0.0089 | S87: -0.0128 | T87: -0.0005 | U87: -0.0016
A88: 1878.03 | C88: 0.0100 | D88: -0.03 | E88: 0.04 | F88: 0.05 | G88: 0.01 | H88: 0.02 | J88: 3.25 | K88: 3.26 | M88: 1.0154 | N88: 1.0235 | O88: 1.0203 | P88: 1.0315 | R88: 0.0153 | S88: 0.0233 | T88: 0.0201 | U88: 0.0310
A89: 1878.04 | C89: 0.0100 | D89: -0.03 | E89: 0.04 | F89: 0.06 | G89: 0.01 | H89: 0.02 | J89: 3.34 | K89: 3.35 | M89: 1.0204 | N89: 1.0205 | O89: 1.0276 | P89: 1.0278 | R89: 0.0202 | S89: 0.0203 | T89: 0.0272 | U89: 0.0274
A90: 1878.05 | C90: 0.0100 | D90: -0.03 | E90: 0.04 | F90: 0.05 | G90: 0.01 | H90: 0.02 | J90: 3.35 | K90: 3.36 | M90: 1.0055 | N90: 1.0044 | O90: 1.0062 | P90: 1.0049 | R90: 0.0055 | S90: 0.0044 | T90: 0.0062 | U90: 0.0049
A91: 1878.06 | C91: 0.0100 | D91: -0.03 | E91: 0.04 | F91: 0.06 | G91: 0.01 | H91: 0.02 | J91: 3.42 | K91: 3.43 | M91: 1.0161 | N91: 1.0172 | O91: 1.0217 | P91: 1.0233 | R91: 0.0159 | S91: 0.0170 | T91: 0.0215 | U91: 0.0231
A92: 1878.07 | C92: 0.0100 | D92: -0.03 | E92: 0.04 | F92: 0.06 | G92: 0.01 | H92: 0.02 | J92: 3.49 | K92: 3.50 | M92: 1.0155 | N92: 1.0156 | O92: 1.0211 | P92: 1.0212 | R92: 0.0154 | S92: 0.0155 | T92: 0.0209 | U92: 0.0210
A93: 1878.08 | C93: 0.0100 | D93: -0.03 | E93: 0.04 | F93: 0.01 | G93: 0.00 | H93: -0.02 | J93: 3.45 | K93: 3.43 | M93: 0.9987 | N93: 0.9916 | O93: 1.0013 | P93: 0.9989 | R93: -0.0013 | S93: -0.0085 | T93: 0.0013 | U93: -0.0011
A94: 1878.09 | C94: 0.0100 | D94: -0.04 | E94: 0.04 | F94: 0.06 | G94: 0.01 | H94: 0.02 | J94: 3.53 | K94: 3.54 | M94: 1.0153 | N94: 1.0228 | O94: 1.0210 | P94: 1.0319 | R94: 0.0152 | S94: 0.0225 | T94: 0.0208 | U94: 0.0314
A95: 1878.10 | C95: 0.0100 | D95: -0.03 | E95: 0.04 | F95: 0.01 | G95: 0.00 | H95: -0.02 | J95: 3.48 | K95: 3.46 | M95: 0.9971 | N95: 0.9900 | O95: 1.0009 | P95: 0.9986 | R95: -0.0029 | S95: -0.0101 | T95: 0.0009 | U95: -0.0015
A96: 1878.11 | C96: 0.0100 | D96: -0.03 | E96: 0.04 | F96: 0.02 | G96: 0.00 | H96: -0.02 | J96: 3.47 | K96: 3.45 | M96: 1.0020 | N96: 1.0029 | O96: 1.0024 | P96: 1.0028 | R96: 0.0020 | S96: 0.0029 | T96: 0.0024 | U96: 0.0028
A97: 1878.12 | C97: 0.0100 | D97: -0.03 | E97: 0.04 | F97: 0.01 | G97: 0.00 | H97: -0.02 | J97: 3.45 | K97: 3.43 | M97: 1.0003 | N97: 0.9998 | O97: 1.0018 | P97: 1.0016 | R97: 0.0003 | S97: -0.0002 | T97: 0.0018 | U97: 0.0016
A98: 1879.01 | C98: 0.0100 | D98: -0.04 | E98: 0.04 | F98: 0.06 | G98: 0.01 | H98: 0.02 | J98: 3.59 | K98: 3.60 | M98: 1.0253 | N98: 1.0328 | O98: 1.0359 | P98: 1.0468 | R98: 0.0250 | S98: 0.0323 | T98: 0.0353 | U98: 0.0458
A99: 1879.02 | C99: 0.0100 | D99: -0.04 | E99: 0.04 | F99: 0.06 | G99: 0.00 | H99: 0.03 | J99: 3.71 | K99: 3.74 | M99: 1.0238 | N99: 1.0239 | O99: 1.0343 | P99: 1.0344 | R99: 0.0235 | S99: 0.0236 | T99: 0.0337 | U99: 0.0338
A100: 1879.03 | C100: 0.0100 | D100: -0.04 | E100: 0.04 | F100: 0.01 | G100: 0.00 | H100: -0.02 | J100: 3.65 | K100: 3.63 | M100: 0.9941 | N100: 0.9869 | O100: 0.9996 | P100: 0.9974 | R100: -0.0059 | S100: -0.0132 | T100: -0.0004 | U100: -0.0026
A101: 1879.04 | C101: 0.0100 | D101: -0.04 | E101: 0.04 | F101: 0.06 | G101: 0.01 | H101: 0.03 | J101: 3.78 | K101: 3.80 | M101: 1.0221 | N101: 1.0299 | O101: 1.0317 | P101: 1.0432 | R101: 0.0219 | S101: 0.0295 | T101: 0.0312 | U101: 0.0423
A102: 1879.05 | C102: 0.0100 | D102: =(1-Epsilon)*q_SP-q_SP -> -0.04 | E102: 0.04 | F102: 0.07 | G102: 0.00 | H102: 0.03 | J102: 3.94 | K102: 3.97 | M102: 1.0285 | N102: 1.0286 | O102: 1.0417 | P102: 1.0419 | R102: 0.0281 | S102: 0.0282 | T102: 0.0409 | U102: 0.0410
A103: 1879.06 | C103: 0.0100 | D103: -0.04 | E103: 0.04 | F103: 0.06 | G103: 0.00 | H103: 0.02 | J103: 3.96 | K103: 3.98 | M103: 1.0058 | N103: 1.0052 | O103: 1.0074 | P103: 1.0065 | R103: 0.0058 | S103: 0.0052 | T103: 0.0074 | U103: 0.0065
A104: 1879.07 | C104: 0.0100 | D104: -0.04 | E104: 0.04 | F104: 0.07 | G104: 0.00 | H104: 0.03 | J104: 4.04 | K104: 4.07 | M104: 1.0144 | N104: 1.0150 | O104: 1.0205 | P104: 1.0214 | R104: 0.0143 | S104: 0.0149 | T104: 0.0203 | U104: 0.0212
A105: 1879.08 | C105: 0.0100 | D105: -0.04 | E105: 0.05 | F105: 0.07 | G105: 0.00 | H105: 0.02 | J105: 4.07 | K105: 4.09 | M105: 1.0072 | N105: 1.0069 | O105: 1.0095 | P105: 1.0090 | R105: 0.0072 | S105: 0.0068 | T105: 0.0095 | U105: 0.0090
A106: 1879.09 | C106: 0.0100 | D106: -0.04 | E106: 0.05 | F106: 0.07 | G106: 0.00 | H106: 0.03 | J106: 4.22 | K106: 4.25 | M106: 1.0236 | N106: 1.0240 | O106: 1.0347 | P106: 1.0354 | R106: 0.0233 | S106: 0.0237 | T106: 0.0341 | U106: 0.0348
A107: 1879.10 | C107: 0.0100 | D107: -0.05 | E107: 0.05 | F107: 0.08 | G107: 0.00 | H107: 0.03 | J107: 4.68 | K107: 4.71 | M107: 1.0626 | N107: 1.0628 | O107: 1.0960 | P107: 1.0962 | R107: 0.0607 | S107: 0.0609 | T107: 0.0916 | U107: 0.0919
A108: 1879.11 | C108: 0.0100 | D108: -0.05 | E108: 0.05 | F108: 0.08 | G108: 0.00 | H108: 0.03 | J108: 4.93 | K108: 4.96 | M108: 1.0302 | N108: 1.0304 | O108: 1.0479 | P108: 1.0483 | R108: 0.0297 | S108: 0.0300 | T108: 0.0468 | U108: 0.0472
A109: 1879.12 | C109: 0.0100 | D109: -0.05 | E109: 0.05 | F109: 0.03 | G109: 0.00 | H109: -0.02 | J109: 4.92 | K109: 4.90 | M109: 1.0015 | N109: 0.9961 | O109: 1.0017 | P109: 0.9986 | R109: 0.0015 | S109: -0.0039 | T109: 0.0017 | U109: -0.0014
A110: 1880.01 | C110: 0.0100 | D110: -0.05 | E110: 0.05 | F110: 0.09 | G110: 0.00 | H110: 0.03 | J110: 5.11 | K110: 5.14 | M110: 1.0228 | N110: 1.0286 | O110: 1.0359 | P110: 1.0454 | R110: 0.0225 | S110: 0.0282 | T110: 0.0353 | U110: 0.0444
A111: 1880.02 | C111: 0.0100 | D111: -0.05 | E111: 0.05 | F111: 0.09 | G111: 0.00 | H111: 0.03 | J111: 5.20 | K111: 5.23 | M111: 1.0113 | N111: 1.0112 | O111: 1.0176 | P111: 1.0174 | R111: 0.0113 | S111: 0.0112 | T111: 0.0174 | U111: 0.0173
A112: 1880.03 | C112: 0.0100 | D112: -0.05 | E112: 0.05 | F112: 0.09 | G112: 0.00 | H112: 0.04 | J112: 5.30 | K112: 5.34 | M112: 1.0123 | N112: 1.0123 | O112: 1.0191 | P112: 1.0191 | R112: 0.0122 | S112: 0.0122 | T112: 0.0189 | U112: 0.0189
A113: 1880.04 | C113: 0.0100 | D113: -0.05 | E113: 0.05 | F113: 0.02 | G113: 0.00 | H113: -0.03 | J113: 5.18 | K113: 5.15 | M113: 0.9906 | N113: 0.9838 | O113: 0.9978 | P113: 0.9956 | R113: -0.0095 | S113: -0.0163 | T113: -0.0022 | U113: -0.0044
A114: 1880.05 | C114: 0.0100 | D114: -0.05 | E114: 0.05 | F114: 0.01 | G114: 0.00 | H114: -0.03 | J114: 4.77 | K114: 4.74 | M114: 0.9601 | N114: 0.9599 | O114: 0.9894 | P114: 0.9894 | R114: -0.0407 | S114: -0.0410 | T114: -0.0106 | U114: -0.0107
A115: 1880.06 | C115: 0.0100 | D115: -0.05 | E115: 0.05 | F115: 0.07 | G115: 0.01 | H115: 0.03 | J115: 4.80 | K115: 4.82 | M115: 1.0055 | N115: 1.0123 | O115: 1.0071 | P115: 1.0162 | R115: 0.0055 | S115: 0.0122 | T115: 0.0071 | U115: 0.0161
A116: 1880.07 | C116: 0.0100 | D116: -0.05 | E116: 0.06 | F116: 0.08 | G116: 0.01 | H116: 0.03 | J116: 5.02 | K116: 5.04 | M116: 1.0294 | N116: 1.0302 | O116: 1.0425 | P116: 1.0436 | R116: 0.0290 | S116: 0.0298 | T116: 0.0416 | U116: 0.0427
A117: 1880.08 | C117: 0.0100 | D117: -0.05 | E117: 0.06 | F117: 0.09 | G117: 0.01 | H117: 0.04 | J117: 5.20 | K117: 5.23 | M117: 1.0232 | N117: 1.0233 | O117: 1.0337 | P117: 1.0337 | R117: 0.0230 | S117: 0.0230 | T117: 0.0331 | U117: 0.0331
A118: 1880.09 | C118: 0.0100 | D118: -0.05 | E118: 0.06 | F118: 0.03 | G118: 0.01 | H118: -0.02 | J118: 5.19 | K118: 5.16 | M118: 1.0015 | N118: 0.9954 | O118: 1.0013 | P118: 0.9981 | R118: 0.0015 | S118: -0.0047 | T118: 0.0013 | U118: -0.0019
A119: 1880.10 | C119: 0.0100 | D119: -0.05 | E119: 0.06 | F119: 0.09 | G119: 0.01 | H119: 0.04 | J119: 5.34 | K119: 5.37 | M119: 1.0196 | N119: 1.0260 | O119: 1.0280 | P119: 1.0373 | R119: 0.0194 | S119: 0.0257 | T119: 0.0276 | U119: 0.0366
A120: 1880.11 | C120: 0.0100 | D120: -0.06 | E120: 0.06 | F120: 0.09 | G120: 0.01 | H120: 0.04 | J120: 5.62 | K120: 5.65 | M120: 1.0331 | N120: 1.0331 | O120: 1.0479 | P120: 1.0480 | R120: 0.0325 | S120: 0.0326 | T120: 0.0468 | U120: 0.0469
A121: 1880.12 | C121: 0.0100 | D121: -0.06 | E121: 0.07 | F121: 0.10 | G121: 0.01 | H121: 0.04 | J121: 5.85 | K121: 5.88 | M121: 1.0259 | N121: 1.0260 | O121: 1.0378 | P121: 1.0379 | R121: 0.0256 | S121: 0.0256 | T121: 0.0371 | U121: 0.0372
A122: 1881.01 | C122: 0.0100 | D122: =(1-Epsilon)*q_SP-q_SP -> -0.06 | E122: 0.07 | F122: 0.10 | G122: 0.01 | H122: 0.04 | J122: 6.20 | K122: 6.23 | M122: 1.0364 | N122: 1.0365 | O122: 1.0540 | P122: 1.0541 | R122: 0.0358 | S122: 0.0359 | T122: 0.0526 | U122: 0.0527
A123: 1881.02 | C123: 0.0100 | D123: -0.06 | E123: 0.07 | F123: 0.03 | G123: 0.01 | H123: -0.03 | J123: 6.18 | K123: 6.14 | M123: 1.0012 | N123: 0.9947 | O123: 1.0019 | P123: 0.9991 | R123: 0.0012 | S123: -0.0053 | T123: 0.0019 | U123: -0.0009
A124: 1881.03 | C124: 0.0100 | D124: -0.06 | E124: 0.07 | F124: 0.10 | G124: 0.01 | H124: 0.04 | J124: 6.25 | K124: 6.28 | M124: 1.0097 | N124: 1.0162 | O124: 1.0129 | P124: 1.0224 | R124: 0.0096 | S124: 0.0161 | T124: 0.0128 | U124: 0.0222
A125: 1881.04 | C125: 0.0100 | D125: -0.06 | E125: 0.07 | F125: 0.03 | G125: 0.01 | H125: -0.03 | J125: 6.23 | K125: 6.19 | M125: 1.0014 | N125: 0.9949 | O125: 1.0020 | P125: 0.9992 | R125: 0.0014 | S125: -0.0051 | T125: 0.0020 | U125: -0.0008
A126: 1881.05 | C126: 0.0100 | D126: -0.07 | E126: 0.07 | F126: 0.11 | G126: 0.01 | H126: 0.04 | J126: 6.51 | K126: 6.54 | M126: 1.0291 | N126: 1.0363 | O126: 1.0417 | P126: 1.0522 | R126: 0.0287 | S126: 0.0356 | T126: 0.0409 | U126: 0.0509
A127: 1881.06 | C127: 0.0100 | D127: -0.07 | E127: 0.07 | F127: 0.11 | G127: 0.01 | H127: 0.04 | J127: 6.59 | K127: 6.62 | M127: 1.0101 | N127: 1.0099 | O127: 1.0135 | P127: 1.0133 | R127: 0.0100 | S127: 0.0098 | T127: 0.0134 | U127: 0.0132
A128: 1881.07 | C128: 0.0100 | D128: -0.06 | E128: 0.07 | F128: 0.02 | G128: 0.01 | H128: -0.04 | J128: 6.36 | K128: 6.31 | M128: 0.9834 | N128: 0.9761 | O128: 0.9971 | P128: 0.9951 | R128: -0.0168 | S128: -0.0242 | T128: -0.0029 | U128: -0.0049
A129: =Timecode -> 1881.08 | C129: 0.0100 | D129: -0.06 | E129: 0.07 | F129: 0.02 | G129: 0.01 | H129: -0.04 | J129: 6.21 | K129: 6.16 | M129: 0.9897 | N129: 0.9896 | O129: 0.9989 | P129: 0.9989 | R129: -0.0103 | S129: -0.0105 | T129: -0.0011 | U129: -0.0011
A130: 1881.09 | C130: 0.0100 | D130: -0.06 | E130: =(Epsilon*2*L_RDY_SP_set*q_SP) -> 0.07 | F130: =(Epsilon*2*L_RS_SP_set*q_SP) -> 0.10 | G130: =Impact_neg_d+Impact_pos_RDY_d -> 0.01 | H130: =Impact_neg_d+Impact_pos_RS_d -> 0.04 | J130: =q_SP+Impact_ges_RDY_d -> 6.26 | K130: =q_SP+Impact_ges_RS_d -> 6.29 | M130: 1.0084 | N130: 1.0161 | O130: 1.0105 | P130: 1.0209 | R130: 0.0083 | S130: 0.0159 | T130: 0.0104 | U130: 0.0207
A131: 1881.10 | C131: =C130 -> 0.0100 | D131: -0.06 | E131: 0.07 | F131: 0.02 | G131: 0.01 | H131: -0.04 | J131: 6.16 | K131: 6.11 | M131: =(D_mon+q_impact_RDY_d)/INDEX(q_impact_RDY_d,tMinus)*L_RDY_SP_set+(R_Cash)*(1-L_RDY_SP_set) -> 0.9939 | N131: =(D_mon+q_impact_RS_d)/INDEX(q_impact_RS_d,tMinus)*L_RDY_SP_set+(R_Cash)*(1-L_RDY_SP_set) -> 0.9864 | O131: =(D_mon+q_impact_RDY_d)/INDEX(q_impact_RDY_d,tMinus)*L_RS_SP_set+(R_Cash)*(1-L_RS_SP_set) -> 1.0000 | P131: =(D_mon+q_impact_RS_d)/INDEX(q_impact_RS_d,tMinus)*L_RS_SP_set+(R_Cash)*(1-L_RS_SP_set) -> 0.9979 | R131: =LN(M131) -> -0.0061 | S131: =LN(N131) -> -0.0137 | T131: =LN(O131) -> 0.0000 | U131: =LN(P131) -> -0.0021
A132: 1881.11 | C132: 0.0100 | D132: -0.06 | E132: 0.08 | F132: 0.10 | G132: 0.01 | H132: 0.04 | J132: 6.20 | K132: 6.23 | M132: 1.0076 | N132: 1.0153 | O132: 1.0092 | P132: 1.0193 | R132: 0.0076 | S132: 0.0152 | T132: 0.0092 | U132: 0.0191
A133: 1881.12 | C133: 0.0100 | D133: -0.06 | E133: 0.07 | F133: 0.02 | G133: 0.01 | H133: -0.04 | J133: 6.02 | K133: 5.97 | M133: 0.9858 | N133: 0.9782 | O133: 0.9981 | P133: 0.9961 | R133: -0.0143 | S133: -0.0220 | T133: -0.0019 | U133: -0.0039
A134: 1882.01 | C134: 0.0100 | D134: -0.06 | E134: 0.07 | F134: 0.02 | G134: 0.01 | H134: -0.04 | J134: 5.93 | K134: 5.88 | M134: 0.9945 | N134: 0.9946 | O134: 1.0002 | P134: 1.0002 | R134: -0.0055 | S134: -0.0055 | T134: 0.0002 | U134: 0.0002
A135: 1882.02 | C135: 0.0100 | D135: -0.06 | E135: 0.07 | F135: 0.02 | G135: 0.01 | H135: -0.04 | J135: 5.80 | K135: 5.75 | M135: 0.9903 | N135: 0.9902 | O135: 0.9997 | P135: 0.9996 | R135: -0.0098 | S135: -0.0099 | T135: -0.0003 | U135: -0.0004
A136: 1882.03 | C136: 0.0100 | D136: -0.06 | E136: 0.07 | F136: 0.03 | G136: 0.02 | H136: -0.02 | J136: 5.80 | K136: 5.76 | M136: 1.0030 | N136: 1.0047 | O136: 1.0030 | P136: 1.0038 | R136: 0.0030 | S136: 0.0046 | T136: 0.0030 | U136: 0.0038
A137: 1882.04 | C137: 0.0100 | D137: -0.06 | E137: 0.07 | F137: 0.06 | G137: 0.02 | H137: -0.00 | J137: 5.80 | K137: 5.78 | M137: 1.0040 | N137: 1.0066 | O137: 1.0038 | P137: 1.0059 | R137: 0.0040 | S137: 0.0066 | T137: 0.0038 | U137: 0.0058
A138: 1882.05 | C138: 0.0100 | D138: -0.06 | E138: 0.07 | F138: 0.02 | G138: 0.01 | H138: -0.04 | J138: 5.72 | K138: 5.67 | M138: 0.9964 | N138: 0.9924 | O138: 1.0012 | P138: 1.0000 | R138: -0.0036 | S138: -0.0076 | T138: 0.0012 | U138: 0.0000
A139: 1882.06 | C139: 0.0100 | D139: -0.06 | E139: 0.07 | F139: 0.02 | G139: 0.02 | H139: -0.03 | J139: 5.70 | K139: 5.65 | M139: 1.0008 | N139: 1.0012 | O139: 1.0023 | P139: 1.0024 | R139: 0.0008 | S139: 0.0012 | T139: 0.0023 | U139: 0.0024
A140: 1882.07 | C140: 0.0100 | D140: -0.06 | E140: 0.08 | F140: 0.10 | G140: 0.02 | H140: 0.04 | J140: 6.02 | K140: 6.04 | M140: 1.0398 | N140: 1.0484 | O140: 1.0521 | P140: 1.0635 | R140: 0.0391 | S140: 0.0473 | T140: 0.0508 | U140: 0.0616
A141: 1882.08 | C141: 0.0100 | D141: -0.06 | E141: 0.08 | F141: 0.10 | G141: 0.01 | H141: 0.04 | J141: 6.19 | K141: 6.22 | M141: 1.0223 | N141: 1.0224 | O141: 1.0292 | P141: 1.0293 | R141: 0.0221 | S141: 0.0222 | T141: 0.0287 | U141: 0.0289
A142: 1882.09 | C142: 0.0100 | D142: =(1-Epsilon)*q_SP-q_SP -> -0.06 | E142: 0.08 | F142: 0.10 | G142: 0.01 | H142: 0.04 | J142: 6.25 | K142: 6.28 | M142: 1.0097 | N142: 1.0095 | O142: 1.0119 | P142: 1.0116 | R142: 0.0096 | S142: 0.0094 | T142: 0.0118 | U142: 0.0115
A143: 1882.10 | C143: 0.0100 | D143: -0.06 | E143: 0.07 | F143: 0.02 | G143: 0.01 | H143: -0.04 | J143: 6.08 | K143: 6.03 | M143: 0.9871 | N143: 0.9794 | O143: 0.9988 | P143: 0.9968 | R143: -0.0129 | S143: -0.0208 | T143: -0.0012 | U143: -0.0032
A144: 1882.11 | C144: 0.0100 | D144: -0.06 | E144: 0.07 | F144: 0.02 | G144: 0.01 | H144: -0.04 | J144: 5.82 | K144: 5.77 | M144: 0.9775 | N144: 0.9774 | O144: 0.9966 | P144: 0.9965 | R144: -0.0227 | S144: -0.0229 | T144: -0.0034 | U144: -0.0035
A145: 1882.12 | C145: 0.0100 | D145: -0.06 | E145: 0.07 | F145: 0.09 | G145: 0.02 | H145: 0.03 | J145: 5.86 | K145: 5.87 | M145: 1.0074 | N145: 1.0153 | O145: 1.0085 | P145: 1.0184 | R145: 0.0074 | S145: 0.0152 | T145: 0.0085 | U145: 0.0182
A146: 1883.01 | C146: 0.0100 | D146: -0.06 | E146: 0.07 | F146: 0.02 | G146: 0.01 | H146: -0.03 | J146: 5.82 | K146: 5.78 | M146: 1.0008 | N146: 0.9936 | O146: 1.0023 | P146: 0.9999 | R146: 0.0008 | S146: -0.0064 | T146: 0.0023 | U146: -0.0001
A147: 1883.02 | C147: 0.0100 | D147: -0.06 | E147: 0.07 | F147: 0.02 | G147: 0.01 | H147: -0.04 | J147: 5.69 | K147: 5.64 | M147: 0.9899 | N147: 0.9893 | O147: 0.9995 | P147: 0.9994 | R147: -0.0101 | S147: -0.0108 | T147: -0.0005 | U147: -0.0006
A148: 1883.03 | C148: 0.0100 | D148: -0.06 | E148: 0.07 | F148: 0.09 | G148: 0.02 | H148: 0.04 | J148: 5.77 | K148: 5.79 | M148: 1.0120 | N148: 1.0205 | O148: 1.0147 | P148: 1.0256 | R148: 0.0119 | S148: 0.0203 | T148: 0.0145 | U148: 0.0253
A149: 1883.04 | C149: 0.0100 | D149: -0.06 | E149: 0.07 | F149: 0.10 | G149: 0.02 | H149: 0.04 | J149: 5.89 | K149: 5.91 | M149: 1.0172 | N149: 1.0174 | O149: 1.0218 | P149: 1.0220 | R149: 0.0171 | S149: 0.0172 | T149: 0.0215 | U149: 0.0217
A150: 1883.05 | C150: 0.0100 | D150: -0.06 | E150: 0.07 | F150: 0.02 | G150: 0.01 | H150: -0.04 | J150: 5.78 | K150: 5.73 | M150: 0.9932 | N150: 0.9851 | O150: 1.0003 | P150: 0.9981 | R150: -0.0068 | S150: -0.0151 | T150: 0.0003 | U150: -0.0019
A151: 1883.06 | C151: 0.0100 | D151: -0.06 | E151: 0.07 | F151: 0.09 | G151: 0.02 | H151: 0.04 | J151: 5.84 | K151: 5.86 | M151: 1.0096 | N151: 1.0178 | O151: 1.0115 | P151: 1.0220 | R151: 0.0095 | S151: 0.0177 | T151: 0.0114 | U151: 0.0218
A152: 1883.07 | C152: 0.0100 | D152: -0.06 | E152: 0.07 | F152: 0.02 | G152: 0.02 | H152: -0.04 | J152: 5.75 | K152: 5.69 | M152: 0.9942 | N152: 0.9863 | O152: 1.0006 | P152: 0.9984 | R152: -0.0058 | S152: -0.0138 | T152: 0.0006 | U152: -0.0016
A153: 1883.08 | C153: 0.0100 | D153: -0.05 | E153: 0.07 | F153: 0.02 | G153: 0.02 | H153: -0.04 | J153: 5.49 | K153: 5.43 | M153: 0.9752 | N153: 0.9750 | O153: 0.9961 | P153: 0.9961 | R153: -0.0251 | S153: -0.0253 | T153: -0.0039 | U153: -0.0039
A154: 1883.09 | C154: 0.0100 | D154: -0.06 | E154: 0.07 | F154: 0.09 | G154: 0.02 | H154: 0.04 | J154: 5.55 | K154: 5.57 | M154: 1.0115 | N154: 1.0202 | O154: 1.0138 | P154: 1.0247 | R154: 0.0115 | S154: 0.0200 | T154: 0.0137 | U154: 0.0244
A155: 1883.10 | C155: 0.0100 | D155: -0.05 | E155: 0.07 | F155: 0.02 | G155: 0.02 | H155: -0.04 | J155: 5.40 | K155: 5.34 | M155: 0.9866 | N155: 0.9784 | O155: 0.9989 | P155: 0.9968 | R155: -0.0135 | S155: -0.0218 | T155: -0.0012 | U155: -0.0032
A156: 1883.11 | C156: 0.0100 | D156: -0.05 | E156: 0.07 | F156: 0.09 | G156: 0.02 | H156: 0.04 | J156: 5.48 | K156: 5.50 | M156: 1.0142 | N156: 1.0230 | O156: 1.0171 | P156: 1.0283 | R156: 0.0141 | S156: 0.0228 | T156: 0.0170 | U156: 0.0280
A157: 1883.12 | C157: 0.0100 | D157: -0.05 | E157: 0.07 | F157: 0.02 | G157: 0.02 | H157: -0.04 | J157: 5.36 | K157: 5.30 | M157: 0.9899 | N157: 0.9815 | O157: 0.9996 | P157: 0.9975 | R157: -0.0101 | S157: -0.0186 | T157: -0.0004 | U157: -0.0025
A158: 1884.01 | C158: 0.0100 | D158: -0.05 | E158: 0.07 | F158: 0.02 | G158: 0.02 | H158: -0.04 | J158: 5.20 | K158: 5.14 | M158: 0.9848 | N158: 0.9847 | O158: 0.9985 | P158: 0.9985 | R158: -0.0154 | S158: -0.0154 | T158: -0.0015 | U158: -0.0015
A159: 1884.02 | C159: 0.0100 | D159: -0.05 | E159: 0.07 | F159: 0.09 | G159: 0.02 | H159: 0.04 | J159: 5.34 | K159: 5.36 | M159: 1.0222 | N159: 1.0314 | O159: 1.0275 | P159: 1.0393 | R159: 0.0220 | S159: 0.0310 | T159: 0.0272 | U159: 0.0385
A160: 1884.03 | C160: 0.0100 | D160: -0.05 | E160: 0.07 | F160: 0.02 | G160: 0.02 | H160: -0.03 | J160: 5.32 | K160: 5.27 | M160: 1.0016 | N160: 0.9938 | O160: 1.0020 | P160: 0.9993 | R160: 0.0016 | S160: -0.0062 | T160: 0.0020 | U160: -0.0007
A161: 1884.04 | C161: 0.0100 | D161: -0.05 | E161: 0.07 | F161: 0.02 | G161: 0.02 | H161: -0.03 | J161: 5.08 | K161: 5.03 | M161: 0.9744 | N161: 0.9735 | O161: 0.9957 | P161: 0.9954 | R161: -0.0259 | S161: -0.0268 | T161: -0.0044 | U161: -0.0046
A162: 1884.05 | C162: 0.0100 | D162: =(1-Epsilon)*q_SP-q_SP -> -0.05 | E162: 0.06 | F162: 0.01 | G162: 0.02 | H162: -0.03 | J162: 4.67 | K162: 4.62 | M162: 0.9505 | N162: 0.9504 | O162: 0.9904 | P162: 0.9904 | R162: -0.0508 | S162: -0.0509 | T162: -0.0096 | U162: -0.0097
A163: 1884.06 | C163: 0.0100 | D163: -0.04 | E163: 0.06 | F163: 0.01 | G163: 0.02 | H163: -0.03 | J163: 4.48 | K163: 4.43 | M163: 0.9770 | N163: 0.9768 | O163: 0.9965 | P163: 0.9964 | R163: -0.0233 | S163: -0.0234 | T163: -0.0036 | U163: -0.0036
A164: 1884.07 | C164: 0.0100 | D164: -0.04 | E164: 0.06 | F164: 0.04 | G164: 0.02 | H164: 0.00 | J164: 4.48 | K164: 4.46 | M164: 1.0049 | N164: 1.0096 | O164: 1.0042 | P164: 1.0076 | R164: 0.0049 | S164: 0.0096 | T164: 0.0042 | U164: 0.0075
A165: 1884.08 | C165: 0.0100 | D165: -0.05 | E165: 0.07 | F165: 0.08 | G165: 0.02 | H165: 0.03 | J165: 4.76 | K165: 4.77 | M165: 1.0480 | N165: 1.0531 | O165: 1.0585 | P165: 1.0647 | R165: 0.0469 | S165: 0.0518 | T165: 0.0568 | U165: 0.0627
A166: 1884.09 | C166: 0.0100 | D166: -0.05 | E166: 0.06 | F166: 0.01 | G166: 0.02 | H166: -0.03 | J166: 4.61 | K166: 4.56 | M166: 0.9829 | N166: 0.9741 | O166: 0.9977 | P166: 0.9956 | R166: -0.0173 | S166: -0.0262 | T166: -0.0023 | U166: -0.0044
A167: 1884.10 | C167: 0.0100 | D167: -0.04 | E167: 0.06 | F167: 0.01 | G167: 0.02 | H167: -0.03 | J167: 4.46 | K167: 4.41 | M167: 0.9824 | N167: 0.9823 | O167: 0.9976 | P167: 0.9976 | R167: -0.0178 | S167: -0.0178 | T167: -0.0024 | U167: -0.0024
